{"text_format":"1","workbook":"xlsx","n_sheets":7,"sheets":["ŠKOLSTVÍ","KULTURA","ZDRAVOTNICTVÍ","SOCIÁLNÍ SLUŽBY","KRAJSKÝ ÚŘAD Pk","List1","Souhrn"],"not_rendered":{"charts":0,"images":0,"macros":0,"external_links":0,"defined_names":9,"comments":0,"pivot_tables":1},"unopened":[],"bounds":{"document_bytes":16777216,"sheet_cells":100000,"rows_first":2000,"rows_last":500,"rows_between":2000,"halvings":0,"cell_chars":16384,"cell_head_chars":4096},"cells_cut":0,"cells_raw":0,"read":"whole","date_system":"1900"}

{"sheet":"ŠKOLSTVÍ","index":0,"n_rows":378,"n_cols":26,"rows_kept":378,"cut":false,"hidden":false,"merged":[[2,17,3,17],[2,23,3,23],[0,0,0,1],[2,0,3,0],[2,1,3,1],[2,2,3,2],[2,3,2,5],[2,8,3,8]]}
["I. ŠKOLSTVÍ"]
[]
["č.","Název dle zřizovací listiny","IČ","Adresa místa pojištění",null,null,"Parc.",null,"Zastavěná plocha (m2)","Obestavěný","Vlastník ","Počet","Typ","Nosná ","Typ ","Krytina","Provozní","Technologie","Celkový","Nebezpečné ","Zabezpečení","Zabezpečení","Trvale","Okna / dveře","Vnější ","Pojistná částka - nová"]
[null,null,null,"Ulice/č.p.","Místo","PSČ","číslo",null,null,"prostor (m3)","nemovitosti","podlaží","budovy","konstrukce","střechy","střechy","účel stavby",null,"stav (1-5)","látky","protipožární","proti krádeži","využíváno",null,"nebezpečí"," hodnota nemovitosti"]
[1,"Centrum celoživotního vzdělávání-zařízení pro další vzdělávání pedagog. pracovníků Pk",75061074,"Mozartova 449","Pardubice",53002,6872,4300,5207,null,"Pardubický kraj",3,"budova","zděná","plochá","střešní folie","centrum vzdělávání - pronajaté prostory školy","ne",2,"ne ","RHP, hydranty","EZS ","ano","skleněná s dřevěným rámem / kovové s prosklením","vandalismus","budova pojištěna - Gymnázium Pardubice, Mozartova 449"]
[2,"Dětský domov Dolní Čermná ",70857717,"č.p.74","Dolní Čermná",56153,323,4300,344,5100,"Pardubický kraj",2,"budova","betonový základ, zděná","sedlová","lepenka","dětský domov","gastro-technologie, klimatizace, vzduchotechnika - kuchyně",1,"ne","vnitřní hydrant, RHP","EZS, oplocení objektu","ano","skleněná s plastovým rámem / plastové s prosklením","minimální",24561600]
[null,null,null,null,null,null,1052,4300,460,3042,"Pardubický kraj",1,"budova","zděná","valbová","šindel","dětský domov, rodinná buňka","ne",1,"ne","standartní (RHP)","stálá přítomnost zaměstnanců","ano","skleněná s plastovým rámem / plastové s prosklením","minimální",14650272]
[null,null,null,null,null,null,1053,4300,259,1645,"Pardubický kraj",1,"budova","zděná","valbová","šindel","administrativní budova","klimatizace",1,"ne","standartní (RHP)","EZS, oplocení objektu","ano","skleněná s plastovým rámem / plastové s prosklením","minimální",7922320]
[{"$f":"+A6+1","v":3},"Dětský domov Holice, Husova 623",48159638,"Husova 623","Holice","534 11","392/1",5400,780,3756,"Pardubický kraj",2,"budova","zděná","valbová, sedllová","pálená taška","administrativní budova,dětský domov,posilovna a dílny","ne",1,"ne","RHP, vnitřní hydrant, protipožární dveře","EZS","ano","skleněná s plastovým rámem / plastové s prosklením","vzrostlý strom",20971232]
[null,null,null,"bez č.p.","Holice","534 11","392/3",4300,41,102,"Pardubický kraj",1,"garáž","zděná","pultová","střešní folie","garáž","ne",1,"ne","standartní (RHP)","minimální(oplocení areálu)","ano","skleněná s dřevěným rámem / plechová vrata","minimální",569506]
[null,null,null,"Husova 378","Holice","534 11","393/1",4300,352,2022,"Pardubický kraj",1,"budova","zděná","sedlová","plech,střešní tašky","kuchyně,jidelna dětského domova","gastro-technologie, vzduchotechnika",2,"ne","RHP, vnitřní hydrant ","EZS","ano","skleněná s dřevěným rámem / dřevěné s prosklením","minimální",11289625]
[null,null,null,"bez č.p.","Holice","534 11","391/5,391/6",4300,null,150,"Pardubický kraj",null,null,"dřevěná",null,null,"dětské hřiště","ne",2,"ne","ne","plocení areálu","ano","ne","minimální",837509]
[{"$f":"+A9+1","v":4},"Dětský domov Horní Čermná 188",70857695,"č.p.188","Horní Čermná",56156,"117/2",4300,700,3080,"Pardubický kraj",2,"budova","zděná","valbová","eternit","dětský domov","ne",2,"ne","vnitřní hydrant, RHP","stálá přítomnost zaměstnanců, zámek FAB","ano","skleněná s plastovým rámem / dřevěné s prosklením","vandalismus",14833280]
[{"$f":"+A13+1","v":5},"Dětský domov Moravská Třebová",63609177,"J. K. Tyla 570/65","Moravská Třebová",57101,2650,4300,199,3250,"Pardubický kraj",3,"budova","zděná","sedlová","plechová","dětský domov","ne",2,"ne","standartní (RHP)","bezpečnostní zámek vchodových dveří, oplocení areálu","ano","skleněná s plastovým rámem / plastové  ","vzrostlý strom,vandalismus",15652500]
[null,null,null,"bez č.p.","Moravská Třebová",57101,2651,4300,100,710,"Pardubický kraj",2,"budova","zděná","pultová","plechová","technické zázemí dětského domova, kancelář","ne",2,"ne","standartní (RHP)","bezpečnostní zámek dveří a bezpečnostní skla oken, oplocení areálu","ano","skleněná s plastovým rámem / plastové se skleněnou výplní","minimální",3418860]
[{"$f":"+A14+1","v":6},"Dětský domov Pardubice",48160865,"Ke Tvrzi 235","Pardubice","530 03",1100,4300,702,4914,"Pardubický kraj",2,"budova","zděná","sedlová","pálená taška","děstský domov","gastro-technologie",2,"ne","standartní (RHP)","oplocení areálu(vstup uzamčen-domovní audiotelefon)","ano","skleněná s dřevěným rámem / dřevěné s prosklením","vzrostlé stromy",23665824]
[null,null,null,"bez č.p.","Pardubice","530 03",10070,4300,80,240,"Pardubický kraj",1,"budova","dřevěná","sedlová","šindel","garáž, sklad, kolárna","žádná",2,"ne","standartní (RHP)","oplocení areálu(vstup uzamčen-domovní audiotelefon)","ano","skleněná s dřevěným rámem / dřevěné  ","vzrostlé stromy",1155840]
[{"$f":"+A16+1","v":7},"Dětský domov Polička",63609291,"A. Lidmilové 505","Polička",57201,1244,4300,245,3456,"Pardubický kraj",2,"budova","zděná","valbová","plech","dětský domov","ne",2,"ne","standartní (RHP)","stálá přítomnost zaměstnanců","ano","skleněná s dřevěným rámem / dřevěné s prosklením","vandalismus",16644096]
[{"$f":"+A18+1","v":8},"Domov mládeže a školní jídelna Pardubice",48161071,"Rožkova 331","Pardubice","530 02",3773,4300,1037,13447,"Pardubický kraj",4,"budova","zděná","valbová","plech","ředitelství","ne",2,"ne","EPS, RHP","EZS, oplocena zadní část objektu","ano","skleněná s plastovým rámem / plastové s prosklením","vandalismus",64760752]
[null,null,null,"Rožkova 2432","Pardubice","530 02",5084,4300,917,14960,"Pardubický kraj",4,"budova","zděná","valbová","plech","domov mládeže","ne",2,"ne","standartní (RHP)","minimální(oplocena zadní část objektu)","ano","skleněná s plastovým rámem / kovové s prosklením","vzrostlé stromy",72047360]
[null,null,null,"Gorkého 350","Pardubice","530 02",5083,4300,2800,31310,"Pardubický kraj",4,"budova","zděná","valbová","střešní tašky","domov mládeže a školní jídelna","gastro-technologie,klimatizace",1,"ne","EPS, RHP","EZS, oplocena zadní část objedktu","ano","skleněná s plastovým rámem / plastové se skleněnou výplní","vzrostlé stromy",150788960]
[{"$f":"+A19+1","v":9},"Domov mládeže a školní jídelna Vysoké Mýto",49314688,"Gen. Závady 118","Vysoké Mýto",56601,"1214/2",4300,1527,13625,"Pardubický kraj",3,"budova","zděná","plochá","střešní folie","škola, ubytovna, kuchyň, jídelna","gastro-technologie",2,"ne","RHP, vnitřní hydranty, protipožární dveře","minimální","ano","skleněná s plastovým rámem / kovové s prosklením","vandalismus",67169928]
[null,null,null,"bez č.p.","Vysoké Mýto",56601,"1206/2",4300,1349,7200,"Pardubický kraj",1,"hala","zděná","pultová","vlnitý plech","sportovní hala","ne",1,"ne","RHP, vnitřní hydrant","minimální","ano","skleněná s kovovým rámem / kovové s prosklením","vandalismus",35495335]
[null,null,null,"Gen. Závady 383","Vysoké Mýto",56601,1222,4700,582,7100,"Pardubický kraj",2,"budova","zděná","valbová","břidlice","domov mládeže","ne","v rekonstrukci","ne","standartní (RHP)","minimální","ne","skleněná s dřevěným rámem / dřevěná s prosklením","vandalismus",35002337]
[10,"Gymnázium Aloise Jiráska, Litomyšl, T. G. Masaryka 590",62032348,"T. G. Masaryka 590","Litomyšl",57001,875,4300,2207,16519,"Pardubický kraj",3,"budova","zděná","valbová","střešní tašky","škola ","ne",1,"ne","RHP, hydranty","minimální (oplocení areálu)","ano","skleněná s dřevěným rámem / dřevěné","minimální",79555504]
[null,null,null,null,null,null,"875/5",4300,27,108,"Pardubický kraj",1,"budova","zděná","plochá","plech","trafostanice","ne",2,"ne","standartní (RHP)","zadní část objektu oplocena, FAB, vicací zámky","ano","plechová vrata","vandalismus",520128]
[11,"Gymnázium, Česká Třebová, Tyršovo náměstí 970",49314670,"Tyršovo nám. 970","Česká Třebová",56002,1046,4300,1840,null,"v majetku města",3,"budova","zděná","sedlová","šindel","škola","gastro-technologie",1,"ne","RHP, hydranty","minimální (oplocení areálu)","ano","skleněná s dřevěným rámem / dřevěná s prosklením","minimální"]
[12,"Gymnázium Dr. Emila Holuba, Holice, Na Mušce 1110",48161101,"Na Mušce 1110","Holice","534 01","2020/55",4300,3045,30450,"Pardubický kraj",4,"budova","zděná","plochá","střešní folie","škola","gastro-technologie",1,"ne","standartní (RHP)","minimální (oplocení zadní části objektu)","ano","skleněná s plastovým rámem / plastová s prosklením","vandalismus",146676149]
[null,null,null,"Oplocení sportoviště","Holice",null,"2011/1",null,null,null,"Pardubický kraj",null,null,"kovová",null,null,"oplocení sportoviště",null,2,null,null,"minimální",null,null,"vandalismus",241243]
[13,"Gymnázium a Jazyková škola s právem státní jazykové zkoušky Svitavy",62033026,"Sokolovská 1638","Svitavy",56802,"1744/1",4300,3400,21736,"Pardubický kraj",2,"budova","zděná","pultová","plech","škola, jídelna, kuchyně","gastro-technologie,klimatizace",3,"ne","RHP, hydranty","minimální","ano","skleněná s dřevěnýma  plastovým rámem / plastové s prosklením","vandalismus, vzrostlé stromy",104680576]
[null,null,null,"Pražská 2/2162","Svitavy",56802,"524/2",4300,3253,20212,"Pardubický kraj",1,"hala","želeobeton","oblouková","střešní folie","sportovní hala","vzduchotechnika",1,"ne","standartní (RHP)","minimální","ano","skleněná s plastovým rámem / plastové s prosklením","vandalismus",97340992]
[14,"Gymnázium, Jevíčko, A. K. Vitáka 452 ",62032011,"A. K. Vitáka 452","Jevíčko",56943,"322, 175/3",4300,1450,21498,"Pardubický kraj",3,"budova","zděná","valbová","střešní tašky","škola, sportovní hřiště","ne",1,"ne","standartní (RHP)","minimální","ano","skleněná s dřevěným rámem / dřevěné s prosklením","vandalismus",103534368]
[null,null,null,"Nerudova 557","Jevíčko",56943,507,4300,1320,11200,"Pardubický kraj",3,"budova","zděná","plochá","střešní folie","domov mládeže","ne",2,"ne","standartní (RHP)","minimální","ano","skleněná s dřevěným rámem / dřevěné s prosklením","vandalismus",53939200]
[15,"Gymnázium Josefa Ressela, Chrudim, Olbrachtova 291",60103337,"Olbrachtova 291","Chrudim",53701,1025,4300,2065,36126,"Pardubický kraj",4,"budova","zděná","valbová","plechová","škola","gastro-technologie, vzduchotechnika, klimatizace",3,"minimální množství v laboratoři","RHP, hydranty","EZS, oplocení areálu","ano","skleněná s dřevěným rámem / dřevěné","vandalismus",173982816]
[16,"Gymnázium K. V. Raise, Hlinsko, Adámkova 55",60103329,"Adámkova 55","Hlinsko",53901,452,4300,1430,13600,"Pardubický kraj",3,"budova","zděná","sedlová","střešní tašky","škola","ne",2,"ne","RHP, hydranty","minimální","ano","skleněná s plastovým, dřevěným rámem / plastové s prosklením","vandalismus",65497600]
[null,null,null,"Čelakovského 469","Hlinsko","539 01",445,4300,120,1080,"Pardubický kraj",2,"budova","zděná","sedlová","plech","učebna jazyků","ne",2,"ne","standartní (RHP)","minimální","ano","skleněná s dřevěným rámem / dřevěné s prosklením","vandalismus",5201280]
[17,"Gymnázium, Lanškroun, nám. Jana Marka Marků 113",49314653,"nám. J. M. Marků 113","Lanškroun",56312,85,4300,1095,null,"v majetku města",3,"budova","zděná","valbová","střešní tašky","škola","vzduchotechnika - sklepní prostory",2,"ne","RHP, hydrant","minimální","ano","skleněná s dřevěným rámem / dřevěné","vandalismus"]
[{"$f":"+A37+1","v":18},"Gymnázium, Moravská Třebová, Svitavská 310",62033131,"Svitavská 310","Moravská Třebová",57101,"440/2",4300,1392,12298,"Pardubický kraj",4,"budova","zděná","plochá, sedlová","střešní folie, plech","škola","ne",2,"minimální množství chemických látek v laboratoři","RHP, vnitřní hydranty, protipožární dveře","minimální (oplocení objektu)","ano","skleněná s plastovým rámem / plechové se skleněnou výplní","minimální",59227168]
[null,null,null,"Svitavská 310","Moravská Třebová",57101,456,4300,550,9360,"Pardubický kraj",3,"budova","zděná","valbová","plechová","škola","ne",3,"minimální množství chemických látek v laboratoři","RHP, vnitřní hydranty","minimální (oplocení areálu)","ano","skleněná s dřevěným rámem / dřevěné s prosklením","minimální",45077760]
[{"$f":"+A38+1","v":19},"Gymnázium, Pardubice, Dašická 1083",48160989,"Dašická 1083","Pardubice","530 03",8083,4300,2521,35750,"Pardubický kraj",5,"budova","zděná","pultová","střešní fólie","učebny, tělocvična školy","serverovna - klimatizace",2,"ne","vnitřní hydranty","vstup na čipové karty, kamerový systém, videotelefon","ano","skleněná s plastovým rámem / kovová s prosklením","vandalismus",172172000]
[null,null,null,"Dašická 1888","Pardubice","531 03",10974,null,1758,11058,"Pardubický kraj",1,"hala","želeobeton","oblouková","střešní fólie","sportovní hala","vzduchotechnika",1,"ne","EPS, RHP","minimální","ano","skleněná s plastovým rámem / plastová s prosklením","vandalismus",53258485]
[null,null,null,"bez č.p.","Pardubice","530 03",8084,4300,990,6930,"Pardubický kraj",2,"budova","zděná","plochá","střešní fólie","školní jídelna, kuchyně","gastro-technologie,klimatizace",3,"ne","standartní (RHP)","kamerový systém","ano","skleněná s plastovým rámem / plastové s prosklením","vandalismus, vzrostlé stromy",33374880]
[null,null,null,"bez č.p.","Pardubice","530 03",8085,4300,194,776,"Pardubický kraj",1,"budova","zděná","plochá","střešní fólie","sklad","ne",2,"ne","standartní (RHP)","minimální (oplocení areálu)","ano","skleněná s dřevěným rámeme / dřevěné","vzrostlé stromy",3737216]
[20,"Gymnázium, Pardubice, Mozartova 449",48161063,"Mozartova 449","Pardubice","530 09",6872,4300,5207,21235,"Pardubický kraj",3,"budova","zděná","plochá","střešní fólie","škola","vzduchotechnika - kuchyně",2,"minimální množství chemických látek  v laboratoři","RHP, hydranty","EZS","ano","skleněná s dřevěným rámem / kovové s prosklením","vandalismus",102270578]
[21,"Gymnázium, Polička, Nábřeží svobody 306",62032178,"Nábřeží svobody 306","Polička",57201,"909, 3489",4300,"1548, 360",21784,"Pardubický kraj",3,"budova","zděná","valbová","plech","škola, tělocvična školy","vzduchotechnika, klimatizace",1,"minimální množství chemických látek ve skladu (pro laboratoř)","RHP, hydranty","bezpečnostní vchodové dveře, kódové zabezpečení dveří - učebna fyziky a PC","ano","skleněná s dřevěným,plastovým rámem / dřevěné s prosklením","minimální",178307584]
[22,"Gymnázium a Střední odborná škola Přelouč",72543159,"Obránců míru 1025","Přelouč","535 01","1044, 1946",4300,"2182, 46",28539,"Pardubický kraj",3,"budova","zděná","valbová","střešní tašky","učebny školy","ne",3,"ne","RHP, hydranty","EZS","ano","skleněná s dřevěným rámem / dřevěné s prosklením","vandalismus",137443824]
[null,null,null,"bez č.p.","Přelouč","535 01",2147,4300,870,4950,"Pardubický kraj",2,"budova","zděná","plochá","střešní fólie","učebny školy","ne",2,"ne","RHP, vnitřní hydrant","EZS, oplocení zadní části objektu","ano","skleněná s dřevěným rámem / kovové s prosklením","vandalismus",23839200]
[null,null,null,"bez č.p.","Přelouč","535 01",2148,4300,47,140,"Pardubický kraj",1,"budova","zděná","plochá","střešní fólie","trafostanice","ne",2,"ne","standartní (RHP)","oplocení objektu","ano","ne / plechové","vandalismus",674240]
[null,null,null,"Dukelské nám. 1513","Přelouč","535 01","2162/1,2162/2,2162/3",4300,595,5200,"Pardubický kraj",3,"budova","zděná","plochá","střešní fólie","škola","ne",1,"ne","RHP, hydranty","oplocení objektu","ne, částečně pronajaté","skleněná s dřevěným rámem / dřevěné s prosklením","vandalismus",25043200]
[null,null,null,"bez č.p.","Přelouč","535 01","540/1",4300,971,5900,"Pardubický kraj",1,"budova","zděná","pultová","plech, eternit","sklad, dílny","ne",3,"ne","standartní (RHP)","oplocení areálu","ne","skleněné s dřevěným, kovovým rámem / dřevěné, kovové s prosklením","vandalismus, vzrostlé stromy",28414400]
[null,null,null,"bez č.p.","Přelouč","535 01",1938,4300,326,1400,"Pardubický kraj",1,"budova","zděná","sedlová","vlnitý plech","dílny, šatny","ne",3,"ne","standartní (RHP)","okenní mříže, oplocení pozemku","ne","skleněné s dřevěným rámem / dřevěné","minimální",6142400]
[null,null,null,"bez č.p.","Přelouč","535 01",2152,4300,63,190,"Pardubický kraj",1,"garáž","kovová","sedlová","vlnitý plech","garáž","ne",3,"ne","ne","oplocení objektu","ne","plastová v kovovém rámu / plechová vrata","vzrostlé stromy, vandalismus",915040]
[null,null,null,"Jaselská 1499","Přelouč","535 01","542/1",4300,2592,14100,"Pardubický kraj",2,"budova","zděná","plochá","střešní fólie","učebny SOU, dílny OV","strojírenská",2,"minimální množství acetonu, svařovací soupravy","RHP, hydranty","EZS, oplocení areálu","ano","skleněná s dřevěným rámem / kovové s prosklením","minimální",25043200]
[null,null,null,"Jaselská 1505","Přelouč","535 01","542/7",4300,38,115,"Pardubický kraj",1,"budova","zděná","sedlová","střešní tašky","sklad","ne",3,"ne","standartní (RHP)","oplocení areálu, visací zámek","ano","skleněná s dřevěným rámem / dřevěné","vandalismus, vzrostlé stromy",553840]
[null,null,null,"Jaselská 1506","Přelouč","535 01","542/8",4300,508,3100,"Pardubický kraj",1,"budova","zděná","sedlová","plech","budova pro volný čas","ne",3,"ne","standartní (RHP)","oplocení areálu","ano","skleněná s dřevěným rámem / dřevěné","vandalismus",14929600]
[null,null,null,"Jaselská 1507","Přelouč","535 01","542/6",4300,916,14200,"Pardubický kraj",3,"budova","zděná","plochá","střešní fólie","domov mládeže","ne",3,"ne","RHP, vnitřní hydranty ","oplocení areálu, částečně mříže na oknech","ano","skleněná s dřevěným nebo plastovým rámem / kovová","minimální",68387200]
[23,"Gymnázium, Ústí nad Orlicí , T. G. Masaryka 106","00401081","T. G. Masaryka 106","Ústí nad Orlicí",56201,726,4300,1424,22800,"Pardubický kraj",3,"budova","zděná","valbová","střešní tašky","škola","ne",2,"ne","RHP, hydranty","minimální","ano","skleněná s dřevěným rámem / dřevěné","vandalismus, vzrostlé stromy",13484800]
[null,null,null,"T. G. Masaryka 101","Ústí nad Orlicí",56201,727,4300,588,4700,"Pardubický kraj",2,"budova","zděná","valbová","střešní tašky","tělocvična školy","ne",3,"ne","standartní (RHP)","minimální (oplocení areálu)","ano","skleněná s dřevěným rámem / dřevěné s prosklením","minimální",22635200]
[null,null,null,"bez č.p.","Ústí nad Orlicí",56201,3583,4300,65,160,"Pardubický kraj",1,"budova","zděná","valbová","pálená taška","altán","ne",2,"ne","standartní (RHP)","minimální (oplocení areálu)","ano","ne","vzrostlé stromy",770560]
[24,"Gymnázium Vysoké Mýto",49314645,"nám. Vaňorného 163","Vysoké Mýto",56601,226.227,4300,"568, 854",null,"v majetku města",3,"budova","zděná","valbová","kanadský šindel","škola","ne",2,"minimální množství chemických látek v laboratoři","RHP, hydranty","EZS","ano","skleněná s dřevěným rámem / dřevěné s prosklením","vandalismus"]
[25,"Gymnázium, Žamberk, Nádražní 48",49314891,"Nádražní 48","Žamberk",56401,"799/1",4300,816,13100,"Pardubický kraj",3,"budova","zděná","valbová","střešní tašky","škola, tělocvična školy","vzduchotechnika",2,"ne","RHP, hydranty","minimální (osvětlení objektu)","ano","skleněná s dřevěným rámem / dřevěné s prosklením","vandalismus",63089600]
[null,null,null,"Komenského 1136","Žamberk",56401,"791/1",4300,1325,9976,"Pardubický kraj",2,"hala","zděná","plochá","střešní fólie","tělocvična školy","vzduchotechnika",3,"ne","standartní (RHP)","mříže na dveřích, oplocení zadní části objektu","ano","skleněná s dřevěným rámem / kovové s prosklením","vandalismus",48044416]
[26,"Sportovní gymnázium, Pardubice, Dašická 268",48161012,"Dašická 268","Pardubice","530 03","1244/1",4300,1756,19688,"Pardubický kraj",3,"budova","zděná","valbová","plech, střešní tašky","učebny","ne",3,"ne","RHP, hydranty","minimální (zadní část objektu oplocena)","ano","skleněná s dřevěným rámem / dřevěné s prosklením","vandalismus",94817408]
[null,null,null,"bez čp.","Pardubice","530 03",10109,4300,995,15360,"Pardubický kraj",1,"hala","zděná","plochá","střešní fólie","tělocvična školy","ne",3,"ne","standartní (RHP)","minimální (oplocení objektu)","ano","skleněná s dřevěným rámem + prosklení stěn / kovové s prosklením","minimální",73973760]
[27,"Integrovaná střední škola Moravská Třebová",15034496,"Brněnská 41","Moravská Třebová",57101,"299/4",4300,427,2340,"Pardubický kraj",2,"budova","zděná","plochá","střešní fólie","škola","ne",2,"ne","RHP, hydranty","minimální","ano","skleněná s plastovým rámem / dřevěné  ","vandalismus",11197829]
[null,null,null,"bez č.p.","Moravská Třebová",57101,"300,301/1-2,303/3",4300,"37, 480, 53, 486",5465,"Pardubický kraj",4,"budova","zděná","plochá","střešní fólie","škola, spojovací úseky","ne",3,"ne","RHP, hydranty","miniální","ne","skleněná s plastovým rámem / plastové se skleněnou výplní","vandalismus",26152594]
[null,null,null,"bez č.p.","Moravská Třebová",57101,"303/4-7, 303/14",4300,"33, 292, 64, 287, 25",7284,"Pardubický kraj",4,"budova","zděná","plochá","střešní fólie","škola, spojovací úseky, garáž","ne",3,"ne","RHP, hydranty","minimální","ano","skleněná s plastovým rámem / plastové se skleněnou výplní","vandalismus",34857363]
[null,null,null,"Milovy 35","Sněžné na Moravě",59202,239,4300,233,1165,"Pardubický kraj",1,"budova","zděná","valbová","plech","školící a výcvikové středisko školy","ne",3,"ne","standartní (RHP)","minimální","ano","skleněná s dřevěným rámem / dřevěné se skleněnou výplní","vzrostlé stromy, vandalismus",5575073]
[null,null,null,"Lanškrounská 5","Svitavy","568 02","390/1",4300,440,3845,"Pardubický kraj",2,"budova","zděná","sedlová","střešní tašky","nevyužito","ne",4,"ne","ne","ne","ne","skleněná s dřevěným rámem / dřevěné s prosklením","vzrostlý strom,vandalismus",18400132]
[null,null,null,"Dukelská 57","Moravská Třebová",57101,"436/2",4300,607,8555,"Pardubický kraj",3,"budova","zděná","plochá","střešní fólie","internát","ne",3,"ne","RHP, hydranty","minimální","ano","skeněná s plastovým rámem / plechové se skleněnou výplní","vandalismus",40939696]
[null,null,null,"9. května 5","Moravská Třebová",57101,"661/1",4300,1215,14592,"Pardubický kraj",3,"budova","zděná","plochá","střešní fólie","škola","ne",3,"ne","RHP, hydranty","minimální","ano","skleněná s dřevěným rámem / plechové se skleněnou výplní","vandalismus",69829578]
[null,null,null,"J. K. Tyla 9","Moravská Třebová",57101,"1336/1,1338/2,1337",4300,"1280, 78, 655",7200,"Pardubický kraj",2,"budova","zděná","plochá","střešní fólie","škola, tlaková stanice","vzduchotechnika",3,"tlakové láhve","standartní (RHP)","minimální (zadní část objektu oplocena)","ano","skleněná s dřevěným rámem / plastové se skleněnou výplní","vandalismus",52889014]
[null,null,null,"bez č.p.","Moravská Třebová",57101,"1347/3",4300,1076,8560,"Pardubický kraj",2,"budova","zděná","plochá, sedlová","plech","tělocvična  ","ne",3,"ne","standartní (RHP)","minimální (oplocení areálu)","ano","skleněná s dřevěným rámem / plastové se skleněnou výplní","minimální",40963623]
[28,"Integrovaná střední škola technická, Vysoké Mýto, Mládežnická 380",15028585,"Mládežnická 380","Vysoké Mýto",56601,"1917/1",4300,5478,44696,"Pardubický kraj",3,"budova","zděná","plochá","střešní fólie","škola, dílny, ubytovna, kuchyně, jídelna","strojírenská,vzduchotechnicka,klimatizace",1,"ne","RHP, hydranty","minimální","ano","skleněná s plastovým rámem / plastové s prosklením","vandalismus, vzrostlé stromy",192192800]
[29,"Konzervatoř, Pardubice, Sukova třída 1260",48161110,"Sukova třída 1260","Pardubice","530 02",8119,4300,4389,39900,"Pardubický kraj",5,"budova","zděná","plochá","střešní fólie","konzervatoř","ne",1,"ne","RHP, hydranty,EPS","EZS","ano","skleněná s dřevěným rámem / kovové s prosklením","vandalismus",193487616]
[null,null,null,"bez č.p.","Pardubice","530 02",8121,4300,69,276,"Pardubický kraj",1,"budova","zděná","plochá","střešní fólie,násyp","garáže, dílna","ne",1,"oleje, PHM","standartní (RHP)","minimální","ano","skleněná s dřevěným rámem / kovové s prosklením","vandalismus, vzrostlé stromy",1329216]
[30,"Obchodní akademie, Chrudim, Tyršovo náměstí 250",60103345,"Tyršovo nám. 250","Chrudim",53760,991,4300,1110,19800,"Pardubický kraj",4,"budova","zděná","sedlová","plechová","škola","ne",3,"ne","RHP, hydranty","minimální","ano","skleněná s dřevěným rámem / dřevěná s prosklením","vandalismus",95356800]
[31,"Obchodní akademie a Jazyková škola s právem státní jazykové zkoušky, Pardubice, Štefánikova 325",48161209,"Štefánikova 325","Pardubice","530 43","609/2",4300,684,4518,"Pardubický kraj",3,"budova","zděná","sedlová","střešní tašky","škola","ne",2,"ne","RHP, hydranty","minimální","ano","skleněná s dřevěným rámem / dřevěné","vandalismus",21758688]
[32,"Obchodní akademie a Střední odborná škola cestovního ruchu Choceň",49314661,"T. G. Masaryka 1000","Choceň",56536,1061,4300,980,null,"v majetku města",3,"budova","zděná","plochá","plech","škola","ne",2,"ne","RHP, hydranty","minimální","ano","skleněná s dřevěným rámem / dřevěné s prosklením","vandalismus"]
[null,null,null,"Bj. Krawce 1883","Choceň","565 36","164/2,164/4",null,997,7840,"Pardubický kraj",1,"budova","zděná","sedlová, valbová","plech, šindel","tělocvična","ne",3,"ne","standartní (RHP)","minimální","ano","skleněná s dřevěným rámem / plastové s prosklením","vandalismus"]
[null,null,null,"Tyršovo nám. 220","Choceň",56536,415,4300,789,9300,"Pardubický kraj",3,"budova","zděná","pultová, sedlová","eternit","škola","ne",1,"ne","RHP, hydranty","minimální","ano","skleněná s plastovým, dřevěným rámem / plastové s prosklením","vandalismus",51670800]
[null,null,null,"Vysokomýtská 1206","Choceň","565 36",682,4300,550,4240,"Pardubický kraj",1,"budova","zděná","valbová","šindel","odloučené pracoviště-odborná výuka","gastro-technologie",3,"ne","standartní (RHP)","oplocení areálu","ano","skleněná s dřevěným rámem / dřevěné s prosklením","vandalismus",23557440]
[null,null,null,"bez č.p.","Choceň","565 36","624/2, 624/4",4300,"156, 798",670,"Pardubický kraj",1,"budova","zděná","pultová","plech","odloučené pracoviště-dílny školy, sklad","strojírenská",3,"ne","standartní (RHP)","objekt v uzamčeném dvoře","ano","skleněná s dřevěným rámem / dřevěné","vzrostlé stromy",3722520]
[null,null,null,"bez č.p.","Choceň","565 36","624/3",4300,946,5120,"Pardubický kraj",2,"budova","zděná","plochá","plech","škola","ne",3,"ne","standartní (RHP)","oplocení zadní části objektu","ano","skleněná s plastovým rámem / plastové s prosklením","vandalismus",28446720]
[null,null,null,"bez č.p.","Choceň","565 36","624/1",4300,267,1120,"Pardubický kraj",1,"budova","zděná","pultová","plech","odloučené pracoviště-dílny školy ","strojírenská",3,"ne","standartní (RHP)","objekt v uzavřeném dvoře","ano","skleněná s dřevěným rámem / dřevěné","vandalismus",6222720]
[null,null,null,"Husova 146/IV","Vysoké Mýto","566 01","1515/6",4300,1439,16965,"Pardubický kraj",3,"budova","zděná","valbová","plech","odloučené pracoviště-škola","ne",2,"ne","RHP, hydranty","minimální","ano","skleněná s dřevěným rámem / dřevěné s prosklením","vandalismus",94257540]
[null,null,null,"bez čp.","Choceň",56536,"421/4",4300,118,350,"Pardubický kraj",1,"přístřešek, garáž","zděná","pultová","eternit","garáž","ne ",1,"ne","standartní (RHP)","minimální","ano","skleněná s dřevěným rámem / dřevěná vrata","vzrostlé stromy",1944600]
[null,null,null,"Komenského 435","Choceň",56536,411,4300,161,608,"Pardubický kraj",1,"garáž","zděná","plochá","plech","garáž","ne",3,"ne","standartní (RHP)","minimální","ano","prosklení / plechová vrata","vandalismus",3378048]
[null,null,null,"bez čp.","Choceň",56536,"421/3",4300,62,332,"Pardubický kraj",1,"garáž","zděná","pultová","střešní fólie","garáž","ne",4,"ne","standartní (RHP)","minimální","ano","prosklení / plechová vrata","vzrostlé stromy",1844592]
[null,null,null,"Paraple 2000","Choceň",56536,3419,4300,652,8589,"Pardubický kraj",3.4,"budova","zděná","plochá","plech","domov mládeže, školní jídelna","gastro-technologie,klimatizace",1,"ne","RHP, hyndranty","oplocení areálu","ano","skleněná s plastovým rámem / plastové s prosklením","minimální",47720484]
[33,"Obchodní akademie a Vyšší odborná škola ekonomická, Svitavy, T. G. Masaryka 47",62033077,"T. G. Masaryka 47","Svitavy",56802,"492/1,492/3",4300,1636,17224,"Pardubický kraj,parcela č.492/3 v majetku jiné fyzické osoby",3,"budova","zděná","sedlová","střešní tašky","škola, jídelna, kuchyně, tělocvična školy","vzduchotechnika, klimatizace, gastro-technologie",1,"ne","RHP, hydranty","minimální","ano","skleněná s plastovým, dřevěným rámem / plastové s prosklením","vandalismus",82950784]
[null,null,null,"bez č.p.","Svitavy",56802,"492/2",4300,207,872,"Pardubický kraj",1,"budova","zděná","pultová","plech","sborovna, prádelna, kotelna, sklad","strojní vybavení kotelny a prádelny",2,"zemní plyn-kotelna","RHP, hydranty","objekt v uzavřeném dvoře","ano","skleněná s dřevěným rámem / dřevěné","minimální",4199552]
[null,null,null,"Kijevská 1909","Svitavy",56802,2568,4300,911,5430,"Pardubický kraj",2,"budova","zděná","plochá","střešní fólie","domov mládeže","ne",1,"ne","RHP, hydranty","oplocený areál","ano","skleněná s plastovým rámem / plastové s prosklením","vandalismus",26150880]
[34,"Pedagogicko-psychologická poradna Pardubice",48160806,"Sukova třída 1260","Pardubice",53002,8119,4300,4389,39900,"Pardubický kraj",5,"budova","zděná","plochá","střešní fólie","pedagogicko-psychologická poradna (pronajaté prostory konzervatoře)","ne",1,"ne","EPS, RHP, hydranty","EZS","ano","skleněná s dřevěným rámem / kovové s prosklením","vandalismus","budova pojištěna - Konzervatoř Pardubice"]
[null,null,null,"Poděbradova 842","Chrudim",53701,"302/1",4300,1142,19400,"Pardubický kraj",6,"budova","zděná","plochá","střešní fólie","poradna / součást budovy domova mládeže /","ne",3,"ne","RHP, hydranty","minimální (oplocení areálu)","ano","skleněná s plastovým rámem / kovové s prosklením","vzrostlé stromy","budova pojištěna - SŠZ a VOŠ Chrudim"]
[null,null,null,"Internátní 217","Třemošnice",53843,219,4300,3760,null,"v majetku města",3,"budova","zděná","plochá","střešní fólie","pedagogicko-psychologická poradna (součást budovy)","ne",2,"ne","RHP, hydranty","minimální","ano","skleněná s dřevěným rámem / dřevěné s prosklením","vandalismus"]
[null,null,null,"Nádražní 548","Hlinsko",53901,"600/1",4300,851,null,"v majetku města",2,"budova","zděná","plochá","střešní fólie","poradna  ","ne",3,"ne","standartní (RHP)","minimální","ano","skleněná s plastovým rámem / plastové s prosklením","vandalismus"]
[35,"Pedagogicko-psychologická poradna, Ústí nad Orlicí, Královéhradecká 513",70847142,"Královéhradecká 513","Ústí nad Orlicí",56201,621,4300,139,1362,"Pardubický kraj",2,"budova","zděná","sedlová","pálená taška","poradna","ne",2,"ne","standartní (RHP)","minimální","ano","skleněná s dřevěným rámem / dřevěné","vandalismus",9973926]
[null,null,null,"Dobrovského 630","Lanškroun",56301,"1275/1",4300,1125,null,"v majetku města",2,"budova","zděná","sedlová","střešní tašky","pedagogicko-psychologická poradna (součást budovy)","ne",1,"ne","standartní (RHP)","minimální","ano","skleněná s dřevěným rámem / dřevěné s prosklením","vandalismus"]
[null,null,null,"Královéhradecká 630","Ústí nad Orlicí",56201,"574/2",12000,312,2576,"Pardubický kraj",3,"budova","zděná","pultová / sedlová","plech","poradna","ne",1,"ne","RHP, hydrant, EPS","EZS","ano","skleněná s plastovým rámem / plastové s prosklením","vandalismus",18864048]
[null,null,null,"Plk-B.Kohouta 914","Vysoké Mýto","566 01","4664/105",null,1219,null,"v majetku města",3,"budova","zděná","plochá","střešní fólie","pedagogicko-psychologická poradna (součást budovy)","klimatizace",1,"ne","RHP, EPS","EZS","ano","skleněná s plastovým rámem / plastové s prosklením","vandalismus"]
[null,null,null,"Riegrova 2063/11","Svitavy",56802,"2918/3",4300,331,3864,"Pardubický kraj",3,"budova","zděná","plochá","střešní fólie","poradna","ne",2,"ne","RHP, hydrant","minimální (oplocení objektu)","ano","skleněná s dřevěným rámem / kovové s prosklením","vzrostlé stromy",28296072]
[null,null,null,"Riegrova 2063/11","Svitavy","568 02","2919/2",4300,84,252,"Pardubický kraj",1,"budova","zděná","pultová","plech","garáž, sklad ","ne",2,"ne","standartní (RHP)","minimální","ano","ne / plechová vrata","vandalismus",1845396]
[null,null,null,"Nádražní 550","Žamberk",56401,796,4300,178,null,"Pardubický kraj",3,"budova","zděná","sedlová","asfaltový šindel","část objektu ve výpůjčce - poradna","ne",3,"ne","RHP, hydranty","minimální (zadní část objektu oplocena)","ano","skleněná s plastovým rámem / plastové s prosklením","vandalismus, vzrostlé stromy","budova pojištěna u Spec. SŠ a ZŠ Žamberk"]
[null,null,null,"T.G. Masaryka 1160","Litomyšl",57001,2247,null,274,null,"Pardubický kraj",1,"budova","zděná","sedlová","střešní tašky","poradna","ne",2,"ne","standartní (RHP)","minimální ( oplocení objektu )","ano","skleněná s plastovým rámem / dřevěné s prosklením","vzrostlé stromy","budova pojištěna u SŠ zahradnické a technické Litomyšl"]
[36,"Průmyslová střední škola Letohrad",49314912,"Komenského 472","Letohrad",56151,530,4300,1609,15700,"Pardubický kraj",4,"budova","zděná","plochá","plech","škola","ne",1,"ne","RHP, hydrant","EZS, oplocení areálu","ano","skleněná s plastovým rámem / plastové s prosklením","vzrostlé stromy",75611200]
[null,null,null,"Na Stráni 785","Letohrad",56151,1254,4300,503,6030,"Pardubický kraj",3,"budova","zděná","polovalbová","střešní tašky","škola","ne",2,"ne","RHP, hydrant","minimální (oplocení areálu)","ano","skleněná s dřevěným rámem / dřevěné s prosklením","minimální",29040480]
[null,null,null,"bez č.p.","Letohrad",56151,1154,4300,411,6165,"Pardubický kraj",2,"budova","zděná","polovalbová","střešní tašky","škola","ne",1,"ne","RHP, hydrant","minimální (oplocení areálu)","ano","skleněná s plastovým rámem / plastové s prosklením","minimální",29680640]
[null,null,null,"bez č.p.","Letohrad",56151,1341,4300,954,6700,"Pardubický kraj","1, 2","budova","zděná","plochá","plech","domov mládeže, tělocvična školy","vzduchotechnika ",1,"ne ","RHP, hydrant","minimální (oplocení areálu)","ano","skleněná s dřevěným rámem / kovové s prosklením","minimální",32267200]
[null,null,null,"bez č.p.","Letohrad",56151,1340,4300,831,7500,"Pardubický kraj",2,"budova","zděná","plochá","plech","kuchyně, jídelna","vzduchotechnika, gastro-technologie",2,"ne","RHP, hydrant","oplocení areálu, částečně okenní mříže","ano","skleněná s dřevěným rámem / kovové s prosklením","vzrostlé stromy",36120000]
[null,null,null,"bez č.p.","Letohrad",56151,1342,4300,24,60,"Pardubický kraj",1,"přístřešek ","zděná","pultová","střešní fólie","sklad","ne",3,"ne","standartní (RHP)","minimální (oplocení areálu)","ano","skleněná s plastovým rámem / dřevěné","vzrostlé stromy",288960]
[null,null,null,"Ústecká 36","Letohrad",56151,293,4300,1333,8800,"Pardubický kraj",1,"budova","zděná","pultová","plech","dílny školy","strojírenská",3,"ne","standartní (RHP)","EZS, oplocení areálu","ano","skleněná s dřevěným rámem / dřevěné s prosklením","vzrostlé stromy, vodní toky",42380800]
[null,null,null,"bez č.p.","Letohrad",56151,"920/1",4300,340,2900,"Pardubický kraj ",3,"budova","zděná","sedlová","plech","škola","ne",2,"ne","standartní (RHP)","minimální (oplocení areálu)",null,"skleněná s plastovým rámem","vzrostlé stromy, vodní toky",13966400]
[null,null,null,"bez č.p.","Letohrad",56151,"1255/1",4300,100,455.1,"Pardubický kraj",2,"budova","zděná","plochá","střešní fólie","trafostanice","trafo",3,"olej v transtormátoru","standartní (RHP)","minimální (oplocení areálu)","ano","prosklení / plechová vrata, dveře","vzrostlé stromy",2191280]
[null,null,null,"bez č.p.","Letohrad",56151,"480,1519, 64/2",4300,"42, 2, 59",495,"Pardubický kraj",1,"budova","zděná","sedlová","střešní tašky","malá vodní elektrárna","strojní vybavení elektrárny",3,"ne","standartní (RHP)","minimální (oplocení areálu)","ano","skleněná s dřevěným rámem / dřevěné s prosklením","vzrostlé stromy, vodní toky",2383920]
[37,"Střední odborná škola elektrotechnická a strojní a Střední odborné učiliště, Pardubice, Do Nového 1131",15050351,"Do Nového 1131","Pardubice","530 03","4881/1,3",4300,"194, 976",9300,"Pardubický kraj",2.5,"budova","zděná","plochá","střešní fólie","škola, kotelna","strojní vybavení kotelny  ",3,"zemní plyn ","RHP, hydranty","minimální (oplocení areálu)","ano","skleněná s dřevěným rámem / dřevěné s prosklením","minimální",44258700]
[null,null,null,"bez č.p.","Pardubice","530 03","4881/2",4300,20,50,"Pardubický kraj",1,"budova","dřevěná","sedlová","eternit","vrátnice školy","ne",3,"ne","standartní (RHP)","minimální (oplocení areálu)","ano","skleněná s dřevěným rámem / dřevěné s prosklením","minimální",237950]
[null,null,null,"bez č.p.","Pardubice","530 03","4882/3,4,5",4300,"958, 15, 31",2375,"Pardubický kraj",1,"budova","dřevěná","sedlová","vlnitý plech","sklady, šatny, provozní úsek a spojovací chodba","solární panely",3,"ne","standartní (RHP)","minimální (oplocení areálu)","ano","skleněná s dřevěným rámem / dřevěné s prosklením","minimální",11302625]
[null,null,null,"bez č.p.","Pardubice",53003,"4881/4,5",1055,"150, 29",540,"Pardubický kraj",1,"budova","zděná, dřevěná","pultová, sedlová","vlnitý plech, plech","sklad, sklad chemikálií","ne ",3,"omezené množství chemických látek","standartní (RHP)","minimální (oplocení areálu)","ano","skleněná s dřevěným rámem / plechová vrata","vzrostlé stromy",2569860]
[null,null,null,"Do Nového 94","Pardubice","530 03","504/1",4300,347,2720,"Pardubický kraj",2,"budova","zděná ","valbová","plech","škola","ne",3,"ne","RHP, hydranty","minimální (oplocení areálu)","ano","skleněná s dřevěným rámem / dřevěné s prosklením","minimální",12944480]
[null,null,null,"bez č.p.","Pardubice","530 03","504/3, 504/8",4300,"694, 524",13398,"Pardubický kraj",3,"budova","zděná","plochá","střešní fólie","škola","ne",3,"ne","RHP, hydranty","EZS, oplocení areálu","ano","skleněná s dřevěným rámem / dřevěné s prosklením","minimální",63761082]
[null,null,null,"bez č.p.","Pardubice","530 03","504/4,504/9",4300,"204, 44",744,"Pardubický kraj",1,"budova","zděná","sedlová","plech","sklad","ne",3,"ne","standartní (RHP)","oplocení areálu, částečně okenní mříže","ano","skleněná s dřevěným rámem / dřevěné s prosklením","vzrostlé stromy",3540696]
[null,null,null,"bez č.p.","Pardubice",53003,"8353/1,8353/2",4300,"110, 29",1100,"Pardubický kraj",1,"budova","zděná","pultová","střešní fólie","budova trafostanice","trafo",2,"olej v transtormátoru","standartní (RHP)","minimální (oplocení areálu)","ano","ventilace / plechová vrata","minimální",5234900]
[null,null,null,"Do Nového 1406","Pardubice","530 03","4880/3, 4880/4",4300,"146, 272",3080,"Pardubický kraj ",2,"budova","zděná","sedlová","plech","učebny praktického výcviku, reklamní agentura","ne ",3,"ne","RHP, hydranty","minimální (oplocení areálu)","ano","skleněná s dřevěným rámem / plastové s prosklením","vzrostlé stromy",14657720]
[null,null,null,"č.p. 67","Benecko","512 37",54,4300,215,1075,"Pardubický kraj",1,"budova","zděná, dřevěná","sedlová","plech","školící a výcvikové středisko","ne",3,"ne","standartní (RHP)","minimální","ne","skleněná s dřevěným rámem / dřevěné","vzrostlé stromy, vandalismus",5115825]
[{"$f":"+A116+1","v":38},"Střední průmyslová škola stavební Pardubice","00191191","Sokolovská 148","Rybitví","533 54","372-invent. č. 61",4300,377,6409,"Pardubický kraj",3,"budova","zděná","sedlová","plech","sklad","ne",3,"ne","standartní (RHP)","minimální (oplocení areálu)","ne","skleněná s dřevěným rámem / dřevěné","minimální",30865744]
[null,null,null,"bez č.p.","Rybitví","533 54","822-invent. č. 58, 370-invent. č. 57",4300,"723, 153",8825,"Pardubický kraj",3,"budova","zděná","plochá, sedlová","plech, vlnitý plech","PSV dílny, kovářské dílny, sklad plechu","strojírenská, vzduchotechnika",3,"ne","standartní (RHP)","EZS, oplocení areálu","ano","skleněná s plastovým rámem / plechová vrata","minimální",42501200]
[null,null,null,"bez č.p.","Rybitví","533 54","823-invent. č. 59",4300,850,2784,"Pardubický kraj",2,"budova","zděná","plochá","střešní fólie","administrativní budova","ne",2,"ne","standartní (RHP)","kamerový systém, oplocení areálu","ano","skleněná s dřevěným rámem / dřevěné s prosklením","minimální",13407744]
[null,null,null,"bez č.p.","Rybitví","533 54","370-invent. č. 170 a 203 ",4300,"24, 24",144,"Pardubický kraj",1,"garáž","zděná","plochá","plech","sklad, garáž","ne",3,"invent. č. 170 - hořlaviny ","standartní (RHP)","minimální (oplocení areálu)","ano","prosklení / plechová vrata","minimální",693504]
[null,null,null,"bez č.p.","Rybitví","533 54","370-invent. č. 34",4300,875,1872,"Pardubický kraj",1,"budova","zděná","plochá","střešní fólie","tělocvična školy","vzduchotechnika",2,"ne","standartní (RHP)","kamerový systém,v přízemí okenní mříže,oplocení areálu","ano","skleněná v kovovém a dřevěném rámu / dřevěné","minimální",9015552]
[null,null,null,"Sokolovská 147","Rybitví","533 54","374-invent. č. 60",4300,379,6443,"Pardubický kraj",3,"budova","zděná","sedlová","plech","domov mládeže","ne",3,"ne","RHP, hydranty","minimální (oplocení areálu)","ano","skleněná s dřevěným rámem / dřevěné s prosklením","minimální",31029488]
[null,null,null,"Sokolovská 164","Rybitví","533 54","601-invent. č. 62 ",4300,528,6912,"Pardubický kraj",3,"budova","zděná","sedlová","plech","učebny, sklad, ubytovna","ne",3,"ne","EPS, RHP, hydranty","1. patro EZS, oplocení areálu","ano","skleněná s dřevěným rámem / dřevěné s prosklením","minimální",33288192]
[null,null,null,"bez č.p.","Rybitví","533 54","681-invent. č. 7727",4300,475,6580,"Pardubický kraj",4,"budova","zděná","plochá","střešní fólie","internát školy","ne",2,"ne","protipožární dveře,RHP,hydrant","minimální (oplocení areálu)","ano","skleněná s dřevěným,plastovým rámem / kovové s prosklením","minimální",31689280]
[null,null,null,"bez č.p.","Rybitví","533 54","683-invent. č.55 a 218",4300,984,5760,"Pardubický kraj",1,"budova","zděná","sedlová","plech","kuchyně, jídelna školy","gastro-technologie",2,"zemní plyn","RHP, hydrant","částečně mříže na oknech a dveřích, oplocení areálu","ano","skleněná s plastovým rámem / dřevěné s prosklením","minimální",27740160]
[null,null,null,"bez č.p.","Rybitví","533 54","684-invent. č. 7728 ",4300,489,3010,"Pardubický kraj",2,"budova","zděná","plochá","střešní fólie","vrátnice školy","ne",3,"ne","RHP, hydrant","minimální (zadní část objektu oplocena)","ano","skleněná s dřevěným rámem / dřevěné s prosklením","vandalismus",14496160]
[null,null,null,"bez č.p.","Rybitví","533 54","370-invent. č. 56",4300,2172,9383,"Pardubický kraj",3,"budova","zděná","plochá ","střešní fólie","škola","ne",1,"ne","EPS, hydranty","EZS, oplocení areálu","ano","skleněná s plastovým rámem / plastové s prosklením","minimální",13407744]
[null,null,null,"Sokolovská 150","Rybitví","533 54","682-inv.č.7729,7730,10032; 743-inv.č.10025",4300,"1111; 1262 ",9662,"Pardubický kraj",1,"budova","zděná","plochá","střešní fólie","dílny školy","strojírenská",3,"ne","standartní (RHP)","EZS, oplocení areálu","ano","skleněná s dřevěným rámem / kovové s prosklením","minimální",46532192]
[null,null,null,"J. Potůčka 260","Pardubice","530 09","390-invent. č. 6795 ",4300,424,3180,"Pardubický kraj",2,"budova","zděná","plochá","střešní fólie","škola","ne ",3,"ne","RHP, hydrant","minimální (oplocení areálu)","ano","skleněná s dřevěným rámem / kovové s prosklením","vzrostlé stromy",15314880]
[null,null,null,"bez č.p.","Pardubice","530 09","394-invent. č. 6835",4300,94,100,"Pardubický kraj",1,"přístřešek","zděná","pultová","plech","sklad","ne",3,"ne","ne","minimální (oplocení areálu)","ano","ne / kovová vrata","vzrostlé stromy",481600]
[null,null,null,"Na Lužci","Lázně Bohdaneč","533 41","2156-invent. č. 1801001",4300,377,null,"Pardubický kraj",1,"budova","zděná","plochá","střešní fólie","do pronájmu","ne",3,"ne","standartní (RHP)","okenní mříže (oplocení zadní části objektu)","ano","skleněná s dřevěným rámem / dřevěné","vandalismus",6236720]
[39,"Střední odborná škola a Střední odborné učiliště Lanškroun",15028216,"Kollárova 445","Lanškroun",56301,1444,4300,408,8976,"Pardubický kraj",4,"budova","zděná","plochá","střešní fólie","škola","ne",2,"ne","RHP, hydrant","EZS","ano","skleněná s plastovým rámem / dřevěné s prosklením","vandalismus",42362412]
[null,null,null,"Krátká 310","Lanškroun",56301,3054,4300,1013,6700,"Pardubický kraj",2,"budova","zděná","plochá","střešní fólie","domov mládeže","ne",3,"ne","RHP, hydrant","EZS, oplocení areálu","ano","skleněná s plastovým rámem / plastové s prosklením","vzrostlé stromy",31620784]
[null,null,null,"Krátká 310","Lanškroun",56301,"1801/5",1000,null,1247.6469999999999,"Pardubický kraj",null,null,null,null,null,"sportovní hřiště","ne",2,"ne","hydrant","oplocení","ano",null,"vandalismus, vzrostlé stromy",5889961]
[null,null,null,"Lidická 199","Lanškroun",56301,"563/2",4300,436,5930,"Pardubický kraj",2,"budova","zděná","plochá","střešní fólie","škola","ne",3,"ne","RHP, hydrant","EZS","ano","skleněná s plastovým rámem / plastové s prosklením","vandalismus",27986754]
[null,null,null,"Sokolská 288","Lanškroun",56301,"3347/1",4300,3120,24960,"Pardubický kraj",2,"budova","zděná","sedlová","vlnitý plech","škola","gastro-technologie, vzduchotechnika, klimatizace",1,"ne","RHP, hydrant","EZS, osvětlení a oplocení objektu","ano","skleněná s plastovým rámem / plastová s prosklením","vzrostlé stromy",117799219]
[40,"Střední odborná škola a Střední odborné učiliště obchodu a služeb, Chrudim, Čáslavská 205",13582259,"Čáslavská 205","Chrudim",53701,"328/1",4300,1852,16281,"Pardubický kraj",3,"budova","zděná","sedlová","pálená taška","škola","gastro-technologie",2,"ne","RHP, EPS","EZS, oplocení objektu","ano","skleněná s dřevěným rámem / dřevěné","vzrostlé stromy",78409296]
[null,null,null,"bez č.p.","Chrudim",53701,"328/3",4300,956,8596,"Pardubický kraj",1,"hala","dřevěná","plochá","asfaltová lepenka","sportovní hala školy","vzduchotechnika",1,"ne","standartní (RHP)","minimální (oplocení areálu)","ano","skleněná s plastovým rámem / plastové s prosklením","minimální",41398336]
[41,"Střední odborná škola a střední odborné učiliště, Polička, Čs. armády 485",62031961,"Čs. armády 485","Polička",57221,"1255/1",4300,1413,15550,"Pardubický kraj",3,"budova","zděná","valbová","plech","škola, jídelna, kotelna","strojní vybavení kotelny, gastro-technologie, klimatizace",2,"ne","RHP, vnitřní hydranty","bezpečnostní vložky zámku, oplocení areálu","ano","skleněná s plastovým rámem / plastové s prosklením","minimální",74888800]
[null,null,null,"Mánesova 718","Polička",57221,2119,4300,390,2450,"Pardubický kraj",1,"budova","zděná","plochá","střešní fólie","dílny školy","ne","v rekonstrukci","ne","ne","minimální (oplocení objektu)","v rekonstrukci","ne","vzrostlé stromy",11799200]
[null,null,null,"bez č.p.","Polička",57221,"1255/2",4300,846,8000,"Pardubický kraj",3,"budova","zděná","plochá","střešní fólie","škola","ne",1,"ne","RHP, hydranty","minimální (oplocení objektu)","ano","skleněná s plastovým rámem / plastové s prosklením","minimální",38528000]
[null,null,null,"bez č.p.","Polička",57221,"1255/3",4300,403,1782,"Pardubický kraj",1,"budova","zděná ","sedlová","plech","dílny školy","ne",3,"ne","RHP, hydranty","částečné mříže na oknech, oplocení zadní části objektu","ano","skleněná s dřevěným rámem / dřevěné s prosklením","vandalismus",8582112]
[42,"Střední odborná škola a Střední odborné učiliště technické, Třemošnice, Sportovní 322",15052796,"Sportovní 322","Třemošnice",53843,408,4300,781,9000,"Pardubický kraj",4,"budova","zděná","plochá","lepenka","domov mládeže, správa školy, byty","ne",1,"ne","RHP, hydranty, EPS","EZS - učebna PC, spisovna; oplocení","ano","skleněná s plastovým rámem / plastové s prosklením","minimální",38700000]
[null,null,null,"bez č.p.","Třemošnice",53843,404,4300,44,132,"Pardubický kraj",2,"budova","zděná","plochá","střešní fólie","trafostanice","trafo",1,"olej v transtormátoru","standartní (RHP)","minimální (oplocení areálu)","ano","prosklení / plechová vrata","vzrostlé stromy",567600]
[null,null,null,"bez č.p.","Třemošnice",53843,405,4300,397,1985,"Pardubický kraj",1,"budova","zděná","plochá","střešní fólie","truhlářská dílna","truhlářské technologie",2,"ne","RHP, hydrant, EPS","minimální (oplocení objektu)","ano","skleněná s dřevěným rámem / dřevěné s prosklením","vzrostlé stromy, vodní toky",8535500]
[null,null,null,"bez č.p.","Třemošnice",53843,406,4300,438,4035,"Pardubický kraj",3,"budova","zděná","plochá","střešní fólie","škola","ne",1,"ne","RHP, hydrant, EPS","EZS","ano","skleněná s plastovým rámem / bezpečnostní dveře","vandalismus",17350500]
[null,null,null,"bez č.p.","Třemošnice",53843,407,4300,1041,6924,"Pardubický kraj",1,"budova","zděná","pultová","střešní fólie","tělocvična","ne",2,"ne","standartní (RHP)","minimální","ano","skleněná s dřevěným rámem / kovové s prosklením","vandalismus",29773200]
[null,null,null,"bez č.p.","Třemošnice",53843,403,4300,1451,10160,"Pardubický kraj",2,"budova","zděná","plochá","střešní fólie","dílny","strojírenská",2,"ne","RHP, hydrant, EPS","EZS - učebna PC","ano","skleněná s dřevěným rámem / kovové s prosklením","vzrostlé stromy, vodní toky",43688000]
[null,null,null,"bez č.p.","Třemošnice",53843,878,4300,80,198,"Pardubický kraj",1,"budova","zděná","pultová","střešní fólie","garáže","ne",1,"ne","standartní (RHP)","minimální","ano","prosklení / plechová","minimální",851400]
[null,null,null,"bez č.p.","Třemošnice",53843,884,4300,58,162,"Pardubický kraj",1,"budova","zděná","plochá","střešní fólie","truhlářská dílna","strojírenská",1,"ne","RHP, hydrant, EPS","minimální","ano","skleněná s dřevěným rámem / plechové  ","vandalismus",696600]
[43,"Střední odborné učiliště opravárenské, Králiky, Předměstí 427","00087939","Předměstí 427","Králíky","561 69",580,4300,4726,37536,"Pardubický kraj","1, 2","budova","zděná","pultová","plech","učebny školy, dílny školy","vzduchotechnika",3,"ne","RHP, hydrant","kamerový systém, bezpečnostní vložka zámku, oplocení","ano","skleněná s dřevěným rámem / dřevěné s prosklením","vandalismus",180773376]
[null,null,null,"Předměstí 430, 431","Králíky",56169,607.60799999999995,4300,"149, 149",2700,"Pardubický kraj",2,"budova","zděná","valbová","eternit","ubytovna","ne",3,"ne","RHP, hydrant","kamerový systém, bezpečnostní vložka zámku, oplocení","ano","skleněná s dřevěným rámem / kovové s prosklením","vandalismus",13003200]
[null,null,null,"bez č.p.","Králíky",56169,1056,4300,36,200,"Pardubický kraj",1,"budova","zděná","pultová","eternit","trafostanice","trafo",3,"olej v transtormátoru","standartní (RHP)","kamerový systém","ano","prosklení / plechové","vzrostlé stromy",963200]
[null,null,null,"bez č.p.","Králíky",56169,1055,4300,333,1733,"Pardubický kraj",1,"garáž","zděná","plochá","plech","garáže","ne",2,"ne","standartní (RHP)","kamerový systém, bezpečnostní vložky zámků, oplocení","ano","prosklení / plechová vrata","vzrostlé stromy",8346128]
[null,null,null,"bez č.p.","Králíky",56169,1436,4300,282,1740,"Pardubický kraj",1,"hala","železobeton, ocel","sedlová","plech","sklad","ne",3,"ne","standartní (RHP)","kamerový systém, bezpečnostní vložka zámku, oplocení","ano","skleněná s kovovým rámem / plechová vrata","vzrostlé stromy",8379840]
[null,null,null,"bez č.p.","Králíky",56169,610,4300,226,968,"Pardubický kraj",1,"budova","zděná","sedlová","eternit","sklad","ne",3,"omezené množství HK","standartní (RHP)","kamerový systém, bezpečnostní vložka zámku, oplocení","ano","skleněná s dřevěným rámem / plechové","vzrostlé stromy",4661888]
[null,null,null,"Předměstí 432","Králíky",56169,581,4300,319,2560,"Pardubický kraj",2,"budova","zděná","valbová,pultová","eternit, plech","jídelna","gastro-technologie,klimatizace",1,"ne","RHP, hydrant","kamerový systém, bezpečnostní vložka zámku, oplocení","ano","skleněná s dřevěným rámem / dřevěné s prosklením","vzrostlé stromy",12328960]
[null,null,null,"Předměstí 428","Králíky",56169,582,4300,254,2340,"Pardubický kraj",2,"budova","zděná","valbová","eternit","ubytovna","ne",3,"ne","RHP, hydrant","kamerový systém, bezpečnostní vložka zámku, oplocení","ano","skleněná s dřevěným rámem / dřevěné s prosklením","vzrostlé stromy",11269440]
[null,null,null,"Předměstí 205","Králíky",56169,1,4300,482,3750,"Pardubický kraj",1,"budova","zděná","sedlová","eternit","tělocvična","ne",3,"ne","RHP, hydrant","kamerový systém, bezpečnostní vložka zámku, oplocení","ano","skleněná s dřevěným rámem / dřevěné s prosklením","vzrostlé stromy",18060000]
[null,null,null,"Předměstí 429","Králíky",56169,4,4300,749,4895,"Pardubický kraj",3,"budova","zděná","sedlová","eternit","domov mládeže","ne",3,"ne","RHP, hydrant","kamerový systém, bezpečnostní vložka zámku, oplocení","ano","skleněná s dřevěným rámem / dřevěné s prosklením","vandalismus",23574320]
[{"$f":"+A160+1","v":44},"Střední odborné učiliště plynárenské Pardubice",15050670,"Poděbradská 93","Pardubice","530 09",7030,4300,989,8000,"Pardubický kraj",7,"budova","zděná, železobetonové panely-domov mládeže","plochá","střešní fólie","domov mládeže, administrativní budova, učebny a šatny","ne",2,"ne","RHP, hydranty vnitřní a vnější, protipožární dveře","EZS","ano","skleněná s plastovým rámem ","vandlismus",38528000]
[null,null,null,"bez č.p.","Pardubice","530 09",7031,4300,1061,6450,"Pardubický kraj",1,"budova","zděná","plochá ","střešní fólie","dílny školy","strojírenská",2,"omezené množství hořlavin, technické plyny","RHP, hydranty vnitřní a vnější ","EZS","ano","skleněná s kovovým rámem / kovové se skleněnou výplní","minimální",31063200]
[null,null,null,"bez č.p.","Pardubice","530 09",7032,4300,171,430,"Pardubický kraj",1,"budova","zděná","plochá","střešní fólie","kancelár, dílny, sklad, garáže","ne",2,"ne","RHP, hydranty vnitřní a vnější","EZS","ano","skleněná s dřevěným rámem / plechová vrata","minimální",2070880]
[null,null,null,"bez č.p.","Pardubice","530 09",8111,4300,376,1880,"Pardubický kraj",1,"budova","zděná","plochá","střešní fólie","jídelna","gastro-technologie",2,"ne","RHP, hydranty vnitřní a vnější, protipožární dveře","EZS","ano","skleněná s dřevěným rámem / dřevěné","vandalismus, vzrostlé stromy",9054080]
[null,null,null,"bez č.p.","Pardubice","530 09",8665,4300,1196,8400,"Pardubický kraj",2,"budova","zděná","plochá","střešní fólie","dílny a tělocvična školy","vzduchotechnika",2,"omezené množství hořlavin, technické plyny","RHP, hydranty vnitřní a vnější","EZS","ano","skleněná s dřevěným rámem / kovové se skleněnou výplní","minimální",40454400]
[null,null,null,"bez č.p.","Pardubice","530 09",8666,4300,91,273,"Pardubický kraj",1,"přístřešek","zděná","částečně pultová","plech","přístřešek - kolárna","ne ",3,"ne","ne","minimální","ano","ne","vzrostlé stromy, vandalismus",1314768]
[{"$f":"+A170+1","v":45},"Střední odborné učiliště Svitavy",15034569,"Nádražní 1083/8","Svitavy",56802,995,4300,1749,2367,"Pardubický kraj",2.1,"budova","zděná","sedlová, plochá","eternit, střešní fólie","škola, dílna pro OV, tlaková stanice na svařovací plyny","strojírenská",1,"svařovací soupravy, technické plyny","RHP, vnitřní hydranty","EZS, pohybová čidla, částečně mříže na oknech, dveřích","ano","skleněná s dřevěným rámem / dřevěné s prosklením","vandalismus, vzrostlé stromy, vodní toky",10125858]
[null,null,null,"bez č.p.","Svitavy",56802,3459,1055,23,105,"Pardubický kraj",1,"garáž","dřevěná","sedlová","střešní tašky","garáž","ne",1,"ne","ne","visasí zámek, oplocení objektu","ano","ne / dřevěná vrata","vodní toky",415161]
[null,null,null,"Alešova 1329, 1330","Svitavy",56802,1258.1259,4300,"157, 156",3130,"Pardubický kraj",3,"budova","zděná","sedlová","eternit","škola","ne",1,"ne","standartní (RHP)","zámek FAB, oplocení areálu","ano","skleněná s plastovým rámem / dřevěné s prosklením","vzrostlé stromy",12375753]
[null,null,null,"Richarda Kloudy 1134","Svitavy",56802,1028,4300,306,4950,"Pardubický kraj",2,"budova","zděná","valbová","střešní tašky","škola","ne",1,"ne","RHP, vnitřní hydranty","EZS, pohybová čidla ","ano","skleněná s dřevěným rámem / dřevěné s prosklením","vandalismus",19571878]
[null,null,null,"Brněnská 307","Svitavy",56802,215,4300,813,6480,"Pardubický kraj",2,"budova","zděná","sedlová","střešní tašky","škola","ne",2,"ne","RHP, vnitřní hydranty","nepřetržitý provoz, oplocení areálu","ano","skleněná s plastovým rámem / dřevěné s prosklením","vandalismus",25621367]
[46,"Střední odborné učiliště zemědělské, Chvaletice, Žižkova 139","00087840","Žižkova 139","Chvaletice","533 12",371,4300,1633,15558,"Pardubický kraj",3,"budova","zděná","sedlová","vlnitý plech","škola","gastro-technologie",1,"ne","RHP, hydrant","minimální (oplocení areálu)","ano","skleněná s plastovým rámem / plastové s prosklením","vandalismus",74927328]
[null,null,null,"bez č.p.","Chvaletice","533 12",372,4300,1343,9352,"Pardubický kraj",1,"budova","zděná","sedlová","plech","učebny pro odborný výcvik","strojírenská, vzduchotechnika",1,"minimální množství HK","RHP, hydrant","minimální (oplocení areálu)","ano","skleněná s plastovým rámem / plechová vrata, zásuvná vrata s prosklením","vzrostlé stromy",45039232]
[null,null,null,"bez č.p.","Chvaletice","533 12",373,4300,245,756,"Pardubický kraj",1,"garáže","zděná","sedlová","plech","garáže","ne",2,"ne","standartní (RHP)","minimální (oplocení areálu)","ano","prosklení / plechová vrata","vzrostlé stromy",3640896]
[null,null,null,"bez č.p.","Chvaletice","533 12","374, 1237",4300,"280, 185",1836,"Pardubický kraj",1,"hala","zděná","plochá, oblouková","plech","dílny školy","strojírenská",1,"minimální množství HK","standartní (RHP)","minimální (oplocení areálu)","ano","skleněná s plastovým rámem / plechová vrata, zásuvná vrata s prosklením","vzrostlé stromy",8842176]
[null,null,null,"bez č.p.","Chvaletice","533 12",1236,4300,322,736,"Pardubický kraj",1,"hala","kovová","sedlová","plech","dílny školy","strojírenská",2,"minimální množství HK","standartní (RHP)","EZS, osvětlení a oplocení areálu","ano","skleněná s kovovým rámem / plechová vrata","vandalismus, vzrostlé stromy",6742400]
[47,"Střední průmyslová škola elektrotechnická a Vyšší odborná škola, Pardubice, Karla IV. 13",48161217,"Karla IV. 13","Pardubice","531 69","314/1",4300,2380,40000,"Pardubický kraj",3,"budova","zděná","pultová","plechová, lepenka","škola","vzduchotechnika, klimatizace",2,"ne","RHP, vnitřní hydrant","EZS, oplocení zadní části areálu, kamerový systém, v přízemí okenní mříže","ano","skleněná s plastovým rámem / dřevěné s prosklením","vandalismus",192400000]
[null,null,null,"bez č.p.","Pardubice","531 69","314/2",4300,290,3100,"Pardubický kraj",1,"budova","zděná","valbová","eternit","škola","vzduchotechnika, klimatizace",2,"ne","RHP, vnitřní hydrant","EZS","ano","skleněná s dřevěným rámem / dřevěné s prosklením","vzrostlé stromy",14911000]
[null,null,null,"bez č.p.","Pardubice","531 69","314/3",4300,122,490,"Pardubický kraj",1,"budova","zděná","plochá","plech","sklad","ne",2,"ne","standartní (RHP)","oplocení areálu, kamerový systém","ano","prosklení / plechové","minimální",2356900]
[null,null,null,"bez č.p.","Pardubice","531 69",6803.7311,4300,"499, 77",4500,"Pardubický kraj",3,"budova","zděná","plochá","střešní fólie, plech","škola, trafostanice","trafo",1,"olej v transtormátoru","standartní ( RHP )","EZS, oplocení zadní části objektu a kamerový systém","ano","skleněná s plastovým rámem / plastové s prosklením, plechová vrata","vandalismus",21645000]
[{"$f":"+A186+1","v":48},"Střední průmyslová škola chemická Pardubice",48161179,"Poděbradská 94","Pardubice","530 09",7026,4300,3051,16622,"Pardubický kraj",3,"budova","zděná","pultová","střešní fólie","škola, kuchyně, jídelna","gastro-technologie",2,"ne","RHP, hydrant","EZS","ano","skleněná s dřevěným rámem / kovové s prosklením","vzrostlé stromy",80051552]
[null,null,null,"bez č.p.","Pardubice","530 09",7029,4300,1768,11352,"Pardubický kraj",3,"budova","zděná","plochá","střešní fólie","škola","vzduchotechnika",2,"ne","RHP, hydrant","EZS","ano","skleněná s dřevěným rámem / kovové s prosklením","vandalismus, vzrostlé stromy",54671232]
[null,null,null,"bez č.p.","Pardubice","530 09",7027,4300,667,6800,"Pardubický kraj",3,"budova","zděná","plochá","střešní fólie","tělocvična, škola","ne",2,"ne","RHP, hydrant","EZS","ano","skleněná s dřevěným rámem / kovové s prosklením","vandalismus",32748800]
[null,null,null,"bez č.p.","Pardubice","530 09","7028, 9282",4300,"73, 82",532,"Pardubický kraj",1,"sklad, garáž","zděná","pultová","plech","sklad, garáž","ne ",3,"omezené množství HK","standartní (RHP)","minimální","ano","skleněná s dřevěným rámem / plechová vrata","vandalismus, vzrostlé stromy",2562112]
[49,"Střední průmyslová škola Chrudim",15052591,"Čáslavská 973","Chrudim",53701,3739,4300,7011,61797,"Pardubický kraj","5,3,1","budova","zděná","plochá","střešní fólie","škola, internát, dílny, kuchyně","gastro-technologie",3,"ne","standartní (RHP), hydranty","minimální (oplocení objektu)","ano","skleněná s dřevěným rámem / kovové s prosklením","vzrostlé stromy",257003916]
[null,null,null,"Čáslavská","Chrudim","537 01","985/12, 13, 14",4300,"797, 2376, 163",22819,"areál Transporty Chrudim",2,"budova","zděná","sedlová","plech","dílny školy","strojírenská",2,"minimální množství HK","standartní (RHP)","EPS","ano","skleněná s plastovým rámem / plastové s prosklením","minimální",103398720]
[null,null,null,"Vršov 24","Horní Bradlo","538 25",119,4300,320,1880,"Pardubický kraj",1,"budova","zděná","polovalbová","střešní tašky","rekreační chata","ne",2,"ne","standartní (RHP)","okenní mříže, oplocení objektu","ne","skleněná s dřevěným rámem / dřevěné","vzrostlé stromy, vandalismus",8544600]
[50,"Střední škola automobilní Holice",13582909,"Nádražní 301","Holice","534 01","213/2",4300,853,7200,"Pardubický kraj",3,"budova","zděná","valbová","střešní tašky","škola, jídelna, kuchyně","gastro-technologie",1,"ne","RHP, hydrant","EZS","ano","skleněná s plastovým rámem / plastové s prosklením","vandalismus",39189600]
[null,null,null,"bez č.p.","Holice","534 01","213/1",4300,1201,6000,"Pardubický kraj",1,"budova","zděná","pultová","plech","dílna","strojírenská, vzduchotechnika",1,"omezené množství HK","standartní (RHP)","EZS","ano","skleněná s plastovým rámem / plastové s prosklením a kovová vrata","minimální",32658000]
[null,null,null,"bez č.p.","Holice","534 01","212/2",4300,343,1715,"Pardubický kraj",1,"budova","zděná","sedlová, pultová","plech","dílny","solární panely",2,"oleje a PHM","standartní (RHP)","EZS","ano","skleněná s plastovým rámem / plechová vrata","minimální",9334745]
[null,null,null,"bez č.p.","Holice","534 01","214/1",4300,972,3600,"Pardubický kraj",1,"budova","zděná","sedlová","plech","dílny","ne",2,"ne","standartní (RHP)","EZS","ano","skleněná s plastovým rámem / plastové s prosklením","minimální",19594800]
[null,null,null,"Nádražní 601","Holice","534 01","215/1",4300,451,2890,"Pardubický kraj",2,"budova","zděná","sedlová","betonová taška","administrativní budova školy","klimatizace",3,"ne","standartní (RHP)","EZS","ano","skleněná s dřevěným rámem / dřevěné s prosklením","vandalismus",15730270]
[null,null,null,"Nádražní 1100","Holice","534 01",216,4300,212,3500,"Pardubický kraj",4,"budova","zděná","plochá","střešní fólie","domov mládeže","ne",1,"ne","RHP, hydrant","minimální","ano","skleněná s plastovým rámem / plastové s prosklením","vandalismus",19050500]
[null,null,null,"bez č.p.","Dolní Roveň ","533 71","389, 390",4300,"511, 35",5180,"Pardubický kraj",1,"budova","zděná","plochá","střešní fólie","internát","ne",2,"ne","RHP, hydrant","částečné mříže na oknech, oplocení areálu","ano","skleněná s plastovým, dřevěným rámem / dřevěné s prosklením","minimální",28194740]
[null,null,null,"bez č.p.","Dolní Roveň ",53371,"307",2000,40,40,"Pardubický kraj",1,"budova","zděná","plochá","plech","sklad","ne",3,"ne","standartní (RHP)","minimální (oplocení areálu)","ano","prosklení / plechové, plechová vrata","vzrostlé stromy",217720]
[null,null,null,"č.p. 189","Dolní Roveň ","533 71",220,4300,2713,7590,"Pardubický kraj",2,"budova","zděná","valbová, plochá","plech","škola","ne",2,"ne","standartní (RHP), hydrant","částečné okenní mříže, oplocení areálu (zadní část)","ano","skleněná s dřevěným rámem / dřevěné","vandalismus",41312370]
[null,null,null,"č.p. 135","Dolní Roveň ","533 71",155,4300,575,7500,"Pardubický kraj",2,"budova","zděná","polovalbová","plech","škola","ne",2,"ne","standartní (RHP), hydrant","minimální (oplocení areálu - zadní část)","ano","skleněná s dřevěným rámem / dřevěné","vandalismus",40822500]
[null,null,null,"bez č.p.","Dolní Roveň ","533 71",282,4300,491,2540,"Pardubický kraj",1,"hala, garáž","zděná","sedlová, plochá","vlnitý plech","dílny, garáže","ne",2,"minimální množství HK","standartní (RHP)","minimální (oplocení a osvětlení areálu)","ano","skleněná s dřevěným rámem / plechová vrata","vzrostlé stromy",13825220]
[null,null,null,"bez č.p.","Dolní Roveň ","533 71","305, 306",4300,"299, 292",2520,"Pardubický kraj",1,"garáž","zděná","sedlová","vlnitý plech","dílny, garáže","strojírenská",3,"minimální množství HK","standartní (RHP)","minimální (oplocení a osvětlení areálu)","ano","skleněná s dřevěným rámem / kovová vrata","minimální",13716360]
[null,null,null,"bez č.p.","Dolní Roveň ","533 71",328,4300,105,577,"Pardubický kraj",2,"budova","zděná","plochá","plech","dílny","ne",3,"ne","standartní (RHP)","minimální (oplocení a osvětlení areálu)","ano","skleněná s dřevěným rámem / kovová vrata","vzrostlé stromy",3140611]
[51,"Střední škola automobilní Ústí nad Orlicí","00529842","Dukelská 313","Ústí nad Orlicí",56201,335,4300,1950,20400,"Pardubický kraj",1,"budova","zděná","sedlová","asfaltový šindel","škola","gastro-technologie",3,"ne","RHP, hydrant","EZS, oplocení areálu","ano","skleněná s dřevěným nebo plastovým rámem / plastové s prosklením","vzrostlé stromy",98246400]
[null,null,null,"bez č.p.","Ústí nad Orlicí",56201,336,4300,177,708,"Pardubický kraj",1,"garáže","zděná","sedlová","vlnitý plech","garáže, dílny","ne",3,"ne","RHP, hydrant","oplocení areálu, okenní mříže","ano","skleněná s dřevěným rámem / plechová vrata","vzrostlé stromy",3409728]
[null,null,null,"bez č.p.","Ústí nad Orlicí",56201,"865/1",4300,168,1350,"Pardubický kraj",2,"budova","zděná","plochá ","střešní fólie","škola, vrátnice","gastro-technologie",2,"ne","RHP, hydranty","EZS","ano","skleněná s plastovým rámem / plastové se skleněnou výplní","vandalismus",6501600]
[null,null,null,"bez č.p.","Ústí nad Orlicí",56201,"865/2",4300,599,8400,"Pardubický kraj",3,"budova","zděná","plochá ","střešní fólie","škola","gastro-technologie",3,"ne","RHP, hydranty","EZS","ano","skleněná s dřevěným rámem / plastové s prosklením","vandalismus",40454400]
[null,null,null,"bez č.p.","Ústí nad Orlicí",56203,1129,4300,198,9511,"Pardubický kraj",2,"budova","zděná","plochá","střešní fólie","sportovní hala","vzduchotechnika, klimatizace",1,"ne","RHP, hydrant","minimální (oplocení areálu)","ano","skleněná s plastovým rámem / kovové s prosklením","minimální",45804976]
[null,null,null,"Třebovská 348","Ústí nad Orlicí","562 03","312/1",4300,2084,8400,"Pardubický kraj",1,"budova","zděná","sedlová","plech","dílny učňů","strojírenská, vzduchotechnika",3,"oleje a PHM v omezeném množství","RHP, hydrant","oplocení areálu, infračervená čidla na závorách, pohybová čidla","ano","skleněná s plastovým rámem / plastové s prosklením","minimální",40454400]
[null,null,null,"bez č.p.","Ústí nad Orlicí","562 03",630,4300,378,2232,"Pardubický kraj",1,"hala","kov ","oblouková","plachta","dílna, garáž","ne",2,"ne","RHP, hydrant","minimální (oplocení areálu)","ano","ne / plechová vrata","minimální",10749312]
[null,null,null,"bez č.p.","Ústí nad Orlicí","562 03",631,4300,805,4040,"Pardubický kraj",1,"budova","zděná","plochá","střešní fólie","učebny praktické výuky","vzduchotechnika",1,"ne","RHP, hydrant","minimální (oplocení areálu)","ano","skleněná s plastovým rámem / plastové se skleněnou výplní","minimální",19456640]
[null,null,null,"bez č.p.","Ústí nad Orlicí","562 03",632,4300,398,2364,"Pardubický kraj",1,"budova","zděná","plochá","střešní fólie","dílny","strojírenská, vzduchotechnika",3,"oleje a PHM, omezené množství HK","RHP, hydrant","oplocení areálu, infračervená čidla na závorách, pohybová čidla","ano","skleněná s dřevěným rámem / plechová vrata","minimální",11380024]
[null,null,null,"bez č.p.","Ústí nad Orlicí","562 03",633,4300,390,3990,"Pardubický kraj",2,"budova","zděná","plochá","střešní fólie","škola","ne",3,"ne","RHP, hydranty","minimální (oplocení areálu)","ano","skleněná s plastovým rámem / dřevěné s prosklením","minimální",19215840]
[null,null,null,"bez č.p.","Ústí nad Orlicí","562 03",634,4300,580,3870,"Pardubický kraj",2,"budova","zděná","plochá","střešní fólie","dílny školy","strojírenská, vzduchotechnika",3,"omezené množství HK","RHP, hydrant","oplocení areálu, infračervená čidla na závorách, pohybová čidla","ano","skleněná s plastovým rámem / plastové s prosklením","vandalismus",18637920]
[null,null,null,"bez č.p.","Ústí nad Orlicí","562 03","635, 636",4300,"40, 168",1103,"Pardubický kraj",1,"přístřešek / budova","ocelová / zděná","pultová / plochá","vlnitý plech / střešní fólie","sklad","ne",3,"omezené množství HK","RHP, hydrant","minimální (oplocení objektu)","ano","skleněná s plastovým rámem / plechová vrata","minimální",5312048]
[null,null,null,"bez č.p.","Ústí nad Orlicí","562 03",637,4300,492,3992,"Pardubický kraj",1,"budova","zděná","sedlová","vlnitý plech","dílny","strojírenská, vzduchotechnika",3,"omezené množství HK","RHP, hydrant","oplocení areálu, infračervená čidla na závorách, pohybová čidla","ano","skleněné s dřevěným rámem / dřevěné","minimální",19225472]
[null,null,null,"bez č.p.","Ústí nad Orlicí","562 03",654,4300,150,760,"Pardubický kraj",1,"budova","zděná","pultová","plech","trafostanice","trafo",3,"olej v transtormátorech","standartní (RHP)","minimální (oplocení areálu)","ano","prosklení / plechová vrata","minimální",3660160]
[null,null,null,"bez č.p.","Ústí nad Orlicí","562 03",907,4300,172,2056,"Pardubický kraj",1,"budova","zděná","plochá","střešní fólie, světlíky","dílna školy","strojírenská, vzduchotechnika",3,"ne","RHP, hydrant","oplocení areálu, infračervená čidla na závorách, pohybová čidla","ano","skleněná s dřevěným prosklením / dřevěné","minimální",9901696]
[null,"  ",null,"bez č.p.","Ústí nad Orlicí","562 03",908,4300,142,1000,"Pardubický kraj",1,"budova","zděná","sedlová","střešní fólie","sklad","ne",3,"omezené množství HK","RHP, hydrant","oplocení areálu, zámek FAB","ano","skleněná s dřevěným rámem / dřevěná vrata s prosklením","minimální",4816000]
[52,"Střední škola chovu koní a jezdectví Kladruby nad Labem","00087858","č.p. 105","Kladruby nad Labem","533 14","516/11",4300,2006,14364,"Pardubický kraj","2, 5","budova","zděná","plochá","střešní fólie, násyp","učebny školy, domov mládeže, tělocvična","ne",2,"ne","RHP, hydrant","oplocení areálu, zámek FAB","ano","skleněná s plastovým rámem / kovové s prosklením","vzrostlé stromy",69177024]
[null,null,null,"bez č.p.","Kladruby nad Labem","533 14","516/7",4300,283,707,"Pardubický kraj",1,"budova","zděná","plochá","plech","garáže","ne",3,"ne","standartní (RHP)","oplocení areálu, visací zámek ","ano","skleněná s dřevěným rámem / plechová vrata","vzrostlé stromy",3404912]
[null,null,null,"č.p. 50","Kladruby nad Labem","533 14","516/8",4300,261,2600,"Pardubický kraj",2,"budova","zděná","plochá","střešní fólie","6 bytových jednotek","ne",2,"ne","standartní (RHP)","minimální","ano","skleněná s plastovým rámem / kovové s prosklením","vzrostlé stromy",12521600]
[null,null,null,"bez č.p.","Kladruby nad Labem","533 14","516/10",4300,113,230,"Pardubický kraj",1,"budova","zděná","plochá","střešní fólie","vodárna","strojní vybavení vodárny",3,"ne","standartní (RHP)","minimální","ano","skleněná s dřevěným rámem / dřevěné s prosklením","vzrostlé stromy",1107680]
[null,null,null,"bez č.p.","Kladruby nad Labem","533 14","283/3",4300,894,5832,"Pardubický kraj",1,"hala","kov, část zděná","sedlová","plech","jezdecká hala","ne",2,"ne","standartní (RHP)","visací zámek","ano","skleněná s kovovým rámem / plechové","vzrostlé stromy",28086912]
[null,null,null,"bez č.p.","Kladruby nad Labem","533 14","516/39",4300,584,2208,"Pardubický kraj",1,"budova","zděná","plochá","střešní fólie, násyp","školní kuchyně a jídelna","gastro-technologie, klimatizace",1,"ne","RHP","oplocení areálu, zámek FAB","ano","skleněná s plastovým rámem / plastové s prosklením","vzrostlé stromy",10633728]
[null,null,null,"bez č.p.","Kladruby nad Labem","533 14","516/40",4300,148,420,"Pardubický kraj",1,"budova","zděná","plochá","střešní fólie, násyp","mistrovna","ne",1,"ne","standartní (RHP)","oplocení areálu, zámek FAB","ano","skleněná s dřevěným rámem / dřevěné s prosklením","vzrostlé stromy",2022720]
[null,null,null,"č.p. 4","Kladruby nad Labem","533 14",5,4300,189,540,"Pardubický kraj",1,"budova","zděná","sedlová","střešní tašky - bobrovky","obytný dům","ne",3,"ne","standartní (RHP)","minimální (oplocení zadní části objektu)","ano","skleněná s dřevěným rámem / dřevěné s prosklením","vandalismus, vzrostlé stromy",2600640]
[53,"Střední škola obchodu, řemesel a služeb Žamberk","00654949","Zámek 1","Źamberk",56401,"1946/1,1946/6",4300,2394,25548,"Pardubický kraj",2,"budova","zděná","sedlová","střešní tašky","škola","ne",2,"ne","RHP, hydrant, EPS","EZS","ano","skleněná s dřevěným rámem / dřevěné s prosklením","vandalismus",123039168]
[null,null,null,"Zámek 1370","Źamberk",56401,"1946/3, 1946/7, 1946/8",4300,"482, 53, 17",7150,"Pardubický kraj",3,"budova","zděná","valbová","šindel","škola","ne",2,"ne","RHP, hydrant","EZS, okenní mříže v přízemí","ano","skleněná s plastovým rámem / plastové s prosklením","vzrostlé stromy",34434400]
[null,null,null,"Školská 1375","Źamberk",56401,"487/55",4300,1298,7800,"Pardubický kraj",1,"hala","zděná","plochá, oblouková","střešní fólie, plech","sportovní hala","vzduchotechnika",2,"ne","standartní (RHP)","oplocení a osvětlení objektu","ano","skleněná s plastovým rámem / plastové s prosklením","minimální",37564800]
[null,null,null,"Zemědělská 846","Žamberk",56402,4763,null,414,3658,"Pardubický kraj",3,"budova","zděná","plochá","střešní fólie","škola","ne",3,"ne","standartní (RHP), hydrant","minimální","ano","skleněná s plastovým rámem / plastové s prosklením","vandalismus",17614520]
[null,null,null,"Zemědělská 846","Žamberk",56403,"4289/1",null,1457,11297,"Pardubický kraj",1,"budova","zděná","sedlová","plech","dílny","strojírenská",3,"minimální množství HK","RHP, hydrant","EZS","ano","skleněná s dřevěným rámem / plechová vrata s prosklením","vzrostlé stromy",54406352]
[54,"Střední škola potravinářství a služeb Pardubice",48161161,"nám. Republiky 116","Pardubice","531 14","280/1",4300,2536,33470,"Pardubický kraj","3, 4","budova","zděná","valbová, plochá","střešní tašky, plech","škola","gastro-technologie, vzduchotechnika",2,"ne","RHP, hydrant, EPS","EZS","ano","skleněná s dřevěným a plastovým rámem / dřevěné s prosklením","vandalismus",161179480]
[55,"Střední škola umělecko průmyslová Ústí nad Orlicí","00087408","Zahradní 541","Ústí nad Orlicí",56201,629,4300,2390,33893,"Pardubický kraj",3,"budova","zděná","valbová","plechová","škola","ne",3,"ne","RHP, hydranty","EZS","ano","skleněná s dřevěným rámem / dřevěné s prosklením","vandalismus, vzrostlé stromy",163228688]
[null,null,null,"Zahradní 541","Ústí nad Orlicí",56201,"2075/1",4300,1195,10936,"Pardubický kraj",2,"budova","zděná","plochá","střešní fólie","škola, tělocvična  ","vzduchotechnika",2,"ne","RHP, hydrant","EPS, oplocení areálu","ano","skleněná s plastovým rámem / plastové s prosklením","vzrostlé stromy",52667776]
[null,null,null,"Zahradní 1397","Ústí nad Orlicí",56201,"417/1",4300,384,2305,"Pardubický kraj",1,"budova","zděná","polovalbová","střešní fólie","škola","ne",2,"ne","standartní (RHP)","minimální (oplocení objektu)","ano","skleněná s dřevěným rámem / dřevěné","vzrostlé stromy",11100880]
[null,null,null,"Zahradní 1396","Ústí nad Orlicí",56201,"412/3",4300,324,324,"Pardubický kraj",1,"garáž","zděná","pultová","střešní fólie","garáže","ne",2,"ne","standartní (RHP)","minimální (oplocení areálu)","ano","prosklení / plechová vrata","minimální",1560384]
[null,null,null,"Nygrinova 547","Ústí nad Orlicí",56201,2822,4300,486,5200,"Pardubický kraj",5,"budova","zděná","plochá","střešní fólie","internát","ne",1,"ne","RHP, hydrant","EZS","ano","skleněná s plastovým rámem / plastové s prosklením","vandalismus",25043200]
[null,null,null,"Špindlerova 1167","Ústí nad Orlicí",56201,1558,4300,1276,20218,"Pardubický kraj",5,"budova","zděná","pultová","střešní fólie","poradna","ne",3,"ne","RHP, hydrant","minimální",null,"skleněná s plastovým rámem / kovové s prosklením","vandalismus",97369888]
[56,"Střední škola zahradnická a technická Litomyšl",72085428,"T. G. Masaryka 659","Litomyšl",57013,986,4300,2449,17700,"Pardubický kraj",4,"budova","zděná","plochá","střešní fólie","škola","gastro-technologie",2,"ne","RHP, hydrant","EZS, oplocení areálu","ano","skleněná s dřevěným rámem / dřevěné s prosklením","minimální",84588300]
[null,null,null,"bez č.p.","Litomyšl",57013,"797/3",4300,560,3080,"Pardubický kraj",1,"hala","zděná","sedlová","plech","dílny","strojírenská",2,"ne","RHP, hydrant","minimální (oplocení areálu)","ano","skleněná s dřevěným rámem / plechová vrata","minimální",14719320]
[null,null,null,"bez č.p.","Litomyšl",57013,"797/4",4300,67,670,"Pardubický kraj",1,"budova","zděná","polovalbová","střešní tašky","škola, dílny ","ne",1,"ne","RHP, hydrant","minimální (oplocení areálu)","ano","skleněná s plastovým rámem / plastová s prosklením","vzrostlé stromy",3201930]
[null,null,null,"T. G. Masaryka 535","Litomyšl",57013,"797/2",4300,790,7590,"Pardubický kraj",1,"budova","zděná","plochá","střešní fólie","škola, dílny","vzduchotechnika",2,"ne","RHP, hydrant","EZS, oplocení areálu","ano","skleněná s plastovým rámem / plastová s prosklením","minimální",36272610]
[null,null,null,"bez č.p.","Litomyšl",57013,1427,4300,377,940,"Pardubický kraj",1,"hala","zděná","sedlová","vlnitý plech","dílny","strojírenská",2,"minimální množství HK","RHP, hydrant","minimální (oplocení areálu)","ano","ne / dřevěné s prosklením, plechová vrata","vzrostlé stromy",4492260]
[null,null,null,"bez č.p.","Litomyšl",57013,1428,4300,178,715,"Pardubický kraj",1,"hala","ocelová  ","sedlová","vlnitý plech","dílny","ne",2,"ne","standartní (RHP)","minimální (oplocení areálu)","ano","ne / plechová vrata","vzrostlé stromy",3416985]
[null,null,null,"bez č.p.","Litomyšl",57013,1429,4300,1227,6200,"Pardubický kraj",1,"hala","zděná","plochá","střešní fólie","dílny","ne",2,"ne","RHP, hydrant","oplocení areálu, okenní mříže v přízemí","ano","prosklení / plechová vrata","minimální",29629800]
[null,null,null,"bez č.p.","Litomyšl",57013,1430,4300,527,4250,"Pardubický kraj",1,"hala","zděná","plochá","střešní fólie","dílny","strojírenská",2,"minimální množství HK","standartní (RHP)","minimální (oplocení areálu)","ano","skleněná s dřevěným rámem, prosklení / plechové","minimální",20310750]
[null,null,null,"bez č.p.","Litomyšl",57013,2198,4300,62,135,"Pardubický kraj",1,"budova","zděná","sedlová","plech","sklad","ne",2,"ne","standartní (RHP)","minimální (oplocení areálu)","ano","skleněná s dřevěným rámem / plechové","vzrostlé stromy",645165]
[null,null,null,"T.G. Masaryka 650","Litomyšl",57013,"933/1",4300,1241,14100,"Pardubický kraj",3,"budova","zděná","sedlová","střešní tašky","škola","ne",2,"ne","RHP, hydrant","minimální (oplocení areálu)","ano","skleněná s dřevěným rámem / dřevěné s prosklením","vandalismus",67383900]
[null,null,null,"bez č.p.","Litomyšl",57013,"933/2",4300,298,745,"Pardubický kraj",3,"garáž, přístřešek","zděná","pultová","střešní tašky","garáž","ne",2,"ne","standartní (RHP)","minimální (oplocení areálu)","ano","ne / plechová vrata","vzrostlé stromy",3560355]
[null,null,null,"Babí 56","Trutnov","541 00",116,4300,180,2270,"Pardubický kraj",1,"budova","zděná","sedlová","plech","výcvikové středisko","ne",3,"ne","standartní (RHP)","minimální","ne","skleněná s dřevěným rámem / dřevěné s prosklením","vandalismus",10848330]
[null,null,null,"T. G. Masaryka 527","Litomyšl",57001,"797/1",4300,798,8160,"Pardubický kraj",2,"budova","zděná","valbová","střešní tašky","škola","ne",3,"ne","RHP, hydrant","oplocení areálu, suterén okenní mříže","ano","skleněná s dřevěným rámem, prosklení / plechové","vzrostlé stromy",38996640]
[null,null,null,"T. G. Masaryka 1160","Litomyšl",57001,2247,4300,274,1090,"Pardubický kraj",1,"budova","zděná","sedlová","střešní tašky","učebny praktického výcviku ","ne",2,"ne","standartní (RHP)","minimální (oplocení areálu)","ano","skleněná s plastovým rámem / dřevěné s prosklením","vzrostlé stromy",5209110]
[null,null,null,"bez č.p.","Litomyšl",57001,2753,4300,330,2800,"Pardubický kraj",2,"budova","zděná"]
[null,null,null,"čp.1192","Litomyšl","570 01",2748.2748999999999,4300,"440, 339",5884,"Pardubický kraj",2,"budova","zděná","sedlová","střešní tašky","domov mládeže, garáže","ne",2,"ne","standartní (RHP), hydrant","minimální","ano","skleněná s plastovým rámem / plastové s prosklením","vandalismus",28119636]
[null,null,null,"bez č.p.","Litomyšl",27001,3343,null,292,900,"Pardubický kraj",1,"budova","zděná","sedlová","střešní tašky","domov mládeže","ne",2,"ne","standartní (RHP)","minimální (oplocení areálu)","ano","skleněná s plastovým rámem / plastové s prosklením","minimální",4301100]
[null,null,null,"bez č.p.","Litomyšl","570 01",2757,4300,10,13,"Pardubický kraj",1,"budova","zděná","plochá","plech","vodojem","ne",3,"ne","ne","minimální (oplocení areálu)","ano","prosklení / plechové","vzrostlé stromy",243580]
[57,"Střední škola zemědělská a veterinární Lanškroun","00087670","Dolní Třešňovec 17","Lanškroun",56322,"166/1",4300,1262,12480,"Pardubický kraj",2,"budova","zděná","plochá","střešní fólie","škola","ne",1,"ne","RHP, hydrant","EZS","ano","skleněná s plastovým rámem / dřevěné s prosklením","vzrostlé stromy",60103680]
[null,null,null,"Dolní Třešňovec 17","Lanškroun","563 22","166/2",4300,212,2100,"Pardubický kraj",1,"hala","zděná","sedlová","vlnitý plech","tělocvična školy","vzduchotechnika",1,"ne","standartní (RHP)","minimální","ano","skleněná s plastovým rámem / plastové s prosklením","vandalismus",10113600]
[null,null,null,"bez č.p.","Lanškroun","563 22",167,4300,379,1520,"Pardubický kraj",1,"budova","zděná","plochá","střešní fólie","jídelna","gastro-technologie",1,"ne","standartní (RHP)","minimální","ano","skleněná s plastovým rámem / plastové s prosklením","vzrostlé stromy",7320320]
[null,null,null,"bez č.p.","Lanškroun","563 22",177,4300,184,740,"Pardubický kraj",1,"hala","kovová","sedlová","vlnitý plech","sklad","ne",3,"ne","standartní (RHP)","minimální","ano","ne / plechová vrata","vandalismus",3563840]
[null,null,null,"bez č.p.","Lanškroun","563 22","240/1,240/2",4300,"208, 274",4820,"Pardubický kraj",1,"budova","zděná","pultová","vlnitý plech","dílny, autoškola","ne",3,"ne","standartní (RHP)","mříže na dveřích a částečně na oknech, osvětlení objektu","ano","skleněná s dřevěným rámem / dřevěné s prosklením","vandalismus, vzrostlé stromy",23213120]
[null,null,null,"Dolní Třešňovec 18","Lanškroun","563 22","90/3",4300,411,6200,"Pardubický kraj",2,"budova","zděná","valbová","šindel","škola","ne","2(po rekonstrukci střechy)","ne","RHP, hydrant","EZS","ano","skleněná s plastovým rámem / plastové s prosklením","vandalismus",29859200]
[null,null,null,"Nádražní 922","Lanškroun","563 22",2117,4300,647,13600,"Pardubický kraj",5,"budova","zděná","plochá","střešní fólie","domov mládeže","ne",2,"ne","RHP, hydrant","minimální (oplocení areálu)","ano","skleněná s plastovým rámem / kovové s prosklením","minimální",65497600]
[null,null,null,"bez č.p.","Lanškroun","563 22",3051,4300,106,840,"Pardubický kraj",1,"budova","zděná","plochá","střešní fólie","kotelna","strojní vybavení kotelny",2,"zemní plyn","standartní (RHP)","minimální (oplocení areálu)","ano","prosklení / plechová vrata","vzrostlé stromy",4045440]
[null,null,null,"Dolní Třešňovec ","Lanškroun",56322,"90/2",4300,743,4050,"Pardubický kraj",1,"hala","zděná","sedlová","vlnitý plech","pronajímáno - opravna zemědělské techniky","strojírenská",3,"omezené množství HK","standartní (RHP)","minimální (oplocení areálu)","ano","skleněná s dřevěným rámem, prosklení / plechová vrata","minimální",19504800]
[null,null,null,"Dolní Třešňovec ","Lanškroun",56322,267,4300,56,168,"Pardubický kraj",1,"stavební buňka, váha","betonová","plochá","plech","váha","strojní vybavení váhy",3,"ne","standartní (RHP)","minimální","ano","skleněná s dřevěným rámem / dřevěné s prosklením","vandalismus",809088]
[null,null,null,"Dolní Třešňovec ","Lanškroun",56322,301.30200000000002,4300,"336, 590",8400,"Pardubický kraj",1,"hala","zděná","sedlová","plech","seník","ne",2,"ne","standartní (RHP)","oplocení a osvětlení areálu","ano","ne / plechové","minimální",40454400]
[null,null,null,"Dolní Třešňovec ","Lanškroun",56322,89,4300,127,3740,"Pardubický kraj",1,"budova","zděná","sedlová","střešní tašky","kanceláře","ne",3,"ne","standartní (RHP)","minimální (oplocení areálu)","ano","skleněná s dřevěným rámem / kovové s prosklením","minimální",18011840]
[null,null,null,"Dolní Třešňovec ","Lanškroun",56322,"164/1,164/2",4300,1379,5440,"Pardubický kraj",1,"budova","zděná","sedlová","plech","psí útulek","ne",1,"ne","standartní (RHP)","oplocení a osvětlení areálu","ano","skleněná s dřevěným rámem / dřevěné s prosklením","minimální",26199040]
[null,null,null,"Dolní Třešňovec ","Lanškroun",56322,168,4300,352,1232,"Pardubický kraj",1,"garáž","zděná","sedlová","vlnitý plech","sklad, garáže","ne",4,"ne","standartní (RHP)","minimální (oplocení areálu)","ano","prosklení / plechová vrata","minimální",5933312]
[null,null,null,"Dolní Třešňovec ","Lanškroun",56322,174,4300,859,4230,"Pardubický kraj",1,"hala","zděná","sedlová","vlnitý plech","sklad krmiva, příprava krmiv, jízdárna","strojírenská",3,"ne","standartní (RHP)","minimální (oplocení a osvětlení areálu)","ano","skleněná s dřevěným rámem, světlíky / plechová vrata","minimální",20371680]
[null,null,null,"Dolní Třešňovec ","Lanškroun",56322,175,4300,734,3670,"Pardubický kraj",1,"hala","kovová","sedlová","vlnitý plech","sklad","ne",3,"ne","standartní (RHP)","minimální (oplocení areálu)","ano","světlíky z plastu / plechová vrata","minimální",17674720]
[null,null,null,"Dolní Třešňovec ","Lanškroun",56322,176,4300,823,3670,"Pardubický kraj",1,"hala","kovová","sedlová","vlnitý plech","sklad slámy","ne",3,"ne","standartní (RHP)","minimální (oplocení areálu)","ano","ne / plechová vrata","minimální",19817840]
[null,null,null,"Dolní Třešňovec ","Lanškroun",56322,178,4300,1834,null,"Pardubický kraj"]
[null,null,null,"Dolní Třešňovec ","Lanškroun",56322,179,4300,null,null,"Pardubický kraj"]
[null,null,null,"Dolní Třešňovec ","Lanškroun",56322,180,4300,2734,12170,"Pardubický kraj",1,"budova","zděná","sedlová","vlnitý plech","farma, ustájení koní","ne","1(větší část budovy po demolici)","ne","standartní (RHP)","minimální (oplocení areálu)","ano","skleněná s dřevěným rámem / dřevěné s prosklením, dřevěná vrata","minimální",58610720]
[null,null,null,"Dolní Třešňovec ","Lanškroun",56322,"256 - 263, 398 - 403",4300,"21, 20, 20, 20, 20, 20, 20, 20, 1, 20, 17, 5, 12, 11",565,"Pardubický kraj",1,"garáž","zděná","plochá","plech","garáže","ne",4,"ne","standartní (RHP)","minimální (oplocení areálu)","částečně","prosklení / plechová vrata","minimální",2721040]
[null,null,null,"Dolní Třešňovec ","Lanškroun",56322,"157/1, 157/2, 157/3, 157/4",4300,"664, 325, 61, 53",6200,"Pardubický kraj",1,"zemědělské stavení","zděná","sedlová","vlnitý plech","kravín","ne",3,"ne","standartní (RHP)","minimální (oplocení areálu)","ano","skleněná s kovovým rámem / dřevěná vrata","minimální",29859200]
[null,null,null,"Dolní Třešňovec ","Lanškroun",56322,"157/5",4300,136,520,"Pardubický kraj",1,"zemědělské stavení","zděná","sedlová","střešní tašky","kravín","ne",4,"ne","standartní (RHP)","minimální (oplocení areálu)","ano","skleněná v kovovém rámu / dřevěná vrata","minimální",2504320]
[null,null,null,"Dolní Třešňovec ","Lanškroun",56322,"157/6",4300,492,2930,"Pardubický kraj",1,"zemědělské stavení","zděná","sedlová","střešní tašky","kravín","ne",3,"ne","standartní (RHP)","minimální (oplocení areálu)","ano","ne / dřevěná vrata","vzrostlé stromy",14110880]
[58,"Střední škola zemědělská a VOŠ Chrudim",75075920,"Poděbradova 842","Chrudim",53760,"302/1",4300,1142,19400,"Pardubický kraj",4,"budova","zděná","plochá","střešní fólie","škola","ne",2,"ne","RHP, hydrant","EZS","ano","skleněná s plastovým rámem / kovové se skleněnou výplní","vandalismus",93430400]
[null,null,null,"bez č.p.","Chrudim",53760,"2150/2",4300,509,3160,"Pardubický kraj",1,"budova","zděná","sedlová","plech","domov mládeže, tělocvična  ","vzduchotechnika",3,"ne","standartní (RHP)","minimální","ano","skleněná s dřevěným rámem, prosklení / dřevěné s prosklením","vandalismus",15218560]
[null,null,null,"bez č.p.","Chrudim",53760,"2150/3",4300,1521,20350,"Pardubický kraj",6,"budova","zděná","plochá","střešní fólie","škola","ne",2,"ne","RHP, hydrant","EZS","ano","skleněná s plastovým rámem / kovové s prosklením","vandalismus, vzrostlé stromy",98005600]
[null,null,null,"bez č.p.","Chrudim",53760,"5863, 6402",4300,"39, 107",120,"Pardubický kraj",1,"garáž","zděná","pultová","plech","garáže, technické zázemí","ne",2,"ne","standartní (RHP)","minimální (v suterénu okenní mříže,zadní část objektu oplocena)","ano","prosklení / plechová vrata","vandalismus",2648800]
[null,null,null,"bez č.p.","Vestec",53701,"2704/2,2704/1",4300,"737, 261",7840,"Pardubický kraj",1,"budova","zděná","sedlová","plech","chov vepřů","ne",3,"ne","standartní (RHP)","minimální (oplocení areálu)","ano","skleněná s dřevěným rámem / dřevěná s prosklením","minimální",37757440]
[null,null,null,"bez č.p.","Vestec",53701,"5816/1,5816/2",4300,"635, 409",3800,"Pardubický kraj",1,"hala","železobeton, ocelová","sedlová","vlnitý plech","sklad","ne",1,"ne","standartní (RHP)","minimální (oplocení areálu)","ano","ne / plechová vrata","minimální",18300800]
[null,null,null,"bez č.p.","Vestec",53701,"2703/1,2703/2",4300,"1009, 585",5632,"Pardubický kraj",1,"budova","zděná","pultová","plech","bývalý kravín, klad slámy","ne",4,"ne","standartní (RHP)","minimální (osvětlení a oplocení areálu)","ne","skleněná s dřevěným rámem / dřevěná vrata","minimální",27123712]
[null,null,null,"bez č.p.","Vestec",53701,"4520/1, 4520/2, 4520/3",4300,"24, 857, 357",9440,"Pardubický kraj",1,"budova","zděná","sedlová","eternit","bývalý kravín, sklad","ne",3,"ne","standartní (RHP)","minimální (osvětlení a oplocení areálu)","ne","skleněná s dřevěným rámem / plechová vrata","minimální",45463040]
[null,null,null,"bez č.p.","Vestec",53701,"5815/1, 5815/2, 5815/3",4300,"535, 43, 478",3860,"Pardubický kraj",1,"hala","ocelová  ","sedlová","plech","kravín","ne",2,"ne","standartní (RHP)","minimální (osvětlení a oplocení areálu)","ano","ne / plechová vrata","minimální",18589760]
[null,null,null,"bez č.p.","Vestec",53701,"4519/1,4519/2",4300,"401, 230",2600,"Pardubický kraj",1,"budova","zděná","sedlová","plech","bývalá dojírna, dílny","ne ",4,"ne","standartní (RHP)","minimální (oplocení a osvětlení areálu)","ano","skleněná s dřevěným rámem / dřevěné","minimální",12521600]
[null,null,null,"bez č.p.","Vestec",53701,"2706/1,2706/2",4300,"1491, 39",12580,"Pardubický kraj",1,"budova","zděná","sedlová","vlnitý plech","dílna, sklad, seník","strojírenská",3,"minimální množství HK","standartní (RHP)","minimální (oplocení a osvětlení areálu)","ano","skleněná s plastovým rámem / plechová vrata s prosklením, dřevěná vrata","vzrostlé stromy",60585280]
[null,null,null,"č.p. 27","Vestec",53701,4522,4300,201,960,"Pardubický kraj",1,"budova","zděná","sedlová","eternit","administrativní budova","ne",1,"ne","standartní (RHP)","minimální (oplocení a osvětlení areálu)","ano","skleněná s plastovým rámem / plastové s prosklením","minimální",4623360]
[null,null,null,"bez č.p.","Vestec",53701,2702,4300,496,1730,"Pardubický kraj",1,"budova","zděná","sedlová","plech","chov telat a koní","ne",3,"ne","standartní (RHP)","minimální (oplocení a osvětlení areálu)","ano","skleněná s dřevěným rámem / dřevěná vrata","minimální",8331680]
[59,"Střední škola zdravotnická a sociální Chrudim","00498891","Poděbradova 336","Chrudim",53701,1052,4300,590,10400,"Pardubický kraj",2,"budova","zděná","sedlová","šindel","škola","klimatizace",2,"ne","RHP, hydrant","EZS, bezpečnostní vložky zámku předních a zadních vrat, suterén - okenní mříže","ano","skleněná s plastovým rámem / plastové se skleněnou výplní","vandalismus",50086400]
[60,"Střední zdravotnická škola, Pardubice, Průmyslová 395","00498793","Průmyslová 395","Pardubice","531 21",1230,4300,123,37400,"Pardubický kraj",4,"budova","zděná","plochá","střešní fólie","škola, internát ","gastro-technologie, klimatizace, vzduchotechnika   ",1,"ne","RHP, hydrant","EZS","ano","skleněná s plastovým rámem / plastové s prosklením","vandalismus",160820000]
[61,"Střední zdravotnická škola, Svitavy, Purkyňova 256","00498815","Purkyňova 256","Svitavy",56802,"185/1",4300,895,10560,"Pardubický kraj",2,"budova","zděná","valbová","plech","domov mládeže","ne",2,"ne","standartní (RHP)","bezpečnostní vložka zámku, oplocená zadní část objektu","ano","skleněná s dřevěným rámem / dřevěné","vandalismus",50856960]
[null,null,null,"Purkyňova 284","Svitavy",56802,"228/1",4300,290,3190,"Pardubický kraj",2,"budova","zděná","sedlová","plech","škola","gastro-technologie, vzduchotechnika, strojní vybavení kotelny",2,"ne","RHP, hydranty, EPS - kotelna","EZS, oplocená zadní část objektu","ano","skleněná s dřevěným rámem / dřevěné","vzrostlé stromy, vodní toky",15363040]
[{"$f":"+A303+1","v":62},"Střední zdravotnická škola, Ústí nad Orlicí, Smetanova 838","00498874","Smetanova 838","Ústí nad Orlicí",56201,912,4300,737,10500,"Pardubický kraj",2,"budova","zděná","sedlová","střešní tašky","škola","ne",2,"minimální množství chemických látek v laboratoři","RHP, 4 vnitřní hydranty","EZS, oplocení","ano","skleněná s dřevěným rámem / dřevěné s prosklením","vandalismus",50568000]
[null,null,null,"bez č.p.","Ústí nad Orlicí",56201,3389,4300,112,283,"Pardubický kraj",1,"garáž","zděná","plochá","střešní fólie","garáže","ne",3,"ne","standartní (RHP)","zamky FAB, oplocení areálu","ano","prosklení / plechová vrata","vzrostlé stromy",1362928]
[null,null,null,"Čs. Armády 262","Ústí nad Orlicí",56201,2709,4300,672,4690,"Pardubický kraj",2,"budova","zděná","plochá","střešní fólie","domov mládeže","ne",3,"ne","standartní (RHP)","bezpečnostní vložka zámku, oplocení","ano","skleněná s dřevěným rámem / dřevěné","minimální",22587040]
[63,"Vyšší odborná škola pedagogická a Střední pedagogická škola, Litomyšl, Komenského nám. 22",62032381,"Komenského nám. 22","Litomyšl",57012,"444/1",4300,1404,21140,"Pardubický kraj",1,"budova","zděná","sedlová","eternit","škola","ne",3,"ne","RHP, hydrant","EZS","ano","skleněná s dřevěným rámem / dřevěné s prosklením","vandalismus",116258240]
[null,null,null,"Strakovská 1071","Litomyšl",57012,3333,4300,2020,30450,"Pardubický kraj",3,"budova","zděná","plochá","střešní fólie","domov mládeže","gastro-technologie, vzduchotechnika",3,"ne","RHP, hydrant","EZS","ano","skleněná s plastovým rámem / kovové s prosklením","vandalismus",146647200]
[{"$f":"+A308+1","v":64},"Vyšší odborná škola stavební a Střední škola stavební Vysoké Mýto",49314785,"Komenského 1","Vysoké Mýto",56619,"230/1",4300,686,14100,"Pardubický kraj",3,"budova","zděná","sedlová","střešní tašky","škola","ne",2,"ne","RHP, hydrant","EZS","ano","skleněná s plastovým rámem / plastové s prosklením","vzrostlé stromy",63601931]
[null,null,null,"bez č.p.","Vysoké Mýto",56619,"230/2",null,866,4480,"Pardubický kraj",2,"budova","zděná","sedlová","střešní tašky","škola","ne",2,"ne","RHP, hydrant","minimální","ano","skleněná s dřevěným rámem / plastové s prosklením","vandalismus, vzrostlé stromy",20208273]
[null,null,null,"bez č.p.","Vysoké Mýto",56619,"230/4",null,67,90,"Pardubický kraj",1,"garáž","zděná","pultová","vlnitý plech","garáže","ne",2,"ne","standartní ( RHP )","oplocení objektu, zámek FAB","ano","ne / plechová vrata","minimální",405970]
[null,null,null,"bez č.p.","Vysoké Mýto",56619,231,null,78,180,"Pardubický kraj",1,"budova","zděná","plochá ","střešní fólie","školní laboratoř","ne",2,"minimální množství HK, plynů","RHP, hydrant","okenní mříže","ano","skleněná s dřevěným rámem / dřevěné","vandalismus",811940]
[null,null,null,"Vrchlického 248","Vysoké Mýto",56619,237,4300,104,850,"Pardubický kraj",2,"budova","zděná","sedlová","střešní tašky","byt","ne",2,"ne","standartní (RHP)","minimální","ano","skleněná s plastovým rámem / dřevěné s prosklením","vandalismus",3834159]
[null,null,null,"Kpt. Poplera 272/III","Vysoké Mýto","566 01","4020/1",4300,1027,12420,"Pardubický kraj",3,"budova","zděná","valbová","střešní tašky","škola","ne",2,"ne","RHP, hydrant","minimální (oplocení areálu)","ano","skleněná s dřevěným rámem / dřevěné s prosklením","vzrostlé stromy",56023830]
[null,null,null,"bez č.p.","Vysoké Mýto","566 01","4020/2, 4020/3",4300,"312, 167",1916,"Pardubický kraj",1,"garáž","zděná","pultová","eternit","garáže","ne",3,"ne","standartní (RHP)","minimální (oplocení areálu)","ano","ne / plechová vrata","minimální",8642646]
[null,null,null,"bez č.p.","Vysoké Mýto","566 01","4020/4",4300,641,3846,"Pardubický kraj",1,"budova","zděná","sedlová","střešní tašky","technické zázemí, sklad","ne",3,"ne","standartní (RHP)","minimální (oplocení areálu)","ano","skleněná s dřevěným rámem / plechová vrata","minimální",17348442]
[null,null,null,"bez č.p.","Vysoké Mýto","566 01","4020/5",4300,453,3448,"Pardubický kraj",1,"budova","zděná","sedlová","střešní tašky","škola, dílny","ne",2,"ne","RHP, hydrant","minimální (oplocení areálu)","ano","skleněná s dřevěným rámem / dřevěné","vzrostlé stromy",15553153]
[null,null,null,"bez č.p.","Vysoké Mýto","566 01","4020/6",null,45,72,"Pardubický kraj",1,"rampa","železná",null,"ne","nájezdová rampa","ne",3,"ne","ne","minimální (oplocení areálu)","ano","ne","minimální",324776]
[null,null,null,"bez č.p.","Vysoké Mýto","566 01","4025/5",null,1381,1572,"Pardubický kraj",1,"garáž","železná","sedlová","vlnitý plech","garáže","strojírenská",3,"minimální množství PHM a olejů, svařovací soupravy, technické plyny","standartní (RHP)","oplocení areálu, zámky FAB","ano","skleněná v kovovém rámu / plechová vrata","minimální",25134040]
[65,"Vyšší odborná škola a Střední škola technická Česká Třebová",49314866,"Habrmanova 1540","Česká Třebová",56002,1585,4300,998,9265,"Pardubický kraj",4,"budova","zděná","plochá","střešní fólie","škola","strojní vybavení kotelny",1,"ne","RHP, hydrant, EPS - kotelna","EZS","ano","skleněná s dřevěným rámem / dřevěné s prosklením","vandalismus",30172240]
[null,null,null,"Habrmanova 2096","Česká Třebová",56002,"4105,3412,3037",4300,"358, 222, 893",15330,"Pardubický kraj","2, 4","budova","železobetonové panely","plochá","střešní fólie","škola","ne",2,"ne","RHP, hydrant","EZS","ano","skleněná s dřevěným, plastovým rámem / plastové s prosklením","vandalismus",73829280]
[null,null,null,"Habrmanova 1503","Česká Třebová",56002,"1584/1",4300,250,360,"Pardubický kraj",3,"budova","zděná","plochá","střešní fólie","škola","ne",2,"ne","standartní (RHP)","minimální","ano","skleněná s dřevěným rámem / kovové s prosklením","vandalismus",1733760]
[null,null,null,"Na Skále 566","Česká Třebová",56002,"647/11, 12, 14, 17",4300,"344, 153, 447, 4",5430,"Pardubický kraj","1, 2","budova","zděná","plochá","střešní fólie","tělocvična","ne",3,"ne","standartní (RHP)","minimální (oplocení a osvětlení areálu)","ano","skleněná s dřevěným rámem / kovové s prosklením","vzrostlé stromy",26150880]
[null,null,null,"Skalka 1692","Česká Třebová",56018,1851,4300,1778,22392,"Pardubický kraj",5,"budova","zděná","valbová, sedlová","střešní tašky","domov mládeže","gastro-technologie, vzduchotechnika",1,"ne","RHP, hydrant","CCTV","ano","skleněná s plastovým rámem / plastové s prosklením","vandalismus",107839872]
[null,null,null,"Skalka 1691","Česká Třebová",56018,1850,4300,680,12258,"Pardubický kraj",4,"budova","zděná","valbová","střešní tašky","domov mládeže","ne",1,"ne","RHP, hydrant","CCTV","ano","skleněná s plastovým rámem / plastové s prosklením","vandalismus",59034528]
[null,null,null,"Skalka 1693","Česká Třebová",56018,1852,4300,683,12204,"Pardubický kraj",4,"budova","zděná","valbová","střešní tašky","domov mládeže","ne",1,"ne","RHP, hydrant","CCTV","ano","skleněná s plastovým rámem / plastové s prosklením","vandalismus",58774464]
[null,null,null,"Skalka 1162","Česká Třebová",56018,3767,4300,888,7208,"Pardubický kraj",1,"hala","zděná","plochá","střešní fólie","dílny","strojírenská",2,"ne","RHP, hydrant","EZS, CCTV, oplocení a osvětlení objektu","ano","prosklení / dřevěné s prosklením, plechová vrata","minimální",34713728]
[null,null,null,"Skalka 1858","Česká Třebová",56018,4186,4300,1205,6174,"Pardubický kraj",1,"hala","ocelová","sedlová","plech","dílny, sklad","strojírenská",3,"omezené množství HK","RHP, hydrant","EZS, CCTV, oplocení a osvětlení objektu","ano","skleněná s kovovým rámem / plechová vrata","minimální",20159776]
[null,null,null,"bez č.p.","Česká Třebová",56018,4187,4300,16,64,"Pardubický kraj",1,"přístřešek","zděná","pultová","plech","technické zázemí","ne",3,"ne","standartní (RHP)","minimální (oplocení areálu)","ano","ne / plechové","vzrostlé stromy",308224]
[null,null,null,"Skalka 1856","Česká Třebová",56018,"4188, 4193, 4194, 4195",4300,"864, 725, 122, 204",12758,"Pardubický kraj",4,"budova","zděná","plochá","střešní fólie","škola, technické zázemí, kotelna","strojní vybavení kotelny",1,"zemní plyn","RHP, hydrant, EPS - kotelna","CCTV, oplocení a osvětlení areálu","ano","skleněná s plastovým rámem / kovové s prosklením","minimální",104786528]
[66,"Odborné učiliště Chroustovice, Zámek 1",60103370,"Zámek 1","Chroustovice",53863,"33/1",4300,5224,21850,"Pardubický kraj",2,"budova","zděná","valbová","eternit","škola, kuchyně, archiv, internát","vzduchotechnika",2,"ne","RHP, hydranty","EZS, oplocení areálu, audiotelefon","ano","skleněná s dřevěným rámem / dřevěné s prosklením","vodní toky",105277670]
[null,null,null,"Zámek 152","Chroustovice","538 63","33/3",4300,175,1080,"Pardubický kraj",2,"budova","zděná","valbová","eternit","kuchyňky","vzduchotechnika",2,"ne","RHP, hydranty","EZS, oplocení areálu, audiotelefon","ano","skleněná s dřevěným rámem / dřevěné s prosklením","vodní toky",5203656]
[null,null,null,"Zámek 151","Chroustovice","538 63","33/2",4300,175,1080,"Pardubický kraj",1,"budova","zděná","valbová","eternit","domov mládeže","ne",2,"ne","RHP, hydranty","EZS, oplocení areálu, audiotelefon","ano","skleněná s dřevěným rámem / dřevěné s prosklením","vzrostlé stromy, vodní toky",5203656]
[null,null,null,"Zámek 153","Chroustovice","538 63","34/2",4300,690,1630,"Pardubický kraj",1,"budova","zděná","valbová","eternit","truhlářské dílny","ne",2,"ne","RHP, hydranty","EZS, oplocení areálu, audiotelefon","ano","skleněná s dřevěným rámem / dřevěné s prosklením","vodní toky",7853666]
[null,null,null,"Zámek 154","Chroustovice","538 63","34/3",4300,690,1630,"Pardubický kraj",1,"budova","zděná","valbová","eternit","dílny zámečnické, sklenářské","ne",2,"ne","RHP, hydranty","EZS, oplocení areálu, audiotelefon","ano","skleněná s dřevěným rámem / dřevěné s prosklením","vodní toky",7853666]
[null,null,null,"bez č.p.","Chroustovice","538 63","34/9",4300,188,1380,"Pardubický kraj",1,"budova","zděná","sedlová","vlnitý plech","truhlárna","ne",3,"ne","standartní (RHP)","minimální (oplocení areálu)","ano","skleněná s kovovým rámem / plechové, plechová vrata s prosklením","vodní toky",6649116]
[null,null,null,"Zámek 2","Chroustovice","538 63",35,4300,709,750,"Pardubický kraj",1,"budova","zděná","valbová","střešní tašky","kuchaři - dílny školy","ne",2,"ne","standartní (RHP)","EZS, oplocení areálu","ano","skleněná s plastovým, dřevěným rámem / dřevěné s prosklením","vzrostlý strom, vodní toky",3613650]
[null,null,null,"bez č.p.","Chroustovice","538 63",36,4300,35,90,"Pardubický kraj",1,"skleník","kovová","pultová","sklo","skleník","ne",1,"ne","ne","minimální (oplocení areálu)","ano","skleněná v kovovém rámu / prosklené","vodní toky",433638]
[null,null,null,"bez č.p.","Chroustovice","538 63",38,4300,420,995,"Pardubický kraj","2, 1","budova, skleník","zděná, kovová","plochá, sedlová","střešní fólie, skleněná","květinárna","ne",2,"ne","standartní (RHP)","EZS, oplocení areálu","ano","skleněná s dřevěným, kovovým rámem / dřevěné s prosklením","vodní toky",4794109]
[null,null,null,"bez č.p.","Chroustovice","538 63",262,4300,386,930,"Pardubický kraj",1,"budova","zděná","sedlová","vlnitý plech","autoservis, rychlírna, kotelna na TP","strojní vybavení kotelny",2,"ne","standartní (RHP)","minimální (oplocení areálu)","ano","skleněná s kovovým rámem / dřevěná a plechová vrata","vzrostlé stromy, vodní toky",4480926]
[null,null,null,"bez č.p.","Chroustovice","538 63",263,4300,25,75,"Pardubický kraj",1,"budova","zděná","sedlová","střešní tašky","vodárna","strojní vybavení vodárny",2,"ne","standartní (RHP)","minimální (RHP)","ano","skleněná s dřevěným rámem / plechové, plechová vrata","vzrostlé stromy, vodní toky",361365]
[null,null,null,"bez č.p.","Chroustovice","538 63",392.39299999999997,4300,"109, 40",280,"Pardubický kraj",1,"budova","zděná","sedlová","eternit","dílny školy","ne",2,"ne","standartní (RHP)","minimální (oplocení areálu)","ano","skleněná s dřevěným rámem / dřevěné s prosklením","vzrostlé stromy, vodní toky",1349096]
[null,null,null,"bez č.p.","Chroustovice","538 63",394,4300,188,564,"Pardubický kraj",1,"budova","zděná","sedlová","střešní tašky","dílny učňů, sklad","ne",1,"ne","standartní (RHP)","minimální (oplocení areálu)","ano","prosklení / plechové s prosklením","vzrostlé stromy, vodní toky",2717465]
[null,null,null,"bez č.p.","Chroustovice","538 63",395,4300,219,876,"Pardubický kraj",1,"budova","zděná","sedlová","střešní tašky","dílny učňů","ne",2,"ne","standartní (RHP)","minimální (oplocení areálu)","ano","skleněná s plastovým rámem / plastové s prosklením","vodní toky",4220743]
[null,null,null,"bez č.p.","Chroustovice","538 63","87/2",4300,563,2183,"Pardubický kraj",1,"hala","ocelová","sedlová","vlnitý plech","dílny, sklad - zedníci","ne",2,"ne","standartní (RHP)","minimální (oplocení areálu)","ano","ne / plechová vrata s prosklením","vzrostlé stromy, vodní toky",10518131]
[null,null,null,"bez č.p.","Chroustovice","538 63",414,null,16,301,"Pardubický kraj",1,"budova","zděná","plochá","plech","rozvodna elektřiny","strojní vybavení rozvodny",2,"olej v transformátoru","standartní (RHP)","minimální (oplocení areálu)","ano","prosklení / plechové","vodní toky",1450278]
[null,null,null,"bez č.p.","Chroustovice","538 63",415,null,64,241,"Pardubický kraj",1,"budova","zděná","sedlová","eternit","garáž, kolárna","ne",3,"ne","standartní (RHP)","minimální (oplocení areálu)","ano","prosklení / plechové","vodní toky",1161186]
[{"$f":"+A332+1","v":67},"Speciální střední škola a základní škola Žamberk, Tyršova 214",49314840,"Tyršova 214","Žamberk",56401,"222/1",4300,421,3623,"Pardubický kraj",2,"budova","zděná","sedlová","asfaltový šindel","škola","ne",2,"ne","RHP, hydranty","minimální","ano","skleněná s dřevěným rámem / dřevěné s prosklením","vandalismus",17445960]
[null,null,null,"bez č.p.","Žamberk",56401,"222/2",4300,698,6203,"Pardubický kraj",3,"budova","zděná","valbová","asfaltový šindel","škola","ne",2,"ne","RHP, hydranty","minimální","ano","skleněná s dřevěným rámem / kovové s prosklením","vandalismus",29873648]
[null,null,null,"bez č.p.","Žamberk",56401,5034,4300,66,450,"Pardubický kraj",1,"garáž","zděná","polovalbová","asfaltový šindel","garáže, sklad","ne",2,"ne","standartní (RHP)","minimální (oplocení objektu)","ano","skleněná s dřevěným rámem / dřevěné s prosklením a dřevěná vrata","vzrostlé stromy",2167200]
[null,null,null,"Nádražní 468, 550","Žamberk",56401,795.79600000000005,4300,"277, 178",7020,"Pardubický kraj",3,"budova","zděná","sedlová","asfaltový šindel","škola","gastro-technologie",3,"ne","RHP, hydranty","minimální (zadní část objektu oplocena)","ano","skleněná s plastovým rámem / plastové s prosklením","vandalismus, vzrostlé stromy",33808320]
[68,"Speciální mateřská škola,základní škola a praktická škola Pardubice",60158981,"Klášterní 52","Pardubice","530 02",97,4300,1002,null,"v majetku města",3,"budova","zděná","valbová","střešní tašky","škola","ne",3,"ne","RHP, hydrant","minimální (zadní část objektu oplocena)","ano","skleněná s dřevěným rámem / dřevěné s prosklením","vzrostlý strom"]
[null,null,null,"Kyjevská 500","Pardubice","532 03",414,4300,902,null,"Pardubický kraj",3,"budova","zděná","plochá","střešní fólie","budova ředitelství, ústavní lékárna (2. patro - škola)","vzduchotechnika, klimatizace",1,"léky","kouřová čidla, RHP, hydranty","EZS, oplocení areálu","ano","skleněná s plastovým rámem / plastové s prosklením","minimální","budova pojištěna u Pardubické krajské nemocnice a. s. "]
[null,null,null,"Václavská 570","Chrudim",53701,"2348/1",4300,5309,null,"Pardubický kraj",1,"budova","zděná","plochá","střešní fólie","škola","ne",2,"ne","standartní (RHP), hydrant","EZS, oplocení","ano","skleněná s dřevěným rámem / kovové s prosklením","vandalismus","budova pojištěna u Chrudimské nemocnice a. s."]
[69,"Speciální základní škola Bystré",70838267,"Zámecká 1","Bystré",56992,"1/1",4300,2216,null,"v majetku města",2,"budova","zděná","sedlová","střešní tašky","k pronájmu","ne",2,"ne","standartní (RHP)","bezpečnostní vložka zámku, oplocení zadní části objektu","ano","skleněná s dřevěným rámem / dřevěné s prosklením","vandalismus, vzrostlé stromy","budova pojištěna - ÚSP Bystré"]
[null,null,null,"Nádražní 775","Polička","572 01",2466,4300,924,null,"v majetku města",2,"budova","zděná","plochá","střešní fólie","škola","ne",3,"ne","standartní (RHP)","minimální","ano","skleněná s plastovým rámem / kovové s prosklením","vzrostlé stromy"]
[null,null,null,"Na podkově 68","Bystré","572 01",205,4300,425,null,"v majetku města",2,"budova","zděná","polovalbová","eternit","škola","ne",1,"ne","standartní (RHP)","minimální (okenní mříže)","ano","skleněná s plastovým rámem / dřevěné s prosklením","vandalismus"]
[null,null,null,"Jiráskova 825","Polička","572 01","3292/1 - 4",4300,"305, 461, 217, 238",3978,"Pardubický kraj",1,"budova","zděná","plochá","střešní fólie","speciální základní škola","ne",2,"ne","RHP, hydrant","minimální (oplocení objektu)","ano","skleněná s plastovým rámem / plastové s prosklením","minimální",15883000]
[70,"Speciální základní škola Chrudim",72085410,"Školní náměstí 228","Chrudim","537 01","955/2",null,1044,null,"v majetku města",2,"budova","zděná","sedlová","kanadský šindel","škola","gastro-technologie",1,"ne","RHP, hydrant","EZS, oplocení areálu","ano","skleněná s plastovým rámem / plastové s prosklením","vzrostlé stromy"]
[{"$f":"+A360+1","v":71},"Speciální základní škola a mateřská škola Litomyšl",70838275,"9. května 1181","Litomyšl",57001,"875/4",4300,314,5824,"Pardubický kraj",2.2999999999999998,"budova","zděná","valbová","asfaltový šindel","škola","ne",3,"ne","RHP, hydrant","minimální (oplocení přední části areálu)","ano","skleněná s plastovým rámem / plastové s prosklením","vandalismus",28048384]
[{"$f":"+A361+1","v":72},"Speciální základní škola, mateřská škola a praktická škola Moravská Třebová",62033034,"J. A. Komenského 287","Moravská Třebová",57101,664,4300,880,7500,"Pardubický kraj",2,"budova","zděná","valbová","plechová","škola","gastro-technologie",2,"ne","RHP, hydranty","minimální (oplocená zadní část objektu)","ano","skleněná s plastovým rámem / plastové se skleněnou výplní","vandalismus",36120000]
[null,null,null,"9. května 553","Moravská Třebová",57101,"687/1-2",4300,"220, 187",4912,"Pardubický kraj",2,"budova","zděná","sedlová","plechová","škola","ne",3,"ne","RHP, hydranty","zadní část objektu oplocena ","ano","skleněná s dřevěným rámem / dřevěné se skleněnou výplní","vzrostlé stromy",23656192]
[null,null,null,"J.A.Komenského 287","Moravská Třebová",57101,"665/8",4300,456,5943,"Pardubický kraj",3,"budova","zděná","sedlová, plochá","plech, střešní fólie","internát, spojovací část","strojovna výtahu",1,"ne","EPS, RHP, hydranty","ESZ, kamerový systém, vstupní audio systém","ano","skleněná s plastovým rámem / plastové se skleněnou výplní","vandalismus",28621488]
[73,"Speciální základní škola a mateřská škola Ústí nad Orlicí",70844755,"Lázeňská 206","Ústí nad Orlicí","562 01",471,null,1938,16900,"Pardubický kraj","2, 3","budova","zděná","valbová","střešní tašky","škola, kuchyně, jídelna, tělocvična školy","gastro-technologie,2x strojovna výtahu, vzduchotechnika,klimatizace",3,"ne","RHP, hydrant","EZS v kancelářích a učebna PC","ano","skleněná s plastovým rámem / plastové s prosklením","vandalismus",77452952]
[null,null,null,"bez č.p.","Ústí nad Orlicí","562 01",3666,null,7,13,"Pardubický kraj",1,"budova","zděná","plochá ","střešní fólie","transformátor","trafo",1,"olej v transformátoru","standartní (RHP)","minimální (oplocení areálu - zadní část)","ano","ne / plechové","minimální",205628]
[74,"Speciální základní škola Skuteč",72048905,"Rubešova 531","Skuteč","539 73",478,4300,597,2760,"Pardubický kraj",2,"budova","zděná","sedlová","plech","škola","gastro-technologie",2,"ne","RHP,hydrant,hasičský sbor naproti škole","minimální (vstupní dveře mříž, oplocení zadní části objektu)","ano","skleněná s dřevěným rámem / dřevěné","vandalismus",13292160]
[75,"Speciální základní škola Svitavy",70838283,"Milady Horákové 488/44","Svitavy",56802,444.44499999999999,4300,"340, 545",10365,"Pardubický kraj",2,"budova","zděná","sedlová","střešní tašky","škola","ne",3,"ne","RHP, hydranty","minimální","ano","skleněná s dřevěným rámem / dřevěné","vandalismus",49917840]
[null,null,null,"Milady Horákové 493/50","Svitavy",56802,453,4300,385,3400,"Pardubický kraj",2,"budova","zděná","sedlová","střešní tašky","škola","ne",3,"ne","standartní (RHP)","minimální","ano","skleněná s plastovým rámem / plastové s prosklením","vandalismus",16374400]
[76,"Speciální základní škola Vysoké Mýto",70851867,"Rokycanova 761/I","Vysoké Mýto",56601,"1813/2",4300,845,null,"v majetku města",2,"budova","zděná","plochá","střešní fólie","škola","gastro-technologie",2,"ne","RHP, hydrant","minimální","ano","skleněná s dřevěným rámem / dřevěné s prosklením","vandalismus"]
[null,null,null,"Stromovka 1339","Choceň",56501,1643,4300,350,null,"v majetku města",2,"budova","zděná","plochá","plech","škola","ne",2,"ne","RHP, hydrant","minimální","ano","skleněná s dřevěným rámem / dřevěné s prosklením","vzrostlé stromy"]
[77,"Základní škola Lanškroun, nám. A. Jiráska 140",70846944,"nám. A. Jiráska 140","Lanškroun",56301,"43/4",4300,799,null,"v majetku města",3,"budova","zděná","valbová","eternit","škola","gastro-technologie",2,"ne","RHP, hydrant","EZS, částečně okenní mříže 1 NP","ano","skleněná s dřevěným rámem / dřevěné s prosklením","vandalismus"]
[null,null,null,"Dobrovského 63","Lanškroun",56301,"684/1",4300,291,2620,"Pardubický kraj",3,"budova","zděná","sedlová","eternit","škola","gastro-technologie",3,"ne","RHP, hydrant","minimální (oplocená zadní část objektu)","ano","skleněná s plastovým rámem / dřevěné","vandalismus",12617920]
[null,null,null,"bez č.p.","Lanškroun",56301,"684/2",4300,68,240,"Pardubický kraj",1,"budova","zděná","sedlová","střešní tašky","sklad, technické zázemí školy","ne",3,"ne","standartní (RHP)","minimální (objekt ve dvoře)","ano","skleněná s dřevěným rámem / dřevěné s prosklením","minimální",1155840]
[78,"Základní škola a Mateřská škola při Hamzově odborné léčebně pro děti a dospělé Luže, Košumberk 37",70843465,"Košumberk 37","Luže",53854,419,4300,494,null,"budova majetkem jiného vlastníka",2,"budova","zděná","valbová","střešní tašky","škola, klubovna","gastro-technologie, vzduchotechnika",1,"ne","RHP, hydranty","klubovna - EZS, oplocený areál","ano","skleněná s dřevěným rámem / dřevěné s prosklením","vzrostlé stromy"]
[79,"Základní škola praktická Česká Třebová",70846936,"nám.17.listopadu 2060","Česká Třebová",56002,"1812/14",4300,750,8906,"Pardubický kraj",2,"budova","zděná","valbová","plech","škola, tělocvična","gastro-technologie",3,"ne","RHP, hydrant","bezpečnostní vložka zámku","ano","skleněná s dřevěným rámem / kovové s prosklením","vandalismus",42891296]
[80,"Základní škola praktická a základní škola speciální Králíky",61235105,"Nábřežní 130","Králíky",56169,"398/1,2",4300,"226, 463",null,"v majetku města",3,"budova","zděná","valbová, plochá","plech, střešní tašky","škola","strojírenská technologie-výtah",3,"ne","RHP, hydrant","EZS, oplocení","ano","skleněná s dřevěným rámem / kovové s prosklením","vzrostlé stromy"]
[81,"Základní škola speciální Lanškroun, Olbrachtova 206",70845361,"Olbrachtova 206","Lanškroun",56301,1482,4300,647,2070,"Pardubický kraj",1,"budova","zděná","sedlová","plech","škola","gastro-technologie",2,"ne","RHP, hydrant","kamerový systém, oplocení objektu","ano","skleněná s plastovým rámem / plastové s prosklením","vzrostlé stromy",9969120]

{"sheet":"KULTURA","index":1,"n_rows":23,"n_cols":26,"rows_kept":23,"cut":false,"hidden":false,"merged":[[3,17,4,17],[3,23,4,23],[3,3,3,5],[1,0,1,1],[3,0,4,0],[3,1,4,1],[3,2,4,2],[3,8,4,8]]}
[]
["II. KULTURA"]
[]
["č.","Název dle zřizovací listiny","IČ","Adresa místa pojištění",null,null,"Parc.",null,"Zastavěná plocha (m2)","Obestavěný","Vlastník ","Počet","Typ","Nosná ","Typ ","Krytina","Provozní","Technologie","Celkový","Nebezpečné ","Zabezpečení","Zabezpečení","Trvale","Okna / dveře","Vnější ","Pojistná částka - nová"]
[null,null,null,"Ulice/č.p.","Místo","PSČ","číslo",null,null,"prostor (m3)","nemovitosti","podlaží","budovy","konstrukce","střechy","střechy","účel stavby",null,"stav (1-5)","látky","protipožární","proti krádeži","využíváno",null,"nebezpečí"," hodnota nemovitosti"]
[{"$f":"+A5+1","v":1},"Východočeské muzeum v Pardubicích","14450542","Zámek 2","Pardubice","530 02","2/1",5900,1380,8000,"Pardubický kraj",2,"budova","zděná","sedlová","střešní tašky","muzeum","ne",1,"ne ","EPS, RHP, vnější a vnitřní hydranty","CCTV, EZS","ano","skleněná s dřevěným rámem / kovová vrata, dřevěné","vzrostlé stromy, vandalismus, terorismus",50760000]
[null,null,null,"Zámek 1","Pardubice","530 02","1",5900,4393,96000,"Pardubický kraj",3,"budova","zděná","sedlová, kopule","střešní tašky, měď","muzeum, kulturní památka","ne",1,"ne","EPS, RHP, vnější hydranty","CCTV, EZS","ano","skleněná s dřevěným rámem / kovaná vrata","vzrostlé stromy, vandalismus, terorismus",609128313]
[null,null,null,"Zámek 3","Pardubice","530 02","2/2",5900,2345,11600,"Pardubický kraj",2,"budova","zděná","sedlová","střešní tašky","muzeum","ne",2,"ne","EPS, RHP, vnější hydranty","CCTV, EZS","ano","skleněná s dřevěným rámem / dřevěné","vzrostlé stromy, vandalismus, terorismus",73602000]
[null,null,null,"Zámek 4","Pardubice","530 02","3",5900,689,5900,"Pardubický kraj",2,"budova","zděná","sedlová","střešní tašky","vstupní brána","ne",2,"ne","EPS, RHP, vnější hydranty","CCTV, EZS","ano","skleněná s dřevěným rámem / dřevěné","vzrostlé stromy, vandalismus, terorismus",37435500]
[null,null,null,"Semtínská 157","Pardubice","533 53",450,4300,2918,26902,"Pardubický kraj","1, 2, 3","budova","zděná","plochá, sedlová","střešní fólie, vlnitý plech","škola, kuchyně, jídelna","gastro-technologie",3,"ne","RHP, hydrant","minimální (oplocení areálu)","ano","skleněná s dřevěným rámem / dřevěné s prosklením","vzrostlé stromy ",129560032]
[{"$f":"+A6+1","v":2},"Východočeská galerie v Pardubicích","00085278","Pernštýnské náměstí 50","Pardubice","530 02","100",5900,508,6100,"Pardubický kraj",3,"budova","zděná","sedlová","střešní tašky","galerie","ne",1,"ne","EPS, RHP","EZS, FAB","ano","skleněná s dřevěným rámem / dřevěné s prosklením","vandalismus",40308800]
[null,null,null,"Zámek 3","Pardubice","530 02","2/2",5900,2345,11600,"Pardubický kraj",2,"budova","zděná","sedlová","střešní tašky","muzeum ( část Východoč. galerie)","ne",2,"ne","EPS, RHP, vnější hydranty","CCTV, EZS","ano","skleněná s dřevěným rámem / dřevěné","vzrostlé stromy, vandalismus, terorismus","v pojištění Východočeského muzea"]
[null,null,null,"Poděbradská 94","Pardubice",53002,450,null,2918,26902,"Pardubický kraj",3,"budova","zděná","plochá ","střešní fólie ","učebny","ne",2,"ne","standartní (RHP)","minimální (oplocení areálu)","ano","skleněná s dřevěným rámem / dřevěné s prosklením","vzrostlé stromy ","budova v hospodaření Střední školy potravinářství a služeb,Pardubice,Poděbradská"]
[{"$f":"+A11+1","v":3},"Krajská knihovna v Pardubicích","00085219","Pernštýnské nám. 77","Pardubice","530 02","67",5900,517,9300,"Pardubický kraj",3,"budova","zděná","sedlová","střešní tašky","knihovna","ne",1,"ne","EPS, RHP, hydrant vnější","EZS, magnetické brány","ano","skleněná s dřevěným rámem / dřevěné s prosklením","vandalismus",61454400]
[null,null,null,"Pernštýnské nám. 78","Pardubice","530 02","66",5900,204,3600,"Pardubický kraj",3,"budova","zděná","sedlová","střešní tašky","knihovna","ne",1,"ne","EPS, RHP, hydrant vnější","EZS, magnetické brány","ano","skleněná s dřevěným rámem / kovové s prosklením","vandalismus",23788800]
[null,null,null,"Pernštýnské nám. 79","Pardubice","530 02","63",5900,341,6700,"Pardubický kraj",4,"budova","zděná","sedlová","střešní tašky","knihovna","ne",1,"ne","EPS, RHP, hydrant vnější","EZS, magnetické brány","ano","skleněná s dřevěným rámem / dřevěné s prosklením","vandalismus",44273600]
[{"$f":"+A14+1","v":4},"Regionální muzeum v Chrudimi","00370941","Široká 86 ","Chrudim","537 01","235",5900,571,null,"v majetku města",3,"budova","zděná","sedlová","šindel","muzeum","ne",2,"ne","EPS, RHP","EZS ","ano","skleněná s dřevěným rámem / dřevěné s prosklením","vodní toky, vandalismus"]
[null,null,null,"Široká 85","Chrudim","537 01","236",null,2173,null,"v majetku města",3,"budova","zděná","sedlová","plechová","muzeum","ne",2,"ne","EPS, RHP","EZS","ano","skleněná s dřevěným rámem / dřevěné s prosklením","vodní toky, vandalismus"]
[null,null,null,"Rybičkova 10","Chrudim","537 01","10",5900,229,3600,"Pardubický kraj",3,"budova","zděná","sedlová","pálená taška","muzeum","ne",3,"ne","standartní (RHP)","bezpečnostní vložka zámku","ano","skleněná s plastovým rámem / dřevěné bez prosklení","vandalismus",22122000]
[null,null,null,"K Ploché dráze 688","Chrudim",53701,2148,4300,589,5870,"Pardubický kraj",2,"budova","zděná","valbová","betonová taška","škola ","ne",2,"ne","RHP, hydrant","minimální (oplocení zadní části objektu)","ano","skleněná s dřevěným nebo plastovým rámem / plastové s prosklením","vandalismus",26677506]
[{"$f":"+A17+1","v":5},"Regionální muzeum ve Vysokém Mýtě","00372331","Šemberova 125/1, 126, 127","Vysoké Mýto","566 01","35, 38, 40",6600,"405, 331, 341",9710,"Pardubický kraj",2,"budova","zděná","valbová, sedlová","střešní tašky","muzeum","ne",2,"ne","RHP, vnější hydranty","minimální","ano","skleněná s dřevěným rámem / dřevěné s prosklením","vandalismus",71859200]
[6,"Regionální muzeum v Litomyšli",71191283,"Jiráskova 9","Litomyšl","570 01","246",4300,880,8640,"Pardubický kraj",2,"budova","zděná","valbová","střešní tašky","muzeum","ne",1,"ne","EPS, RHP","EZS","ano","skleněná s dřevěným rámem / dřevěné","vzrostlé stromy, vandalismus ",41610240]
[null,null,null,"Jiráskova 133","Litomyšl","570 01","5/2",null,3684,null,"v majetku města",1,"budova","zděná","sedlová","střešní tašky","muzeum","ne","v rekonstrukci","ne","EPS, RHP","EZS","ano","skleněná s dřevěným rámem / dřevěné","vandalismus"]

{"sheet":"ZDRAVOTNICTVÍ","index":2,"n_rows":224,"n_cols":26,"rows_kept":224,"cut":false,"hidden":false,"merged":[[2,17,3,17],[2,23,3,23],[0,0,0,1],[2,0,3,0],[2,1,3,1],[2,2,3,2],[2,3,2,5],[2,8,3,8]]}
["III. ZDRAVOTNICTVÍ"]
[]
["č.","Název dle zřizovací listiny","IČ","Adresa místa pojištění",null,null,"Parc.",null,"Zastavěná plocha (m2)","Obestavěný","Vlastník ","Počet","Typ","Nosná ","Typ ","Krytina","Provozní","Technologie","Celkový","Nebezpečné ","Zabezpečení","Zabezpečení","Trvale","Okna / dveře","Vnější ","Pojistná částka - nová"]
[null,null,null,"Ulice/č.p.","Místo","PSČ","číslo",null,null,"prostor (m3)","nemovitosti","podlaží","budovy","konstrukce","střechy","střechy","účel stavby",null,"stav (1-5)","látky","protipožární","proti krádeži","využíváno",null,"nebezpečí"," hodnota nemovitosti"]
[1,"Chrudimská nemocnice, a.s.","27520561","Václavská 570","Chrudim","537 01","2348/1",5400,5309,65000,"Pardubický kraj",5,"budova","zděná","pultová","plechová","hlavní budova-křídla A,B,C;gastroprovoz","gastro-technologie, vzduchotechnika, klimatizace",2,"kapaliny I.-IV. třídy nebezpečnosti a hořlavé plyny v laboratořích","EPS, RHP, síť hydrantů","EZS, oplocení areálu","ano","skleněná s plastovým rámem / kovové s prosklením","minimální ",412880000]
[null,null,null,"bez č.p.","Chrudim","537 01","2347",5400,238,1550,"Pardubický kraj",2,"budova","zděná","plochá","asfaltové pásy","transfúzní stanice + patologie","ne",3,"ne ","RHP, síť hydrantů","minimální (oplocení areálu)","ano","skleněná s dřevěným rámem / plechové s prosklením","vandalismus",9845600]
[null,null,null,"bez č.p.","Chrudim","537 01","2348/2",5400,86,350,"Pardubický kraj",1,"přístřešek","ocel","pultová","plechová","skládka odpadu","ne",2,"ne","síť hydrantů","oplocení areálu + zamčená pletivová vrata","ano","ne / kovová vrata s pletivem","vzrostlé stromy",2223200]
[null,null,null,"bez č.p.","Chrudim","537 01",2349,5400,767,4500,"Pardubický kraj",2,"budova","zděná","sedlová","plechová","kotelna","strojní vybavení kotelny",3,"zemní plyn","RHP, síť hydrantů","minimální (oplocení areálu)","ano","skleněná s kovovým rámem / plechové bez prosklení","minimální ",28584000]
[null,null,null,"bez č.p.","Chrudim","537 01",2351,5400,15,60,"Pardubický kraj",1,"budova","zděná","pultová","plechová","sklad plynu","ne",3,"TL-medicínské plyny,kyslík,svařovací souprava,dusík,korgon,acetylen","RHP, síť hydrantů","minimální (oplocení areálu)","ano","ventilace / plechová vrata","minimální ",381120]
[null,null,null,"bez č.p.","Chrudim","537 01",2353,5400,48,270,"Pardubický kraj",1,"budova","zděná","plochá","střešní fólie","sklad chlóru","ne",3,"chlór","standartní (RHP)","minimální (objekt uzamčen a oplocen)","ano","prosklení / plechové","vzrostlé stromy",1715040]
[null,null,null,"bez č.p.","Chrudim","537 01",4315,5400,237,1050,"Pardubický kraj",2,"budova","zděná","pultová","asfaltové pásy","trafostanice","2x vlastní trafo, 1x vlastní distribuční společnost",2,"olej v transformátorech","RHP, síť hydrantů","minimální (oplocení areálu)","ano","skleněná výplň / plechové bez skleněné výplně","minimální ",6669600]
[null,null,null,"bez č.p.","Chrudim","537 01",4316,5400,71,210,"Pardubický kraj",1,"budova","zděná","pultová","plechová","vodárna","strojní vybavení vodárny",2,"ne","RHP, síť hydrantů","minimální (oplocení areálu)","ano","skleněná s kovovým rámem / plechové bez skleněné výplně","minimální ",1333920]
[null,null,null,"bez č.p.","Chrudim","537 01",4317,5400,814,5650,"Pardubický kraj",2,"budova","zděná","pultová","asfaltové pásy","dialýza, kardiologie","vzduchotechnika",3,"ne","RHP, síť hydrantů","minimální (oplocení areálu)","ano","skleněná s dřevěným rámem / dřevěné se skleněnou výplní","minimální ",35888800]
[null,null,null,"bez č.p.","Chrudim","537 01",4318,5400,600,2100,"Pardubický kraj",1,"budova","zděná","plochá","plechová","garáže","ne",3,"ne","RHP, síť hydrantů","minimální (oplocení areálu)","ano","prosklení / plechová vrata","minimální ",13339200]
[null,null,null,"bez č.p.","Chrudim","537 01",4319,5400,50,200,"Pardubický kraj",1,"budova","zděná","pultová","plechová","sklad kyslíku","ne",3,"kyslík (TL s obsahem 10 a 50 l)","RHP, síť hydrantů","minimální (oplocení areálu)","ano","skleněná výplň / plechové bez prosklení","minimální ",1270400]
[null,null,null,"bez č.p.","Chrudim","537 01",5219,5400,842,3050,"Pardubický kraj",1,"budova","dřevěná","pultová","plechová","dílny","ne",3,"oleje a PHM","RHP, síť hydrantů","minimální (oplocení areálu)","ano","skleněná s dřevěným rámem / plechová vrata","minimální ",19373600]
[null,null,null,"bez č.p.","Chrudim","537 01",5321,5400,282,820,"Pardubický kraj",1,"budova","dřevěná","sedlová","plechová","šatny","ne",3,"ne","RHP, síť hydrantů","minimální (oplocení areálu)","ano","skleněná s dřevěným rámem / dřevěné s prosklením","vzrostlé stromy",5208640]
[null,null,null,"bez č.p.","Chrudim","537 01",5943,5400,11,24,"Pardubický kraj",1,"přístavek","železobetonová","plochá","betonová","vzduchotechnika","strojní vybavení vzduchotechniky",2,"ne","RHP, síť hydrantů","minimální (oplocení areálu)","ano","ventilace / plechové bez prosklení ","minimální ",152448]
[null,null,null,"bez č.p.","Chrudim","537 01",5944,5400,2089,21600,"Pardubický kraj",6,"budova","zděná","pultová","asfaltové pásy","operační sály","klimatizace, vzduchotechnika",2,"medicínské plyny,TL s kyslíkem,hořlaviny I. třídy nebezp. (max.5 l na oddělení) ","EPS, RHP, síť hydrantů","EZS, oplocení areálu","ano","skleněná s plastovým rámem / plastové s prosklením","minimální ",137203200]
[null,null,null,"bez č.p.","Chrudim",53701,"5946/1",5400,115,460,"Pardubický kraj",1,"budova","zděná","pultová","asfaltové pásy","vrátnice","ne",2,"ne","RHP, síť hydrantů","trvalá obsluha zaměstnanci","ano","skleněná s kovovým rámem / plechové s prosklením","vandalismus",2921920]
[null,null,null,"bez č.p.","Chrudim","537 01",6473,5400,235,2350,"Pardubický kraj",3,"budova","zděná","pultová","asfaltové pásy","sklady materiálně-technického zázemí","klimatizace ",2,"ne","EPS, RHP, síť hydrantů","EZS ","ano","skleněná s plastovým rámem / dřevěné","minimální ",14927200]
[null,null,null,"bez č.p.","Chrudim","537 01",6474,5400,580,5240,"Pardubický kraj",3,"budova","zděná","pultová","asfaltové pásy","ředitelství","ne",2,"ne","RHP, síť hydrantů","EZS, oplocení areálu","ano","skleněná s dřevěným rámem / kovové s prosklením","minimální ",33284480]
[null,null,null,"bez č.p.","Chrudim","537 01",6483,5400,24,48,"Pardubický kraj",1,"budova","zděná","pultová","asfaltové pásy","provozní vrátnice","ne",2,"ne","standartní (RHP)","minimální","ano","skleněná s dřevěným rámem / dřevěné s prosklením","vandalismus",304896]
[null,null,null,"bez č.p.","Chrudim","537 01",6620,5400,466,1780,"Pardubický kraj",1,"budova","dřevěná","pultová","plechová","archiv","ne",3,"ne","EPS, RHP, síť hydrantů","EZS, mříže-okna,dveře; oplocení areálu","ano","sklěněná s dřevěným rámem / dřevěné s prosklením","vzrostlé stromy",11306560]
[null,null,null,"bez č.p.","Chrudim","537 01",5950,5400,64,110,"Pardubický kraj",1,"budova","zděná","plochá","střešní fólie","trafostanice","trafo",2,"olej v transtormátoru","standartní (RHP)","minimální (oplocení areálu)","ano","ventilace / plechové  ","vzrostlé stromy",698720]
[null,null,null,"bez č.p.","Chrudim",53701,"6949",5400,261,2316,"Pardubický kraj",2,"budova","zděná","sedlová","plechová","lékárna","klimatizace",1,"minimální množství hořlavin - léky","EPS, RHP, síť hydrantů","EZS, oplocení zadní části objektu","ano","skleněná s plastovým rámem / plechové s prosklením","vandalismus",14711232]
[null,null,null,"Václavská 567","Chrudim","537 01",2344,5400,315,3200,"majetek a. s.",3,"budova","zděná","sedlová","plechová","ubytovna","ne",3,"ne","standartní (RHP)","minimální","ano","sklěněná s dřevěným rámem / dřevěné  ","vandalismus",20326400]
[null,null,null,"Václavská 567, 568","Chrudim","537 01",2345,5400,91,273,"majetek a. s.",1,"budova","zděná","pultová","asfaltové pásy","spojovací úsek ubytovny","ne",3,"ne","standartní (RHP)","minimální","ano","skleněná s dřevěným rámem / kovové s prosklením","vandalismus",1734096]
[null,null,null,"Václavská 568","Chrudim","537 01",2346,5400,318,3200,"majetek a. s.",3,"budova","zděná","sedlová","plechová","ubytovna","ne",3,"ne","standartní (RHP)","minimální","ano","skleněná s dřevěným rámem / dřevěné","vandalismus",20326400]
[null,null,null,"č.p. 12","Seč",53807,977,5400,128,1020,"Pardubický kraj",2,"budova","zděná","sedlová","střešní tašky","rekreační chatka, majetek a. s.","ne",1,"ne","standartní (RHP)","kamerový systém, oplocení objektu","ano","dřevěné s prosklením / skleněná s dřevěným rámem","vodní nádrž, vzrostlé stromy, vandalismus",6479040]
[2,"Pardubice krajská nemocnice, a.s.","27520536","Kyjevská 44","Pardubice","530 03","416",5400,195,3800,"Pardubický kraj",2,"budova","zděná","plochá","živičná","ambulance onkologie","vzduchotechnika",1,"ne","RHP, hydranty","osvětlení a oplocení celého areálu, v suterénu okenní mříže","ano","skleněná s dřevěným rámem / dřevěbí","minimální ",23085000]
[null,null,null,"bez č.p.","Pardubice","530 03","404",5400,600,4800,"Pardubický kraj",3,"budova","zděná","plochá","živičná/plechová","patologie","vzduchotechnika",2,"ne","RHP, hydranty","osvětlení a oplocení celého areálu ","ano","skleněná s dřevěným rámem / dřevěné s prosklením","minimální ",29160000]
[null,null,null,"bez č.p.","Pardubice","530 03","405",5400,807,11700,"Pardubický kraj",3,"budova","zděná","plochá","živičná","TRN, psychiatrie","vzduchotechnika",2,"ne","RHP, hydranty","osvětlení a oplocení celého areálu","ano","skleněná s dřevěným rámem / dřevěné s prosklením","minimální ",71077500]
[null,null,null,"bez č.p.","Pardubice","530 03","406",5400,1904,27500,"Pardubický kraj",3,"budova","zděná","plochá","živičná","trojpavilon (oční,ORL,dětské odd.,hematologie,psychiatrie)","vzduchotechnika",1,"tlakové láhve ve skladu pavilonu (kapacita max. 14 TL, tj. 700 l)","RHP, hydranty","osvětlení a oplocení celého areálu","ano","skleněná s dřevěným, plastovým rámem / dřevěné","minimální ",167062500]
[null,null,null,"bez č.p.","Pardubice","530 03","407, 1301",5400,"1141, 244",17500,"Pardubický kraj",3,"budova","zděná","plochá","živičná","kardiologie","vzduchotechnika",1,"tlakové láhve (kapacita max. 14 TL - 700 l)","RHP, hydranty","osvětlení a oplocení celého areálu","ano","skleněná s plastovým rámem / plastové s prosklením","minimální ",106312500]
[null,null,null,"bez č.p.","Pardubice","530 03","408",5400,1900,54630,"Pardubický kraj",4,"budova","zděná","plochá","střešní fólie","porodnicko-gynekologický pavilon, urologie","vzduchotechnika",1,"ne","EPS, hydranty","osvětlení a oplocení celého areálu","ano","skleněná s plastovým rámem / plastové s prosklením","minimální ",331877250]
[null,null,null,"bez č.p.","Pardubice","530 03","409",5400,1727,24500,"Pardubický kraj",5,"budova","zděná, železobeton","plochá","živičná","chirurgie","vzduchotechnika",1,"ne","RHP, hydranty","osvětlení a oplocení celého areálu","ano","skleněná s dřevěným rámem / dřevěné s prosklením","minimální ",148837500]
[null,null,null,"bez č.p.","Pardubice","530 03","410",5400,1218,18300,"Pardubický kraj",3,"budova","žděná/železobeton","plochá","živičná","neurologie","vzduchotechnika",2,"tlakové láhve (max. kapacita 14 TL - 700 l)","RHP, hydranty","osvětlení a oplocení celého areálu","ano","skleněná s dřevěným rámem / dřevěné s prosklením","minimální ",111172500]
[null,null,null,"bez č.p.","Pardubice","530 03","411",5400,445,4500,"Pardubický kraj",3,"budova","zděná","plochá","živičná","krajská hygienická stanice, lékarna","ne",3,"kapaliny I. - IV. třídy nebezpečnosti, léky","RHP, hydranty","osvětlení a oplocení celého areálu","ano","skleněná s dřevěným rámem / dřevěné s prosklením","minimální ",27337500]
[null,null,null,"bez č.p.","Pardubice","530 03","412",5400,735,9050,"Pardubický kraj",3,"budova","zděná","plochá","živičná","onkologie, dětská chirurgie, stomatologie","vzduchotechnika, klimatizace",3,"ne","EPS, hydranty","osvětlení a oplocení celého areálu","ano","skleněná s dřevěným rámem / dřevěné s prosklením","minimální ",54978750]
[null,null,null,"bez č.p.","Pardubice","530 03","414",5400,902,14900,"Pardubický kraj",3,"budova","zděná","plochá","živičná","ředitelství, ústavní lékárna","vzduchotechnika, klimatizace",1,"léky","kouřová čidla, RHP, hydranty","EZS, oplocení areálu","ano","skleněná s plastovým rámem / plastové s prosklením","minimální ",90517500]
[null,null,null,"bez č.p.","Pardubice","530 03","415",5400,993,16100,"Pardubický kraj",3,"budova","zděná","plochá","živičná","vstupní budova, lékárna, budova hlavní vrátnice","klimatizace",1,"minimální množství hořlavin, léky","RHP, hydranty","EZS","ano","sklěněná s dřevěným rámem / dřevěné s prosklením","vzrostlé stromy, vandalismus",97807500]
[null,null,null,"bez č.p.","Pardubice","530 03","417",5400,42,130,"Pardubický kraj",1,"budova","kovová","pultová","vlnitý plech","garáž ","ne",2,"ne","standartní, RHP, hydranty","osvětlení a oplocení celého areálu","ano","ne / plechová vrata","vzrostlé stromy",789750]
[null,null,null,"bez č.p.","Pardubice","530 03","418",5400,860,5400,"Pardubický kraj",2,"budova","zděná","plochá","živičná","infekční oddělení","vzduchotechnika",2,"výskyt hořlavých látek v omezeném množství","RHP, hydranty","osvětlení a oplocení celého areálu","ano","skleněná s dřevěným rámem / dřevěné s prosklením","minimální ",32805000]
[null,null,null,"bez č.p.","Pardubice","530 03","426",5400,794,7200,"Pardubický kraj",2,"budova","zděná, železobeton","plochá,valbová","živičná, plech","pavilon RDG + budova č. 45-CT","vzduchotechnika",1,"sklad chemikálií, snímků RTG","RHP, hydranty","osvětlení a oplocení celého areálu","ano","skleněná s plastovým rámem / plastové s prosklením","vzrostlé stromy",43740000]
[null,null,null,"bez č.p.","Pardubice","530 03","427, 1003",5400,"225, 200",3100,"Pardubický kraj",2,"budova","zděná","plochá","živičná","dílny, náhradní zdroj elektrické energie","vzduchotechnika",2,"oleje, PHM","RHP, hydranty","osvětlení a oplocení celého areálu","ano","sklěněná s dřevěným rámem / dřevěné s prosklením","minimální ",18832500]
[null,null,null,"bez č.p.","Pardubice","530 03","976",5400,255,960,"Pardubický kraj",1,"budova","zděná","plochá","střešní fólie","trafostanice","trafo",3,"oleje v transtormátorech (2x 750 kg vstupní trafostanice)","standartní, RHP, hydranty","osvětlení a oplocení celého areálu","ano","ne / plechová vrata","vzrostlé stromy",5832000]
[null,null,null,"bez č.p.","Pardubice","530 03","997, 1320",5400,"347, 521",5200,"Pardubický kraj","1, 2","budova","zděná","plochá","živičná","plynová kotelna","strojní vybavení kotelny",2,"hořlavý plyn, svařovací souprava","RHP, hydranty","osvětlení a oplocení celého areálu","ano","skleněná s kovovým rámem, prosklení / plechové","minimální ",31590000]
[null,null,null,"bez č.p.","Pardubice","530 03","998",5400,23,40,"Pardubický kraj",1,"budova","kovová","pultová","vlnitý plech","sklad hořlavin","ne",3,"hořlaviny I. - IV. třídy nebezpečnosti max. do 1.000 l (200 l / sud)","standartní RHP, hydranty","osvětlení a oplocení celého areálu","ano","ne / plechová vrata","vzrostlé stromy, vandalismus",243000]
[null,null,null,"bez č.p.","Pardubice","530 03","999",5400,50,125,"Pardubický kraj",1,"budova","zděná","pultová","vlnitý plech","sklad","ne",3,"hořlavé zkapalněné plyny (TL - kapacita do 2.050 l)","standartní RHP, hydranty","osvětlení a oplocení celého areálu","ano","ne / kovové s prosklením","vzrostlé stromy, vandalismus",759375]
[null,null,null,"bez č.p.","Pardubice","530 03","1000/1",5400,885,5450,"Pardubický kraj",2,"budova","zděná","plochá","živičná","mikrologie, laboratoře OKBD","vzduchotechnika",1,"kapaliny I. - IV. třídy nebezpečnosti, hořlavé plyny","standartní, RHP, hydranty","osvětlení a oplocení celého areálu","ano","skleněná s dřevěným rámem / kovové s prosklením","vzrostlé stromy",33108750]
[null,null,null,"bez č.p.","Pardubice","530 03","1001",5400,374,1500,"Pardubický kraj",2,"budova","zděná","plochá","střešní fólie","laboratoře (plánovaný účel)","ne",2,"hořlavé plyny, kapaliny I. - IV. třídy nebezpečnosti","standartní, RHP, hydranty","osvětlení a oplocení celého areálu","ano","skleněná s plastovým rámem / dřevěné s prosklením","vzrostlé stromy",9112500]
[null,null,null,"bez č.p.","Pardubice","530 03","1002",5400,298,1100,"Pardubický kraj",1,"budova","zděná","plochá","živičná","magnetická rezonance","ne",1,"ne","kouřová čidla, RHP, hydranty","osvětlení a oplocení celého areálu","ano","skleněná s plastovým rámem / plastové s prosklením","vzrostlé stromy",6682500]
[null,null,null,"bez č.p.","Pardubice","530 03","1180/1-3",5400,1243,9400,"Pardubický kraj",1,"hala","železobeton ","sedlová","vlnitý plech","prádelna, sklad","prádelna",2,"výskyt hořlavých látek v omezeném množství","standartní RHP, hydranty","osvětlení a oplocení celého areálu, částečně okenní mříže","ano","skleněná s dřevěným rámem, prosklení / plechová vrata","vandalismus",57105000]
[null,null,null,"bez č.p.","Pardubice","530 03","1295",5400,1144,30800,"Pardubický kraj",8,"budova","železobeton,prefabrikované ze systému T06B","plochá","živičná","LDN, interna, rehabilitace","vzduchotechnika",2,"výskyt hořlavých látek v omezeném množství","standartní, RHP, hydranty","osvětlení a oplocení celého areálu","ano","skleněná s dřevěným rámem / dřevěné","minimální ",187110000]
[null,null,null,"bez č.p.","Pardubice","530 03","1321",5400,333,1600,"Pardubický kraj",1,"budova","zděná","pultová","živičná","čističky odpadních vod","strojní vybavení čističky",2,"zásobník chlóru","standartní (RHP), hydranty","osvětlení a oplocení celého areálu","ano","skleněná v kovovém rámu / plechová vrata","minimální ",9720000]
[null,null,null,"bez č.p.","Pardubice","530 03","1330,1331",5400,618,4400,"Pardubický kraj",2,"budova","zděná","plochá","střešní fólie","dialýza ","vzduchotechnika",1,"ne","kouřová čidla, RHP, hydranty","osvětlení a oplocení celého areálu","ano","skleněná s plastovým rámem / plastové s prosklením","minimální (vzrostlé stromy)",26730000]
[null,null,null,"bez č.p.","Pardubice","530 03","1332",5400,370,1800,"Pardubický kraj",2,"budova","válcované profily","sedlová","plechová","spalovna nemocničního odpadu","strojní vybavení spalovny",2,"výskyt hořlavých látek v omezeném množství","RHP, hydranty","osvětlení a oplocení celého areálu","ano","skleněná s kovovým rámem / plechová vrata","minimální",10935000]
[null,null,null,"bez č.p.","Pardubice","530 03","1363",5400,133,340,"Pardubický kraj",1,"budova","zděná","plochá","šindel","trafostanice","trafo",1,"ne","RHP, hydranty","osvětlení a oplocení celého areálu","ano","ventilace / ocelové","vzrostlé stromy",2065500]
[null,null,null,"bez č.p.","Pardubice","530 03","1369, 1370",5400,"1746, 1738",50000,"Pardubický kraj",6,"budova","železobeton","plochá,valbová","střešní fólie","nová chirurgie, transfúzní stanice","vzduchotechnika",1,"výskyt hořlavých látek v omezeném množství","kouřová čidla, EPS, hydranty","EZS, oplocení areálu","ano","skleněná s plastovým rámem / plastové s prosklením","vzrostlé stromy",303750000]
[null,null,null,"bez č.p.","Pardubice","530 03","1449",5400,861,8000,"Pardubický kraj",4,"budova","zděná","plochá","živičná","multican, onkologie, KHS","ne",1,"ne","kouřová čidla, EPS, hydranty","ESZ","ano","skleněná s plastovým rámem / plastové s prosklením","minimální",48600000]
[null,null,null,"bez č.p.","Pardubice","530 03","1456",5400,1726,20800,"Pardubický kraj",6,"budova","železobeton","plochá,valbová","střešní fólie, plech","kuchyňský blok, ubytování","gastro-technologie, klimatizace",1,"ne","RHP, hydranty","osvětlení a oplocení celého areálu","ano","skleněná s plastovým rámem / plastové s prosklením","minimální",126360000]
[null,null,null,"bez č.p.","Pardubice","530 03","1519",5400,280,700,"Pardubický kraj",1,"budova","zděná","plochá","střešní fólie","trafostanice + náhradní zdroj","trafo",2,"výskyt hořlavých látek v omezeném množství","standartní (RHP)","osvětlení a oplocení celého areálu","ano","ventilace / plechové","vzrostlé stromy",4252500]
[null,null,null,"bez č.p.","Pardubice","530 03","1520",5400,820,4600,"Pardubický kraj",3,"budova","zděná","plochá","živičná","jídelna zaměstnanců","klimatizace",3,"ne","standartní (RHP), hydranty","osvětlení a oplocení celého areálu","ano","skleněná s plastovým rámem / dřevěné s prosklením","minimální",27945000]
[null,null,null,"bez č.p.","Pardubice","530 03","1691",null,354,1856,"Pardubický kraj",1,"budova","zděná","plochá","střešní fólie","magnetická rezonance","vzduchotechnika",1,"ne","hlásiče požáru, RHP, hydrant","osvětlení a oplocení celého areálu","ano","skleněná s plastovým rámem / dřevěné s prosklením","minimální",11275200]
[null,null,null,"U Svaté trojice","Pardubice","530 03","789",5400,309,1852,"Pardubický kraj",2,"budova","zděná","sedlová","plech ","záchytná stanice","ne",3,"ne","standartní (RHP)","mříže na oknech a dveřích","ano","skleněná s dřevěným rámem / kovové s prosklením","vzrostlé stromy, vandalismus",11250900]
[null,null,null,"E 250","Seč -Proseč u Seče",null,"342",5400,54,160,"majetek a. s.",1,"budova","zděná","sedlová","plech","rekreační chata","ne",3,"ne","standartní (RHP)","částečně okenní mříže","ne","skleněná s dřevěným rámem / dřevěné","vzrostlé stromy, vandalismus"]
[null,null,null,"E 251","Seč",null,"347",5400,56,130,"majetek a. s.",1,"budova","zděná","sedlová","plech","rekreační chata","ne",3,"ne","standartní (RHP)","částečně okenní mříže","ne","skleněná s dřevěným rámem / dřevěné","vzrostlé stromy, vandalismus"]
[null,null,null,"E 252","Seč",null,"343",5400,54,170,"majetek a. s.",1,"budova","zděná","sedlová","plech","rekreační chata","ne",3,"ne","standartní (RHP)","částečně okenní mříže","ne","skleněná s dřevěným rámem / dřevěné","vzrostlé stromy, vandalismus"]
[null,null,null,"E 253","Seč",null,"346, 348, 349, 350, 344",5400,"30, 30, 30, 30, 30","70 / chata","majetek a. s.",1,"budova","zděná","sedlová","plech","rekreační chata","ne",3,"ne","standartní (RHP)","minimální","ne","skleněná s dřevěným rámem / dřevěné","vzrostlé stromy, vandalismus"]
[3,"Svitavská nemocnice, a.s.","27520552","Kollárova 643/7","Svitavy",56802,"548",5400,3250,40200,"Pardubický kraj",4,"budova","zděná","pultová","střešní fólie","monoblok","vzduchotechnika",1,"tlakové láhve (kapacita max. 5 TL, tj. 100 l)","EPS,tlačítkové hlásiče,hydranty","EZS, CCTV","ano","skleněná s plastovým rámem / plechové se skleněnou výplní","vandalismus",243214020]
[null,null,null,"bez č.p.","Svitavy",56802,"603",5400,399,4500,"Pardubický kraj",1,"hala","zděná","sedlová","plech","údržba","ne",4,"hořlaviny I. - IV. třídy nebezpečnosti (max. 200 l)","standartní (RHP), hydranty","CCTV, oplocení","ano","skleněná v kovovém rámu / plechové","vzrostlé stromy",27225450]
[null,null,null,"bez č.p.","Svitavy",56802,"740",5400,697,6500,"Pardubický kraj",2,"budova","zděná","sedlová","střešní tašky","ORL + LDN","vzduchotechnika",3,"ne","RHP, hydranty","CCTV, oplocení areálu","ano","skleněná s dřevěným rámem / dřevěné s prosklením","vzrostlé stromy",39325650]
[null,null,null,"bez č.p.","Svitavy",56802,"1598/1,1598/2",5400,511,1250,"Pardubický kraj",1,"budova","zděná","plochá","střešní fólie","HTO","vzduchotechnika",3,"ne","RHP, hydranty","CCTV, oplocení areálu","ano","skleněná s dřevěným rámem / kovové s prosklením","vandalismus",7562625]
[null,null,null,"bez č.p.","Svitavy",56802,"2405",5400,86,140,"Pardubický kraj",1,"budova","zděná","pultová","plechová","trafostanice","trafo",1,"olej v transformátoru ","standartní (RHP)","CCTV, oplocení areálu","ano","ventilace / plechová vrata","vzrostlé stromy",847014]
[null,null,null,"bez č.p.","Svitavy",56802,"3701",5400,71,120,"Pardubický kraj",1,"budova","zděná","pultová","plechová","kyslíkárna","ne",1,"tlakové láhve (s obsahem 10 a 50 l)","RHP, hydranty","CCTV, oplocení areálu","ano","plechové","minimální",726012]
[null,null,null,"bez č.p.","Svitavy",56802,"2950",5400,985,12100,"Pardubický kraj",1,"budova","zděná","pultová",null,"poliklinika",null,2,"minimální množství hořlavin, léky","RHP, hydranty","CCTV","ano","skleněná s plastovým rámem / kovové s prosklením","vandalismus",73206210]
[null,null,null,"bez č.p.","Svitavy",56802,"2977",5400,238,2850,"Pardubický kraj",3,"budova","zděná","sedlová","střešní fólie","patologie","vzduchotechnika",2,"ne","RHP, hydranty","CCTV, oplocení areálu","ano","skleněná s dřevěným rámem / dřevěné","vzrostlé stromy",17242785]
[null,null,null,"bez č.p.","Svitavy",56802,"2978",5400,410,1650,"Pardubický kraj",1,"budova","zděná","pultová","plechová","RDG","ne",3,"ne","RHP, hydranty","CCTV, oplocení areálu","ano","skleněná s dřevěným rámem / dřevěné s prosklením","minimální",9982665]
[null,null,null,"bez č.p.","Svitavy",56802,"2979",5400,466,2800,"Pardubický kraj",1,"budova","zděná","plochá","střešní fólie","přístavba prádelny","prádelna",2,"ne","RHP, hydranty","CCTV, částečně okenní mříže, oplocení areálu","ano","skleněná s dřevěným rámem / dřevěné","minimální",16940280]
[null,null,null,"Lány 240","Svitavy",56802,"228/2",5400,205,9300,"Pardubický kraj",3,"budova","zděná","valbová","střešní tašky","dětská ambulance, psychiatrie - klášter","ne",3,"ne","RHP, hydranty","CCTV, oplocení areálu","ano","skleněná s dřevěným rámem / dřevěné s prosklením","minimální",56265930]
[null,null,null,"bez č.p.","Svitavy",56802,"651",5400,null,5100,"Pardubický kraj",1,"budova","zděná","pultová","plechová","DZS","ne",2,null,"RHP, hydranty","CCTV, oplocení areálu","ano","skleněná s plastovým rámem / plastové se skleněnou výplní","vandalismus",30855510]
[null,null,null,"bez č.p.","Svitavy",56802,"676",5400,124,6800,"Pardubický kraj",4,"budova","zděná","plochá","střešní fólie","rehabilitace","ne",2,"ne","RHP, hydranty","CCTV, oplocení areálu","ano","skleněná s kovovým rámem / plastové se skleněnou výplní","minimální",41140680]
[null,null,null,"bez č.p.","Svitavy",56802,"1343",5400,203,470,"Pardubický kraj",1,"budova","zděná","plochá","střešní fólie","garáže","ne",3,"PHM, oleje","RHP, hydranty","CCTV, oplocení areálu","ano","prosklení / plechová vrata","minimální",2843547]
[null,null,null,"bez č.p.","Svitavy",56802,"1344",5400,243,2540,"Pardubický kraj",1,"hala","kovová","pultová","vlnitý plech","hala plynové kotelny","strojní vybavení kotelny",3,"zemní plyn","RHP, hydranty","CCTV, oplocení areálu","ano","plastové světlíky / plechové","minimální",15367254]
[null,null,null,"bez čp. ","Svitavy","568 02","1107",5400,87,487,"Pardubický kraj",1,"budova","zděná","valbová","eternit","stará márnice","ne",4,"ne","standartní (RHP), hydranty","CCTV, oplocení areálu","ne","prosklení / plechové","vzrostlé stromy, vandalismus",2946399]
[null,null,null,"bez čp.","Svitavy","568 02","2980/2",5400,64,300,"Pardubický kraj",1,"budova vč. plechového přístavku","zděná, kovová","pultová","vlnitý plech","sklad u ORL","ne",3,"ne","RHP, hydranty","CCTV, oplocení areálu","ano","skleněná v kovovém rámu / dřevěné","vzrostlé stromy",1815030]
[null,null,null,"byt č. 1780/2","Svitavy","568 02","2264 - 2466",6000,"217, 191, 221",350,"Pardubický kraj",4,"budova","zděná","plochá","střešní fólie","byt Svitavy - předměstí č.p. 1780, 1781, 1782","ne",1,"ne","standartní (RHP)","minimální","ano","skleněná s plastovým rámem / plastové s prosklením","vandalismus",2117535]
[4,"Litomyšlská nemocnice, a.s.","27520579","J. E. Purkyně 652","Litomyšl",57001,926,5400,345,2800,"Pardubický kraj",2,"budova","zděná","plochá,valbová","střešní fólie, střešní tašky","ředitelství, vrátnice","ne",2,"ne","standartní (RHP), hydranty","CCTV, osvětlení a oplocení areálu (EZS-pokladna)","ano","skleněná s dřevěným rámem / dřevěné prosklené","vandalismus, vodní toky",20087200]
[null,null,null,"J. E. Purkyně 497","Litomyšl",57001,"755/1",5400,1210,9900,"Pardubický kraj",1,"budova","zděná","valbová","střešní tašky","kožní ambulance","ne",3,"ne","standartní (RHP), hydranty","CCTV, osvětlení a oplocení areálu  ","ano","skleněná s dřevěným rámem / dřevěné prosklené","vodní toky",71022600]
[null,null,null,"J. E. Purkyně 510","Litomyšl",57001,"755/2",5400,380,3100,"Pardubický kraj",2,"budova","zděná","rovná","střešní fólie","IDG","vzduchotechnika, klimatizace",2,"záložní zdroj mediplynů a technických plynů (max. kapacita 30 TL),nafta při DA (cca 300 l)","standartní (RHP), hydranty","CCTV, osvětlení a oplocení areálu","ano","skleněná s dřevěným rámem / dřevěné prosklené","vzrostlé stromy, vodní toky",22239400]
[null,null,null,"J. E. Purkyně 768","Litomyšl",57001,1088,5400,712,8550,"Pardubický kraj",3,"budova","zděná","sedlová","plech","interní oddělení, interní JIP a ambulance","klimatizace",3,"záložní zdroj mediplynů a technických plynů (max. kapacita 30 TL) ","standartní (RHP), hydranty","CCTV, osvětlení a oplocení areálu","ano","skleněná s dřevěným rámem / dřevěné prosklené","vodní toky",61337700]
[null,null,null,"J. E. Purkyně 784","Litomyšl",57001,1089,5400,1259,9300,"Pardubický kraj",2,"budova","zděná","rovná","střešní fólie","kuchyně, jídelna, kotelna","gastro-technologie, strojní vybavení kotelny",3,"zemní plyn","standartní (RHP), hydranty","CCTV, osvětlení a oplocení areálu","ano","skleněná s dřevěným rámem / dřevěné","vzrostlé stromy, vodní toky",66718200]
[null,null,null,"bez č.p.","Litomyšl",57001,1126,5400,322,1280,"Pardubický kraj",1,"budova","zděná","rovná","střešní fólie","patologie","ne",1,"ne","standartní (RHP), hydranty","CCTV, osvětlení a oplocení areálu","ano","skleněná s dřevěným rámem / dřevěné prosklené","vzrostlý strom, vodní toky",9182720]
[null,null,null,"bez č.p.","Litomyšl",57001,1127,5400,376,1170,"Pardubický kraj",1,"garáž","zděná","plochá, sedlová","střešní fólie, plech","garáže","ne",3,"ne","standartní (RHP), hydranty","CCTV, osvětlení a oplocení areálu","ano","prosklení / plechová vrata","vzrostlé stromy, vodní toky",8393580]
[null,null,null,"bez č.p.","Litomyšl",57001,1128,5400,158,450,"Pardubický kraj",1,"budova","zděná","sedlová","plech","spisovna","ne",3,"ne","standartní (RHP), hydranty","CCTV, osvětlení a oplocení areálu, okenní mříže","ano","skleněná s dřevěným rámem / kovové s prosklením a mřížemi","vzrostlé stromy, vodní toky",3228300]
[null,null,null,"bez č.p.","Litomyšl",57001,1130,5400,74,250,"Pardubický kraj",1,"budova","zděná","rovná","střešní fólie","trafostanice","trafo",1,"olej v transformátorech, nafta pro záložní zdroj DA (cca 300 l)","standartní (RHP)","CCTV, osvětlení a oplocení areálu","ano","prosklení / plechové","vodní toky",1793500]
[null,null,null,"bez č.p.","Litomyšl",57001,1131,5400,66,310,"Pardubický kraj",1,"budova","zděná","sedlová","plech","sklad - údržba","ne",2,"oleje a PHM","standartní (RHP), hydranty","CCTV, osvětlení a oplocení areálu","ano","skleněná s dřevěným rámem / plechová vrata","vodní toky",2223940]
[null,null,null,"bez č.p.","Litomyšl",57001,1132,5400,126,580,"Pardubický kraj",1,"budova","zděná","rovná","střešní fólie, plech","údržba","ne",3,"svařovací soupravy","standartní (RHP), hydranty","CCTV, osvětlení a oplocení areálu","ano","skleněná s dřevěným rámem / dřevěné prosklené, plechové","vodní toky",4160920]
[null,null,null,"J. E. Purkyně 308","Litomyšl",57001,"1133/1",5400,4200,55646,"Pardubický kraj",3,"budova","zděná","sedlová","střešní tašky","monoblok","ano",1,"ne","EPS, hydranty, RHP","EZS, CCTV, osvětlení a oplocení areálu","ano","skleněná s dřevěným rámem / dřevěné prosklené","vodní toky",399204404]
[null,null,null,"J. E. Purkyně 919","Litomyšl",57001,"1752/6",5400,491,6020,"majetek a. s.",3,"budova","zděná","rovná","střešní fólie","internát","ne",1,"ne","standartní (RHP)","minimální","ano","skleněná s dřevěným rámem / dřevěné prosklené","vandalismus"]
[null,null,null,"Zámecká 508","Litomyšl",57001,"772",5400,419,7000,"Pardubický kraj",2,"budova","zděná","valbová","plech","léčebna dlouhodobě nemocných","ano",1,"ano","standartní (RHP)","minimální","ano","skleněná s dřevěným rámem / dřevěné prosklené","vandalismus",50218000]
[null,null,null,"J.E. Purkyně 1096","Litomyšl",57001,"3459",5400,322,1509,"majetek a. s.",1,"budova","zděná","pultová","plech","lékárna","klimatizace",1,"minimální množství hořlavin - léky","EPS, hydranty, RHP","EZS, CCTV, osvětlení a oplocení areálu","ano","prosklené výlohy v kovovém rámu / skleněné","vzrostlé stromy"]
[null,null,null,"bez č.p.","Litomyšl",57001,"3375",5400,23,70,"Pardubický kraj",1,"budova","zděná","rovná","střešní fólie","redukční stanice","ne",2,"TL (max. do 35 ks)","standartní (RHP), hydranty","CCTV, osvětlení a oplocení areálu","ano","ne / plechové","vzrostlé stromy, vodní toky",502180]
[null,null,null,"bez č.p.","Záhraď-Litomyšl",57001,"346",5400,88,170,"Pardubický kraj",2,null,"zděná",null,null,"LDN sklad (3NP)","ne",2,"ne","standartní (RHP)","minimální","ano","skleněná s dřevěným rámem / dřevěné prosklené","vandalismus",1219580]
[5,"Nemocnice následné péče Moravská Třebová","00193895","Svitavská 25","Moravská Třebová",57116,"2821/49, 2821/69",5400,"991, 14",6900,"Pardubický kraj",1,"hala","zděná","plochá","střešní fólie","kotelna, dílny, sklad","strojní vybavení kotelny",3,"ne","standartní (RHP)","minimální","ano","skleněná s dřevěným rámem, prosklení / plechová a dřevěná vrata","vandalismus",41731200]
[null,null,null,"bez č.p.","Moravská Třebová",57101,"2820/21",5400,389,1350,"Pardubický kraj",1,"budova","zděná","sedlová","plech","garáže, sklad, dílny","ne",2,"ne","standartní (RHP)","minimální (oplocený areál)","ano","skleněná s plastovým rámem / plastové, plechová vrata","vandalismus",8164800]
[null,null,null,"bez č.p.","Moravská Třebová",57101,"2811, 2820/22",5400,625,7850,"Pardubický kraj",2,"budova","zděná","sedlová","plech","nemocnice následné péče","gastro-technologie",1,"ne","standartní (RHP)","minimální","ano","skleněná s plastovým rámem / plastové s prosklením","vandalismus",47476800]
[null,null,null,"bez č.p.","Moravská Třebová",57101,"2812",5400,109,432,"Pardubický kraj",1,"budova","zděná","plochá","plech","trafostanice","trafo",1,"olej v transformátoru ","standartní (RHP)","minimální (oplocený areál)","ano","ne / plechová vrata","vzrostlé stromy, vandalismus",2612736]
[null,null,null,"bez č.p.","Moravská Třebová","571 01","1417/2",null,150,380,"Pardubický kraj",1,"budova","zděná","valbová","střešní tašky","garáže","ne",3,"ne","standartní (RHP)","minimální, osvětlení objektu","ano","prosklení / kovová vrata","vandalismus, vzrostlé stromy",2298240]
[null,null,null,"Svitavská 325","Moravská Třebová",57101,"1417/1",5400,436,7920,"Pardubický kraj",3,"budova","zděná","valbová","eternit","nemocnice následné péče","ne",1,"ne","standartní (RHP)","minimální","ano","skleněná s plastovým rámem / plastové s prosklením","vandalismus",47900160]
[6,"Orlickoústecká nemocnice, a.s.",27520528,"Čsl. Armády 1076","Ústí nad Orlicí",56218,"1167",5400,481,4350,"Pardubický kraj",2,"budova","zděná","plochá","plechová,asfaltové pásy","ředitelství, vrátnice","ne",3,"ne","RHP, vnitřní + venkovní hydrant","oplocení areálu, ostraha","ano","skleněná s dřevěným rámem ","vzrostlé stromy",32993445]
[null,null,null,"bez č.p.","Ústí nad Orlicí",56218,"3040",5400,54,220,"Pardubický kraj",1,"budova","zděná","plochá","asfaltové pásy","sklad","ne",3,"ne","standartní (RHP)","oplocení areálu, ostraha","ne","skleněná s dřevěným rámem / plechová vrata","minimální",1668634]
[null,null,null,"bez č.p.","Ústí nad Orlicí",56218,"3231",5400,658,5040,"Pardubický kraj",4,"budova","zděná","plochá","asfaltová lepenka","porodnice","klimatizace",2,"minimální množství","EPS, RHP + venkovní a vnitřní hydranty","oplocení areálu, ostraha","ano","skleněná s dřevěným rámem / kovové s prosklením","vzrostlé stromy",38226888]
[null,null,null,"bez č.p.","Ústí nad Orlicí",56218,"3232",5400,169,423,"Pardubický kraj",1,"budova","dřevěná","plochá","plechová","šatny střední zdravotnické školy","ne",3,"ne","RHP, venkovní hydrant","oplocení areálu, ostraha","ano","skleněná s dřevěným rámem / dřevěné","vzrostlé stromy",3208328]
[null,null,null,"bez č.p.","Ústí nad Orlicí",56218,"3294",5400,1543,15500,"Pardubický kraj",3,"budova","zděná","plochá","asfaltová lepenka","biochemie, dialýza, onkologie","vzduchotechnika",2,"minimální množství","RHP, vnitřní a venkovní hydranty","oplocení areálu, ostraha","ano","skleněná s plastovým rámem / plastové s prosklením","minimální",117562850]
[null,null,null,"bez č.p.","Ústí nad Orlicí",56218,"3461",5400,605,3000,"Pardubický kraj",1,"budova","zděná","plochá","plechová","lékárna","ne",2,"minimální množství - léky","RHP, venkovní a vnitřní hydranty","EZS prostorová + oplocení areálu + ostraha","ano","skleněná s dřevěným rámem / dřevěné s prosklením","minimální",22754100]
[null,null,null,"bez č.p.","Ústí nad Orlicí",56218,"3475/1",5400,27,100,"Pardubický kraj",1,"hala","kovová","sedlová","plechová","kogenerace, sběrný dvůr","ne",3,"hořlaviny v omezeném množství","RHP, venkovní hydrant","oplocení areálu, ostraha","ano","plechová vrata","vzrostlé stromy",758470]
[null,null,null,"bez č.p.","Ústí nad Orlicí",56218,"3476",5400,87,350,"Pardubický kraj",1,"sklad","zděná","sedlová","plechová","sklad údržby","ne",3,"svařovací souprava, PHM, oleje","RHP, venkovní hydrant","oplocení areálu, ostraha","ano","plechová vrata","vzrostlé stromy",2654645]
[null,null,null,"bez č.p.","Ústí nad Orlicí",56218,"3550",5400,27,80,"Pardubický kraj",1,"garáž","zděná","plochá","střešní fólie","garáž","ne",4,"ne","RHP, venkovní hydranty","oplocení areálu, ostraha","ano","prosklení / plechová vrata","vzrostlé stromy",606776]
[null,null,null,"bez č.p.","Ústí nad Orlicí",56218,"3571",5400,1026,12300,"Pardubický kraj",2,"budova","železobetonový skelet, zděná","plochá","asfaltové pásy","dětské oddělení","plynová kotelna, rozvody kyslíku, vakua, stlačeného vzduchu",1,"kyslík, plyn","EPS, RHP, venkovní hydrant","oplocení areálu, ostraha","ano","skleněná s plastovým rámem / plastové s prosklením","minimální",93291810]
[null,null,null,"Čsl. Armády 1077","Ústí nad Orlicí",56218,"1168",5400,878,15900,"Pardubický kraj",2,"budova","zděná","valbová","plechová","jídelna  ","gastro-technologie",2,"ne","RHP, vnitřní + venkovní hydrant","oplocení areálu, ostraha","ano","skleněná s plastovým rámem / plastové s prosklením","minimální",120596730]
[null,null,null,"Čsl. Armády 1078","Ústí nad Orlicí",56218,"1169",5400,1725,16240,"Pardubický kraj",4,"budova","zděná, stropy železobeton","plochá","asfaltová lepenka","chirurgie, operační sály","klimatizace",2,"medicinální plyna (kyslík, oxid dusíku), zemní plyn","EPS + venkovní a vnitřní hydranty","oplocení areálu, ostraha","ano","skleněná s plastovým rámem / kovové s prosklením","vzrostlé stromy",123175528]
[null,null,null,"Čsl. Armády 1079","Ústí nad Orlicí",56218,"1170",5400,413,5800,"Pardubický kraj",2,"budova","zděná","plochá","plechová, asfaltové pásy","magnetická rezonance","ano",3,"ne","RHP, vnitřní + venkovní hydrant","oplocení areálu, ostraha","ano","skleněná s dřevěným rámem / dřevěné s prosklením","vzrostlé stromy",43991260]
[null,null,null,"bez č.p.","Ústí nad Orlicí",56218,"1171",5400,153,506,"Pardubický kraj",2,"budova","zděná","plochá","plechová","patologie","ne",3,"ne","RHP, vnitřní + venkovní hydrant","oplocení areálu, ostraha","ano","skleněná s dřevěným rámem / dřevěné s prosklením","vzrostlé stromy",3837858]
[null,null,null,"Čsl. Armády 424","Ústí nad Orlicí",56218,"1324",5400,858,7320,"Pardubický kraj",4,"budova","zděná","pultová","plechová, asfaltové pásy","budova D - interna, budova H - severovna","ne",3,"minimální množství","EPS (budova D pouze JIP) + vnitřní a venkovní hydranty","oplocení areálu, ostraha","ano","skleněná s dřevěným rámem / kovové s prosklením","minimální",55520004]
[null,null,null,"bez č.p.","Ústí nad Orlicí",56218,"1562",5400,244,660,"Pardubický kraj",1,"garáže","zděná","plochá","plechová","garáže záchranné služby","ne",2,"PHM, oleje","RHP, vnitřní + venkovní hydrant","oplocení areálu, ostraha","ano","prosklení / plechová vrata","minimální",5005902]
[null,null,null,"bez č.p.","Ústí nad Orlicí",56218,"1563",5400,63,180,"Pardubický kraj",1,"sklad","zděná","plochá","plechová","sklad plynů","ne",3,"kyslík(1.230l),acetylen(80l),oxid dusny(600l),oxid uhličitý(20l),corgon technický(18l)","RHP, vnitřní + venkovní hydrant","oplocení areálu, ostraha","ano","skleněná s dřevěným rámem / dřevěné s prosklením","vzrostlé stromy",1365246]
[null,null,null,"bez č.p.","Ústí nad Orlicí",56218,"1564",5400,191,580,"Pardubický kraj",1,"budova","zděná","plochá","plechová","údržba","ne",3,"omezené množství","RHP, vnitřní + venkovní hydrant","oplocení areálu, ostraha","ano","skleněná s dřevěným rámem / dřevěné","minimální",4399126]
[null,null,null,"bez č.p.","Ústí nad Orlicí",56218,"1565",5400,429,2800,"Pardubický kraj",2,"budova","zděná","plochá","plechová","prodejna, občerstvení, zdrav. sklad","ne",3,"ne","RHP, vnitřní a venkovní hydranty","oplocení areálu, ostraha","ano","skleněná s dřevěným rámem / kovové s prosklením","minimální",21237160]
[null,null,null,"bez č.p.","Ústí nad Orlicí",56218,"1657",5400,8,20,"Pardubický kraj",1,"stanice","zděná","plochá","plechová","chlorovací stanice","ne",3,"zásobník chlóru","RHP, vnitřní + venkovní hydrant","oplocení areálu, ostraha","ano","ne / plechové","vzrostlé stromy",151694]
[null,null,null,"bez č.p.","Ústí nad Orlicí",56218,"1658",5400,28,75,"Pardubický kraj",1,"garáž","zděná","pultová","plechová","garáž","ne",3,"ne","RHP, venkovní hydranty","oplocení areálu, ostraha","ano","prosklení / plechová vrata","vzrostlé stromy",568853]
[null,null,null,"bez č.p.","Ústí nad Orlicí",56218,"1701/2",5400,1017,9500,"Pardubický kraj",2,"budova","zděná","plochá","asfaltová lepenka","neurologie","plynová kotelna, strojovna výtahu",2,"minimální množství","RHP, venkovní hydrant","oplocení areálu, ostraha","ano","skleněná s dřevěným rámem / dřevěné s prosklením","vzrostlé stromy",72054650]
[null,null,null,"bez č.p.","Ústí nad Orlicí",56218,"2175",5400,378,1155,"Pardubický kraj",1,"garáže","zděná","plochá","asfaltová lepenka","garáže záchranné služby","ne",2,"PHM, oleje","RHP, venkovní hydrant","oplocení areálu, ostraha","ano","prosklení / plechová vrata","minimální",8760329]
[null,null,null,"bez č.p.","Ústí nad Orlicí",56218,"2708",5400,195,580,"Pardubický kraj",1,"budova","zděná","plochá","asfaltová lepenka","dopravní záchranná služba","ne",3,"ne","RHP, venkovní hydrant","oplocení areálu, ostraha","ano","skleněná s dřevěným rámem / dřevěné s prosklením","vzrostlé stromy",4399126]
[null,null,null,"bez č.p.","Ústí nad Orlicí",56218,"3035, 3598",5400,"199, 36",736,"Pardubický kraj",1,"trafostanice","zděná","plochá","asfaltová lepenka","trafostanice","trafostanice",3,"transformátorový olej ( 1.194 l)","RHP, venkovní hydranty","oplocení areálu, ostraha","ano","plechová vrata","vzrostlé stromy",5582339]
[null,null,null,"bez č.p.","Ústí nad Orlicí",56218,"3036",5400,28,80,"Pardubický kraj",null,"nádrž","kovová",null,null,"zkapalněný plyn","ne",1,"plyn","hydranty","oplocení areálu, ostraha","ano",null,"vzrostlé stromy",606776]
[null,null,null,"bez č.p.","Ústí nad Orlicí",56218,"3037",5400,425,14050,"Pardubický kraj",4,"budova","zděná","plochá","asfaltová lepenka","ORL, hematologie, anesteziologie","klimatizace",2,"kyslík, zemní plyn","EPS, RHP + venkovní a vnitřní hydranty","oplocení areálu, ostraha","ano","skleněná s dřevěným rámem / kovové s prosklením","vzrostlé stromy",106565035]
[null,null,null,"bez č.p.","Ústí nad Orlicí",56218,"3716",null,672,5602,"Pardubický kraj","2, 4","budova","zděná","plochá, pultová","střešní fólie, plech","interna","ne",1,"minimální množství","EPS, RHP, venkovní hydrant","oplocení areálu, ostraha","ano","skleněná s plastovým rámem / kovové s prosklením","minimální",42489489]
[7,"Zdravotnická záchranná služba Pardubického kraje",69172196,"Průmyslová 450","Pardubice ","532 03","1234",5400,144,4950,"Pardubický kraj",3,"budova","zděná","plochá","střešní fólie","zdravotnická záchranná služba","ne",1,"ne","RHP, hydranty","24hodinová služba zaměstnanců","ano","skleněná s plastovým rámem / plastové s prosklením","vzrostlý strom, vandalismus",34045394]
[null,null,null,"bez č.p.","Pardubice","530 03","1360",5400,173,19000,"Pardubický kraj",3,"budova","zděná","plochá","střešní fólie","zdravotnická záchranná služba, garáže","ne",1,"oleje a PHM","standartní ( RHP )","24hodinová služba zaměstnanců","ano","skleněná s plastovým rámem / plechová vrata s prosklením","vandalismus, vzrostlý strom",130679291]
[null,null,null,"Palackého 1173","Holice","534 01","136/4",null,277,null,"v majetku města",1,"budova","zděná","sedlová","plechová","zdravotnická záchranná služba","ne",3,"ne","standartní ( RHP )","24hodinová služba zaměstnanců","ano","skleněná s dřevěným rámem / dřevěné s prosklením","vandalismus"]
[null,null,null,"Studentská 1591","Přelouč","535 01","2751",null,200,1542,"Pardubický kraj",2,"budova","zděná","pultová","plechová","zdravotnická záchranná služba","ne",1,"ne","standartní ( RHP )","24hodinová služba zaměstnanců","ano","skleněná s plastovým rámem / plastové s prosklením","vandalismus",10605656]
[null,null,null,"Václavská 1080","Chrudim","537 27",5945,5400,372,1480,"Pardubický kraj",1,"budova","zděná","pultová","střešní fólie","zdravotnická záchranná služba","ne",2,"ne","standartní ( RHP )","24hodinová služba zaměstnanců","ano","skleněná s plastovým rámem / plastové s prosklením","vandalismus",10179229]
[null,null,null,"bez č.p.","Chrudim","537 27","5946/2",5400,70,280,"Pardubický kraj",1,"budova","zděná","pultová","střešní fólie","ZZS, lékárna","ne",2,"minimální množství hořlavin, léky","standartní ( RHP )","24hodinová služba zaměstnanců","ano","skleněná s plastovým rámem / plastové s prosklením","minimální ",1925800]
[null,null,null,"bez čp.","Chrudim","537 27",7104,5400,138,710,"Pardubický kraj",2,"budova","zděná","pultová","střešní fólie","zdravotnická záchranná služba","ne",1,"ne","standartní ( RHP )","24hodinová služba zaměstnanců","ano","skleněná s plastovým rámem / kovové s prosklením","vandalismus, vzrostlé stromy",4883279]
[null,null,null,"Hylváty 474","Ústí nad Orlicí","562 03","949",5400,230,1800,"Pardubický kraj",3,"budova","zděná","valbová","šindel","zdravotnická záchranná služba","ne",1,"ne","standartní ( RHP )","24hodinová služba zaměstnanců","ano","skleněná s plastovým rámem / kovová vrata","vandalismus",12380143]
[null,null,null,"Vraclavská 120","Vysoké Mýto",56601,"1981/1",5400,211,840,"Pardubický kraj",1,"budova","zděná","plochá","střešní fólie","zdravotnická záchranná služba, lékárna","ne",1,"minimální množství hořlavin, léky","standartní ( RHP )","24hodinová služba zaměstnanců","ano","skleněná s dřevěným rámem / plastové s prosklením","vandalismus, vzrostlé stromy",5777400]
[null,null,null,"Červená Voda 333","Ústí nad Orlicí",56203,"485/1",5400,390,null,"v majetku právnické osoby","1, 2","budova","zděná","valbová, plochá","plech","technické zázemí, ZZS, léčebný ústav","ne",2,"ne","standartní ( RHP )","24hodinová služba zaměstnanců","ano","skleněná s dřevěným rámem / kovové s prosklením","vandalismus, vzrostlé stromy"]
[null,null,null,"Dobrovského 34","Lanškroun","563 01","704/2, 3767",null,"389, 389",3366,"Pardubický kraj",2,"budova","zděná","valbová","šindel","zdravotnická záchranná služba","ne",1,"ne","standartní ( RHP )","24hodinová služba zaměstnanců","ano","skleněná s plastovým rámem / plastové s prosklením, zásuvná vrata","vandalismus",23150868]
[null,null,null,"U Polikliniky 1514","Žamberk",56401,"3946/4",5400,221,1389,"Pardubický kraj",2,"budova","zděná","valbová","asfaltový šindel","zdravotnická záchranná služba","ne",1,"ne","standartní ( RHP )","24hodinová služba zaměstnanců","ano","skleněná s plastovým rámem / plastové s prosklením","vandalismus, vzrostlé stromy",9553344]
[null,null,null,"Kollárova 2201/9","Svitavy",56802,"3706",null,400,579,"Pardubický kraj",2,"budova","zděná","plochá","střešní fólie","zdravotnická záchranná služba - garáže","ne",1,"ne","standartní ( RHP )","24hodinová služba zaměstnanců","ano","skleněná s plastovým rámem / plastové s prosklením","vandalismus",3982279]
[null,null,null,"Svitavská 36","Moravská Třebová",57101,"1417/2",null,150,380,"Pardubický kraj",1,"budova","zděná","valbová","střešní tašky","budova v hospodaření nemocnice M. Třebová","ne",3,"ne","standartní ( RHP )","osvětlení objektu, zámek FAB","ano","prosklení / kovová vrata","vandalismus, vzrostlé stromy",2613586]
[null,null,null,"Teplého 1526","Pardubice",53002,"4066/1",null,2380,null,"v majetku HZS",3,"budova","zděná, železobeton","sedlová","plech","zdravotnická záchranná služba","klimatizace",1,"ne","standartní  RHP, hydranty","služba HZS nonstop, oplocena zadní část objektu","ano","skleněná s plastovým rámem / plastové s prosklením","vandalismus"]
[null,null,null,"Poličská 399","Hlinsko","539 01","784/3",null,440,2308,"Pardubický kraj",2,"budova","zděná","sedlová","plech","zdravotnická záchranná služba","ne",3,"ne","standartní ( RHP )","oplocení objektu, zámek FAB","ne","skleněná s dřevěným / kovové s prosklením","vandalismus",15874095]
[null,null,null,"Zvěřinova 1002","Skuteč","538 73","2286",null,221,1215,"Pardubický kraj",1,"budova","zděná","plochá","střešní fólie","zdravotnická záchranná služba","ne",1,"ne","standartní ( RHP )","EZS","ano","skleněná s plastovým rámem / plastové s prosklením","vandalismus",8356597]
[null,null,null,"Nádražní 548","Hlinsko",53901,"600/1",null,851,null,"v majetku města",3,"budova","zděná","sedlová","plech","zdravotnická záchranná služba","ne",3,"minimální množství (léčiva)","standartní ( RHP )","24hodinová služba zaměstnanců","ano","skleněná s plastovým rámem / dřevěné s prosklením","vandalismus"]
[null,null,null,"Eimova 294","Polička",57219,"1034",null,334,null,"v majetku svazku obcí",2,"budova","zděná","valbová","plech","zdravotnická záchranná služba","klimatizace",3,"minimální množství (léčiva)","standartní ( RHP )","24hodinová služba zaměstnanců","ano","skleněná s plastovým rámem / plastové s prosklením","vzrostlé stromy, vandalismus"]
[null,null,null,"Partyzánská 1074","Litomyšl",57001,"3257/1",null,69,null,"v majetku HZS",1,"budova","zděná","sedlová","střešní tašky","zdravotnická záchranná služba","ne",1,"oleje a PHM","standartní ( RHP )","24hodinová služba zaměstnanců","ano","skleněná s dřevěným rámem / kovová vrata","vandalismus"]
[8,"Dětské centrum Veská","00190543","Veská 21","Sezemice ","533 04","35",5400,393,1800,"Pardubický kraj",1,"budova","zděná","sedlová","střešní tašky","ordinace, rehabilitace, domov pro matky a školka","ne",1,"ne","standartní (RHP)","minimální (oplocení areálu), domovní audiotelefon","ano","skleněná s plastovým rámem / dřevěné","vandalismus",10886400]
[null,null,null,"bez č.p.","Sezemice ",53304,"38",5400,819,5150,"Pardubický kraj","2, 1","budova","zděná","valbová, plochá","střešní tašky","dětské centrum, prádelna, dílny","gastro-technologie, prádelna",3,"ne","standartní (RHP)","minimální (oplocení areálu), domovní audiotelefon","ano","skleněná s dřevěným rámem / dřevěné s prosklením, plechová vrata","vzrostlé stromy",31147200]
[null,null,null,"bez č.p.","Sezemice ",53304,"67",5400,30,90,"Pardubický kraj",1,"budova","zděná","pultová","plech","sklad","ne",2,"ne","standartní (RHP)","minimální (oplocení areálu), domovní audiotelefon","ano","prosklení / dřevěné","vzrostlé stromy",544320]
[9,"Dětský domov pro děti od 1 do 3 let Holice","00191124","Staroholická 354","Holice",53401,"6400",5400,922,6900,"Pardubický kraj",2,"budova","zděná","sedlová","pálená taška","dětský domov","gastro-technologie",3,"ne","standartní (RHP)","minimální (oplocení areálu)","ano","skleněná s plastovým rámem / plastová s prosklením","vzrostlé stromy",41731200]
[null,null,null,"bez č.p.","Holice",53401,"2527/3",5400,82,205,"Pardubický kraj",1,"budova","zděná","pultová","plech / lepenka","sklad","ne",2,"ne","standartní (RHP)","minimální (oplocení areálu)","ano","skleněná s dřevěným rámem / plechová vrata a dveře","vzrostlé stromy",1239840]
[10,"Léčebna dlouhodobě nemocných Rybitví","00190560","Činžovních domů 140","Rybitví",53354,"383/1",5400,1226,14900,"Pardubický kraj",3,"budova","zděná","sedlová, plochá","střešní tašky","LDN, administrativní budova, jídelna, garáže","gastro-technologie",1,"ne","standartní (RHP)","minimální (oplocení areálu)","ano","skleněná s dřevěným rámem / kovové s prosklením","vzrostlé stromy",90115200]
[null,null,null,"Činžovních domů 139","Rybitví",53354,"383/2",5400,589,6350,"Pardubický kraj",3,"budova","zděná","sedlová","střešní tašky","LDN - ubytování","ne",3,"ne","standartní (RHP)","minimální (oplocení areálu)","ano","skleněná s dřevěným rámem / dřevěné s prosklením","minimální",38404800]
[11,"Odborný léčebný ústav Jevíčko","00193976","č.p. 508","Jevíčko","569 43","366",5400,640,8500,"Pardubický kraj",4,"budova","zděná","valbová","bobrovka","administrativní budova, sklady, kuchyň","vzduchotechnika",2,"ne","standartní (RHP)","EZS - místnost pokladna, oplocení areálu","ano","skleněná s dřevěným rámem / dřevěné se skleněnou výplní","vzrostlé stromy",51408000]
[null,null,null,"č.p. 502","Jevíčko",56943,"365",5400,585,5100,"Pardubický kraj",2,"budova","zděná","valbová","bobrovka","garáže sanitek, sklady, služební byty","ne",2,"ne","standartní (RHP)","minimální (oplocení areálu)","ano","skleněná s dřevěným rámem / dřevěné se skleněnou výplní","vzrostlé stromy",30844800]
[null,null,null,"č.p. 503","Jevíčko",56943,"388",5400,258,2100,"Pardubický kraj",2,"budova","zděná","polovalbová","bobrovka","léčba plicních chorob a TBC","ano",2,"ne","standartní (RHP)","minimální (oplocení areálu)","ano","sleněná s dřevěným rámem / dřevěné s prosklením","vzrostlé stromy",12700800]
[null,null,null,"č.p. 504","Jevíčko",56943,"741",5400,110,680,"Pardubický kraj",1,"budova","zděná","valbová","bobrovka","ubytovací zařízení","ne",2,"ne","standartní (RHP)","minimální (oplocení areálu)","ano","skleněná s dřevěným rámem / dřevěné","vzrostlé stromy",4112640]
[null,null,null,"č.p. 505","Jevíčko",56943,"547",5400,304,4000,"Pardubický kraj",3,"budova","zděná","valbová","pálená taška","ubytovací zařízení","ne",3,"ne","standartní, RHP ","minimální, FAB, oplocení areálu","ano","skleněná s plastovým rámem / dřevěné s prosklením","minimální",24192000]
[null,null,null,"č.p. 506","Jevíčko",56943,"546",5400,336,2900,"Pardubický kraj",2,"budova","zděná","valbová","bobrovka","služební byty, sklady","ne",3,"ne","standartní (RHP)","minimální (oplocení areálu)","ano","skleněná s dřevěným rámem / dřevěné s prosklením","vzrostlé stromy",17539200]
[null,null,null,"č.p. 507","Jevíčko",56943,"544",5400,1286,4500,"Pardubický kraj",1,"budova","zděná","valbová","plechová","ubytovna, služební byty","ne",3,"ne","standartní (RHP)","minimální (oplocení areálu)","ano","skleněná s dřevěným rámem / dřevěné","vzrostlé stromy",27216000]
[null,null,null,"č.p. 509","Jevíčko",56943,"364",5400,1049,19200,"Pardubický kraj",3,"budova","zděná","valbová","bobrovka","léčebný pavilon","ano",3,"ne","standartní (RHP)","minimální (oplocení areálu)","ne","skleněná s dřevěným rámem / dřevěné se skleněnou výplní","vzrostlé stromy",116121600]
[null,null,null,"č.p. 510","Jevíčko",56943,"362",5400,380,5200,"Pardubický kraj",3,"budova","zděná","valbová","plechová","bytový dům - služební byty","ne",2,"ne","standartní (RHP)","minimální (oplocení areálu)","ano","skleněná s dřevěným rámem / dřevěné se skleněnou výplní","vzrostlé stromy",31449600]
[null,null,null,"bez č.p.","Jevíčko",56943,"372",5400,304,2400,"Pardubický kraj",1,"budova","zděná","sedlová","střešní tašky","budova údržby, dílny, stolárna","ne",3,"nafta (20 l), svařovací souprava","standartní (RHP)","okenní mříže, oplocení areálu","ano","skleněná s dřevěným rámem / dřevěné, plechová vrata","vzrostlé stromy",14515200]
[null,null,null,"bez č.p.","Jevíčko",56943,"373",5400,162,1000,"Pardubický kraj",1,"budova","zděná","polovalbová","střešní tašky","stodola - sklad (údržba)","ne",3,"ne","standartní (RHP)","minimální (oplocení areálu)","ano","prosklení / dřevěná vrata","vzrostlé stromy",6048000]
[null,null,null,"bez č.p.","Jevíčko",56943,"374",5400,227,1400,"Pardubický kraj",1,"budova","zděná","sedlová, pultová","eternit, střešní tašky","sklad, údržba","ne",3,"ne","standartní (RHP)","uzamčena pletivová vrata, oplocení areálu","ano","skleněná s dřevěným rámem / dřevěná vrata","vzrostlé stromy",8467200]
[null,null,null,"bez č.p.","Jevíčko",56943,"390",5400,1403,26000,"Pardubický kraj",4,"budova","zděná","valbová","bobrovka","léčebný pavilon, MKB laboratoř","ne",2,"ne","standartní (RHP)","minimální (oplocení areálu)","ano","skleněná s dřevěným rámem / dřevěné","vzrostlé stromy",157248000]
[null,null,null,"bez č.p.","Jevíčko",56943,"391",5400,72,280,"Pardubický kraj",1,"budova","zděná","valbová","střešní tašky","vrátnice","ne",3,"ne","standartní (RHP)","minimální (oplocení areálu)","ano","skleněná s dřevěným rámem / dřevěné s prosklením","vzrostlé stromy",1693440]
[null,null,null,"bez č.p.","Jevíčko",56943,"545",5400,1439,29000,"Pardubický kraj",4,"budova","zděná","valbová","bobrovka","léčebný pavilon, OKB laboratoř, RTG","ne",2,"rozvod medicinských plynů","standartní (RHP)","minimální (oplocení areálu)","ano","skleněná s dřevěným rámem / dřevěné s prosklením","vzrostlé stromy",175392000]
[null,null,null,"bez č.p.","Jevíčko",56943,"742",5400,240,1200,"Pardubický kraj",1,"budova","zděná","plochá","střešní fólie","spojovací chodba","ne",3,"ne","standartní (RHP)","minimální (oplocení areálu)","ano","skleněná s dřevěným rámem / dřevěné s prosklením","minimální",7257600]
[null,null,null,"bez č.p.","Jevíčko",56943,"743",5400,149,1100,"Pardubický kraj",1,"budova","zděná","pultová","střešní fólie","archiv, sklady","ne",3,"ne","standartní (RHP)","minimální (oplocení areálu)","ano","ne / dřevěné","vzrostlé stromy",6652800]
[null,null,null,"bez č.p.","Jevíčko",56943,"744,363,746,747,749,759,112,195/1",5400,575,3250,"Pardubický kraj","1, 2","budova","zděná","valbová, pultová","střešní tašky, střešní fólie","technické zázemí OLÚ","ne",3,"ne","standartní (RHP)","minimální (oplocení areálu)","ano","skleněná s dřevěným rámem / dřevěné, dřevěná a plechová vrata","vzrostlé stromy",19656000]
[null,null,null,"bez č.p.","Jevíčko",56943,"764",5400,392,3900,"Pardubický kraj",1,"budova","zděná","pultová","střešní fólie","bývalá centrální kotelna, rozvodna elektrické energie, hlavní plynoměrna","trafo",3,"oleje v transformátorech, zemní plyn","standartní (RHP)","minimální (oplocení objektu)","ano","skleněná s kovovým rámem / plechové","vandalismus",23587200]
[12,"Kojenecký ústav a dětský domov Svitavy",60125501,"U kojeneckého ústavu 2","Svitavy",56802,"495,1610",5400,"460, 146",4600,"Pardubický kraj",1,"budova","zděná","valbová","šindel","dětský domov (par. č. 1610 - resocializační centrum)","gastro-technologie",1,"ne","standartní (RHP)","minimální (mříže na dveřích)","ano","skleněná s plastovým rámem / plastové s prosklením","vandalismus, vzrostlé stromy",28487200]
[null,null,null,"U kojeneckého ústavu 2","Svitavy",56802,"1610",null,98,546,"Pardubický kraj",1,"budova","zděná","valbová","šindel","resocializační centrum","ne",1,"ne","standartní (RHP)","kamerový systém, oplocení objektu","ano","skleněná s plastovým rámem / plastové s prosklením","vzrostlé stromy",3381307]
[13,"Albertinum, odborný léčebný ústav, Žamberk","00196096","Za kopečkem 353","Žamberk",56401,"1324",5400,237,2400,"Pardubický kraj",2,"budova","zděná","polovalbová","šindel","administrativní budova ","ne",2,"ne","standartní (RHP)","minimální (oplocení areálu)","ano","skleněná s dřevěným rámem / dřevěné s prosklením","vzrostlé stromy",14515200]
[null,null,null,"Za kopečkem 223","Žamberk","564 01","1337/2",5400,370,2900,"Pardubický kraj",2,"budova","zděná","sedlová","střešní taška","ubytovna","ne",3,"ne","standartní (RHP)","minimální (oplocení areálu)","ano","skleněná s dřevěným rámem / kovové s prosklením","vzrostlé stromy",17539200]
[null,null,null,"Za kopečkem 528","Žamberk","564 01",1326,5400,602,4900,"Pardubický kraj",2,"budova","zděná","valbová","šindel","truhlárna","ne",3,"těkavé látky (omezené množství)","standartní (RHP)","minimální (oplocení areálu)","ano","skleněná s dřevěným rámem / dřevěné s prosklením","vzrostlé stromy",29635200]
[null,null,null,"Za kopečkem 570","Žamberk","564 01",1345,5400,219,1800,"Pardubický kraj",1,"budova","zděná","sedlová","kanadský šindel","truhlárna","ne",3,"ne","standartní (RHP)","minimální (oplocení areálu)","ano","skleněná s dřevěným rámem / dřevěné s prosklením","vzrostlé stromy",10886400]
[null,null,null,"Za kopečkem 670","Žamberk","564 01",1327,5400,450,6500,"Pardubický kraj",3,"budova","zděná","polovalbová","lepenka","stravovací provoz","gastro-technologie",3,"ne","standartní (RHP)","minimální (oplocení areálu)","ano","skleněná s dřevěným rámem / kovové s prosklením","vzrostlé stromy",39312000]
[null,null,null,"Za kopečkem 674","Žamberk","564 01",1341,5400,244,2500,"Pardubický kraj",1,"budova","zděná","polovalbová","eternit","plicní oddělení","ne",3,"ne","standartní (RHP)","minimální (oplocení areálu)","ano","skleněná s dřevěným rámem / dřevěné s prosklením","minimální",15120000]
[null,null,null,"Za kopečkem 675","Žamberk","564 01",1339,5400,420,2700,"Pardubický kraj",1,"budova","zděná","sedlová, pultová","střešní tašky, plech","prádelna ","strojní vybavení prádelny",3,"ne","standartní (RHP)","minimální (oplocení areálu)","ano","skleněná s dřevěným rámem / dřevěné s prosklením","vzrostlé stromy",16329600]
[null,null,null,"Za kopečkem 677","Žamberk","564 01",1338,5400,453,3200,"Pardubický kraj",1,"budova","zděná","sedlová, pultová","plech, fólie","kotelna, prodejna potravin","strojní vybavení kotelny",2,"zemní plyn","standartní (RHP)","minimální (oplocení areálu)","ano","skleněná s dřevěným rámem / dřevěné, vrata plechová","vzrostlé stromy",19353600]
[null,null,null,"Za kopečkem 726","Žamberk","564 01",1344,5400,956,15360,"Pardubický kraj",3,"budova","zděná","sedlová, pultová","plech, střešní fólie","léčebna dlouhodobě nemocných","gastro-technologie",1,"ne","standartní (RHP)","minimální (oplocení areálu)","ano","skleněná s plastovým rámem / plastové s prosklením","minimální",92897280]
[null,null,null,"Za kopečkem 782","Žamberk","564 01",1325,5400,1123,15150,"Pardubický kraj","3, 2","budova","zděná","valbová, pultová","střešní tašky, plech","plicní oddělení","ne",3,"ne","standartní (RHP)","minimální (oplocení areálu)","ano","skleněná s dřevěným rámem / dřevěné s prosklením","vzrostlé stromy",91627200]
[null,null,null,"Za kopečkem 627","Žamberk","564 01",1330,5400,300,3520,"Pardubický kraj",2,"budova","zděná","valbová","pálená taška","bytový dům  ","ne",3,"ne","standartní (RHP)","minimální (oplocení areálu)","ano","skleněná s dřevěným rámem / dřevěné s prosklením","vzrostlé stromy",21288960]
[null,null,null,"bez č.p.","Žamberk","564 01","1331/2, 1332",5400,"79, 82",960,"Pardubický kraj",1,"budova, skleníky","zděná, kov ","pultová","šindel","kotelna, skleníky","ne",3,"ne","standartní (RHP)","zámek visací, oplocení areálu","ne","skleněná s dřevěným a kovovým rámem / dřevěné s prosklením","vzrostlé stromy",5806080]
[null,null,null,"bez č.p.","Žamberk","564 01","1337/3",5400,290,2400,"Pardubický kraj",2,"budova","zděná","polovalbová","střešní tašky","sklad, truhlárna","ne",3,"těkavé látky  ","standartní (RHP)","minimální (oplocení areálu)","ano","skleněná s dřevěným rámem / dřevěné, plechová vrata","vzrostlé stromy",14515200]
[null,null,null,"bez č.p.","Žamberk","564 01","3182/3",5400,426,1600,"Pardubický kraj",1,"hala","ocelová","sedlová","plech","hala  ","ne",3,"ne","standartní (RHP)","zámek visací, oplocení areálu","ano","ne / plechová vrata","vzrostlé stromy",9676800]
[null,null,null,"bez č.p.","Žamberk","564 01","3182/6",5400,58,170,"Pardubický kraj",1,"přístavek","dřevěná","pultová, sedlová","historické tašky","dřevník","ne",4,"ne","standartní (RHP)","zámek visací, oplocení areálu","ano","ne / vrata dřevěná","vzrostlé stromy",1028160]
[null,null,null,"bez č.p.","Žamberk","564 01","3182/7",5400,79,240,"Pardubický kraj",1,"přístřešek","dřevěná","pultová","historické tašky","dřevník","ne",4,"ne","standartní (RHP)","zámek visací, oplocení areálu","ano","ne / dřevěné","vzrostlé stromy",1451520]
[null,null,null,"bez č.p.","Žamberk","564 01",3917,5400,63,280,"Pardubický kraj",1,"budova","zděná","pultová","plech","vrátnice","ne",3,"ne","standartní (RHP)","minimální","ano","skleněná s dřevěným rámem / dřevěné s prosklením","vandalismus, vzrostlé stromy",1693440]
[null,null,null,"bez č.p.","Žamberk","564 01","4442 - 63",5400,450,1416,"Pardubický kraj",1,"garáž","zděná","plochá","střešní fólie","garáže","ne",3,"ne","standartní (RHP)","FAB, oplocení areálu","ano","prosklení / plechová vrata","minimální",7874496]
[null,null,null,"bez č.p.","Žamberk","564 01",4491,5400,67,200,"Pardubický kraj",1,"budova","zděná","pultová","plech","márnice","ne",3,"ne","standartní (RHP)","minimální (oplocení areálu)","ano","skleněná s dřevěným rámem / dřevěné","vzrostlé stromy",1209600]
[null,null,null,"bez č.p.","Žamberk","564 01",4500,5400,29,120,"Pardubický kraj",1,"přístřešek","zděná","pultová","střešní fólie","kyslíková stanice","ne",3,"zkapalněný kyslík, TL","standartní (RHP)","minimální (oplocení areálu)","ano","prosklení / kovové dveře","vzrostlé stromy",725760]
[null,null,null,"bez č.p.","Žamberk","564 01",5054,5400,95,280,"Pardubický kraj",1,"budova","zděná","pultová","šindel","vodárna","strojní vybavení vodárny",2,"ne","standartní (RHP)","minimální (oplocení areálu)","ano","skleněná s kovovým rámem / plechové","vzrostlé stromy",1693440]
[null,null,null,"bez č.p.","Žamberk","564 01",5055,5400,469,4300,"Pardubický kraj",2,"budova","zděná","pultová, oblouková","fólie, plech","údržba","strojírenská technologie",2,"ne","standartní (RHP)","minimální (oplocení areálu)","ano","skleněná s dřevěným rámem / dřevěné s prosklením","minimální",26006400]
[null,null,null,"bez čp.","Žamberk","564 01","1320/21",null,32,136,"Pardubický kraj",1,"garáž","zděná","sedlová","plech","garáž","ne",3,"ne","standartní (RHP)","minimální (oplocený areál)","ano","prosklení / plechová vrata","vzrostlé stromy",822528]
[null,null,null,"bez čp.","Žamberk","564 01","1320/20",null,112,670,"Pardubický kraj",1,"budova","zděná","sedlová","vlnitý plech","čistička odpadních vod","strojní vybavení čističky",3,"zásobník chlóru","standartní (RHP)","minimální (oplocení objektu)","ano","ne / plechové","vzrostlé stromy",4052160]
[14,"Rehabilitační ústav Brandýs nad Orlicí","00853879","Lázeňská 58","Brandýs nad Orlicí",56112,"64",5400,3192,36500,"Pardubický kraj",3,"budova","zděná","sedlová","střešní tašky","léčebný ústav","ne",2,"ne","standartní (RHP)","minimální (oplocení areálu)","ano","skleněná s dřevěným rámem / dřevěné s prosklením","vzrostlé stromy",220752000]
[null,null,null,"bez č.p.","Brandýs nad Orlicí",56112,"452",5400,90,270,"Pardubický kraj",1,"přístřešek","zděná","valbová","plech","vodárna","strojní vybavení vodárny",1,"ne","standartní (RHP)","minimální (oplocení areálu)","ano","ne / plechové","vzrostlé stromy",1632960]
[null,null,null,"Žerotínova 98","Brandýs nad Orlicí",56112,"100",5400,529,4000,"Pardubický kraj",2,"budova","zděná","valbová","plech","restaurace","gastro-technologie",2,"ne","standartní (RHP)","minimální","ano","skleněná s dřevěným rámem / dřevěné s prosklením","vandalismus",21192000]
[null,null,null,"bez č.p.","Brandýs nad Orlicí",56112,"100/2",null,100,192,"Pardubický kraj",1,"budova","zděná","pultová","střešní fólie","garáž","ne",2,"ne","standartní (RHP)","kamerový systém, oplocení a osvětlení objektu","ano","prosklení / plechová vrata","minimální",1161216]
[null,null,null,"bez č.p.","Brandýs nad Orlicí",56112,"752",5400,238,315,"Pardubický kraj",1,"budova","zděná","valbová","plech","čistička odpadních vod","strojní vybavení",3,"ne","ne","minimální (oplocení objektu)","ano","prosklení / plechové","vzrostlé stromy",1905120]
[15,"Vysokomýtská nemocnice",71207856,"Hradecká 167","Vysoké Mýto","566 23","1985/3",5400,2165,25210,"v majetku města",4,"budova","zděná","valbová, plochá","střešní tašky, plech","vrátnice, ředitelství","ano",3,"ne","EZP, hydranty","EZS, osvětlení areálu","ano","skleněná s dřevěným rámem / plastové s prosklením","vzrostlé stromy, vandalismus",152470080]
[null,null,null,"bez č.p.","Vysoké Mýto","566 23",1986,5400,272,2300,"v majetku města",1,"budova","zděná","sedlová","plech","jídelna, údržba","ne",3,"ne","standartní (RHP), hydranty","minimální, osvětlení areálu","ano","skleněná s dřevěným rámem / dřevěné s prosklením","vandalismus, vzrostlé stromy",13910400]
[null,null,null,"bez č.p.","Vysoké Mýto","566 23","1981/3",5400,825,5700,"v majetku města",2,"budova","zděná","plochá","plech","strojovna","strojírenská technologie",3,"ne","standartní (RHP), hydranty","minimální, osvětlení areálu","ano","skleněná s dřevěným rámem / kovové s prosklením","vandalismus",34473600]
[null,null,null,"bez č.p.","Vysoké Mýto","566 23","1988/3",5400,42,160,"v majetku města",1,"budova","zděná","plochá","plech","strojovna","strojírenská technologie",3,"ne","RHP, hydranty","minimální, osvětlení areálu","ano","skleněná s dřevěným rámem / plechová vrata","vzrostlé stromy, vandalismus",967680]
[null,null,null,"bez č.p.","Vysoké Mýto","566 23","1988/2",5400,74,230,"v majetku města",1,"budova","zděná","pultová","plech","strojovna","strojírenská technologie",3,"ne","RHP, hydranty","minimální, osvětlení areálu","ano","prosklení / plechová vrata","vandalismus",1391040]
[null,null,null,"bez č.p.","Vysoké Mýto","566 23","1985/2",5400,125,590,"Pardubický kraj",1,"budova","zděná","sedlová","eternit","sklady  ","ne",4,"omezené množství HK","standartní (RHP), hydranty","minimální, osvětlení areálu","ano","skleněná s dřevěným rámem / dřevěné","vandalismus",3568320]
[null,null,null,"bez č.p.","Vysoké Mýto","566 23","1981/4",5400,54,160,"Pardubický kraj",1,"budova","zděná","plochá","plech","sklad","ne",4,"ne","standartní (RHP), hydranty","okenní mříže, osvětlení areálu","ano","skleněná s dřevěným rámem / plechové  ","vandalismus",967680]
[null,null,null,"Žižkova 271","Vysoké Mýto","566 01","1700, 1699/3",5400,"1160, 452",18380,"v majetku města",3,"budova","zděná","sedlová","střešní tašky","nemocnice, léčebna dlouhodobě nemocných","vzduchotechnika, klimatizace",2,"omezené množství","EPS, hydranty","EZS, osvětlení areálu","ano","skleněná s plastovým rámem / plastové s prosklením","vandalismus",111162240]

{"sheet":"SOCIÁLNÍ SLUŽBY","index":3,"n_rows":72,"n_cols":26,"rows_kept":72,"cut":false,"hidden":false,"merged":[[2,17,3,17],[2,23,3,23],[0,0,0,1],[2,0,3,0],[2,1,3,1],[2,2,3,2],[2,3,2,5],[2,8,3,8]]}
["IV. SOCIÁLNÍ SLUŽBY"]
[]
["č.","Název dle zřizovací listiny","IČ","Adresa místa pojištění",null,null,"Parc.",null,"Zastavěná plocha (m2)","Obestavěný","Vlastník ","Počet","Typ","Nosná ","Typ ","Krytina","Provozní","Technologie","Celkový","Nebezpečné ","Zabezpečení","Zabezpečení","Trvale","Okna / dveře","Vnější ","Pojistná částka - nová"]
[null,null,null,"Ulice/č.p.","Místo","PSČ","číslo",null,null,"prostor (m3)","nemovitosti","podlaží","budovy","konstrukce","střechy","střechy","účel stavby",null,"stav (1-5)","látky","protipožární","proti krádeži","využíváno",null,"nebezpečí"," hodnota nemovitosti"]
[1,"Domov u fontány",71176225,"Libušina 1060","Přelouč",53516,"1073/1",4700,1863,29900,"Pardubický kraj",4,"budova","zděná","plochá","střešní fólie","domov pro seniory","gastro-technologie, prádelna",1,"ne ","RHP, EPS, hydrant vnitřní","systém gen.klíče, oplocení areálu","ano","skleněná s plastovým rámem / plastové s prosklením","minimální",157393600]
[null,null,null,"bez č.p.","Přelouč",53516,1122,4700,176,700,"Pardubický kraj",1,"budova","zděná","plochá","střešní fólie","vrátnice, garáže","ne",1,"pohonné hmoty","standartní (RHP)","oplocení areálu","ano","skleněná s dřevěným rámem / dřevěné s prosklením, plechová vrata","vandalismus",3684800]
[null,null,null,"bez č.p.","Přelouč",53516,1123,4700,17,50,"Pardubický kraj",1,"budova","zděná","plochá","plech","rozvodna","ne",2,"ne","standartní (RHP)","oplocení areálu","ano","prosklení / plechové","vzrostlé stromy",263200]
[null,null,null,"bez č.p.","Přelouč",53516,2595,4700,169,500,"Pardubický kraj",1,"garáž","zděná","plochá","střešní fólie","garáže","ne",1,"pohonné hmoty","standartní (RHP)","oplocení areálu","ano","prosklení / plechová vrata","vandalismus",2632000]
[2,"Domov pod Kuňkou",71176217,"Ráby 162","Staré Hradiště",53352,280,4700,2396,33500,"Pardubický kraj",2,"budova","zděná","sedlová","střešní tašky","domov pro osoby se zdravotním postižením","vzduchotechnika, klimatizace, gastro-technologie",1,"ne","EPS, RHP, vnitřní a 2x vnější hydrant","24hodinová služba zaměstnanců","ano","skleněná s plastovým rámem / plastové s prosklením","vandalismus",177059560]
[null,null,null,"bez č.p.","Staré Hradiště",53352,281,4700,79,237,"Pardubický kraj",1,"přístavek","zděná","sedlová","střešní tašky","sklad, garáž","ne",1,"minimální množství PHM, tlaková plynová láhev","EPS, RHP, vnitřní a 2x vnější hydrant","24hodinová služba zaměstnanců","ano","skleněná s plastovým rámem / dřevěné","minimální",475683]
[null,null,null,"Nám. 17. listopadu 1256","Přelouč",53501,"1758,1759,1760",6000,null,153,"Pardubický kraj",4,"budova","zděná","plochá","střešní fólie","byt","ne",2,"ne","RHP, EPS ","bezpečnostní vložka zámku","ano","skleněná s plastovým rámem / kovové s prosklením","minimální",808660]
[null,null,null,"Studentská 1357","Přřelouč",53501,"1980,1981,1982",null,null,140,"Pardubický kraj",6,"budova","zděná","plochá","střešní fólie","byt","ne",2,"ne","RHP, EPS ","bezpečnostní vložka zámku","ano","skleněná s plastovým rámem / kovové s prosklením","minimální",739951]
[null,null,null,"Jižní 1368","Přelouč",53501,"1994,1995,1996",null,null,207,"Pardubický kraj",6,"budova","zděná","plochá","střešní fólie","byt","ne",2,"ne","RHP, EPS ","bezpečnostní vložka zámku","ano","skleněná s plastovým rámem / kovové s prosklením","minimální",1093906]
[3,"Domov na hradě Rychmburk","15053822","Předhradí 17","Rychmburk",53974,114,4700,1662,29900,"Pardubický kraj",3,"budova","zděná","valbová","eternit","domov pro dlouhodobě duševně nemocné","gastro-technologie",1,"ne","standartní (RHP)","minimální","ano","skleněná s dřevěným rámem / dřevěné s prosklením ","vandalismus",157393600]
[null,null,null,"Předhradí 72","Rychmburk",53974,104,4700,577,3400,"Pardubický kraj",2,"budova","zděná","sedlová","eternit","integrační centrum, kanceláře","ne",1,"ne","standartní (RHP)","v kancelářích EZS, oplocení zadní části objektu","ano","skleněná s dřevěným rámem / dřevěné","vandalismus",17897600]
[null,null,null,"bez č.p.","Rychmburk",53974,103,4700,194,1900,"Pardubický kraj",1,"budova","zděná","valbová","střešní tašky, eternit","sklad","ne",3,"ne","standartní (RHP)","oplocení objektu","ne","skleněná s dřevěným rámem / dřevěné","minimální",10001600]
[4,"Domov sociálních služeb Slatiňany",15053814,"Klášterní 795","Slatiňany",53821,950,4700,5431,27800,"Pardubický kraj",4,"budova","zděná","plochá, pultová","střešní fólie, vlnitý plech","kanceláře, ubytovna, sklad","klimatizace",1,"ne","RHP, vnitřní hydrant","oplocení areálu, 24hodinová služba na recepci","ano","skleněná s plastovým rámem / kovové s prosklením","vandalismus",178281400]
[null,null,null,"bez č.p.","Slatiňany",53821,897,4700,281,450,"Pardubický kraj",1,"budova","zděná","plochá","plechová","sklad","ne",3,"ne","standartní (RHP)","oplocení areálu","ano","skleněná s dřevěným rámem / plechové","vzrostlé stromy",2885850]
[null,null,null,"bez č.p.","Slatiňany",53821,1236,4700,750,5300,"Pardubický kraj",1,"budova","zděná","plochá","střešní fólie","kotelna","strojní vybavení kotelny",3,"ne","standartní (RHP)","minimální (oplocení areálu)","ano","skleněná v kovovém rámu / dřevěné","minimální",33988900]
[null,null,null,"bez č.p.","Slatiňany",53821,1414.1415,null,"202, 56",null,"Pardubický kraj",1,"budova","zděná","pultová","lepenka","bazén, strojovna","strojírenská",2,"ne","RHP, vnitřní hydranty","oplocení objektu, 24hodinová služba na recepci","ano","skleněná s kovovým rámem / plastové s prosklením","vzrostlé stromy"]
[null,null,null,"Nádražní 153","Slatiňany",53821,165,null,1910,null,"v majetku jiného vlastníka",4,"budova","zděná","valbová","plech","domov sociálních služeb","klimatizace",2,"ne","standartní RHP","oplocení objektu, 24hodinová služba na recepci","ano","skleněná s dřevěným rámem / dřevěné","vandalismus"]
[null,null,null,"Klášterní 841","Slatiňany",53821,"1396,1397,1405,1406",null,"177, 176, 176, 177",null,"Pardubický kraj",2,"budova","zděná","valbová","střešní tašky","ubytování","ne",1,"ne","standartní (RHP)","zámek bezp. vložka, oplocený areál","ano","skleněná s plastovým rámem / plastové s prosklením","ne "]
[null,null,null,"Vítězství 115","Slatiňany",53821,132,4700,2426,7200,"Pardubický kraj",2,"budova","zděná","valbová","šindel","chráněné dílny, ubytování","gastro-technologie",1,"ne","RHP, vnitřní hydrant","zámek bezp. vložka, oplocený areál","ano","skleněná s dřevěným rámem / dřevěné s prosklením","vzrostlé stromy"]
[null,null,null,"Na Špici 1087","Chrudim ",53701,7329,null,null,332,"Pardubický kraj",5,"budova","zděná","plochá","střešní fólie","bytová jednotka, garážové stání a kolárna","ne",1,"ne","RHP, vnitřní hydrant, protipožární dveře","bezpečnostní kování vchodových dveří","ano","skleněná s plastovým rámem / plastové s prosklením","vandalismus",3027811]
[null,null,null,"Na Špici 1085","Chrudim",53701,7327,null,null,332,"Pardubický kraj",5,"budova","zděná","plochá","střešní fólie","bytová jednotka, částečně nebytové prostory","ne",1,"ne","RHP, vnitřní hydrant, protipožární dveře","bezpečnostní kování vchodových dveří","ano","skleněná s plastovým rámem / plastové s prosklením","vandalismus",3027811]
[null,null,null,"Nádražní 364","Slatiňany",53821,357,4700,149,null,"v majetku jiného vlastníka",2,"budova","zděná","sedlová","střešní tašky","ubytování","gastro-technologie",2,"ne","standartní (RHP)","zámek bezp. vložka, zadní část objektu oplocena","ano","skleněná s dřevěným rámem / dřevěné s prosklením","vandalismus"]
[5,"Domov pod hradem Žampach","00854271","č.p. 1","Žampach",56401,2,5400,1447,15100,"Pardubický kraj",2,"budova","zděná","sedlová","eternit","zařízení sociálních služeb","ne",1,"ne","EPS","EZS, oplocení areálu","ano","skleněná s dřevěným rámem / dřevěné","vzrostlé stromy",81540000]
[null,null,null,"č.p. 2","Žampach",56401,23,4700,332,1900,"Pardubický kraj",2,"budova","zděná","sedlová","eternit","zařízení sociálních služeb","ne",2,"ne","standartní (RHP)","minimální (oplocení areálu)","ano","skleněná s dřevěným rámem / dřevěné","minimální",8930000]
[null,null,null,"č.p. 4","Žampach",56401,20,4700,2843,10600,"Pardubický kraj",1,"budova","zděná","sedlová","eternit","zemědělské stavení","ne",3,"ne","standartní (RHP)","minimální (oplocení areálu)","ano","skleněná s dřevěným rámem / dřevěné s prosklením, dřevěná vrata","minimální",49820000]
[null,null,null,"č.p. 9","Žampach",56401,190,4700,363,2600,"Pardubický kraj",2,"budova","zděná","plochá","střešní fólie","zařízení sociálních služeb","ne",1,"ne","standartní (RHP)","minimální (oplocení areálu)","ano","skleněná s dřevěným rámem / dřevěné s prosklením","minimální",12220000]
[null,null,null,"bez č.p.","Žampach",56401,1,4700,null,1950,"Pardubický kraj",1,"budova","zděná","sedlová","eternit","zařízení sociálních služeb","ne",1,"ne","standartní (RHP)","EZS ","ano","skleněná s dřevěným rámem / dřevěné s prosklením","vzrostlé stromy, vandalismus",9165000]
[null,null,null,"bez č.p.","Žampach",56401,5,4700,143,900,"Pardubický kraj",1,"budova","zděná","sedlová, pultová","plech, sklo","skleník","ne",2,"ne","standartní (RHP)","minimální (oplocení areálu)","ano","prosklení / dřevěné","minimální",4230000]
[null,null,null,"bez č.p.","Žampach",56401,23,4700,75,300,"Pardubický kraj",1,"altán","zděná","valbová","eternit","altán","ne",1,"ne","ne","kamerový systém v areálu, oplocení objektu","ano","ne","vzrostlé stromy",1444800]
[null,null,null,"bez č.p.","Žampach",56401,"20,23,25",null,null,null,"Pardubický kraj",1,"oplocení","betonová, kov",null,null,"oplocení objektu","ne",1,"ne","ne","kamerový systém v areálu ","ano","ne","vzrostlé stromy, vandalismus"]
[null,null,null,"bez č.p.","Žampach",56401,176,4700,241,1200,"Pardubický kraj",1,"budova","zděná","sedlová","eternit","kotelna","strojní vybavení kotelny",3,"ne","standartní (RHP)","EZS","ano","skleněná s dřevěným rámem / dřevěné","vzrostlé stromy, vandalismus",5640000]
[null,null,null,"č.p. 71","Žampach",56401,222,5400,121,1170,"Pardubický kraj",1,"budova","zděná","polovalbová","šindel","zařízení sociálních služeb","ne",1,"ne","standartní (RHP)","EZS","ano","skleněná s plastovým rámem / plastové s prosklením","vandalismus",6318000]
[null,null,null,"č.p. 72","Žampach",56401,"219, 220, 221",5400,"94, 94, 94","1000 / budova","Pardubický kraj",2,"budova","zděná","polovalbová","šindel","zařízení sociálních služeb","ne",1,"ne","standartní (RHP)","EZS","ano","skleněná s plastovým rámem / plastové s prosklením","vandalismus","5 400 000 / budova"]
[6,"Domov na rozcestí Svitavy",70157286,"T. G. Masaryka 9/33","Svitavy ",56802,3,4700,143,3100,"Pardubický kraj",2,"budova","zděná","sedlová","plech","domov pro mentálně postižené","ne",2,"ne","standartní (RHP)","minimální","ano","skleněná s dřevěným rámem / dřevěné","vandalismus",14929600]
[null,null,null,"T. G. Masaryka 33/7","Svitavy ",56802,2,4700,null,null,"Pardubický kraj",3,"budova","zděná","sedlová","plech","domov pro mentálně postižené","klimatizace","v rekonstrukci","ne","standartní (RHP)","minimální","ano","skleněná s plastovým rámem / dřevěné","vandalismus"]
[null,null,null,"bez č.p.","Svitavy ",56802,4,4700,216,3900,"Pardubický kraj",1,"budova","zděná","sedlová","plech","domov pro mentálně postižené","ne",2,"ne","standartní (RHP)","minimální","ano","skleněná s dřevěným rámem / dřevěné","vandalismus",18782400]
[null,null,null,"T.G. Masaryka 33/11","Svitavy ",56802,"8/2",4700,345,7500,"Pardubický kraj",3,"budova","zděná","valbová","střešní tašky","domov pro mentálně postižené","ne",1,"ne","standartní (RHP)","minimální","ano","skleněná s plastovým rámem / dřevěné","vandalismus",36120000]
[null,null,null,"bez č.p.","Svitavy ",56802,"8/3",4700,71,210,"Pardubický kraj",1,"garáž","zděná","sedlová","plech","sklad","ne",1,"ne","standartní (RHP)","minimální (oplocený areál)","ano","skleněná s dřevěným rámem / kovová vrata","minimální",1011360]
[null,null,null,"bez č.p.","Svitavy ",56802,"3466",4700,187,750,"Pardubický kraj",1,"hala","zděná, kovová","sedlová","vlnitý plech","dílny","ne",3,"ne","standartní (RHP)","minimální (oplocený areál)","ano","skleněná s dřevěným rámem / plechová vrata","vzrostlé stromy",3612000]
[null,null,null,"Nádražní 1067","Svitavy ",56802,"994",4700,236,null,"Pardubický kraj",2,"budova","zděná","valbová","střešní tašky","domov pro mentálně postižené","ne",2,"ne","standartní (RHP)","minimální (částečně okenní mříže)","ano","skleněná s dřevěným rámem / dřevěné s prosklením","vzrostlé stromy, vandalismus"]
[null,null,null,"bez č.p.","Svitavy ",56802,"1589",4700,33,80,"Pardubický kraj",1,"garáž","zděná","plochá","střešní fólie","garáž ","ne",2,"ne","standartní (RHP)","minimální","ano","prosklení / plechová vrata","vzrostlé stromy, vandalismus",385280]
[null,null,null,"Purkyňova 14/252","Svitavy ",56802,"182",4700,249,1300,"Pardubický kraj",1,"budova","zděná","sedlová","plech","domov pro mentálně postižené","ne","v rekonstrukci","ne","standartní (RHP)","minimální","ano","skleněná s plastovým rámem / dřevěné","vzrostlé stromy, vandalismus",6260800]
[7,"Domov u studánky","00854310","Anenská Studánka 41","Lanškroun",56301,"58",4700,1100,13200,"Pardubický kraj",2,"budova","zděná","valbová","eternit","kancelář, domov pro tělesně postižené","klimatizace",2,"ne","protipožární dveře, RHP, vnitřní a 2x vnější hydrant, požární nádrž","audiotelefon a CCTV u vchodu areálu, centrální klíče se vstupním právněním, oplocení","ano","skleněná s plastovým rámem / plastové s prosklením","vzrostlé stromy",68999172]
[null,null,null,"bez č.p.","Lanškroun",56301,"60",4700,361,2700,"Pardubický kraj",1,"budova","zděná","sedlová","plech","dílny","ne",1,"ne","RHP, vnější hydranty, požární nádrž","audiotelefon a CCTV u vchodu areálu, centrální klíče se vstupním právněním, oplocení","ano","skleněná s plastovým rámem / dřevěné s prosklením","vzrostlé stromy",14113467]
[null,null,null,"bez č.p.","Lanškroun",56301,"61",4700,61,280,"Pardubický kraj",1,"altán","zděná","valbová","eternit","studánka - pramen","ne",1,"ne","vnější hydranty, požární nádrž","audiotelefon a CCTV u vchodu areálu, oplocení","ano","ne","vzrostlé stromy",1463619]
[null,null,null,"bez č.p.","Lanškroun",56301,"74",4700,174,1054,"Pardubický kraj",2,"budova","zděná","valbová","eternit","kuchyně, jídelna","gastro-technologie, klimatizace",2,"ne","protipožární dveře, RHP, vnitřní a 2x vnější hydrant, požární nádrž","audiotelefon a CCTV u vchodu areálu, centrální klíče se vstupním právněním, oplocení","ano","skleněná s dřevěným rámem / dřevěné","minimální",16204351]
[null,null,null,"bez č.p.","Lanškroun",56301,"104",4700,115,700,"Pardubický kraj",1,"budova","zděná","pultová","plech","sušárna","vzduchotechnika",2,"ne","RHP, vnější hydranty, požární nádrž","audiotelefon a CCTV u vchodu areálu, centrální klíče se vstupním právněním, okenní mříže, oplocení","ano","skleněná s dřevěným rámem / dřevěné s prosklením, plechová vrata","vandalismus, vzrostlé stromy",3659047]
[null,null,null,"bez č.p.","Lanškroun",56301,"105",4700,365,3400,"Pardubický kraj",2,"budova","zděná","sedlová","plech","ubytovna, okál","ne",1,"ne","protipožární dveře, RHP, vnitřní a 2x vnější hydrant, požární nádrž","audiotelefon a CCTV u vchodu areálu, centrální klíče se vstupním oprávněním, oplocení","ano","skleněná s plastovým rámem / plastové  ","vzrostlé stromy",17772514]
[null,null,null,"bez č.p.","Lanškroun",56301,"110,111,112",4700,"676, 18, 46",4900,"Pardubický kraj",2,"budova","zděná","valbová","šindel","ubytovna pro zaměstnance, garáže, ČOV","strojní vybavení čističky vod",1,"minimální množství PHM v garáži","protipožární dveře, RHP, vnitřní a 2x vnější hydrant, požární nádrž","audiotelefon a CCTV u vchodu areálu, centrální klíče se vstupním oprávněním, oplocení","ano","skleněná s plastovým rámem / plastové s prosklením","vzrostlé stromy",25613329]
[null,null,null,"bez č.p.","Lanškroun",56301,"115",4700,34,250,"Pardubický kraj",1,"budova","dřevěná","sedlová","plech","čistička","potrubí p.p.850,364,351/1,354,353/2",2,"ne","RHP, 2x vnější hydrant, požární nádrž","audiotelefon a CCTV u vchodu areálu, centrální klíče se vstupním oprávněním, oplocení","ano","světlíky / dřevěné","vzrostlé stromy",1306803]
[null,null,null,"bez č.p.","Lanškroun",56301,"919",4700,null,800,"Pardubický kraj",null,"bazén","beton, plast","bazénové zastřešení","plast v kovovém rámu","krytý bazén","filtrační zařízení vody",1,"zásobník chlóru (minimální množství)","2x vnější hydrant, požární nádrž","audiotelefon a CCTV u vchodu areálu, centrální klíče se vstupním oprávněním, oplocení","sezónní využití","ne / plastové v kovovém rámu","vzrostlé stromy",4181758]
[null,null,null,"bez č.p.","Lanškroun",56301,"117",4700,71,240,"Pardubický kraj",1,"garáž","zděná","sedlová","plech","garáže","ne",1,"minimální množství PHM","RHP, 2x vnější hydrant, požární nádrž","audiotelefon a CCTV u vchodu areálu, centrální klíče se vstupním oprávněním, oplocení","ano","skleněná s plastovým rámem / zásuvná vrata","minimální",1254530]
[null,null,null,"bez č.p.","Lanškroun",56301,"66",4700,null,250,"Pardubický kraj",1,"budova","zděná","plochá","střešní fólie","přečerpací stanice","strojní vybavení - čepradlo",2,"ne","RHP, 2x vnější hydrant, požární nádrž","audiotelefon a CCTV u vchodu areálu, centrální klíče se vstupním oprávněním, oplocení","ano","prosklení / plechové","minimální",1306803]
[null,null,null,"bez č.p.","Lanškroun",56301,"118",4700,605,8383,"Pardubický kraj","1, 2","budova","zděná","sedlová","plech","ubytovna, kuchyně, jídelna","gastro-technologie",1,"ne","protipožární dveře, RHP, vnitřní a 2x vnější hydrant, požární nádrž","audiotelefon a CCTV u vchodu areálu, centrální klíče se vstupním oprávněním, oplocení","ano","skleněná s plastovým rámem / dřevěné s prosklením","minimální",43819701]
[null,null,null,"bez čp.","Lanškroun",56301,"119",4700,null,300,"Pardubický kraj",1,"přístřešek","zděná","valbová","plech","altán k terapeutické zahradě","ne",1,"ne","2x vnější hydrant, požární nádrž","audiotelefon a CCTV u vchodu areálu, centrální klíče se vstupním oprávněním, oplocení","ano","ne","vzrostlé stromy",1568163]
[8,"Domov na zámku Bystré",75007932,"Zámecká 1","Bystré",56992,"1",5400,2100,35128,"Pardubický kraj",2,"budova","zděná","sedlová","eternit","administrativa, ubytování, speciální ZŠ","ne",1,"ne","pasivní hlásič, RHP","pasivní hlásič","ano","skleněná s dřevěným rámem / dřevěné","vzrostlé stromy, vandalismus",206875818]
[null,null,null,"Zámecká 196","Bystré",56992,"3/1",4700,444,4900,"Pardubický kraj",2,"budova","zděná","sedlová","střešní tašky","ubytování","solární panely",1,"ne","pasivní hlásič, RHP","pasivní hlásič","ano","skleněná s dřevěným rámem / dřevěné s prosklením","vzrostlé stromy, vandalismus",28857080]
[null,null,null,"bez č.p.","Bystré",56992,"4/1",4700,562,4800,"Pardubický kraj",1,"budova","zděná","sedlová","eternit","hospodářská budova,dílny,prádelny,stání pro auta","prádelna",3,"ne","pasivní hlásič, RHP","pasivní hlásič","ano","skleněná s dřevěným rámem / dřevěné","vzrostlý strom, vandalismus",28268160]
[null,null,null,"Zámecká 192","Bystré",56992,"5",4700,88,980,"Pardubický kraj",1,"budova","zděná","sedlová","eternit","administrativní budova","ne",2,"ne","pasivní hlásič, RHP","pasivní hlásič, částečně okenní mříže","ano","skleněná s dřevěným rámem / dřevěné","vzrostlé stromy, vandalismus",5771416]
[null,null,null,"Na Podkově 7","Bystré",56992,"234",5400,243,2900,"Pardubický kraj",2,"budova","zděná","sedlová","střešní tašky","ubytování, garáž","ne",1,"ne","pasivní hlásič, RHP","pasivní hlásič","ano","skleněná s dřevěným rámem / dřevěné s prosklením","vandalismus",17078680]
[null,null,null,"Vrchlického 188","Bystré",56992,"376",5400,194,1500,"Pardubický kraj",2,"budova","zděná","valbová","střešní tašky","ubytování","žádná",1,"žádné","pasivní hlásič, RHP","pasivní hlásič, zadní část objektu oplocena","ano","skleněná s plastovým rámem / plastové","vodní toky, vandalismus",8833800]
[null,null,null,"č.p. 198","Bystré",56992,"7",5400,420,2520,"Pardubický kraj",2,"budova","zděná","sedlová","střešní tašky","kavárna, administrativa, ubytovna, dílny","ne",1,"ne","pasivní hlásič, RHP","pasivní hlásič, oplocení objektu","ano","skleněná s plastovým rámem / plastové s prosklením","minimální",14840784]
[9,"Poradna pro rodinu Pardubického kraje",75064006,"Mozartova 449","Pardubice","530 09","6872",4700,5207,null,"budova ve výpůjčce od Gymnázia Mozartova 449","2, 3","budova","zděná","plochá","střešní fólie","poradna","ne",2,"ne","hydrant, RHP","EZS","ano","skleněná s dřevěným rámem / kovové s prosklením","vandalismus, vzrostlé stromy"]
[null,null,null,"Školní nám. 11","Chrudim","537 01","666/1",null,1007,null,"v majetku města",2,"budova","zděná","valbová","plechová","rodinná a manželská poradna","ne",3,"ne","standartní (RHP)","minimální","ano","skleněná s dřevěným rámem / dřevěné s prosklením","vandalismus"]
[null,null,null,"Na Pláni 1343","Ústí nad Orlicí",56206,2844,null,1240,null,"v majetku ČR - ÚZSVM",8,"budova","zděná","pultová","střešní fólie","rodinná a manželská poradna","ne",2,"ne","standartní (RHP)","minimální","ano","skleněná s plastovým rámem / kovové s prosklením","vandalismus"]
[null,null,null,"Riegrova 2063/11","Svitavy ",56802,null,null,null,null,null,null,null,null,null,null,"rodinná a manželská poradna",null,null,null,null,null,null,null,null,"budova ve výpujčce Pardubického kraje"]
[null,null,null,"Slezská 514","Chrudim",53705,1962,null,138,null,"v majetku fyzické osoby",2,"budova","zděná","valbová","pálená taška","rodinná a manželská poradna","ne",3,"ne","standartní (RHP)","minimální (oplocení objektu)","ano","skleněná s dřevěným rámem / dřevěné s prosklením","vzrostlé stromy"]
[null,null,null,"Řestoky 90","Chrast",53851,94,null,198,null,"v majetku fyzické osoby",1,"budova","zděná","sedlová","šindel","rodinný dům","ne","v rekonstrukci","ne","standartní","minimální (oplocení objektu)","ano","skleněná s plastovým rámem / dřevěné","minimální"]

{"sheet":"KRAJSKÝ ÚŘAD Pk","index":4,"n_rows":10,"n_cols":26,"rows_kept":10,"cut":false,"hidden":false,"merged":[[2,17,3,17],[2,23,3,23],[2,3,2,5],[2,0,3,0],[2,1,3,1],[2,2,3,2],[2,8,3,8]]}
["V. KRAJSKÝ ÚŘAD PARDUBICKÉHO KRAJE"]
[]
["č.","Název dle zřizovací listiny","IČ","Adresa místa pojištění",null,null,"Parc.",null,"Zastavěná plocha (m2)","Obestavěný","Vlastník ","Počet","Typ","Nosná ","Typ ","Krytina","Provozní","Technologie","Celkový","Nebezpečné ","Zabezpečení","Zabezpečení","Trvale","Okna / dveře","Vnější ","Pojistná částka - nová"]
[null,null,null,"Ulice/č.p.","Místo","PSČ","číslo",null,null,"prostor (m3)","nemovitosti","podlaží","budovy","konstrukce","střechy","střechy","účel stavby",null,"stav (1-5)","látky","protipožární","proti krádeži","využíváno",null,"nebezpečí"," hodnota nemovitosti"]
[{"$f":"+A4+1","v":1},"Krajský úřad Pardubického kraje","70892822","Komenského nám. 125","Pardubice",53211,"902",4900,1204,22800,"Pardubický kraj",3,"budova","zděná","sedlová","střešní tašky","kanceláře krajského úřadu","ne",1,"ne ","EPS, RHP","EZS, kamerový systém","ano","skleněná s dřevěným rámem / dřevěné s prosklením","vandalismus",109804800]
[null,null,null,"Nám. Republiky 12","Pardubice",53211,"2207",4900,2571,61500,"Pardubický kraj","2, 5","budova","zděná","valbová","plech","kanceláře magistrátu města Pardubic","ne",1,"ne","standartní (RHP)","EZS (1.PP,1.NP,2.NP, a 4.NP doplňkově),kamerový systém","ano","skleněná s dřevěným rámem / dřevěné s prosklením","vandalismus",296284000]
[null,null,null,"Jahnova 127","Pardubice",53211,"1473",4900,848,17000,"Pardubický kraj",3,"budova","zděná","sedlová","střešní tašky","kanceláře krajského úřadu","ne",1,"ne","EPS, RHP","EZS, kamerový systém","ano","skleněná s dřevěným rámem / dřevěné s prosklením","vandalismus",81972000]
[null,null,null,"Klášterní 124","Pardubice",53211,"94/2",4900,261,7200,"Pardubický kraj",3,"budova","zděná","sedlová","střešní tašky","kanceláře krajského úřadu","ne",1,"ne","EPS, RHP","EZS, kamerový systém","ano","skleněná s dřevěným rámem / dřevěné s prosklením","vandalismus",34675200]
[null,null,null,"Karla IV. 2749","Pardubice",53211,"10266",4900,2097,24500,"Pardubický kraj",6,"budova","železobeton","plochá","střešní fólie","parkovací dům","ne",1,"ne","standartní (RHP)","kamerový systém","ano","skleněná s kovovým rámem / kovové s prosklením","vandalismus",117992000]
[null,null,null,"Komenského nám. 120","Pardubice",53211,"95",11000,1374,18700,"Pardubický kraj",3,"budova","zděná","valbová","střešní tašky","kanceláře krajského úřadu","klimatizace",1,"ne","EPS, RHP","EZS, kamerový systém","ano","skleněná s dřevěným rámem / dřevěné s prosklením","vandalismus",90159200]

{"sheet":"List1","index":5,"n_rows":119,"n_cols":8,"rows_kept":119,"cut":false,"hidden":false,"merged":[]}
["Celk plocha","(Vše)"]
[]
[null,"Druh"]
["Název dle zřizovací listiny","KÚ","Kult","Soc","Škol","Zdrav","(Prázdné)","Celkový součet"]
["  "]
["Albertinum, odborný léčebný ústav, Žamberk"]
["Centrum celoživotního vzdělávání-zařízení pro další vzdělávání pedagog. pracovníků Pk"]
["Dětské centrum Veská"]
["Dětský domov Dolní Čermná "]
["Dětský domov Holice, Husova 623"]
["Dětský domov Horní Čermná 188"]
["Dětský domov Moravská Třebová"]
["Dětský domov Pardubice"]
["Dětský domov Polička"]
["Dětský domov pro děti od 1 do 3 let Holice"]
["Domov mládeže a školní jídelna Pardubice"]
["Domov mládeže a školní jídelna Vysoké Mýto"]
["Domov na hradě Rychmburk"]
["Domov na rozcestí Svitavy"]
["Domov na zámku Bystré"]
["Domov pod hradem Žampach"]
["Domov pod Kuňkou"]
["Domov sociálních služeb Slatiňany"]
["Domov u fontány"]
["Domov u studánky"]
["Gymnázium a Jazyková škola s právem státní jazykové zkoušky Svitavy"]
["Gymnázium a Střední odborná škola Přelouč"]
["Gymnázium Aloise Jiráska, Litomyšl, T. G. Masaryka 590"]
["Gymnázium Dr. Emila Holuba, Holice, Na Mušce 1110"]
["Gymnázium Josefa Ressela, Chrudim, Olbrachtova 291"]
["Gymnázium K. V. Raise, Hlinsko, Adámkova 55"]
["Gymnázium Vysoké Mýto"]
["Gymnázium, Česká Třebová, Tyršovo náměstí 970"]
["Gymnázium, Jevíčko, A. K. Vitáka 452 "]
["Gymnázium, Lanškroun, nám. Jana Marka Marků 113"]
["Gymnázium, Moravská Třebová, Svitavská 310"]
["Gymnázium, Pardubice, Dašická 1083"]
["Gymnázium, Pardubice, Mozartova 449"]
["Gymnázium, Polička, Nábřeží svobody 306"]
["Gymnázium, Ústí nad Orlicí , T. G. Masaryka 106"]
["Gymnázium, Žamberk, Nádražní 48"]
["Chrudimská nemocnice, a.s."]
["Integrovaná střední škola Moravská Třebová"]
["Integrovaná střední škola technická, Vysoké Mýto, Mládežnická 380"]
["Kojenecký ústav a dětský domov Svitavy"]
["Konzervatoř, Pardubice, Sukova třída 1260"]
["Krajská knihovna v Pardubicích"]
["Krajský úřad Pardubického kraje"]
["Léčebna dlouhodobě nemocných Rybitví"]
["Litomyšlská nemocnice, a.s."]
["Nemocnice následné péče Moravská Třebová"]
["Obchodní akademie a Jazyková škola s právem státní jazykové zkoušky, Pardubice, Štefánikova 325"]
["Obchodní akademie a Střední odborná škola cestovního ruchu Choceň"]
["Obchodní akademie a Vyšší odborná škola ekonomická, Svitavy, T. G. Masaryka 47"]
["Obchodní akademie, Chrudim, Tyršovo náměstí 250"]
["Odborné učiliště Chroustovice, Zámek 1"]
["Odborný léčebný ústav Jevíčko"]
["Orlickoústecká nemocnice, a.s."]
["Pardubice krajská nemocnice, a.s."]
["Pedagogicko-psychologická poradna Pardubice"]
["Pedagogicko-psychologická poradna, Ústí nad Orlicí, Královéhradecká 513"]
["Poradna pro rodinu Pardubického kraje"]
["Průmyslová střední škola Letohrad"]
["Regionální muzeum v Chrudimi"]
["Regionální muzeum v Litomyšli"]
["Regionální muzeum ve Vysokém Mýtě"]
["Rehabilitační ústav Brandýs nad Orlicí"]
["Speciální mateřská škola,základní škola a praktická škola Pardubice"]
["Speciální střední škola a základní škola Žamberk, Tyršova 214"]
["Speciální základní škola a mateřská škola Litomyšl"]
["Speciální základní škola a mateřská škola Ústí nad Orlicí"]
["Speciální základní škola Bystré"]
["Speciální základní škola Chrudim"]
["Speciální základní škola Skuteč"]
["Speciální základní škola Svitavy"]
["Speciální základní škola Vysoké Mýto"]
["Speciální základní škola, mateřská škola a praktická škola Moravská Třebová"]
["Sportovní gymnázium, Pardubice, Dašická 268"]
["Střední odborná škola a Střední odborné učiliště Lanškroun"]
["Střední odborná škola a Střední odborné učiliště obchodu a služeb, Chrudim, Čáslavská 205"]
["Střední odborná škola a Střední odborné učiliště technické, Třemošnice, Sportovní 322"]
["Střední odborná škola a střední odborné učiliště, Polička, Čs. armády 485"]
["Střední odborná škola elektrotechnická a strojní a Střední odborné učiliště, Pardubice, Do Nového 1131"]
["Střední odborné učiliště opravárenské, Králiky, Předměstí 427"]
["Střední odborné učiliště plynárenské Pardubice"]
["Střední odborné učiliště Svitavy"]
["Střední odborné učiliště zemědělské, Chvaletice, Žižkova 139"]
["Střední průmyslová škola elektrotechnická a Vyšší odborná škola, Pardubice, Karla IV. 13"]
["Střední průmyslová škola chemická Pardubice"]
["Střední průmyslová škola Chrudim"]
["Střední průmyslová škola stavební Pardubice"]
["Střední škola automobilní Holice"]
["Střední škola automobilní Ústí nad Orlicí"]
["Střední škola chovu koní a jezdectví Kladruby nad Labem"]
["Střední škola obchodu, řemesel a služeb Žamberk"]
["Střední škola potravinářství a služeb Pardubice"]
["Střední škola umělecko průmyslová Ústí nad Orlicí"]
["Střední škola zahradnická a technická Litomyšl"]
["Střední škola zdravotnická a sociální Chrudim"]
["Střední škola zemědělská a veterinární Lanškroun"]
["Střední škola zemědělská a VOŠ Chrudim"]
["Střední zdravotnická škola, Pardubice, Průmyslová 395"]
["Střední zdravotnická škola, Svitavy, Purkyňova 256"]
["Střední zdravotnická škola, Ústí nad Orlicí, Smetanova 838"]
["Svitavská nemocnice, a.s."]
["Východočeská galerie v Pardubicích"]
["Východočeské muzeum v Pardubicích"]
["Vysokomýtská nemocnice"]
["Vyšší odborná škola a Střední škola technická Česká Třebová"]
["Vyšší odborná škola pedagogická a Střední pedagogická škola, Litomyšl, Komenského nám. 22"]
["Vyšší odborná škola stavební a Střední škola stavební Vysoké Mýto"]
["Základní škola a Mateřská škola při Hamzově odborné léčebně pro děti a dospělé Luže, Košumberk 37"]
["Základní škola Lanškroun, nám. A. Jiráska 140"]
["Základní škola praktická a základní škola speciální Králíky"]
["Základní škola praktická Česká Třebová"]
["Základní škola speciální Lanškroun, Olbrachtova 206"]
["Zdravotnická záchranná služba Pardubického kraje"]
["(Prázdné)"]
["Celkový součet"]

{"sheet":"Souhrn","index":6,"n_rows":731,"n_cols":28,"rows_kept":731,"cut":false,"hidden":false,"merged":[[1,18,2,18],[1,24,2,24],[1,0,2,0],[1,1,2,1],[1,2,2,2],[1,3,1,5],[1,8,2,8]]}
[]
["č.","Název dle zřizovací listiny","IČ","Adresa místa pojištění",null,null,"Parc.",null,"Zastavěná plocha (m2)","Obestavěný","Vlastník ","Počet","Celková","Typ","Nosná ","Typ ","Krytina","Provozní","Technologie","Celkový","Nebezpečné ","Zabezpečení","Zabezpečení","Trvale","Okna / dveře","Vnější ","Pojistná částka - nová"]
[null,null,null,"Ulice/č.p.","Místo","PSČ","číslo",null,null,"prostor (m3)","nemovitosti","podlaží","plocha(m2)","budovy","konstrukce","střechy","střechy","účel stavby",null,"stav (1-5)","látky","protipožární","proti krádeži","využíváno",null,"nebezpečí"," hodnota nemovitosti","Druh"]
["č.","Název dle zřizovací listiny","Ič","Ulice/č.p.","Místo","PSČ","Parc.","Sloupec1","Zastavěná plocha (m2)","Obestavěný prostor","Vlastník ","Podlaží","Celk plocha","Typ budovy","Nosná konstrukce","Typ Střechy","Kyrtina","Provozní účel","Technologie","Stav(1-5)","Nebezpečné látky","Protipožární zabezpačení","Zabezpečení krádež","Trvale užíváno","Okna / dveře","Vnější nebezpečí","Pojistná částka - nová","Druh"]
[1,"Centrum celoživotního vzdělávání-zařízení pro další vzdělávání pedagog. pracovníků Pk",75061074,"Mozartova 449","Pardubice",53002,6872,4300,5207,null,"Pardubický kraj",3,null,"budova","zděná","plochá","střešní folie","centrum vzdělávání - pronajaté prostory školy","ne",2,"ne ","RHP, hydranty","EZS ","ano","skleněná s dřevěným rámem / kovové s prosklením","vandalismus","budova pojištěna - Gymnázium Pardubice, Mozartova 449","Škol"]
[2,"Dětský domov Dolní Čermná ",70857717,"č.p.74","Dolní Čermná",56153,323,4300,344,5100,"Pardubický kraj",2,{"$f":"L6*I6","v":688},"budova","betonový základ, zděná","sedlová","lepenka","dětský domov","gastro-technologie, klimatizace, vzduchotechnika - kuchyně",1,"ne","vnitřní hydrant, RHP","EZS, oplocení objektu","ano","skleněná s plastovým rámem / plastové s prosklením","minimální",24561600,"Škol"]
[null,null,null,null,null,null,1052,4300,460,3042,"Pardubický kraj",1,{"$f":"L7*I7","v":460},"budova","zděná","valbová","šindel","dětský domov, rodinná buňka","ne",1,"ne","standartní (RHP)","stálá přítomnost zaměstnanců","ano","skleněná s plastovým rámem / plastové s prosklením","minimální",14650272,"Škol"]
[null,null,null,null,null,null,1053,4300,259,1645,"Pardubický kraj",1,259,"budova","zděná","valbová","šindel","administrativní budova","klimatizace",1,"ne","standartní (RHP)","EZS, oplocení objektu","ano","skleněná s plastovým rámem / plastové s prosklením","minimální",7922320,"Škol"]
[{"$f":"+A6+1","v":3},"Dětský domov Holice, Husova 623",48159638,"Husova 623","Holice","534 11","392/1",5400,780,3756,"Pardubický kraj",2,1560,"budova","zděná","valbová, sedllová","pálená taška","administrativní budova,dětský domov,posilovna a dílny","ne",1,"ne","RHP, vnitřní hydrant, protipožární dveře","EZS","ano","skleněná s plastovým rámem / plastové s prosklením","vzrostlý strom",20971232,"Škol"]
[null,null,null,"bez č.p.","Holice","534 11","392/3",4300,41,102,"Pardubický kraj",1,41,"garáž","zděná","pultová","střešní folie","garáž","ne",1,"ne","standartní (RHP)","minimální(oplocení areálu)","ano","skleněná s dřevěným rámem / plechová vrata","minimální",569506,"Škol"]
[null,null,null,"Husova 378","Holice","534 11","393/1",4300,352,2022,"Pardubický kraj",1,352,"budova","zděná","sedlová","plech,střešní tašky","kuchyně,jidelna dětského domova","gastro-technologie, vzduchotechnika",2,"ne","RHP, vnitřní hydrant ","EZS","ano","skleněná s dřevěným rámem / dřevěné s prosklením","minimální",11289625,"Škol"]
[null,null,null,"bez č.p.","Holice","534 11","391/5,391/6",4300,null,150,"Pardubický kraj",null,0,null,"dřevěná",null,null,"dětské hřiště","ne",2,"ne","ne","plocení areálu","ano","ne","minimální",837509,"Škol"]
[{"$f":"+A9+1","v":4},"Dětský domov Horní Čermná 188",70857695,"č.p.188","Horní Čermná",56156,"117/2",4300,700,3080,"Pardubický kraj",2,1400,"budova","zděná","valbová","eternit","dětský domov","ne",2,"ne","vnitřní hydrant, RHP","stálá přítomnost zaměstnanců, zámek FAB","ano","skleněná s plastovým rámem / dřevěné s prosklením","vandalismus",14833280,"Škol"]
[{"$f":"+A13+1","v":5},"Dětský domov Moravská Třebová",63609177,"J. K. Tyla 570/65","Moravská Třebová",57101,2650,4300,199,3250,"Pardubický kraj",3,597,"budova","zděná","sedlová","plechová","dětský domov","ne",2,"ne","standartní (RHP)","bezpečnostní zámek vchodových dveří, oplocení areálu","ano","skleněná s plastovým rámem / plastové  ","vzrostlý strom,vandalismus",15652500,"Škol"]
[null,null,null,"bez č.p.","Moravská Třebová",57101,2651,4300,100,710,"Pardubický kraj",2,200,"budova","zděná","pultová","plechová","technické zázemí dětského domova, kancelář","ne",2,"ne","standartní (RHP)","bezpečnostní zámek dveří a bezpečnostní skla oken, oplocení areálu","ano","skleněná s plastovým rámem / plastové se skleněnou výplní","minimální",3418860,"Škol"]
[{"$f":"+A14+1","v":6},"Dětský domov Pardubice",48160865,"Ke Tvrzi 235","Pardubice","530 03",1100,4300,702,4914,"Pardubický kraj",2,1404,"budova","zděná","sedlová","pálená taška","děstský domov","gastro-technologie",2,"ne","standartní (RHP)","oplocení areálu(vstup uzamčen-domovní audiotelefon)","ano","skleněná s dřevěným rámem / dřevěné s prosklením","vzrostlé stromy",23665824,"Škol"]
[null,null,null,"bez č.p.","Pardubice","530 03",10070,4300,80,240,"Pardubický kraj",1,80,"budova","dřevěná","sedlová","šindel","garáž, sklad, kolárna","žádná",2,"ne","standartní (RHP)","oplocení areálu(vstup uzamčen-domovní audiotelefon)","ano","skleněná s dřevěným rámem / dřevěné  ","vzrostlé stromy",1155840,"Škol"]
[{"$f":"+A16+1","v":7},"Dětský domov Polička",63609291,"A. Lidmilové 505","Polička",57201,1244,4300,245,3456,"Pardubický kraj",2,490,"budova","zděná","valbová","plech","dětský domov","ne",2,"ne","standartní (RHP)","stálá přítomnost zaměstnanců","ano","skleněná s dřevěným rámem / dřevěné s prosklením","vandalismus",16644096,"Škol"]
[{"$f":"+A18+1","v":8},"Domov mládeže a školní jídelna Pardubice",48161071,"Rožkova 331","Pardubice","530 02",3773,4300,1037,13447,"Pardubický kraj",4,4148,"budova","zděná","valbová","plech","ředitelství","ne",2,"ne","EPS, RHP","EZS, oplocena zadní část objektu","ano","skleněná s plastovým rámem / plastové s prosklením","vandalismus",64760752,"Škol"]
[null,null,null,"Rožkova 2432","Pardubice","530 02",5084,4300,917,14960,"Pardubický kraj",4,3668,"budova","zděná","valbová","plech","domov mládeže","ne",2,"ne","standartní (RHP)","minimální(oplocena zadní část objektu)","ano","skleněná s plastovým rámem / kovové s prosklením","vzrostlé stromy",72047360,"Škol"]
[null,null,null,"Gorkého 350","Pardubice","530 02",5083,4300,2800,31310,"Pardubický kraj",4,11200,"budova","zděná","valbová","střešní tašky","domov mládeže a školní jídelna","gastro-technologie,klimatizace",1,"ne","EPS, RHP","EZS, oplocena zadní část objedktu","ano","skleněná s plastovým rámem / plastové se skleněnou výplní","vzrostlé stromy",150788960,"Škol"]
[{"$f":"+A19+1","v":9},"Domov mládeže a školní jídelna Vysoké Mýto",49314688,"Gen. Závady 118","Vysoké Mýto",56601,"1214/2",4300,1527,13625,"Pardubický kraj",3,4581,"budova","zděná","plochá","střešní folie","škola, ubytovna, kuchyň, jídelna","gastro-technologie",2,"ne","RHP, vnitřní hydranty, protipožární dveře","minimální","ano","skleněná s plastovým rámem / kovové s prosklením","vandalismus",67169928,"Škol"]
[null,null,null,"bez č.p.","Vysoké Mýto",56601,"1206/2",4300,1349,7200,"Pardubický kraj",1,1349,"hala","zděná","pultová","vlnitý plech","sportovní hala","ne",1,"ne","RHP, vnitřní hydrant","minimální","ano","skleněná s kovovým rámem / kovové s prosklením","vandalismus",35495335,"Škol"]
[null,null,null,"Gen. Závady 383","Vysoké Mýto",56601,1222,4700,582,7100,"Pardubický kraj",2,1164,"budova","zděná","valbová","břidlice","domov mládeže","ne","v rekonstrukci","ne","standartní (RHP)","minimální","ne","skleněná s dřevěným rámem / dřevěná s prosklením","vandalismus",35002337,"Škol"]
[10,"Gymnázium Aloise Jiráska, Litomyšl, T. G. Masaryka 590",62032348,"T. G. Masaryka 590","Litomyšl",57001,875,4300,2207,16519,"Pardubický kraj",3,6621,"budova","zděná","valbová","střešní tašky","škola ","ne",1,"ne","RHP, hydranty","minimální (oplocení areálu)","ano","skleněná s dřevěným rámem / dřevěné","minimální",79555504,"Škol"]
[null,null,null,null,null,null,"875/5",4300,27,108,"Pardubický kraj",1,27,"budova","zděná","plochá","plech","trafostanice","ne",2,"ne","standartní (RHP)","zadní část objektu oplocena, FAB, vicací zámky","ano","plechová vrata","vandalismus",520128,"Škol"]
[11,"Gymnázium, Česká Třebová, Tyršovo náměstí 970",49314670,"Tyršovo nám. 970","Česká Třebová",56002,1046,4300,1840,null,"v majetku města",3,5520,"budova","zděná","sedlová","šindel","škola","gastro-technologie",1,"ne","RHP, hydranty","minimální (oplocení areálu)","ano","skleněná s dřevěným rámem / dřevěná s prosklením","minimální",null,"Škol"]
[12,"Gymnázium Dr. Emila Holuba, Holice, Na Mušce 1110",48161101,"Na Mušce 1110","Holice","534 01","2020/55",4300,3045,30450,"Pardubický kraj",4,12180,"budova","zděná","plochá","střešní folie","škola","gastro-technologie",1,"ne","standartní (RHP)","minimální (oplocení zadní části objektu)","ano","skleněná s plastovým rámem / plastová s prosklením","vandalismus",146676149,"Škol"]
[null,null,null,"Oplocení sportoviště","Holice",null,"2011/1",null,null,null,"Pardubický kraj",null,0,null,"kovová",null,null,"oplocení sportoviště",null,2,null,null,"minimální",null,null,"vandalismus",241243,"Škol"]
[13,"Gymnázium a Jazyková škola s právem státní jazykové zkoušky Svitavy",62033026,"Sokolovská 1638","Svitavy",56802,"1744/1",4300,3400,21736,"Pardubický kraj",2,6800,"budova","zděná","pultová","plech","škola, jídelna, kuchyně","gastro-technologie,klimatizace",3,"ne","RHP, hydranty","minimální","ano","skleněná s dřevěnýma  plastovým rámem / plastové s prosklením","vandalismus, vzrostlé stromy",104680576,"Škol"]
[null,null,null,"Pražská 2/2162","Svitavy",56802,"524/2",4300,3253,20212,"Pardubický kraj",1,3253,"hala","želeobeton","oblouková","střešní folie","sportovní hala","vzduchotechnika",1,"ne","standartní (RHP)","minimální","ano","skleněná s plastovým rámem / plastové s prosklením","vandalismus",97340992,"Škol"]
[14,"Gymnázium, Jevíčko, A. K. Vitáka 452 ",62032011,"A. K. Vitáka 452","Jevíčko",56943,"322, 175/3",4300,1450,21498,"Pardubický kraj",3,4350,"budova","zděná","valbová","střešní tašky","škola, sportovní hřiště","ne",1,"ne","standartní (RHP)","minimální","ano","skleněná s dřevěným rámem / dřevěné s prosklením","vandalismus",103534368,"Škol"]
[null,null,null,"Nerudova 557","Jevíčko",56943,507,4300,1320,11200,"Pardubický kraj",3,3960,"budova","zděná","plochá","střešní folie","domov mládeže","ne",2,"ne","standartní (RHP)","minimální","ano","skleněná s dřevěným rámem / dřevěné s prosklením","vandalismus",53939200,"Škol"]
[15,"Gymnázium Josefa Ressela, Chrudim, Olbrachtova 291",60103337,"Olbrachtova 291","Chrudim",53701,1025,4300,2065,36126,"Pardubický kraj",4,8260,"budova","zděná","valbová","plechová","škola","gastro-technologie, vzduchotechnika, klimatizace",3,"minimální množství v laboratoři","RHP, hydranty","EZS, oplocení areálu","ano","skleněná s dřevěným rámem / dřevěné","vandalismus",173982816,"Škol"]
[16,"Gymnázium K. V. Raise, Hlinsko, Adámkova 55",60103329,"Adámkova 55","Hlinsko",53901,452,4300,1430,13600,"Pardubický kraj",3,4290,"budova","zděná","sedlová","střešní tašky","škola","ne",2,"ne","RHP, hydranty","minimální","ano","skleněná s plastovým, dřevěným rámem / plastové s prosklením","vandalismus",65497600,"Škol"]
[null,null,null,"Čelakovského 469","Hlinsko","539 01",445,4300,120,1080,"Pardubický kraj",2,240,"budova","zděná","sedlová","plech","učebna jazyků","ne",2,"ne","standartní (RHP)","minimální","ano","skleněná s dřevěným rámem / dřevěné s prosklením","vandalismus",5201280,"Škol"]
[17,"Gymnázium, Lanškroun, nám. Jana Marka Marků 113",49314653,"nám. J. M. Marků 113","Lanškroun",56312,85,4300,1095,null,"v majetku města",3,3285,"budova","zděná","valbová","střešní tašky","škola","vzduchotechnika - sklepní prostory",2,"ne","RHP, hydrant","minimální","ano","skleněná s dřevěným rámem / dřevěné","vandalismus",null,"Škol"]
[{"$f":"+A37+1","v":18},"Gymnázium, Moravská Třebová, Svitavská 310",62033131,"Svitavská 310","Moravská Třebová",57101,"440/2",4300,1392,12298,"Pardubický kraj",4,5568,"budova","zděná","plochá, sedlová","střešní folie, plech","škola","ne",2,"minimální množství chemických látek v laboratoři","RHP, vnitřní hydranty, protipožární dveře","minimální (oplocení objektu)","ano","skleněná s plastovým rámem / plechové se skleněnou výplní","minimální",59227168,"Škol"]
[null,null,null,"Svitavská 310","Moravská Třebová",57101,456,4300,550,9360,"Pardubický kraj",3,1650,"budova","zděná","valbová","plechová","škola","ne",3,"minimální množství chemických látek v laboratoři","RHP, vnitřní hydranty","minimální (oplocení areálu)","ano","skleněná s dřevěným rámem / dřevěné s prosklením","minimální",45077760,"Škol"]
[{"$f":"+A38+1","v":19},"Gymnázium, Pardubice, Dašická 1083",48160989,"Dašická 1083","Pardubice","530 03",8083,4300,2521,35750,"Pardubický kraj",5,12605,"budova","zděná","pultová","střešní fólie","učebny, tělocvična školy","serverovna - klimatizace",2,"ne","vnitřní hydranty","vstup na čipové karty, kamerový systém, videotelefon","ano","skleněná s plastovým rámem / kovová s prosklením","vandalismus",172172000,"Škol"]
[null,null,null,"Dašická 1888","Pardubice","531 03",10974,null,1758,11058,"Pardubický kraj",1,1758,"hala","želeobeton","oblouková","střešní fólie","sportovní hala","vzduchotechnika",1,"ne","EPS, RHP","minimální","ano","skleněná s plastovým rámem / plastová s prosklením","vandalismus",53258485,"Škol"]
[null,null,null,"bez č.p.","Pardubice","530 03",8084,4300,990,6930,"Pardubický kraj",2,1980,"budova","zděná","plochá","střešní fólie","školní jídelna, kuchyně","gastro-technologie,klimatizace",3,"ne","standartní (RHP)","kamerový systém","ano","skleněná s plastovým rámem / plastové s prosklením","vandalismus, vzrostlé stromy",33374880,"Škol"]
[null,null,null,"bez č.p.","Pardubice","530 03",8085,4300,194,776,"Pardubický kraj",1,194,"budova","zděná","plochá","střešní fólie","sklad","ne",2,"ne","standartní (RHP)","minimální (oplocení areálu)","ano","skleněná s dřevěným rámeme / dřevěné","vzrostlé stromy",3737216,"Škol"]
[20,"Gymnázium, Pardubice, Mozartova 449",48161063,"Mozartova 449","Pardubice","530 09",6872,4300,5207,21235,"Pardubický kraj",3,15621,"budova","zděná","plochá","střešní fólie","škola","vzduchotechnika - kuchyně",2,"minimální množství chemických látek  v laboratoři","RHP, hydranty","EZS","ano","skleněná s dřevěným rámem / kovové s prosklením","vandalismus",102270578,"Škol"]
[21,"Gymnázium, Polička, Nábřeží svobody 306",62032178,"Nábřeží svobody 306","Polička",57201,"909, 3489",4300,1908,21784,"Pardubický kraj",3,5724,"budova","zděná","valbová","plech","škola, tělocvična školy","vzduchotechnika, klimatizace",1,"minimální množství chemických látek ve skladu (pro laboratoř)","RHP, hydranty","bezpečnostní vchodové dveře, kódové zabezpečení dveří - učebna fyziky a PC","ano","skleněná s dřevěným,plastovým rámem / dřevěné s prosklením","minimální",178307584,"Škol"]
[22,"Gymnázium a Střední odborná škola Přelouč",72543159,"Obránců míru 1025","Přelouč","535 01",1044,4300,2182,28417,"Pardubický kraj",3,6546,"budova","zděná","valbová","střešní tašky","učebny školy","ne",3,"ne","RHP, hydranty","EZS","ano","skleněná s dřevěným rámem / dřevěné s prosklením","vandalismus",137443824,"Škol"]
[null,null,null,"bez č.p.","Přelouč","535 01",1946,null,46,122,"Pardubický kraj",1,46,"budova","zděná","plochá","střešní fólie"]
[null,null,null,"bez č.p.","Přelouč","535 01",2147,4300,870,4950,"Pardubický kraj",2,1740,"budova","zděná","plochá","střešní fólie","učebny školy","ne",2,"ne","RHP, vnitřní hydrant","EZS, oplocení zadní části objektu","ano","skleněná s dřevěným rámem / kovové s prosklením","vandalismus",23839200,"Škol"]
[null,null,null,"bez č.p.","Přelouč","535 01",2148,4300,47,140,"Pardubický kraj",1,47,"budova","zděná","plochá","střešní fólie","trafostanice","ne",2,"ne","standartní (RHP)","oplocení objektu","ano","ne / plechové","vandalismus",674240,"Škol"]
[null,null,null,"Dukelské nám. 1513","Přelouč","535 01","2162/1,2162/2,2162/3",4300,595,5200,"Pardubický kraj",3,1785,"budova","zděná","plochá","střešní fólie","škola","ne",1,"ne","RHP, hydranty","oplocení objektu","ne, částečně pronajaté","skleněná s dřevěným rámem / dřevěné s prosklením","vandalismus",25043200,"Škol"]
[null,null,null,"bez č.p.","Přelouč","535 01","540/1",4300,971,5900,"Pardubický kraj",1,971,"budova","zděná","pultová","plech, eternit","sklad, dílny","ne",3,"ne","standartní (RHP)","oplocení areálu","ne","skleněné s dřevěným, kovovým rámem / dřevěné, kovové s prosklením","vandalismus, vzrostlé stromy",28414400,"Škol"]
[null,null,null,"bez č.p.","Přelouč","535 01",1938,4300,326,1400,"Pardubický kraj",1,326,"budova","zděná","sedlová","vlnitý plech","dílny, šatny","ne",3,"ne","standartní (RHP)","okenní mříže, oplocení pozemku","ne","skleněné s dřevěným rámem / dřevěné","minimální",6142400,"Škol"]
[null,null,null,"bez č.p.","Přelouč","535 01",2152,4300,63,190,"Pardubický kraj",1,63,"garáž","kovová","sedlová","vlnitý plech","garáž","ne",3,"ne","ne","oplocení objektu","ne","plastová v kovovém rámu / plechová vrata","vzrostlé stromy, vandalismus",915040,"Škol"]
[null,null,null,"Jaselská 1499","Přelouč","535 01","542/1",4300,2592,14100,"Pardubický kraj",2,5184,"budova","zděná","plochá","střešní fólie","učebny SOU, dílny OV","strojírenská",2,"minimální množství acetonu, svařovací soupravy","RHP, hydranty","EZS, oplocení areálu","ano","skleněná s dřevěným rámem / kovové s prosklením","minimální",25043200,"Škol"]
[null,null,null,"Jaselská 1505","Přelouč","535 01","542/7",4300,38,115,"Pardubický kraj",1,38,"budova","zděná","sedlová","střešní tašky","sklad","ne",3,"ne","standartní (RHP)","oplocení areálu, visací zámek","ano","skleněná s dřevěným rámem / dřevěné","vandalismus, vzrostlé stromy",553840,"Škol"]
[null,null,null,"Jaselská 1506","Přelouč","535 01","542/8",4300,508,3100,"Pardubický kraj",1,508,"budova","zděná","sedlová","plech","budova pro volný čas"," ",3,"ne","standartní (RHP)","oplocení areálu","ano","skleněná s dřevěným rámem / dřevěné","vandalismus",14929600,"Škol"]
[null,null,null,"Jaselská 1507","Přelouč","535 01","542/6",4300,916,14200,"Pardubický kraj",3,2748,"budova","zděná","plochá","střešní fólie","domov mládeže","ne",3,"ne","RHP, vnitřní hydranty ","oplocení areálu, částečně mříže na oknech","ano","skleněná s dřevěným nebo plastovým rámem / kovová","minimální",68387200,"Škol"]
[23,"Gymnázium, Ústí nad Orlicí , T. G. Masaryka 106","00401081","T. G. Masaryka 106","Ústí nad Orlicí",56201,726,4300,1424,22800,"Pardubický kraj",3,4272,"budova","zděná","valbová","střešní tašky","škola","ne",2,"ne","RHP, hydranty","minimální","ano","skleněná s dřevěným rámem / dřevěné","vandalismus, vzrostlé stromy",13484800,"Škol"]
[null,null,null,"T. G. Masaryka 101","Ústí nad Orlicí",56201,727,4300,588,4700,"Pardubický kraj",2,1176,"budova","zděná","valbová","střešní tašky","tělocvična školy","ne",3,"ne","standartní (RHP)","minimální (oplocení areálu)","ano","skleněná s dřevěným rámem / dřevěné s prosklením","minimální",22635200,"Škol"]
[null,null,null,"bez č.p.","Ústí nad Orlicí",56201,3583,4300,65,160,"Pardubický kraj",1,65,"budova","zděná","valbová","pálená taška","altán","ne",2,"ne","standartní (RHP)","minimální (oplocení areálu)","ano","ne","vzrostlé stromy",770560,"Škol"]
[24,"Gymnázium Vysoké Mýto",49314645,"nám. Vaňorného 163","Vysoké Mýto",56601,226.227,4300,{"$f":"568+854","v":1422},null,"v majetku města",3,4266,"budova","zděná","valbová","kanadský šindel","škola","ne",2,"minimální množství chemických látek v laboratoři","RHP, hydranty","EZS","ano","skleněná s dřevěným rámem / dřevěné s prosklením","vandalismus",null,"Škol"]
[25,"Gymnázium, Žamberk, Nádražní 48",49314891,"Nádražní 48","Žamberk",56401,"799/1",4300,816,13100,"Pardubický kraj",3,2448,"budova","zděná","valbová","střešní tašky","škola, tělocvična školy","vzduchotechnika",2,"ne","RHP, hydranty","minimální (osvětlení objektu)","ano","skleněná s dřevěným rámem / dřevěné s prosklením","vandalismus",63089600,"Škol"]
[null,null,null,"Komenského 1136","Žamberk",56401,"791/1",4300,1325,9976,"Pardubický kraj",2,2650,"hala","zděná","plochá","střešní fólie","tělocvična školy","vzduchotechnika",3,"ne","standartní (RHP)","mříže na dveřích, oplocení zadní části objektu","ano","skleněná s dřevěným rámem / kovové s prosklením","vandalismus",48044416,"Škol"]
[26,"Sportovní gymnázium, Pardubice, Dašická 268",48161012,"Dašická 268","Pardubice","530 03","1244/1",4300,1756,19688,"Pardubický kraj",3,5268,"budova","zděná","valbová","plech, střešní tašky","učebny","ne",3,"ne","RHP, hydranty","minimální (zadní část objektu oplocena)","ano","skleněná s dřevěným rámem / dřevěné s prosklením","vandalismus",94817408,"Škol"]
[null,null,null,"bez čp.","Pardubice","530 03",10109,4300,995,15360,"Pardubický kraj",1,995,"hala","zděná","plochá","střešní fólie","tělocvična školy","ne",3,"ne","standartní (RHP)","minimální (oplocení objektu)","ano","skleněná s dřevěným rámem + prosklení stěn / kovové s prosklením","minimální",73973760,"Škol"]
[27,"Integrovaná střední škola Moravská Třebová",15034496,"Brněnská 41","Moravská Třebová",57101,"299/4",4300,427,2340,"Pardubický kraj",2,854,"budova","zděná","plochá","střešní fólie","škola","ne",2,"ne","RHP, hydranty","minimální","ano","skleněná s plastovým rámem / dřevěné  ","vandalismus",11197829,"Škol"]
[null,null,null,"bez č.p.","Moravská Třebová",57101,"300,301/1-2,303/3",4300,{"$f":"37+480+53+486","v":1056},5465,"Pardubický kraj",4,4224,"budova","zděná","plochá","střešní fólie","škola, spojovací úseky","ne",3,"ne","RHP, hydranty","miniální","ne","skleněná s plastovým rámem / plastové se skleněnou výplní","vandalismus",26152594,"Škol"]
[null,null,null,"bez č.p.","Moravská Třebová",57101,"303/4-7",4300,{"$f":"33+292+64+287","v":676},{"$f":"7284-425","v":6859},"Pardubický kraj",4,2704,"budova","zděná","plochá","střešní fólie","škola, spojovací úseky","ne",3,"ne","RHP, hydranty","minimální","ano","skleněná s plastovým rámem / plastové se skleněnou výplní","vandalismus",34857363,"Škol"]
[null,null,null,"Milovy 35","Sněžné na Moravě",59202,239,4300,233,1165,"Pardubický kraj",1,233,"budova","zděná","valbová","plech","školící a výcvikové středisko školy","ne",3,"ne","standartní (RHP)","minimální","ano","skleněná s dřevěným rámem / dřevěné se skleněnou výplní","vzrostlé stromy, vandalismus",5575073,"Škol"]
[null,null,null,"bez č.p.","Moravská Třebová",57101,"303/14",null,25,425,"Pardubický kraj",1,25,"garáž","zděná","plochá","střešní fólie","garáž"]
[null,null,null,"Lanškrounská 5","Svitavy","568 02","390/1",4300,440,3845,"Pardubický kraj",2,880,"budova","zděná","sedlová","střešní tašky","nevyužito","ne",4,"ne","ne","ne","ne","skleněná s dřevěným rámem / dřevěné s prosklením","vzrostlý strom,vandalismus",18400132,"Škol"]
[null,null,null,"Dukelská 57","Moravská Třebová",57101,"436/2",4300,607,8555,"Pardubický kraj",3,1821,"budova","zděná","plochá","střešní fólie","internát","ne",3,"ne","RHP, hydranty","minimální","ano","skeněná s plastovým rámem / plechové se skleněnou výplní","vandalismus",40939696,"Škol"]
[null,null,null,"9. května 5","Moravská Třebová",57101,"661/1",4300,1215,14592,"Pardubický kraj",3,{"$f":"L73*I73","v":3645},"budova","zděná","plochá","střešní fólie","škola","ne",3,"ne","RHP, hydranty","minimální","ano","skleněná s dřevěným rámem / plechové se skleněnou výplní","vandalismus",69829578,"Škol"]
[null,null,null,"J. K. Tyla 9","Moravská Třebová",57101,"1336/1",4300,620,6900,"Pardubický kraj","2",1240,"budova","zděná","plochá","střešní fólie","škola","vzduchotechnika",3,"ne","standartní (RHP)","minimální (zadní část objektu oplocena)","ano","skleněná s dřevěným rámem / plastové se skleněnou výplní","vandalismus",52889014,"Škol"]
[null,null,null,"J. K. Tyla 9","Moravská Třebová",57101,"1336/1",null,660,null,"Pardubický kraj","1",{"$f":"L75*I75","v":660},"budova","zděná","plochá","střešní fólie","škola, tlaková stanice","vzduchotechnika",3,"tlakové láhve","standartní (RHP)","minimální (zadní část objektu oplocena)","ano","skleněná s dřevěným rámem / plastové se skleněnou výplní","vandalismus"]
[null,null,null,"bez č.p.","Moravská Třebová",57101,"1338/2",null,78,300,"Pardubický kraj",1,78,"budova","kovová","sedlová","plech"]
[null,null,null,"bez č.p.","Moravská Třebová",57101,1337,null,655,3852,"Pardubický kraj",1,655,"budova","zděná","sedlová","střešní tašky, plech"]
[null,null,null,"bez č.p.","Moravská Třebová",57101,"1347/3",4300,1076,8560,"Pardubický kraj",2,2152,"budova","zděná","plochá, sedlová","plech","tělocvična  ","ne",3,"ne","standartní (RHP)","minimální (oplocení areálu)","ano","skleněná s dřevěným rámem / plastové se skleněnou výplní","minimální",40963623,"Škol"]
[28,"Integrovaná střední škola technická, Vysoké Mýto, Mládežnická 380",15028585,"Mládežnická 380","Vysoké Mýto",56601,"1917/1",4300,5478,44696,"Pardubický kraj",3,16434,"budova","zděná","plochá","střešní fólie","škola, dílny, ubytovna, kuchyně, jídelna","strojírenská,vzduchotechnicka,klimatizace",1,"ne","RHP, hydranty","minimální","ano","skleněná s plastovým rámem / plastové s prosklením","vandalismus, vzrostlé stromy",192192800,"Škol"]
[29,"Konzervatoř, Pardubice, Sukova třída 1260",48161110,"Sukova třída 1260","Pardubice","530 02",8119,4300,4389,39900,"Pardubický kraj",5,21945,"budova","zděná","plochá","střešní fólie","konzervatoř","ne",1,"ne","RHP, hydranty,EPS","EZS","ano","skleněná s dřevěným rámem / kovové s prosklením","vandalismus",193487616,"Škol"]
[null,null,null,"bez č.p.","Pardubice","530 02",8121,4300,69,276,"Pardubický kraj",1,69,"budova","zděná","plochá","střešní fólie,násyp","garáže, dílna","ne",1,"oleje, PHM","standartní (RHP)","minimální","ano","skleněná s dřevěným rámem / kovové s prosklením","vandalismus, vzrostlé stromy",1329216,"Škol"]
[30,"Obchodní akademie, Chrudim, Tyršovo náměstí 250",60103345,"Tyršovo nám. 250","Chrudim",53760,991,4300,1110,19800,"Pardubický kraj",4,4440,"budova","zděná","sedlová","plechová","škola","ne",3,"ne","RHP, hydranty","minimální","ano","skleněná s dřevěným rámem / dřevěná s prosklením","vandalismus",95356800,"Škol"]
[31,"Obchodní akademie a Jazyková škola s právem státní jazykové zkoušky, Pardubice, Štefánikova 325",48161209,"Štefánikova 325","Pardubice","530 43","609/2",4300,684,4518,"Pardubický kraj",3,2052,"budova","zděná","sedlová","střešní tašky","škola","ne",2,"ne","RHP, hydranty","minimální","ano","skleněná s dřevěným rámem / dřevěné","vandalismus",21758688,"Škol"]
[32,"Obchodní akademie a Střední odborná škola cestovního ruchu Choceň",49314661,"T. G. Masaryka 1000","Choceň",56536,1061,4300,980,null,"v majetku města",3,2940,"budova","zděná","plochá","plech","škola","ne",2,"ne","RHP, hydranty","minimální","ano","skleněná s dřevěným rámem / dřevěné s prosklením","vandalismus",null,"Škol"]
[null,null,null,"Bj. Krawce 1883","Choceň","565 36","164/2,164/4",null,997,7840,"Pardubický kraj",1,997,"budova","zděná","sedlová, valbová","plech, šindel","tělocvična","ne",3,"ne","standartní (RHP)","minimální","ano","skleněná s dřevěným rámem / plastové s prosklením","vandalismus",null,"Škol"]
[null,null,null,"Tyršovo nám. 220","Choceň",56536,415,4300,789,9300,"Pardubický kraj",3,2367,"budova","zděná","pultová, sedlová","eternit","škola","ne",1,"ne","RHP, hydranty","minimální","ano","skleněná s plastovým, dřevěným rámem / plastové s prosklením","vandalismus",51670800,"Škol"]
[null,null,null,"Vysokomýtská 1206","Choceň","565 36",682,4300,550,4240,"Pardubický kraj",1,550,"budova","zděná","valbová","šindel","odloučené pracoviště-odborná výuka","gastro-technologie",3,"ne","standartní (RHP)","oplocení areálu","ano","skleněná s dřevěným rámem / dřevěné s prosklením","vandalismus",23557440,"Škol"]
[null,null,null,"bez č.p.","Choceň","565 36","624/2, 624/4",4300,{"$f":"156+798","v":954},670,"Pardubický kraj",1,954,"budova","zděná","pultová","plech","odloučené pracoviště-dílny školy, sklad","strojírenská",3,"ne","standartní (RHP)","objekt v uzamčeném dvoře","ano","skleněná s dřevěným rámem / dřevěné","vzrostlé stromy",3722520,"Škol"]
[null,null,null,"bez č.p.","Choceň","565 36","624/3",4300,946,5120,"Pardubický kraj",2,1892,"budova","zděná","plochá","plech","škola","ne",3,"ne","standartní (RHP)","oplocení zadní části objektu","ano","skleněná s plastovým rámem / plastové s prosklením","vandalismus",28446720,"Škol"]
[null,null,null,"bez č.p.","Choceň","565 36","624/1",4300,267,1120,"Pardubický kraj",1,267,"budova","zděná","pultová","plech","odloučené pracoviště-dílny školy ","strojírenská",3,"ne","standartní (RHP)","objekt v uzavřeném dvoře","ano","skleněná s dřevěným rámem / dřevěné","vandalismus",6222720,"Škol"]
[null,null,null,"Husova 146/IV","Vysoké Mýto","566 01","1515/6",4300,1439,16965,"Pardubický kraj",3,4317,"budova","zděná","valbová","plech","odloučené pracoviště-škola","ne",2,"ne","RHP, hydranty","minimální","ano","skleněná s dřevěným rámem / dřevěné s prosklením","vandalismus",94257540,"Škol"]
[null,null,null,"bez čp.","Choceň",56536,"421/4",4300,118,350,"Pardubický kraj",1,118,"přístřešek, garáž","zděná","pultová","eternit","garáž","ne ",1,"ne","standartní (RHP)","minimální","ano","skleněná s dřevěným rámem / dřevěná vrata","vzrostlé stromy",1944600,"Škol"]
[null,null,null,"Komenského 435","Choceň",56536,411,4300,161,608,"Pardubický kraj",1,161,"garáž","zděná","plochá","plech","garáž","ne",3,"ne","standartní (RHP)","minimální","ano","prosklení / plechová vrata","vandalismus",3378048,"Škol"]
[null,null,null,"bez čp.","Choceň",56536,"421/3",4300,62,332,"Pardubický kraj",1,62,"garáž","zděná","pultová","střešní fólie","garáž","ne",4,"ne","standartní (RHP)","minimální","ano","prosklení / plechová vrata","vzrostlé stromy",1844592,"Škol"]
[null,null,null,"Paraple 2000","Choceň",56536,3419,4300,652,8589,"Pardubický kraj",3,1956,"budova","zděná","plochá","plech","domov mládeže, školní jídelna, suterén garáž","gastro-technologie,klimatizace",1,"ne","RHP, hyndranty","oplocení areálu","ano","skleněná s plastovým rámem / plastové s prosklením","minimální",47720484,"Škol"]
[33,"Obchodní akademie a Vyšší odborná škola ekonomická, Svitavy, T. G. Masaryka 47",62033077,"T. G. Masaryka 47","Svitavy",56802,"492/1,492/3",4300,1636,17224,"Pardubický kraj,parcela č.492/3 v majetku jiné fyzické osoby",3,4908,"budova","zděná","sedlová","střešní tašky","škola, jídelna, kuchyně, tělocvična školy","vzduchotechnika, klimatizace, gastro-technologie",1,"ne","RHP, hydranty","minimální","ano","skleněná s plastovým, dřevěným rámem / plastové s prosklením","vandalismus",82950784,"Škol"]
[null,null,null,"bez č.p.","Svitavy",56802,"492/2",4300,207,872,"Pardubický kraj",1,207,"budova","zděná","pultová","plech","sborovna, prádelna, kotelna, sklad","strojní vybavení kotelny a prádelny",2,"zemní plyn-kotelna","RHP, hydranty","objekt v uzavřeném dvoře","ano","skleněná s dřevěným rámem / dřevěné","minimální",4199552,"Škol"]
[null,null,null,"Kijevská 1909","Svitavy",56802,2568,4300,911,5430,"Pardubický kraj",2,1822,"budova","zděná","plochá","střešní fólie","domov mládeže","ne",1,"ne","RHP, hydranty","oplocený areál","ano","skleněná s plastovým rámem / plastové s prosklením","vandalismus",26150880,"Škol"]
[34,"Pedagogicko-psychologická poradna Pardubice",48160806,"Sukova třída 1260","Pardubice",53002,8119,4300,4389,39900,"Pardubický kraj",5,21945,"budova","zděná","plochá","střešní fólie","pedagogicko-psychologická poradna (pronajaté prostory konzervatoře)","ne",1,"ne","EPS, RHP, hydranty","EZS","ano","skleněná s dřevěným rámem / kovové s prosklením","vandalismus","budova pojištěna - Konzervatoř Pardubice","Škol"]
[null,null,null,"Poděbradova 842","Chrudim",53701,"302/1",4300,1142,19400,"Pardubický kraj",6,6852,"budova","zděná","plochá","střešní fólie","poradna / součást budovy domova mládeže /","ne",3,"ne","RHP, hydranty","minimální (oplocení areálu)","ano","skleněná s plastovým rámem / kovové s prosklením","vzrostlé stromy","budova pojištěna - SŠZ a VOŠ Chrudim","Škol"]
[null,null,null,"Internátní 217","Třemošnice",53843,219,4300,3760,null,"v majetku města",3,11280,"budova","zděná","plochá","střešní fólie","pedagogicko-psychologická poradna (součást budovy)","ne",2,"ne","RHP, hydranty","minimální","ano","skleněná s dřevěným rámem / dřevěné s prosklením","vandalismus",null,"Škol"]
[null,null,null,"Nádražní 548","Hlinsko",53901,"600/1",4300,851,null,"v majetku města",2,1702,"budova","zděná","plochá","střešní fólie","poradna  ","ne",3,"ne","standartní (RHP)","minimální","ano","skleněná s plastovým rámem / plastové s prosklením","vandalismus",null,"Škol"]
[35,"Pedagogicko-psychologická poradna, Ústí nad Orlicí, Královéhradecká 513",70847142,"Královéhradecká 513","Ústí nad Orlicí",56201,621,4300,139,1362,"Pardubický kraj",2,278,"budova","zděná","sedlová","pálená taška","poradna","ne",2,"ne","standartní (RHP)","minimální","ano","skleněná s dřevěným rámem / dřevěné","vandalismus",9973926,"Škol"]
[null,null,null,"Dobrovského 630","Lanškroun",56301,"1275/1",4300,1125,null,"v majetku města",2,2250,"budova","zděná","sedlová","střešní tašky","pedagogicko-psychologická poradna (součást budovy)","ne",1,"ne","standartní (RHP)","minimální","ano","skleněná s dřevěným rámem / dřevěné s prosklením","vandalismus",null,"Škol"]
[null,null,null,"Královéhradecká 630","Ústí nad Orlicí",56201,"574/2",12000,312,2576,"Pardubický kraj",3,936,"budova","zděná","pultová / sedlová","plech","poradna","ne",1,"ne","RHP, hydrant, EPS","EZS","ano","skleněná s plastovým rámem / plastové s prosklením","vandalismus",18864048,"Škol"]
[null,null,null,"Plk-B.Kohouta 914","Vysoké Mýto","566 01","4664/105",null,1219,null,"v majetku města",3,3657,"budova","zděná","plochá","střešní fólie","pedagogicko-psychologická poradna (součást budovy)","klimatizace",1,"ne","RHP, EPS","EZS","ano","skleněná s plastovým rámem / plastové s prosklením","vandalismus",null,"Škol"]
[null,null,null,"Riegrova 2063/11","Svitavy",56802,"2918/3",4300,331,3864,"Pardubický kraj",3,993,"budova","zděná","plochá","střešní fólie","poradna","ne",2,"ne","RHP, hydrant","minimální (oplocení objektu)","ano","skleněná s dřevěným rámem / kovové s prosklením","vzrostlé stromy",28296072,"Škol"]
[null,null,null,"Riegrova 2063/11","Svitavy","568 02","2919/2",4300,84,252,"Pardubický kraj",1,84,"budova","zděná","pultová","plech","garáž, sklad ","ne",2,"ne","standartní (RHP)","minimální","ano","ne / plechová vrata","vandalismus",1845396,"Škol"]
[null,null,null,"Nádražní 550","Žamberk",56401,796,4300,178,null,"Pardubický kraj",3,534,"budova","zděná","sedlová","asfaltový šindel","část objektu ve výpůjčce - poradna","ne",3,"ne","RHP, hydranty","minimální (zadní část objektu oplocena)","ano","skleněná s plastovým rámem / plastové s prosklením","vandalismus, vzrostlé stromy","budova pojištěna u Spec. SŠ a ZŠ Žamberk","Škol"]
[null,null,null,"T.G. Masaryka 1160","Litomyšl",57001,2247,null,274,null,"Pardubický kraj",1,274,"budova","zděná","sedlová","střešní tašky","poradna","ne",2,"ne","standartní (RHP)","minimální ( oplocení objektu )","ano","skleněná s plastovým rámem / dřevěné s prosklením","vzrostlé stromy","budova pojištěna u SŠ zahradnické a technické Litomyšl","Škol"]
[36,"Průmyslová střední škola Letohrad",49314912,"Komenského 472","Letohrad",56151,530,4300,1609,15700,"Pardubický kraj",4,6436,"budova","zděná","plochá","plech","škola","ne",1,"ne","RHP, hydrant","EZS, oplocení areálu","ano","skleněná s plastovým rámem / plastové s prosklením","vzrostlé stromy",75611200,"Škol"]
[null,null,null,"Na Stráni 785","Letohrad",56151,1254,4300,503,6030,"Pardubický kraj",3,1509,"budova","zděná","polovalbová","střešní tašky","škola","ne",2,"ne","RHP, hydrant","minimální (oplocení areálu)","ano","skleněná s dřevěným rámem / dřevěné s prosklením","minimální",29040480,"Škol"]
[null,null,null,"bez č.p.","Letohrad",56151,1154,4300,411,6165,"Pardubický kraj",3,1233,"budova","zděná","polovalbová","střešní tašky","škola, domov mládeže","ne",1,"ne","RHP, hydrant","minimální (oplocení areálu)","ano","skleněná s plastovým rámem / plastové s prosklením","minimální",29680640,"Škol"]
[null,null,null,"bez č.p.","Letohrad",56151,1341,4300,954,6700,"Pardubický kraj",1,954,"budova","zděná","plochá","plech","tělocvična školy","vzduchotechnika ",1,"ne ","RHP, hydrant","minimální (oplocení areálu)","ano","skleněná s dřevěným rámem / kovové s prosklením","minimální",32267200,"Škol"]
[null,null,null,"bez č.p.","Letohrad",56151,1340,4300,831,7500,"Pardubický kraj",2,1662,"budova","zděná","plochá","plech","kuchyně, jídelna","vzduchotechnika, gastro-technologie",2,"ne","RHP, hydrant","oplocení areálu, částečně okenní mříže","ano","skleněná s dřevěným rámem / kovové s prosklením","vzrostlé stromy",36120000,"Škol"]
[null,null,null,"bez č.p.","Letohrad",56151,1342,4300,24,60,"Pardubický kraj",1,24,"přístřešek ","zděná","pultová","střešní fólie","sklad","ne",3,"ne","standartní (RHP)","minimální (oplocení areálu)","ano","skleněná s plastovým rámem / dřevěné","vzrostlé stromy",288960,"Škol"]
[null,null,null,"Ústecká 36","Letohrad",56151,293,4300,1333,8800,"Pardubický kraj",1,1333,"budova","zděná","pultová","plech","dílny školy","strojírenská",3,"ne","standartní (RHP)","EZS, oplocení areálu","ano","skleněná s dřevěným rámem / dřevěné s prosklením","vzrostlé stromy, vodní toky",42380800,"Škol"]
[null,null,null,"bez č.p.","Letohrad",56151,"920/1",4300,340,2900,"Pardubický kraj ",3,1020,"budova","zděná","sedlová","plech","škola","ne",2,"ne","standartní (RHP)","minimální (oplocení areálu)",null,"skleněná s plastovým rámem","vzrostlé stromy, vodní toky",13966400,"Škol"]
[null,null,null,"bez č.p.","Letohrad",56151,"1255/1",4300,100,455.1,"Pardubický kraj",2,200,"budova","zděná","plochá","střešní fólie","trafostanice","trafo",3,"olej v transtormátoru","standartní (RHP)","minimální (oplocení areálu)","ano","prosklení / plechová vrata, dveře","vzrostlé stromy",2191280,"Škol"]
[null,null,null,"bez č.p.","Letohrad",56151,"480,1519, 64/2",4300,{"$f":"42+2+59","v":103},495,"Pardubický kraj",1,103,"budova","zděná","sedlová","střešní tašky","malá vodní elektrárna","strojní vybavení elektrárny",3,"ne","standartní (RHP)","minimální (oplocení areálu)","ano","skleněná s dřevěným rámem / dřevěné s prosklením","vzrostlé stromy, vodní toky",2383920,"Škol"]
[37,"Střední odborná škola elektrotechnická a strojní a Střední odborné učiliště, Pardubice, Do Nového 1131",15050351,"Do Nového 1131","Pardubice","530 03","4881/1,3",4300,580,9300,"Pardubický kraj",5,2900,"budova","zděná","plochá","střešní fólie","škola","ne",3,"ne","RHP, hydranty","minimální (oplocení areálu)","ano","skleněná s dřevěným rámem / dřevěné s prosklením","minimální",44258700,"Škol"]
[null,null,null,"Do Nového 1131","Pardubice","530 03","4881/3",null,590,null,"Pardubický kraj",2,{"$f":"L122*I122","v":1180},"budova","zděná","plochá","střešní fólie","škola, kotelna","strojní vybavení kotelny  ",3,"zemní plyn ","RHP, hydranty","minimální (oplocení areálu)","ano","skleněná s dřevěným rámem / dřevěné s prosklením","minimální"]
[null,null,null,"bez č.p.","Pardubice","530 03","4881/2",4300,20,50,"Pardubický kraj",1,20,"budova","dřevěná","sedlová","eternit","vrátnice školy","ne",3,"ne","standartní (RHP)","minimální (oplocení areálu)","ano","skleněná s dřevěným rámem / dřevěné s prosklením","minimální",237950,"Škol"]
[null,null,null,"bez č.p.","Pardubice","530 03","4882/3,4,5",4300,{"$f":"958+15+31","v":1004},2375,"Pardubický kraj",1,1004,"budova","dřevěná","sedlová","vlnitý plech","sklady, šatny, provozní úsek a spojovací chodba","solární panely",3,"ne","standartní (RHP)","minimální (oplocení areálu)","ano","skleněná s dřevěným rámem / dřevěné s prosklením","minimální",11302625,"Škol"]
[null,null,null,"bez č.p.","Pardubice",53003,"4881/4,5",1055,{"$f":"150+29","v":179},540,"Pardubický kraj",1,179,"budova","zděná, dřevěná","pultová, sedlová","vlnitý plech, plech","sklad, sklad chemikálií","ne ",3,"omezené množství chemických látek","standartní (RHP)","minimální (oplocení areálu)","ano","skleněná s dřevěným rámem / plechová vrata","vzrostlé stromy",2569860,"Škol"]
[null,null,null,"Do Nového 94","Pardubice","530 03","504/1",4300,347,2720,"Pardubický kraj",2,694,"budova","zděná ","valbová","plech","škola","ne",3,"ne","RHP, hydranty","minimální (oplocení areálu)","ano","skleněná s dřevěným rámem / dřevěné s prosklením","minimální",12944480,"Škol"]
[null,null,null,"bez č.p.","Pardubice","530 03","504/3, 504/8",4300,{"$f":"694+524","v":1218},13398,"Pardubický kraj",3,3654,"budova","zděná","plochá","střešní fólie","škola","ne",3,"ne","RHP, hydranty","EZS, oplocení areálu","ano","skleněná s dřevěným rámem / dřevěné s prosklením","minimální",63761082,"Škol"]
[null,null,null,"bez č.p.","Pardubice","530 03","504/4,504/9",4300,{"$f":"204+44","v":248},744,"Pardubický kraj",1,248,"budova","zděná","sedlová","plech","sklad","ne",3,"ne","standartní (RHP)","oplocení areálu, částečně okenní mříže","ano","skleněná s dřevěným rámem / dřevěné s prosklením","vzrostlé stromy",3540696,"Škol"]
[null,null,null,"bez č.p.","Pardubice",53003,"8353/1,8353/2",4300,{"$f":"110+29","v":139},1100,"Pardubický kraj",1,139,"budova","zděná","pultová","střešní fólie","budova trafostanice","trafo",2,"olej v transtormátoru","standartní (RHP)","minimální (oplocení areálu)","ano","ventilace / plechová vrata","minimální",5234900,"Škol"]
[null,null,null,"Do Nového 1406","Pardubice","530 03","4880/3, 4880/4",4300,{"$f":"146+272","v":418},3080,"Pardubický kraj ",2,836,"budova","zděná","sedlová","plech","učebny praktického výcviku, reklamní agentura","ne ",3,"ne","RHP, hydranty","minimální (oplocení areálu)","ano","skleněná s dřevěným rámem / plastové s prosklením","vzrostlé stromy",14657720,"Škol"]
[null,null,null,"č.p. 67","Benecko","512 37",54,4300,215,1075,"Pardubický kraj",1,215,"budova","zděná, dřevěná","sedlová","plech","školící a výcvikové středisko","ne",3,"ne","standartní (RHP)","minimální","ne","skleněná s dřevěným rámem / dřevěné","vzrostlé stromy, vandalismus",5115825,"Škol"]
[{"$f":"+A121+1","v":38},"Střední průmyslová škola stavební Pardubice","00191191","Sokolovská 148","Rybitví","533 54","372-invent. č. 61",4300,377,6409,"Pardubický kraj",3,1131,"budova","zděná","sedlová","plech","sklad","ne",3,"ne","standartní (RHP)","minimální (oplocení areálu)","ne","skleněná s dřevěným rámem / dřevěné","minimální",30865744,"Škol"]
[null,null,null,"bez č.p.","Rybitví","533 54","822-invent. č. 58",4300,723,7960,"Pardubický kraj",3,2169,"budova","zděná","plochá","plech","PSV dílny, kovářské dílny","strojírenská, vzduchotechnika",3,"ne","standartní (RHP)","EZS, oplocení areálu","ano","skleněná s plastovým rámem / plechová vrata","minimální",42501200,"Škol"]
[null,null,null,"bez č.p.","Rybitví","533 54","370-invent. č. 57",null,153,865,"Pardubický kraj",1,153,"přístřešek","kovová","sedlová","vlnitý plech","sklad plechu","ne",3,"ne","ne","minimální (oplocení areálu","ano","ne","minimální"]
[null,null,null,"bez č.p.","Rybitví","533 54","823-invent. č. 59",4300,850,2784,"Pardubický kraj",2,1700,"budova","zděná","plochá","střešní fólie","administrativní budova","ne",2,"ne","standartní (RHP)","kamerový systém, oplocení areálu","ano","skleněná s dřevěným rámem / dřevěné s prosklením","minimální",13407744,"Škol"]
[null,null,null,"bez č.p.","Rybitví","533 54","370-invent. č. 170",4300,24,72,"Pardubický kraj",1,24,"garáž","zděná","plochá","plech","sklad, garáž","ne",3,"invent. č. 170 - hořlaviny ","standartní (RHP)","minimální (oplocení areálu)","ano","prosklení / plechová vrata","minimální",693504,"Škol"]
[null,null,null,"bez č.p.","Rybitví","533 54","370-invent. č. 203 ",null,24,72,"Pardubický kraj",1,24,"garáž","zděná","plochá","plech","sklad, garáž","ne",3,"ne","standartní (RHP)","minimální (oplocení areálu)","ano","prosklení / plechová vrata","minimální"]
[null,null,null,"bez č.p.","Rybitví","533 54","370-invent. č. 34",4300,875,1872,"Pardubický kraj",1,875,"budova","zděná","plochá","střešní fólie","tělocvična školy","vzduchotechnika",2,"ne","standartní (RHP)","kamerový systém,v přízemí okenní mříže,oplocení areálu","ano","skleněná v kovovém a dřevěném rámu / dřevěné","minimální",9015552,"Škol"]
[null,null,null,"Sokolovská 147","Rybitví","533 54","374-invent. č. 60",4300,379,6443,"Pardubický kraj",3,1137,"budova","zděná","sedlová","plech","domov mládeže","ne",3,"ne","RHP, hydranty","minimální (oplocení areálu)","ano","skleněná s dřevěným rámem / dřevěné s prosklením","minimální",31029488,"Škol"]
[null,null,null,"Sokolovská 164","Rybitví","533 54","601-invent. č. 62 ",4300,528,6912,"Pardubický kraj",3,1584,"budova","zděná","sedlová","plech","učebny, sklad, ubytovna","ne",3,"ne","EPS, RHP, hydranty","1. patro EZS, oplocení areálu","ano","skleněná s dřevěným rámem / dřevěné s prosklením","minimální",33288192,"Škol"]
[null,null,null,"bez č.p.","Rybitví","533 54","681-invent. č. 7727",4300,475,6580,"Pardubický kraj",4,1900,"budova","zděná","plochá","střešní fólie","internát školy","ne",2,"ne","protipožární dveře,RHP,hydrant","minimální (oplocení areálu)","ano","skleněná s dřevěným,plastovým rámem / kovové s prosklením","minimální",31689280,"Škol"]
[null,null,null,"bez č.p.","Rybitví","533 54","683-invent. č.55 a 218",4300,984,5760,"Pardubický kraj",1,984,"budova","zděná","sedlová","plech","kuchyně, jídelna školy","gastro-technologie",2,"zemní plyn","RHP, hydrant","částečně mříže na oknech a dveřích, oplocení areálu","ano","skleněná s plastovým rámem / dřevěné s prosklením","minimální",27740160,"Škol"]
[null,null,null,"bez č.p.","Rybitví","533 54","684-invent. č. 7728 ",4300,489,3010,"Pardubický kraj",2,{"$f":"L143*I143","v":978},"budova","zděná","plochá","střešní fólie","vrátnice školy","ne",3,"ne","RHP, hydrant","minimální (zadní část objektu oplocena)","ano","skleněná s dřevěným rámem / dřevěné s prosklením","vandalismus",14496160,"Škol"]
[null,null,null,"bez č.p.","Rybitví","533 54","370-invent. č. 56",4300,2172,9383,"Pardubický kraj",3,6516,"budova","zděná","plochá ","střešní fólie","škola","ne",1,"ne","EPS, hydranty","EZS, oplocení areálu","ano","skleněná s plastovým rámem / plastové s prosklením","minimální",13407744,"Škol"]
[null,null,null,"Sokolovská 150","Rybitví","533 54","682-inv.č.7729,7730,10032",4300,1111,4037,"Pardubický kraj",1,1111,"budova","zděná","plochá","střešní fólie","dílny školy","strojírenská",3,"ne","standartní (RHP)","EZS, oplocení areálu","ano","skleněná s dřevěným rámem / kovové s prosklením","minimální",46532192,"Škol"]
[null,null,null,"bez č.p.","Rybitví","533 54","743-invent.č. 10025",null,1262,5625,"Pardubický kraj",1,1262,"budova","zděná","plochá","střešní fólie","dílny školy","strojírenská",3,"ne","standartní(RHP)","EZS, oplocení areálu","ano","skleněná s dřevěným rámem / kovové s prosklením","minimální"]
[null,null,null,"J. Potůčka 260","Pardubice","530 09","390-invent. č. 6795 ",4300,424,3180,"Pardubický kraj",2,848,"budova","zděná","plochá","střešní fólie","škola","ne ",3,"ne","RHP, hydrant","minimální (oplocení areálu)","ano","skleněná s dřevěným rámem / kovové s prosklením","vzrostlé stromy",15314880,"Škol"]
[null,null,null,"bez č.p.","Pardubice","530 09","394-invent. č. 6835",4300,94,100,"Pardubický kraj",1,94,"přístřešek","zděná","pultová","plech","sklad","ne",3,"ne","ne","minimální (oplocení areálu)","ano","ne / kovová vrata","vzrostlé stromy",481600,"Škol"]
[null,null,null,"Na Lužci","Lázně Bohdaneč","533 41","2156-invent. č. 1801001",4300,377,2156,"Pardubický kraj",1,377,"budova","zděná","plochá","střešní fólie","do pronájmu","ne",3,"ne","standartní (RHP)","okenní mříže (oplocení zadní části objektu)","ano","skleněná s dřevěným rámem / dřevěné","vandalismus",6236720,"Škol"]
[39,"Střední odborná škola a Střední odborné učiliště Lanškroun",15028216,"Kollárova 445","Lanškroun",56301,1444,4300,408,8976,"Pardubický kraj",4,1632,"budova","zděná","plochá","střešní fólie","škola","ne",2,"ne","RHP, hydrant","EZS","ano","skleněná s plastovým rámem / dřevěné s prosklením","vandalismus",42362412,"Škol"]
[null,null,null,"Krátká 310","Lanškroun",56301,3054,4300,1013,6700,"Pardubický kraj",2,2026,"budova","zděná","plochá","střešní fólie","domov mládeže","ne",3,"ne","RHP, hydrant","EZS, oplocení areálu","ano","skleněná s plastovým rámem / plastové s prosklením","vzrostlé stromy",31620784,"Škol"]
[null,null,null,"Krátká 310","Lanškroun",56301,"1801/5",1000,null,1247.6469999999999,"Pardubický kraj",null,0,null,null,null,null,"sportovní hřiště","ne",2,"ne","hydrant","oplocení","ano",null,"vandalismus, vzrostlé stromy",5889961,"Škol"]
[null,null,null,"Lidická 199","Lanškroun",56301,"563/2",4300,436,5930,"Pardubický kraj",2,872,"budova","zděná","plochá","střešní fólie","škola","ne",3,"ne","RHP, hydrant","EZS","ano","skleněná s plastovým rámem / plastové s prosklením","vandalismus",27986754,"Škol"]
[null,null,null,"Sokolská 288","Lanškroun",56301,"3347/1",4300,3120,24960,"Pardubický kraj",2,6240,"budova","zděná","sedlová","vlnitý plech","škola","gastro-technologie, vzduchotechnika, klimatizace",1,"ne","RHP, hydrant","EZS, osvětlení a oplocení objektu","ano","skleněná s plastovým rámem / plastová s prosklením","vzrostlé stromy",117799219,"Škol"]
[40,"Střední odborná škola a Střední odborné učiliště obchodu a služeb, Chrudim, Čáslavská 205",13582259,"Čáslavská 205","Chrudim",53701,"328/1",4300,1852,16281,"Pardubický kraj",3,5556,"budova","zděná","sedlová","pálená taška","škola","gastro-technologie",2,"ne","RHP, EPS","EZS, oplocení objektu","ano","skleněná s dřevěným rámem / dřevěné","vzrostlé stromy",78409296,"Škol"]
[null,null,null,"bez č.p.","Chrudim",53701,"328/3",4300,956,8596,"Pardubický kraj",1,956,"hala","dřevěná","plochá","asfaltová lepenka","sportovní hala školy","vzduchotechnika",1,"ne","standartní (RHP)","minimální (oplocení areálu)","ano","skleněná s plastovým rámem / plastové s prosklením","minimální",41398336,"Škol"]
[41,"Střední odborná škola a střední odborné učiliště, Polička, Čs. armády 485",62031961,"Čs. armády 485","Polička",57221,"1255/1",4300,1413,15550,"Pardubický kraj",3,4239,"budova","zděná","valbová","plech","škola, jídelna, kotelna","strojní vybavení kotelny, gastro-technologie, klimatizace",2,"ne","RHP, vnitřní hydranty","bezpečnostní vložky zámku, oplocení areálu","ano","skleněná s plastovým rámem / plastové s prosklením","minimální",74888800,"Škol"]
[null,null,null,"Mánesova 718","Polička",57221,2119,4300,390,2450,"Pardubický kraj",1,390,"budova","zděná","plochá","střešní fólie","dílny školy","ne","v rekonstrukci","ne","ne","minimální (oplocení objektu)","v rekonstrukci","ne","vzrostlé stromy",11799200,"Škol"]
[null,null,null,"bez č.p.","Polička",57221,"1255/2",4300,846,8000,"Pardubický kraj",3,2538,"budova","zděná","plochá","střešní fólie","škola","ne",1,"ne","RHP, hydranty","minimální (oplocení objektu)","ano","skleněná s plastovým rámem / plastové s prosklením","minimální",38528000,"Škol"]
[null,null,null,"bez č.p.","Polička",57221,"1255/3",4300,403,1782,"Pardubický kraj",1,403,"budova","zděná ","sedlová","plech","dílny školy","ne",3,"ne","RHP, hydranty","částečné mříže na oknech, oplocení zadní části objektu","ano","skleněná s dřevěným rámem / dřevěné s prosklením","vandalismus",8582112,"Škol"]
[42,"Střední odborná škola a Střední odborné učiliště technické, Třemošnice, Sportovní 322",15052796,"Sportovní 322","Třemošnice",53843,408,4300,781,9000,"Pardubický kraj",4,3124,"budova","zděná","plochá","lepenka","domov mládeže, správa školy, byty","ne",1,"ne","RHP, hydranty, EPS","EZS - učebna PC, spisovna; oplocení","ano","skleněná s plastovým rámem / plastové s prosklením","minimální",38700000,"Škol"]
[null,null,null,"bez č.p.","Třemošnice",53843,404,4300,44,132,"Pardubický kraj",2,88,"budova","zděná","plochá","střešní fólie","trafostanice","trafo",1,"olej v transtormátoru","standartní (RHP)","minimální (oplocení areálu)","ano","prosklení / plechová vrata","vzrostlé stromy",567600,"Škol"]
[null,null,null,"bez č.p.","Třemošnice",53843,405,4300,397,1985,"Pardubický kraj",1,397,"budova","zděná","plochá","střešní fólie","truhlářská dílna","truhlářské technologie",2,"ne","RHP, hydrant, EPS","minimální (oplocení objektu)","ano","skleněná s dřevěným rámem / dřevěné s prosklením","vzrostlé stromy, vodní toky",8535500,"Škol"]
[null,null,null,"bez č.p.","Třemošnice",53843,406,4300,438,4035,"Pardubický kraj",3,1314,"budova","zděná","plochá","střešní fólie","škola","ne",1,"ne","RHP, hydrant, EPS","EZS","ano","skleněná s plastovým rámem / bezpečnostní dveře","vandalismus",17350500,"Škol"]
[null,null,null,"bez č.p.","Třemošnice",53843,407,4300,1041,6924,"Pardubický kraj",1,1041,"budova","zděná","pultová","střešní fólie","tělocvična","ne",2,"ne","standartní (RHP)","minimální","ano","skleněná s dřevěným rámem / kovové s prosklením","vandalismus",29773200,"Škol"]
[null,null,null,"bez č.p.","Třemošnice",53843,403,4300,1451,10160,"Pardubický kraj",2,2902,"budova","zděná","plochá","střešní fólie","dílny","strojírenská",2,"ne","RHP, hydrant, EPS","EZS - učebna PC","ano","skleněná s dřevěným rámem / kovové s prosklením","vzrostlé stromy, vodní toky",43688000,"Škol"]
[null,null,null,"bez č.p.","Třemošnice",53843,878,4300,80,198,"Pardubický kraj",1,80,"budova","zděná","pultová","střešní fólie","garáže","ne",1,"ne","standartní (RHP)","minimální","ano","prosklení / plechová","minimální",851400,"Škol"]
[null,null,null,"bez č.p.","Třemošnice",53843,884,4300,58,162,"Pardubický kraj",1,58,"budova","zděná","plochá","střešní fólie","truhlářská dílna","strojírenská",1,"ne","RHP, hydrant, EPS","minimální","ano","skleněná s dřevěným rámem / plechové  ","vandalismus",696600,"Škol"]
[43,"Střední odborné učiliště opravárenské, Králiky, Předměstí 427","00087939","Předměstí 427","Králíky","561 69",580,4300,366,37536,"Pardubický kraj","2",732,"budova","zděná","pultová","plech","učebny školy, dílny školy","vzduchotechnika",3,"ne","RHP, hydrant","kamerový systém, bezpečnostní vložka zámku, oplocení","ano","skleněná s dřevěným rámem / dřevěné s prosklením","vandalismus",180773376,"Škol"]
[null,null,null,"Předměstí 427","Králíky","561 69",580,null,4360,null,"Pardubický kraj","1",{"$f":"L170*I170","v":4360},"budova","zděná","pultová","plech","učebny školy, dílny školy, hala","vzduchotechnika",3,"ne","RHP, hydrant","kamerový systém, bezpečnostní vložka zámku, oplocení","ano","skleněná s dřevěným rámem / dřevěné s prosklením","vandalismus"]
[null,null,null,"Předměstí 430, 431","Králíky",56169,607.60799999999995,4300,{"$f":"149+149","v":298},2700,"Pardubický kraj",2,596,"budova","zděná","valbová","eternit","ubytovna","ne",3,"ne","RHP, hydrant","kamerový systém, bezpečnostní vložka zámku, oplocení","ano","skleněná s dřevěným rámem / kovové s prosklením","vandalismus",13003200,"Škol"]
[null,null,null,"bez č.p.","Králíky",56169,1056,4300,36,200,"Pardubický kraj",1,36,"budova","zděná","pultová","eternit","trafostanice","trafo",3,"olej v transtormátoru","standartní (RHP)","kamerový systém","ano","prosklení / plechové","vzrostlé stromy",963200,"Škol"]
[null,null,null,"bez č.p.","Králíky",56169,1055,4300,333,1733,"Pardubický kraj",1,333,"garáž","zděná","plochá","plech","garáže","ne",2,"ne","standartní (RHP)","kamerový systém, bezpečnostní vložky zámků, oplocení","ano","prosklení / plechová vrata","vzrostlé stromy",8346128,"Škol"]
[null,null,null,"bez č.p.","Králíky",56169,1436,4300,282,1740,"Pardubický kraj",1,282,"hala","železobeton, ocel","sedlová","plech","sklad","ne",3,"ne","standartní (RHP)","kamerový systém, bezpečnostní vložka zámku, oplocení","ano","skleněná s kovovým rámem / plechová vrata","vzrostlé stromy",8379840,"Škol"]
[null,null,null,"bez č.p.","Králíky",56169,610,4300,226,968,"Pardubický kraj",1,226,"budova","zděná","sedlová","eternit","sklad","ne",3,"omezené množství HK","standartní (RHP)","kamerový systém, bezpečnostní vložka zámku, oplocení","ano","skleněná s dřevěným rámem / plechové","vzrostlé stromy",4661888,"Škol"]
[null,null,null,"Předměstí 432","Králíky",56169,581,4300,319,2560,"Pardubický kraj",2,638,"budova","zděná","valbová,pultová","eternit, plech","jídelna","gastro-technologie,klimatizace",1,"ne","RHP, hydrant","kamerový systém, bezpečnostní vložka zámku, oplocení","ano","skleněná s dřevěným rámem / dřevěné s prosklením","vzrostlé stromy",12328960,"Škol"]
[null,null,null,"Předměstí 428","Králíky",56169,582,4300,254,2340,"Pardubický kraj",2,508,"budova","zděná","valbová","eternit","ubytovna","ne",3,"ne","RHP, hydrant","kamerový systém, bezpečnostní vložka zámku, oplocení","ano","skleněná s dřevěným rámem / dřevěné s prosklením","vzrostlé stromy",11269440,"Škol"]
[null,null,null,"Předměstí 205","Králíky",56169,1,4300,482,3750,"Pardubický kraj",1,482,"budova","zděná","sedlová","eternit","tělocvična","ne",3,"ne","RHP, hydrant","kamerový systém, bezpečnostní vložka zámku, oplocení","ano","skleněná s dřevěným rámem / dřevěné s prosklením","vzrostlé stromy",18060000,"Škol"]
[null,null,null,"Předměstí 429","Králíky",56169,4,4300,749,4895,"Pardubický kraj",3,2247,"budova","zděná","sedlová","eternit","domov mládeže","ne",3,"ne","RHP, hydrant","kamerový systém, bezpečnostní vložka zámku, oplocení","ano","skleněná s dřevěným rámem / dřevěné s prosklením","vandalismus",23574320,"Škol"]
[{"$f":"+A169+1","v":44},"Střední odborné učiliště plynárenské Pardubice",15050670,"Poděbradská 93","Pardubice","530 09",7030,4300,989,8000,"Pardubický kraj",7,6923,"budova","zděná, železobetonové panely-domov mládeže","plochá","střešní fólie","domov mládeže, administrativní budova, učebny a šatny","ne",2,"ne","RHP, hydranty vnitřní a vnější, protipožární dveře","EZS","ano","skleněná s plastovým rámem ","vandlismus",38528000,"Škol"]
[null,null,null,"bez č.p.","Pardubice","530 09",7031,4300,1061,6450,"Pardubický kraj",1,1061,"budova","zděná","plochá ","střešní fólie","dílny školy","strojírenská",2,"omezené množství hořlavin, technické plyny","RHP, hydranty vnitřní a vnější ","EZS","ano","skleněná s kovovým rámem / kovové se skleněnou výplní","minimální",31063200,"Škol"]
[null,null,null,"bez č.p.","Pardubice","530 09",7032,4300,171,430,"Pardubický kraj",1,171,"budova","zděná","plochá","střešní fólie","kancelár, dílny, sklad, garáže","ne",2,"ne","RHP, hydranty vnitřní a vnější","EZS","ano","skleněná s dřevěným rámem / plechová vrata","minimální",2070880,"Škol"]
[null,null,null,"bez č.p.","Pardubice","530 09",8111,4300,376,1880,"Pardubický kraj",1,376,"budova","zděná","plochá","střešní fólie","jídelna","gastro-technologie",2,"ne","RHP, hydranty vnitřní a vnější, protipožární dveře","EZS","ano","skleněná s dřevěným rámem / dřevěné","vandalismus, vzrostlé stromy",9054080,"Škol"]
[null,null,null,"bez č.p.","Pardubice","530 09",8665,4300,1196,8400,"Pardubický kraj",2,2392,"budova","zděná","plochá","střešní fólie","dílny a tělocvična školy","vzduchotechnika",2,"omezené množství hořlavin, technické plyny","RHP, hydranty vnitřní a vnější","EZS","ano","skleněná s dřevěným rámem / kovové se skleněnou výplní","minimální",40454400,"Škol"]
[null,null,null,"bez č.p.","Pardubice","530 09",8666,4300,91,273,"Pardubický kraj",1,91,"přístřešek","zděná","částečně pultová","plech","přístřešek - kolárna","ne ",3,"ne","ne","minimální","ano","ne","vzrostlé stromy, vandalismus",1314768,"Škol"]
[{"$f":"+A180+1","v":45},"Střední odborné učiliště Svitavy",15034569,"Nádražní 1083/8","Svitavy",56802,995,4300,910,2367,"Pardubický kraj","2",1820,"budova","zděná","sedlová","eternit","škola, dílna pro OV","strojírenská",1,"svařovací soupravy, technické plyny","RHP, vnitřní hydranty","EZS, pohybová čidla, částečně mříže na oknech, dveřích","ano","skleněná s dřevěným rámem / dřevěné s prosklením","vandalismus, vzrostlé stromy, vodní toky",10125858,"Škol"]
[null,null,null,"Nádražní 1083/8","Svitavy","568 02",995,null,520,null,"Pardubický kraj","1",520,"budova","zděná","plochá","střešní fólie","dílna pro OV, tlaková stanice na svařovací plyny","strojírenská",1,"svařovací soupravy, technické plyny","RHP, vnitřní hydranty","EZS, pohybová čidla, částečně mříže na oknech, dveřích","ano","skleněná s plastovým rámem / plastová s prosklením","vandalismus, vzrostlé stromy, vodní toky"]
[null,null,null,"bez č.p.","Svitavy",56802,3459,1055,23,105,"Pardubický kraj",1,23,"garáž","dřevěná","sedlová","střešní tašky","garáž","ne",1,"ne","ne","visasí zámek, oplocení objektu","ano","ne / dřevěná vrata","vodní toky",415161,"Škol"]
[null,null,null,"Alešova 1329, 1330","Svitavy",56802,1258.1259,4300,{"$f":"157+156","v":313},3130,"Pardubický kraj",3,939,"budova","zděná","sedlová","eternit","škola","ne",1,"ne","standartní (RHP)","zámek FAB, oplocení areálu","ano","skleněná s plastovým rámem / dřevěné s prosklením","vzrostlé stromy",12375753,"Škol"]
[null,null,null,"Richarda Kloudy 1134","Svitavy",56802,1028,4300,306,4950,"Pardubický kraj",2,612,"budova","zděná","valbová","střešní tašky","škola","ne",1,"ne","RHP, vnitřní hydranty","EZS, pohybová čidla ","ano","skleněná s dřevěným rámem / dřevěné s prosklením","vandalismus",19571878,"Škol"]
[null,null,null,"Brněnská 307","Svitavy",56802,215,4300,813,6480,"Pardubický kraj",2,1626,"budova","zděná","sedlová","střešní tašky","škola","ne",2,"ne","RHP, vnitřní hydranty","nepřetržitý provoz, oplocení areálu","ano","skleněná s plastovým rámem / dřevěné s prosklením","vandalismus",25621367,"Škol"]
[46,"Střední odborné učiliště zemědělské, Chvaletice, Žižkova 139","00087840","Žižkova 139","Chvaletice","533 12",371,4300,1633,15558,"Pardubický kraj",3,4899,"budova","zděná","sedlová","vlnitý plech","škola","gastro-technologie",1,"ne","RHP, hydrant","minimální (oplocení areálu)","ano","skleněná s plastovým rámem / plastové s prosklením","vandalismus",74927328,"Škol"]
[null,null,null,"bez č.p.","Chvaletice","533 12",372,4300,1343,9352,"Pardubický kraj",1,1343,"budova","zděná","sedlová","plech","učebny pro odborný výcvik","strojírenská, vzduchotechnika",1,"minimální množství HK","RHP, hydrant","minimální (oplocení areálu)","ano","skleněná s plastovým rámem / plechová vrata, zásuvná vrata s prosklením","vzrostlé stromy",45039232,"Škol"]
[null,null,null,"bez č.p.","Chvaletice","533 12",373,4300,245,756,"Pardubický kraj",1,245,"garáže","zděná","sedlová","plech","garáže","ne",2,"ne","standartní (RHP)","minimální (oplocení areálu)","ano","prosklení / plechová vrata","vzrostlé stromy",3640896,"Škol"]
[null,null,null,"bez č.p.","Chvaletice","533 12","374, 1237",4300,{"$f":"280+185","v":465},1836,"Pardubický kraj",1,465,"hala","zděná","plochá, oblouková","plech","dílny školy","strojírenská",1,"minimální množství HK","standartní (RHP)","minimální (oplocení areálu)","ano","skleněná s plastovým rámem / plechová vrata, zásuvná vrata s prosklením","vzrostlé stromy",8842176,"Škol"]
[null,null,null,"bez č.p.","Chvaletice","533 12",1236,4300,322,736,"Pardubický kraj",1,322,"hala","kovová","sedlová","plech","dílny školy","strojírenská",2,"minimální množství HK","standartní (RHP)","EZS, osvětlení a oplocení areálu","ano","skleněná s kovovým rámem / plechová vrata","vandalismus, vzrostlé stromy",6742400,"Škol"]
[47,"Střední průmyslová škola elektrotechnická a Vyšší odborná škola, Pardubice, Karla IV. 13",48161217,"Karla IV. 13","Pardubice","531 69","314/1",4300,2380,40000,"Pardubický kraj",3,7140,"budova","zděná","pultová","plechová, lepenka","škola","vzduchotechnika, klimatizace",2,"ne","RHP, vnitřní hydrant","EZS, oplocení zadní části areálu, kamerový systém, v přízemí okenní mříže","ano","skleněná s plastovým rámem / dřevěné s prosklením","vandalismus",192400000,"Škol"]
[null,null,null,"bez č.p.","Pardubice","531 69","314/2",4300,290,3100,"Pardubický kraj",1,290,"budova","zděná","valbová","eternit","škola","vzduchotechnika, klimatizace",2,"ne","RHP, vnitřní hydrant","EZS","ano","skleněná s dřevěným rámem / dřevěné s prosklením","vzrostlé stromy",14911000,"Škol"]
[null,null,null,"bez č.p.","Pardubice","531 69","314/3",4300,122,490,"Pardubický kraj",1,122,"budova","zděná","plochá","plech","sklad","ne",2,"ne","standartní (RHP)","oplocení areálu, kamerový systém","ano","prosklení / plechové","minimální",2356900,"Škol"]
[null,null,null,"bez č.p.","Pardubice","531 69",6803,null,499,4150,"Pardubický kraj",3,1497,"budova ","zděná","plochá","střešní fólie","škola","ne",1,"ne","standartní (RHP)","EZS, oplocení zadní části objektu a kamerový systém","ano","skleněná s plastovým rámem / plastové s prosklením","vandalismus"]
[null,null,null,"bez č.p.","Pardubice","531 69",7311,4300,77,350,"Pardubický kraj",1,77,"budova","zděná","plochá","plech","trafostanice","trafo",2,"olej v transtormátoru","standartní ( RHP )","oplocení zadní části objektu a kamerový systém","ano","prosklení / plechová vrata","vandalismus",21645000,"Škol"]
[{"$f":"+A197+1","v":48},"Střední průmyslová škola chemická Pardubice",48161179,"Poděbradská 94","Pardubice","530 09",7026,4300,3051,16622,"Pardubický kraj",3,9153,"budova","zděná","pultová","střešní fólie","škola, kuchyně, jídelna","gastro-technologie",2,"ne","RHP, hydrant","EZS","ano","skleněná s dřevěným rámem / kovové s prosklením","vzrostlé stromy",80051552,"Škol"]
[null,null,null,"bez č.p.","Pardubice","530 09",7029,4300,1768,11352,"Pardubický kraj",3,5304,"budova","zděná","plochá","střešní fólie","škola","vzduchotechnika",2,"ne","RHP, hydrant","EZS","ano","skleněná s dřevěným rámem / kovové s prosklením","vandalismus, vzrostlé stromy",54671232,"Škol"]
[null,null,null,"bez č.p.","Pardubice","530 09",7027,4300,667,6800,"Pardubický kraj",3,2001,"budova","zděná","plochá","střešní fólie","tělocvična, škola","ne",2,"ne","RHP, hydrant","EZS","ano","skleněná s dřevěným rámem / kovové s prosklením","vandalismus",32748800,"Škol"]
[null,null,null,"bez č.p.","Pardubice","530 09","7028, 9282",4300,{"$f":"73+82","v":155},532,"Pardubický kraj",1,155,"sklad, garáž","zděná","pultová","plech","sklad, garáž","ne ",3,"omezené množství HK","standartní (RHP)","minimální","ano","skleněná s dřevěným rámem / plechová vrata","vandalismus, vzrostlé stromy",2562112,"Škol"]
[49,"Střední průmyslová škola Chrudim",15052591,"Čáslavská 973","Chrudim",53701,3739,4300,1894,30632,"Pardubický kraj",5,9470,"budova","zděná","plochá","střešní fólie","základní budovy, kuchyně, internát","gastro-technologie",3,"ne","standartní (RHP), hydranty","minimální (oplocení objektu)","ano","skleněná s dřevěným rámem / kovové s prosklením","vzrostlé stromy",257003916,"Škol"]
[null,null,null,"Čáslavská 973","Chrudim",53701,3739,null,1037,11200,"Pardubický kraj",3,3111,"budova","zděná","plochá","střešní fólie","speciální učebny","ne",3,"ne","standartní (RHP), hydranty","minimální (oplocení objektu)","ano","skleněná s dřevěným rámem / kovové s prosklením","vzrostlé stromy"]
[null,null,null,"Čáslavská 973","Chrudim",53701,3739,null,4080,19965,"Pardubický kraj",1,4080,"budova","zděná","plochá","střešní fólie","dílny, spojovací chodby, tělocvična","ne",3,"ne","standartní (RHP), hydranty","minimální (oplocení objektu)","ano","skleněná s dřevěným rámem / kovové s prosklením","vzrostlé stromy"]
[null,null,null,"Čáslavská","Chrudim","537 01","985/12, 13, 14",4300,{"$f":"797+2376+163","v":3336},22819,"areál Transporty Chrudim",2,6672,"budova","zděná","sedlová","plech","dílny školy","strojírenská",2,"minimální množství HK","standartní (RHP)","EPS","ano","skleněná s plastovým rámem / plastové s prosklením","minimální",103398720,"Škol"]
[null,null,null,"Vršov 24","Horní Bradlo","538 25",119,4300,320,1880,"Pardubický kraj",1,320,"budova","zděná","polovalbová","střešní tašky","rekreační chata","ne",2,"ne","standartní (RHP)","okenní mříže, oplocení objektu","ne","skleněná s dřevěným rámem / dřevěné","vzrostlé stromy, vandalismus",8544600,"Škol"]
[50,"Střední škola automobilní Holice",13582909,"Nádražní 301","Holice","534 01","213/2",4300,853,7200,"Pardubický kraj",3,2559,"budova","zděná","valbová","střešní tašky","škola, jídelna, kuchyně","gastro-technologie",1,"ne","RHP, hydrant","EZS","ano","skleněná s plastovým rámem / plastové s prosklením","vandalismus",39189600,"Škol"]
[null,null,null,"bez č.p.","Holice","534 01","213/1",4300,1201,6000,"Pardubický kraj",1,1201,"budova","zděná","pultová","plech","dílna","strojírenská, vzduchotechnika",1,"omezené množství HK","standartní (RHP)","EZS","ano","skleněná s plastovým rámem / plastové s prosklením a kovová vrata","minimální",32658000,"Škol"]
[null,null,null,"bez č.p.","Holice","534 01","212/2",4300,343,1715,"Pardubický kraj",1,{"$f":"L213*I213","v":343},"budova","zděná","sedlová, pultová","plech","dílny","solární panely",2,"oleje a PHM","standartní (RHP)","EZS","ano","skleněná s plastovým rámem / plechová vrata","minimální",9334745,"Škol"]
[null,null,null,"bez č.p.","Holice","534 01","214/1",4300,972,3600,"Pardubický kraj",1,972,"budova","zděná","sedlová","plech","dílny","ne",2,"ne","standartní (RHP)","EZS","ano","skleněná s plastovým rámem / plastové s prosklením","minimální",19594800,"Škol"]
[null,null,null,"Nádražní 601","Holice","534 01","215/1",4300,451,2890,"Pardubický kraj",2,902,"budova","zděná","sedlová","betonová taška","administrativní budova školy","klimatizace",3,"ne","standartní (RHP)","EZS","ano","skleněná s dřevěným rámem / dřevěné s prosklením","vandalismus",15730270,"Škol"]
[null,null,null,"Nádražní 1100","Holice","534 01",216,4300,212,3500,"Pardubický kraj",4,848,"budova","zděná","plochá","střešní fólie","domov mládeže","ne",1,"ne","RHP, hydrant","minimální","ano","skleněná s plastovým rámem / plastové s prosklením","vandalismus",19050500,"Škol"]
[null,null,null,"bez č.p.","Dolní Roveň ","533 71",390,4300,511,5180,"Pardubický kraj","3",1533,"budova","zděná","plochá","střešní fólie","internát","ne",2,"ne","RHP, hydrant","částečné mříže na oknech, oplocení areálu","ano","skleněná s plastovým, dřevěným rámem / dřevěné s prosklením","minimální",28194740,"Škol"]
[null,null,null,"bez č.p.","Dolní Roveň ","533 71",380,null,35,null,"Pardubický kraj","1",{"$f":"L218*I218","v":35},"budova","zděná","plochá","střešní fólie","přístřešek","ne",2,"ne","RHP, hydrant","částečné mříže na oknech, oplocení areálu","ano","ne","minimální"]
[null,null,null,"bez č.p.","Dolní Roveň ",53371,"307",2000,40,40,"Pardubický kraj",1,40,"budova","zděná","plochá","plech","sklad","ne",3,"ne","standartní (RHP)","minimální (oplocení areálu)","ano","prosklení / plechové, plechová vrata","vzrostlé stromy",217720,"Škol"]
[null,null,null,"č.p. 189","Dolní Roveň ","533 71",220,4300,2713,7590,"Pardubický kraj",2,5426,"budova","zděná","valbová, plochá","plech","škola","ne",2,"ne","standartní (RHP), hydrant","částečné okenní mříže, oplocení areálu (zadní část)","ano","skleněná s dřevěným rámem / dřevěné","vandalismus",41312370,"Škol"]
[null,null,null,"č.p. 135","Dolní Roveň ","533 71",155,4300,575,7500,"Pardubický kraj",2,1150,"budova","zděná","polovalbová","plech","škola","ne",2,"ne","standartní (RHP), hydrant","minimální (oplocení areálu - zadní část)","ano","skleněná s dřevěným rámem / dřevěné","vandalismus",40822500,"Škol"]
[null,null,null,"bez č.p.","Dolní Roveň ","533 71",282,4300,491,2540,"Pardubický kraj",1,491,"hala, garáž","zděná","sedlová, plochá","vlnitý plech","dílny, garáže","ne",2,"minimální množství HK","standartní (RHP)","minimální (oplocení a osvětlení areálu)","ano","skleněná s dřevěným rámem / plechová vrata","vzrostlé stromy",13825220,"Škol"]
[null,null,null,"bez č.p.","Dolní Roveň ","533 71","305, 306",4300,{"$f":"299+292","v":591},2520,"Pardubický kraj",1,591,"garáž","zděná","sedlová","vlnitý plech","dílny, garáže","strojírenská",3,"minimální množství HK","standartní (RHP)","minimální (oplocení a osvětlení areálu)","ano","skleněná s dřevěným rámem / kovová vrata","minimální",13716360,"Škol"]
[null,null,null,"bez č.p.","Dolní Roveň ","533 71",328,4300,105,577,"Pardubický kraj",2,210,"budova","zděná","plochá","plech","dílny","ne",3,"ne","standartní (RHP)","minimální (oplocení a osvětlení areálu)","ano","skleněná s dřevěným rámem / kovová vrata","vzrostlé stromy",3140611,"Škol"]
[51,"Střední škola automobilní Ústí nad Orlicí","00529842","Dukelská 313","Ústí nad Orlicí",56201,335,4300,1950,20400,"Pardubický kraj",1,1950,"budova","zděná","sedlová","asfaltový šindel","škola","gastro-technologie",3,"ne","RHP, hydrant","EZS, oplocení areálu","ano","skleněná s dřevěným nebo plastovým rámem / plastové s prosklením","vzrostlé stromy",98246400,"Škol"]
[null,null,null,"bez č.p.","Ústí nad Orlicí",56201,336,4300,177,708,"Pardubický kraj",1,177,"garáže","zděná","sedlová","vlnitý plech","garáže, dílny","ne",3,"ne","RHP, hydrant","oplocení areálu, okenní mříže","ano","skleněná s dřevěným rámem / plechová vrata","vzrostlé stromy",3409728,"Škol"]
[null,null,null,"bez č.p.","Ústí nad Orlicí",56201,"865/1",4300,168,1350,"Pardubický kraj",2,336,"budova","zděná","plochá ","střešní fólie","škola, vrátnice","gastro-technologie",2,"ne","RHP, hydranty","EZS","ano","skleněná s plastovým rámem / plastové se skleněnou výplní","vandalismus",6501600,"Škol"]
[null,null,null,"bez č.p.","Ústí nad Orlicí",56201,"865/2",4300,599,8400,"Pardubický kraj",3,1797,"budova","zděná","plochá ","střešní fólie","škola","gastro-technologie",3,"ne","RHP, hydranty","EZS","ano","skleněná s dřevěným rámem / plastové s prosklením","vandalismus",40454400,"Škol"]
[null,null,null,"bez č.p.","Ústí nad Orlicí",56203,1129,4300,198,9511,"Pardubický kraj",2,396,"budova","zděná","plochá","střešní fólie","sportovní hala","vzduchotechnika, klimatizace",1,"ne","RHP, hydrant","minimální (oplocení areálu)","ano","skleněná s plastovým rámem / kovové s prosklením","minimální",45804976,"Škol"]
[null,null,null,"Třebovská 348","Ústí nad Orlicí","562 03","312/1",4300,2084,8400,"Pardubický kraj",1,2084,"budova","zděná","sedlová","plech","dílny učňů","strojírenská, vzduchotechnika",3,"oleje a PHM v omezeném množství","RHP, hydrant","oplocení areálu, infračervená čidla na závorách, pohybová čidla","ano","skleněná s plastovým rámem / plastové s prosklením","minimální",40454400,"Škol"]
[null,null,null,"bez č.p.","Ústí nad Orlicí","562 03",630,4300,378,2232,"Pardubický kraj",1,378,"hala","kov ","oblouková","plachta","dílna, garáž","ne",2,"ne","RHP, hydrant","minimální (oplocení areálu)","ano","ne / plechová vrata","minimální",10749312,"Škol"]
[null,null,null,"bez č.p.","Ústí nad Orlicí","562 03",631,4300,805,4040,"Pardubický kraj",1,805,"budova","zděná","plochá","střešní fólie","učebny praktické výuky","vzduchotechnika",1,"ne","RHP, hydrant","minimální (oplocení areálu)","ano","skleněná s plastovým rámem / plastové se skleněnou výplní","minimální",19456640,"Škol"]
[null,null,null,"bez č.p.","Ústí nad Orlicí","562 03",632,4300,398,2364,"Pardubický kraj",1,398,"budova","zděná","plochá","střešní fólie","dílny","strojírenská, vzduchotechnika",3,"oleje a PHM, omezené množství HK","RHP, hydrant","oplocení areálu, infračervená čidla na závorách, pohybová čidla","ano","skleněná s dřevěným rámem / plechová vrata","minimální",11380024,"Škol"]
[null,null,null,"bez č.p.","Ústí nad Orlicí","562 03",633,4300,390,3990,"Pardubický kraj",2,780,"budova","zděná","plochá","střešní fólie","škola","ne",3,"ne","RHP, hydranty","minimální (oplocení areálu)","ano","skleněná s plastovým rámem / dřevěné s prosklením","minimální",19215840,"Škol"]
[null,null,null,"bez č.p.","Ústí nad Orlicí","562 03",634,4300,580,3870,"Pardubický kraj",2,1160,"budova","zděná","plochá","střešní fólie","dílny školy","strojírenská, vzduchotechnika",3,"omezené množství HK","RHP, hydrant","oplocení areálu, infračervená čidla na závorách, pohybová čidla","ano","skleněná s plastovým rámem / plastové s prosklením","vandalismus",18637920,"Škol"]
[null,null,null,"bez č.p.","Ústí nad Orlicí","562 03","635, 636",4300,{"$f":"40+168","v":208},1103,"Pardubický kraj",1,208,"přístřešek / budova","ocelová / zděná","pultová / plochá","vlnitý plech / střešní fólie","sklad","ne",3,"omezené množství HK","RHP, hydrant","minimální (oplocení objektu)","ano","skleněná s plastovým rámem / plechová vrata","minimální",5312048,"Škol"]
[null,null,null,"bez č.p.","Ústí nad Orlicí","562 03",637,4300,492,3992,"Pardubický kraj",1,492,"budova","zděná","sedlová","vlnitý plech","dílny","strojírenská, vzduchotechnika",3,"omezené množství HK","RHP, hydrant","oplocení areálu, infračervená čidla na závorách, pohybová čidla","ano","skleněné s dřevěným rámem / dřevěné","minimální",19225472,"Škol"]
[null,null,null,"bez č.p.","Ústí nad Orlicí","562 03",654,4300,150,760,"Pardubický kraj",1,150,"budova","zděná","pultová","plech","trafostanice","trafo",3,"olej v transtormátorech","standartní (RHP)","minimální (oplocení areálu)","ano","prosklení / plechová vrata","minimální",3660160,"Škol"]
[null,null,null,"bez č.p.","Ústí nad Orlicí","562 03",907,4300,172,2056,"Pardubický kraj",1,172,"budova","zděná","plochá","střešní fólie, světlíky","dílna školy","strojírenská, vzduchotechnika",3,"ne","RHP, hydrant","oplocení areálu, infračervená čidla na závorách, pohybová čidla","ano","skleněná s dřevěným prosklením / dřevěné","minimální",9901696,"Škol"]
[null,"  ",null,"bez č.p.","Ústí nad Orlicí","562 03",908,4300,142,1000,"Pardubický kraj",1,142,"budova","zděná","sedlová","střešní fólie","sklad","ne",3,"omezené množství HK","RHP, hydrant","oplocení areálu, zámek FAB","ano","skleněná s dřevěným rámem / dřevěná vrata s prosklením","minimální",4816000,"Škol"]
[52,"Střední škola chovu koní a jezdectví Kladruby nad Labem","00087858","č.p. 105","Kladruby nad Labem","533 14","516/11",4300,590,14364,"Pardubický kraj",5,2950,"budova","zděná","plochá","střešní fólie, násyp","učebny školy, domov mládeže, tělocvična","ne",2,"ne","RHP, hydrant","oplocení areálu, zámek FAB","ano","skleněná s plastovým rámem / kovové s prosklením","vzrostlé stromy",69177024,"Škol"]
[null,null,null,"č.p. 105","Kladruby nad Labem","533 14","516/11",null,1416,null,"Pardubický kraj",2,2832,"budova","zděná","plochá","střešní fólie, násyp","učebny školy, domov mládeže, tělocvična","ne",2,"ne","RHP, hydrant","oplocení areálu, zámek FAB","ano","skleněná s plastovým rámem / kovové s prosklením","vzrostlé stromy"]
[null,null,null,"bez č.p.","Kladruby nad Labem","533 14","516/7",4300,283,707,"Pardubický kraj",1,283,"budova","zděná","plochá","plech","garáže","ne",3,"ne","standartní (RHP)","oplocení areálu, visací zámek ","ano","skleněná s dřevěným rámem / plechová vrata","vzrostlé stromy",3404912,"Škol"]
[null,null,null,"č.p. 50","Kladruby nad Labem","533 14","516/8",4300,261,2600,"Pardubický kraj",2,522,"budova","zděná","plochá","střešní fólie","6 bytových jednotek","ne",2,"ne","standartní (RHP)","minimální","ano","skleněná s plastovým rámem / kovové s prosklením","vzrostlé stromy",12521600,"Škol"]
[null,null,null,"bez č.p.","Kladruby nad Labem","533 14","516/10",4300,113,230,"Pardubický kraj",1,113,"budova","zděná","plochá","střešní fólie","vodárna","strojní vybavení vodárny",3,"ne","standartní (RHP)","minimální","ano","skleněná s dřevěným rámem / dřevěné s prosklením","vzrostlé stromy",1107680,"Škol"]
[null,null,null,"bez č.p.","Kladruby nad Labem","533 14","283/3",4300,894,5832,"Pardubický kraj",1,894,"hala","kov, část zděná","sedlová","plech","jezdecká hala","ne",2,"ne","standartní (RHP)","visací zámek","ano","skleněná s kovovým rámem / plechové","vzrostlé stromy",28086912,"Škol"]
[null,null,null,"bez č.p.","Kladruby nad Labem","533 14","516/39",4300,584,2208,"Pardubický kraj",1,584,"budova","zděná","plochá","střešní fólie, násyp","školní kuchyně a jídelna","gastro-technologie, klimatizace",1,"ne","RHP","oplocení areálu, zámek FAB","ano","skleněná s plastovým rámem / plastové s prosklením","vzrostlé stromy",10633728,"Škol"]
[null,null,null,"bez č.p.","Kladruby nad Labem","533 14","516/40",4300,148,420,"Pardubický kraj",1,148,"budova","zděná","plochá","střešní fólie, násyp","mistrovna","ne",1,"ne","standartní (RHP)","oplocení areálu, zámek FAB","ano","skleněná s dřevěným rámem / dřevěné s prosklením","vzrostlé stromy",2022720,"Škol"]
[null,null,null,"č.p. 4","Kladruby nad Labem","533 14",5,4300,189,540,"Pardubický kraj",1,189,"budova","zděná","sedlová","střešní tašky - bobrovky","obytný dům","ne",3,"ne","standartní (RHP)","minimální (oplocení zadní části objektu)","ano","skleněná s dřevěným rámem / dřevěné s prosklením","vandalismus, vzrostlé stromy",2600640,"Škol"]
[53,"Střední škola obchodu, řemesel a služeb Žamberk","00654949","Zámek 1","Źamberk",56401,"1946/1,1946/6",4300,2394,25548,"Pardubický kraj",2,4788,"budova","zděná","sedlová","střešní tašky","škola","ne",2,"ne","RHP, hydrant, EPS","EZS","ano","skleněná s dřevěným rámem / dřevěné s prosklením","vandalismus",123039168,"Škol"]
[null,null,null,"Zámek 1370","Źamberk",56401,"1946/3, 1946/7, 1946/8",4300,{"$f":"482+53+17","v":552},7150,"Pardubický kraj",3,1656,"budova","zděná","valbová","šindel","škola","ne",2,"ne","RHP, hydrant","EZS, okenní mříže v přízemí","ano","skleněná s plastovým rámem / plastové s prosklením","vzrostlé stromy",34434400,"Škol"]
[null,null,null,"Školská 1375","Źamberk",56401,"487/55",4300,1298,7800,"Pardubický kraj",1,1298,"hala","zděná","plochá, oblouková","střešní fólie, plech","sportovní hala","vzduchotechnika",2,"ne","standartní (RHP)","oplocení a osvětlení objektu","ano","skleněná s plastovým rámem / plastové s prosklením","minimální",37564800,"Škol"]
[null,null,null,"Zemědělská 846","Žamberk",56402,4763,null,414,3658,"Pardubický kraj",3,1242,"budova","zděná","plochá","střešní fólie","škola","ne",3,"ne","standartní (RHP), hydrant","minimální","ano","skleněná s plastovým rámem / plastové s prosklením","vandalismus",17614520,"Škol"]
[null,null,null,"Zemědělská 846","Žamberk",56403,"4289/1",null,1457,11297,"Pardubický kraj",1,1457,"budova","zděná","sedlová","plech","dílny","strojírenská",3,"minimální množství HK","RHP, hydrant","EZS","ano","skleněná s dřevěným rámem / plechová vrata s prosklením","vzrostlé stromy",54406352,"Škol"]
[54,"Střední škola potravinářství a služeb Pardubice",48161161,"nám. Republiky 116","Pardubice","531 14","280/1",4300,1736,33470,"Pardubický kraj","4",6944,"budova","zděná","valbová, plochá","střešní tašky, plech","škola","gastro-technologie, vzduchotechnika",2,"ne","RHP, hydrant, EPS","EZS","ano","skleněná s dřevěným a plastovým rámem / dřevěné s prosklením","vandalismus",161179480,"Škol"]
[null,null,null,"nám. Republiky 116","Pardubice","531 14","280/1",null,800,null,"Pardubický kraj","3",{"$f":"L256*I256","v":2400},"budova","zděná","valbová, plochá","střešní tašky, plech","škola","gastro-technologie, vzduchotechnika",2,"ne","RHP, hydrant, EPS","EZS","ano","skleněná s dřevěným a plastovým rámem / dřevěné s prosklením","vandalismus"]
[55,"Střední škola umělecko průmyslová Ústí nad Orlicí","00087408","Zahradní 541","Ústí nad Orlicí",56201,629,4300,2390,33893,"Pardubický kraj",3,7170,"budova","zděná","valbová","plechová","škola","ne",3,"ne","RHP, hydranty","EZS","ano","skleněná s dřevěným rámem / dřevěné s prosklením","vandalismus, vzrostlé stromy",163228688,"Škol"]
[null,null,null,"Zahradní 541","Ústí nad Orlicí",56201,"2075/1",4300,1195,10936,"Pardubický kraj",2,2390,"budova","zděná","plochá","střešní fólie","škola, tělocvična  ","vzduchotechnika",2,"ne","RHP, hydrant","EPS, oplocení areálu","ano","skleněná s plastovým rámem / plastové s prosklením","vzrostlé stromy",52667776,"Škol"]
[null,null,null,"Zahradní 1397","Ústí nad Orlicí",56201,"417/1",4300,384,2305,"Pardubický kraj",1,384,"budova","zděná","polovalbová","střešní fólie","škola","ne",2,"ne","standartní (RHP)","minimální (oplocení objektu)","ano","skleněná s dřevěným rámem / dřevěné","vzrostlé stromy",11100880,"Škol"]
[null,null,null,"Zahradní 1396","Ústí nad Orlicí",56201,"412/3",4300,324,324,"Pardubický kraj",1,324,"garáž","zděná","pultová","střešní fólie","garáže","ne",2,"ne","standartní (RHP)","minimální (oplocení areálu)","ano","prosklení / plechová vrata","minimální",1560384,"Škol"]
[null,null,null,"Nygrinova 547","Ústí nad Orlicí",56201,2822,4300,486,5200,"Pardubický kraj",5,2430,"budova","zděná","plochá","střešní fólie","internát","ne",1,"ne","RHP, hydrant","EZS","ano","skleněná s plastovým rámem / plastové s prosklením","vandalismus",25043200,"Škol"]
[null,null,null,"Špindlerova 1167","Ústí nad Orlicí",56201,1558,4300,1276,20218,"Pardubický kraj",5,6380,"budova","zděná","pultová","střešní fólie","poradna","ne",3,"ne","RHP, hydrant","minimální",null,"skleněná s plastovým rámem / kovové s prosklením","vandalismus",97369888,"Škol"]
[56,"Střední škola zahradnická a technická Litomyšl",72085428,"T. G. Masaryka 659","Litomyšl",57013,986,4300,2449,17700,"Pardubický kraj",4,9796,"budova","zděná","plochá","střešní fólie","škola","gastro-technologie",2,"ne","RHP, hydrant","EZS, oplocení areálu","ano","skleněná s dřevěným rámem / dřevěné s prosklením","minimální",84588300,"Škol"]
[null,null,null,"bez č.p.","Litomyšl",57013,"797/3",4300,560,3080,"Pardubický kraj",1,560,"hala","zděná","sedlová","plech","dílny","strojírenská",2,"ne","RHP, hydrant","minimální (oplocení areálu)","ano","skleněná s dřevěným rámem / plechová vrata","minimální",14719320,"Škol"]
[null,null,null,"bez č.p.","Litomyšl",57013,"797/4",4300,67,670,"Pardubický kraj",1,67,"budova","zděná","polovalbová","střešní tašky","škola, dílny ","ne",1,"ne","RHP, hydrant","minimální (oplocení areálu)","ano","skleněná s plastovým rámem / plastová s prosklením","vzrostlé stromy",3201930,"Škol"]
[null,null,null,"T. G. Masaryka 535","Litomyšl",57013,"797/2",4300,790,7590,"Pardubický kraj",1,790,"budova","zděná","plochá","střešní fólie","škola, dílny","vzduchotechnika",2,"ne","RHP, hydrant","EZS, oplocení areálu","ano","skleněná s plastovým rámem / plastová s prosklením","minimální",36272610,"Škol"]
[null,null,null,"bez č.p.","Litomyšl",57013,1427,4300,377,940,"Pardubický kraj",1,377,"hala","zděná","sedlová","vlnitý plech","dílny","strojírenská",2,"minimální množství HK","RHP, hydrant","minimální (oplocení areálu)","ano","ne / dřevěné s prosklením, plechová vrata","vzrostlé stromy",4492260,"Škol"]
[null,null,null,"bez č.p.","Litomyšl",57013,1428,4300,178,715,"Pardubický kraj",1,178,"hala","ocelová  ","sedlová","vlnitý plech","dílny","ne",2,"ne","standartní (RHP)","minimální (oplocení areálu)","ano","ne / plechová vrata","vzrostlé stromy",3416985,"Škol"]
[null,null,null,"bez č.p.","Litomyšl",57013,1429,4300,1227,6200,"Pardubický kraj",1,1227,"hala","zděná","plochá","střešní fólie","dílny","ne",2,"ne","RHP, hydrant","oplocení areálu, okenní mříže v přízemí","ano","prosklení / plechová vrata","minimální",29629800,"Škol"]
[null,null,null,"bez č.p.","Litomyšl",57013,1430,4300,527,4250,"Pardubický kraj",1,527,"hala","zděná","plochá","střešní fólie","dílny","strojírenská",2,"minimální množství HK","standartní (RHP)","minimální (oplocení areálu)","ano","skleněná s dřevěným rámem, prosklení / plechové","minimální",20310750,"Škol"]
[null,null,null,"bez č.p.","Litomyšl",57013,2198,4300,62,135,"Pardubický kraj",1,62,"budova","zděná","sedlová","plech","sklad","ne",2,"ne","standartní (RHP)","minimální (oplocení areálu)","ano","skleněná s dřevěným rámem / plechové","vzrostlé stromy",645165,"Škol"]
[null,null,null,"T.G. Masaryka 650","Litomyšl",57013,"933/1",4300,1241,14100,"Pardubický kraj",3,3723,"budova","zděná","sedlová","střešní tašky","škola","ne",2,"ne","RHP, hydrant","minimální (oplocení areálu)","ano","skleněná s dřevěným rámem / dřevěné s prosklením","vandalismus",67383900,"Škol"]
[null,null,null,"bez č.p.","Litomyšl",57013,"933/2",4300,298,745,"Pardubický kraj",3,894,"garáž, přístřešek","zděná","pultová","střešní tašky","garáž","ne",2,"ne","standartní (RHP)","minimální (oplocení areálu)","ano","ne / plechová vrata","vzrostlé stromy",3560355,"Škol"]
[null,null,null,"Babí 56","Trutnov","541 00",116,4300,180,2270,"Pardubický kraj",1,180,"budova","zděná","sedlová","plech","výcvikové středisko","ne",3,"ne","standartní (RHP)","minimální","ne","skleněná s dřevěným rámem / dřevěné s prosklením","vandalismus",10848330,"Škol"]
[null,null,null,"T. G. Masaryka 527","Litomyšl",57001,"797/1",4300,798,8160,"Pardubický kraj",2,1596,"budova","zděná","valbová","střešní tašky","škola","ne",3,"ne","RHP, hydrant","oplocení areálu, suterén okenní mříže","ano","skleněná s dřevěným rámem, prosklení / plechové","vzrostlé stromy",38996640,"Škol"]
[null,null,null,"T. G. Masaryka 1160","Litomyšl",57001,2247,4300,274,1090,"Pardubický kraj",1,274,"budova","zděná","sedlová","střešní tašky","učebny praktického výcviku ","ne",2,"ne","standartní (RHP)","minimální (oplocení areálu)","ano","skleněná s plastovým rámem / dřevěné s prosklením","vzrostlé stromy",5209110,"Škol"]
[null,null,null,"bez č.p.","Litomyšl",57001,2753,4300,330,2800,"Pardubický kraj",2,660,"budova","zděná",null,null,null,null,null,null,null,null,null,null,null,null,"Škol"]
[null,null,null,"čp.1192","Litomyšl","570 01",2748.2748999999999,4300,{"$f":"440+339","v":779},5884,"Pardubický kraj",2,1558,"budova","zděná","sedlová","střešní tašky","domov mládeže, garáže","ne",2,"ne","standartní (RHP), hydrant","minimální","ano","skleněná s plastovým rámem / plastové s prosklením","vandalismus",28119636,"Škol"]
[null,null,null,"bez č.p.","Litomyšl",27001,3343,null,292,900,"Pardubický kraj",1,292,"budova","zděná","sedlová","střešní tašky","domov mládeže","ne",2,"ne","standartní (RHP)","minimální (oplocení areálu)","ano","skleněná s plastovým rámem / plastové s prosklením","minimální",4301100,"Škol"]
[null,null,null,"bez č.p.","Litomyšl","570 01",2757,4300,10,13,"Pardubický kraj",1,{"$f":"L280*I280","v":10},"budova","zděná","plochá","plech","vodojem","ne",3,"ne","ne","minimální (oplocení areálu)","ano","prosklení / plechové","vzrostlé stromy",243580,"Škol"]
[57,"Střední škola zemědělská a veterinární Lanškroun","00087670","Dolní Třešňovec 17","Lanškroun",56322,"166/1",4300,1262,12480,"Pardubický kraj",2,2524,"budova","zděná","plochá","střešní fólie","škola","ne",1,"ne","RHP, hydrant","EZS","ano","skleněná s plastovým rámem / dřevěné s prosklením","vzrostlé stromy",60103680,"Škol"]
[null,null,null,"Dolní Třešňovec 17","Lanškroun","563 22","166/2",4300,212,2100,"Pardubický kraj",1,212,"hala","zděná","sedlová","vlnitý plech","tělocvična školy","vzduchotechnika",1,"ne","standartní (RHP)","minimální","ano","skleněná s plastovým rámem / plastové s prosklením","vandalismus",10113600,"Škol"]
[null,null,null,"bez č.p.","Lanškroun","563 22",167,4300,379,1520,"Pardubický kraj",1,379,"budova","zděná","plochá","střešní fólie","jídelna","gastro-technologie",1,"ne","standartní (RHP)","minimální","ano","skleněná s plastovým rámem / plastové s prosklením","vzrostlé stromy",7320320,"Škol"]
[null,null,null,"bez č.p.","Lanškroun","563 22",177,4300,184,740,"Pardubický kraj",1,184,"hala","kovová","sedlová","vlnitý plech","sklad","ne",3,"ne","standartní (RHP)","minimální","ano","ne / plechová vrata","vandalismus",3563840,"Škol"]
[null,null,null,"bez č.p.","Lanškroun","563 22","240/1,240/2",4300,{"$f":"208+274","v":482},4820,"Pardubický kraj",1,482,"budova","zděná","pultová","vlnitý plech","dílny, autoškola","ne",3,"ne","standartní (RHP)","mříže na dveřích a částečně na oknech, osvětlení objektu","ano","skleněná s dřevěným rámem / dřevěné s prosklením","vandalismus, vzrostlé stromy",23213120,"Škol"]
[null,null,null,"Dolní Třešňovec 18","Lanškroun","563 22","90/3",4300,411,6200,"Pardubický kraj",2,822,"budova","zděná","valbová","šindel","škola","ne","2(po rekonstrukci střechy)","ne","RHP, hydrant","EZS","ano","skleněná s plastovým rámem / plastové s prosklením","vandalismus",29859200,"Škol"]
[null,null,null,"Nádražní 922","Lanškroun","563 22",2117,4300,647,13600,"Pardubický kraj",5,3235,"budova","zděná","plochá","střešní fólie","domov mládeže","ne",2,"ne","RHP, hydrant","minimální (oplocení areálu)","ano","skleněná s plastovým rámem / kovové s prosklením","minimální",65497600,"Škol"]
[null,null,null,"bez č.p.","Lanškroun","563 22",3051,4300,106,840,"Pardubický kraj",1,106,"budova","zděná","plochá","střešní fólie","kotelna","strojní vybavení kotelny",2,"zemní plyn","standartní (RHP)","minimální (oplocení areálu)","ano","prosklení / plechová vrata","vzrostlé stromy",4045440,"Škol"]
[null,null,null,"Dolní Třešňovec ","Lanškroun",56322,"90/2",4300,743,4050,"Pardubický kraj",1,743,"hala","zděná","sedlová","vlnitý plech","pronajímáno - opravna zemědělské techniky","strojírenská",3,"omezené množství HK","standartní (RHP)","minimální (oplocení areálu)","ano","skleněná s dřevěným rámem, prosklení / plechová vrata","minimální",19504800,"Škol"]
[null,null,null,"Dolní Třešňovec ","Lanškroun",56322,267,4300,56,168,"Pardubický kraj",1,56,"stavební buňka, váha","betonová","plochá","plech","váha","strojní vybavení váhy",3,"ne","standartní (RHP)","minimální","ano","skleněná s dřevěným rámem / dřevěné s prosklením","vandalismus",809088,"Škol"]
[null,null,null,"Dolní Třešňovec ","Lanškroun",56322,301.30200000000002,4300,{"$f":"336+590","v":926},8400,"Pardubický kraj",1,926,"hala","zděná","sedlová","plech","seník","ne",2,"ne","standartní (RHP)","oplocení a osvětlení areálu","ano","ne / plechové","minimální",40454400,"Škol"]
[null,null,null,"Dolní Třešňovec ","Lanškroun",56322,89,4300,127,3740,"Pardubický kraj",1,127,"budova","zděná","sedlová","střešní tašky","kanceláře","ne",3,"ne","standartní (RHP)","minimální (oplocení areálu)","ano","skleněná s dřevěným rámem / kovové s prosklením","minimální",18011840,"Škol"]
[null,null,null,"Dolní Třešňovec ","Lanškroun",56322,"164/1,164/2",4300,1379,5440,"Pardubický kraj",1,1379,"budova","zděná","sedlová","plech","psí útulek","ne",1,"ne","standartní (RHP)","oplocení a osvětlení areálu","ano","skleněná s dřevěným rámem / dřevěné s prosklením","minimální",26199040,"Škol"]
[null,null,null,"Dolní Třešňovec ","Lanškroun",56322,168,4300,352,1232,"Pardubický kraj",1,352,"garáž","zděná","sedlová","vlnitý plech","sklad, garáže","ne",4,"ne","standartní (RHP)","minimální (oplocení areálu)","ano","prosklení / plechová vrata","minimální",5933312,"Škol"]
[null,null,null,"Dolní Třešňovec ","Lanškroun",56322,174,4300,859,4230,"Pardubický kraj",1,859,"hala","zděná","sedlová","vlnitý plech","sklad krmiva, příprava krmiv, jízdárna","strojírenská",3,"ne","standartní (RHP)","minimální (oplocení a osvětlení areálu)","ano","skleněná s dřevěným rámem, světlíky / plechová vrata","minimální",20371680,"Škol"]
[null,null,null,"Dolní Třešňovec ","Lanškroun",56322,175,4300,734,3670,"Pardubický kraj",1,734,"hala","kovová","sedlová","vlnitý plech","sklad","ne",3,"ne","standartní (RHP)","minimální (oplocení areálu)","ano","světlíky z plastu / plechová vrata","minimální",17674720,"Škol"]
[null,null,null,"Dolní Třešňovec ","Lanškroun",56322,176,4300,823,3670,"Pardubický kraj",1,823,"hala","kovová","sedlová","vlnitý plech","sklad slámy","ne",3,"ne","standartní (RHP)","minimální (oplocení areálu)","ano","ne / plechová vrata","minimální",19817840,"Škol"]
[null,null,null,"Dolní Třešňovec ","Lanškroun",56322,178,4300,1834,null,"Pardubický kraj",null,0,null,null,null,null,null,null,null,null,null,null,null,null,null,null,"Škol"]
[null,null,null,"Dolní Třešňovec ","Lanškroun",56322,179,4300,null,null,"Pardubický kraj",null,0,null,null,null,null,null,null,null,null,null,null,null,null,null,null,"Škol"]
[null,null,null,"Dolní Třešňovec ","Lanškroun",56322,180,4300,2734,12170,"Pardubický kraj",1,2734,"budova","zděná","sedlová","vlnitý plech","farma, ustájení koní","ne","1(větší část budovy po demolici)","ne","standartní (RHP)","minimální (oplocení areálu)","ano","skleněná s dřevěným rámem / dřevěné s prosklením, dřevěná vrata","minimální",58610720,"Škol"]
[null,null,null,"Dolní Třešňovec ","Lanškroun",56322,"256 - 263, 398 - 403",4300,{"$f":"21+20+20+20+20+20+20+20+1+20+17+5+12+11","v":227},565,"Pardubický kraj",1,227,"garáž","zděná","plochá","plech","garáže","ne",4,"ne","standartní (RHP)","minimální (oplocení areálu)","částečně","prosklení / plechová vrata","minimální",2721040,"Škol"]
[null,null,null,"Dolní Třešňovec ","Lanškroun",56322,"157/1, 157/2, 157/3, 157/4",4300,{"$f":"664+325+61+53","v":1103},6200,"Pardubický kraj",1,1103,"zemědělské stavení","zděná","sedlová","vlnitý plech","kravín","ne",3,"ne","standartní (RHP)","minimální (oplocení areálu)","ano","skleněná s kovovým rámem / dřevěná vrata","minimální",29859200,"Škol"]
[null,null,null,"Dolní Třešňovec ","Lanškroun",56322,"157/5",4300,136,520,"Pardubický kraj",1,136,"zemědělské stavení","zděná","sedlová","střešní tašky","kravín","ne",4,"ne","standartní (RHP)","minimální (oplocení areálu)","ano","skleněná v kovovém rámu / dřevěná vrata","minimální",2504320,"Škol"]
[null,null,null,"Dolní Třešňovec ","Lanškroun",56322,"157/6",4300,492,2930,"Pardubický kraj",1,492,"zemědělské stavení","zděná","sedlová","střešní tašky","kravín","ne",3,"ne","standartní (RHP)","minimální (oplocení areálu)","ano","ne / dřevěná vrata","vzrostlé stromy",14110880,"Škol"]
[58,"Střední škola zemědělská a VOŠ Chrudim",75075920,"Poděbradova 842","Chrudim",53760,"302/1",4300,1142,19400,"Pardubický kraj",4,4568,"budova","zděná","plochá","střešní fólie","škola","ne",2,"ne","RHP, hydrant","EZS","ano","skleněná s plastovým rámem / kovové se skleněnou výplní","vandalismus",93430400,"Škol"]
[null,null,null,"bez č.p.","Chrudim",53760,"2150/2",4300,509,3160,"Pardubický kraj",1,509,"budova","zděná","sedlová","plech","domov mládeže, tělocvična  ","vzduchotechnika",3,"ne","standartní (RHP)","minimální","ano","skleněná s dřevěným rámem, prosklení / dřevěné s prosklením","vandalismus",15218560,"Škol"]
[null,null,null,"bez č.p.","Chrudim",53760,"2150/3",4300,1521,20350,"Pardubický kraj",6,9126,"budova","zděná","plochá","střešní fólie","škola","ne",2,"ne","RHP, hydrant","EZS","ano","skleněná s plastovým rámem / kovové s prosklením","vandalismus, vzrostlé stromy",98005600,"Škol"]
[null,null,null,"bez č.p.","Chrudim",53760,5863,4300,{"$f":"39+107","v":146},120,"Pardubický kraj","2",292,"budova","zděná","sedlová","plech","garáže, technické zázemí","ne",2,"ne","standartní (RHP)","minimální (v suterénu okenní mříže,zadní část objektu oplocena)","ano","prosklení / plechová vrata","vandalismus",2648800,"Škol"]
[null,null,null,"bez č.p.","Chrudim",53760,6402,null,107,null,"Pardubický kraj","1",{"$f":"L309*I309","v":107},"budova","zděná","pultová","plech","garáže, technické zázemí","ne",2,"ne","standartní (RHP)","minimální (v suterénu okenní mříže,zadní část objektu oplocena)","ano","prosklení / plechová vrata","vandalismus"]
[null,null,null,"bez č.p.","Vestec",53701,"2704/2,2704/1",4300,{"$f":"737+261","v":998},7840,"Pardubický kraj",1,998,"budova","zděná","sedlová","plech","chov vepřů","ne",3,"ne","standartní (RHP)","minimální (oplocení areálu)","ano","skleněná s dřevěným rámem / dřevěná s prosklením","minimální",37757440,"Škol"]
[null,null,null,"bez č.p.","Vestec",53701,"5816/1,5816/2",4300,{"$f":"635+409","v":1044},3800,"Pardubický kraj",1,1044,"hala","železobeton, ocelová","sedlová","vlnitý plech","sklad","ne",1,"ne","standartní (RHP)","minimální (oplocení areálu)","ano","ne / plechová vrata","minimální",18300800,"Škol"]
[null,null,null,"bez č.p.","Vestec",53701,"2703/1,2703/2",4300,{"$f":"1009+585","v":1594},5632,"Pardubický kraj",1,1594,"budova","zděná","pultová","plech","bývalý kravín, klad slámy","ne",4,"ne","standartní (RHP)","minimální (osvětlení a oplocení areálu)","ne","skleněná s dřevěným rámem / dřevěná vrata","minimální",27123712,"Škol"]
[null,null,null,"bez č.p.","Vestec",53701,"4520/1, 4520/2, 4520/3",4300,{"$f":"24+857+357","v":1238},9440,"Pardubický kraj",1,1238,"budova","zděná","sedlová","eternit","bývalý kravín, sklad","ne",3,"ne","standartní (RHP)","minimální (osvětlení a oplocení areálu)","ne","skleněná s dřevěným rámem / plechová vrata","minimální",45463040,"Škol"]
[null,null,null,"bez č.p.","Vestec",53701,"5815/1, 5815/2, 5815/3",4300,{"$f":"535+43+478","v":1056},3860,"Pardubický kraj",1,1056,"hala","ocelová  ","sedlová","plech","kravín","ne",2,"ne","standartní (RHP)","minimální (osvětlení a oplocení areálu)","ano","ne / plechová vrata","minimální",18589760,"Škol"]
[null,null,null,"bez č.p.","Vestec",53701,"4519/1,4519/2",4300,{"$f":"401+230","v":631},2600,"Pardubický kraj",1,631,"budova","zděná","sedlová","plech","bývalá dojírna, dílny","ne ",4,"ne","standartní (RHP)","minimální (oplocení a osvětlení areálu)","ano","skleněná s dřevěným rámem / dřevěné","minimální",12521600,"Škol"]
[null,null,null,"bez č.p.","Vestec",53701,"2706/1,2706/2",4300,{"$f":"1491+39","v":1530},12580,"Pardubický kraj",1,1530,"budova","zděná","sedlová","vlnitý plech","dílna, sklad, seník","strojírenská",3,"minimální množství HK","standartní (RHP)","minimální (oplocení a osvětlení areálu)","ano","skleněná s plastovým rámem / plechová vrata s prosklením, dřevěná vrata","vzrostlé stromy",60585280,"Škol"]
[null,null,null,"č.p. 27","Vestec",53701,4522,4300,201,960,"Pardubický kraj",1,201,"budova","zděná","sedlová","eternit","administrativní budova","ne",1,"ne","standartní (RHP)","minimální (oplocení a osvětlení areálu)","ano","skleněná s plastovým rámem / plastové s prosklením","minimální",4623360,"Škol"]
[null,null,null,"bez č.p.","Vestec",53701,2702,4300,496,1730,"Pardubický kraj",1,496,"budova","zděná","sedlová","plech","chov telat a koní","ne",3,"ne","standartní (RHP)","minimální (oplocení a osvětlení areálu)","ano","skleněná s dřevěným rámem / dřevěná vrata","minimální",8331680,"Škol"]
[59,"Střední škola zdravotnická a sociální Chrudim","00498891","Poděbradova 336","Chrudim",53701,1052,4300,590,10400,"Pardubický kraj",2,1180,"budova","zděná","sedlová","šindel","škola","klimatizace",2,"ne","RHP, hydrant","EZS, bezpečnostní vložky zámku předních a zadních vrat, suterén - okenní mříže","ano","skleněná s plastovým rámem / plastové se skleněnou výplní","vandalismus",50086400,"Škol"]
[60,"Střední zdravotnická škola, Pardubice, Průmyslová 395","00498793","Průmyslová 395","Pardubice","531 21",1230,4300,123,37400,"Pardubický kraj",4,492,"budova","zděná","plochá","střešní fólie","škola, internát ","gastro-technologie, klimatizace, vzduchotechnika   ",1,"ne","RHP, hydrant","EZS","ano","skleněná s plastovým rámem / plastové s prosklením","vandalismus",160820000,"Škol"]
[61,"Střední zdravotnická škola, Svitavy, Purkyňova 256","00498815","Purkyňova 256","Svitavy",56802,"185/1",4300,895,10560,"Pardubický kraj",2,1790,"budova","zděná","valbová","plech","domov mládeže","ne",2,"ne","standartní (RHP)","bezpečnostní vložka zámku, oplocená zadní část objektu","ano","skleněná s dřevěným rámem / dřevěné","vandalismus",50856960,"Škol"]
[null,null,null,"Purkyňova 284","Svitavy",56802,"228/1",4300,290,3190,"Pardubický kraj",2,580,"budova","zděná","sedlová","plech","škola","gastro-technologie, vzduchotechnika, strojní vybavení kotelny",2,"ne","RHP, hydranty, EPS - kotelna","EZS, oplocená zadní část objektu","ano","skleněná s dřevěným rámem / dřevěné","vzrostlé stromy, vodní toky",15363040,"Škol"]
[{"$f":"+A321+1","v":62},"Střední zdravotnická škola, Ústí nad Orlicí, Smetanova 838","00498874","Smetanova 838","Ústí nad Orlicí",56201,912,4300,737,10500,"Pardubický kraj",2,1474,"budova","zděná","sedlová","střešní tašky","škola","ne",2,"minimální množství chemických látek v laboratoři","RHP, 4 vnitřní hydranty","EZS, oplocení","ano","skleněná s dřevěným rámem / dřevěné s prosklením","vandalismus",50568000,"Škol"]
[null,null,null,"bez č.p.","Ústí nad Orlicí",56201,3389,4300,112,283,"Pardubický kraj",1,112,"garáž","zděná","plochá","střešní fólie","garáže","ne",3,"ne","standartní (RHP)","zamky FAB, oplocení areálu","ano","prosklení / plechová vrata","vzrostlé stromy",1362928,"Škol"]
[null,null,null,"Čs. Armády 262","Ústí nad Orlicí",56201,2709,4300,672,4690,"Pardubický kraj",2,1344,"budova","zděná","plochá","střešní fólie","domov mládeže","ne",3,"ne","standartní (RHP)","bezpečnostní vložka zámku, oplocení","ano","skleněná s dřevěným rámem / dřevěné","minimální",22587040,"Škol"]
[63,"Vyšší odborná škola pedagogická a Střední pedagogická škola, Litomyšl, Komenského nám. 22",62032381,"Komenského nám. 22","Litomyšl",57012,"444/1",4300,1404,21140,"Pardubický kraj",1,1404,"budova","zděná","sedlová","eternit","škola","ne",3,"ne","RHP, hydrant","EZS","ano","skleněná s dřevěným rámem / dřevěné s prosklením","vandalismus",116258240,"Škol"]
[null,null,null,"Strakovská 1071","Litomyšl",57012,3333,4300,2020,30450,"Pardubický kraj",3,6060,"budova","zděná","plochá","střešní fólie","domov mládeže","gastro-technologie, vzduchotechnika",3,"ne","RHP, hydrant","EZS","ano","skleněná s plastovým rámem / kovové s prosklením","vandalismus",146647200,"Škol"]
[{"$f":"+A326+1","v":64},"Vyšší odborná škola stavební a Střední škola stavební Vysoké Mýto",49314785,"Komenského 1","Vysoké Mýto",56619,"230/1",4300,686,14100,"Pardubický kraj",3,2058,"budova","zděná","sedlová","střešní tašky","škola","ne",2,"ne","RHP, hydrant","EZS","ano","skleněná s plastovým rámem / plastové s prosklením","vzrostlé stromy",63601931,"Škol"]
[null,null,null,"bez č.p.","Vysoké Mýto",56619,"230/2",null,866,4480,"Pardubický kraj",2,1732,"budova","zděná","sedlová","střešní tašky","škola","ne",2,"ne","RHP, hydrant","minimální","ano","skleněná s dřevěným rámem / plastové s prosklením","vandalismus, vzrostlé stromy",20208273,"Škol"]
[null,null,null,"bez č.p.","Vysoké Mýto",56619,"230/4",null,67,90,"Pardubický kraj",1,67,"garáž","zděná","pultová","vlnitý plech","garáže","ne",2,"ne","standartní ( RHP )","oplocení objektu, zámek FAB","ano","ne / plechová vrata","minimální",405970,"Škol"]
[null,null,null,"bez č.p.","Vysoké Mýto",56619,231,null,78,180,"Pardubický kraj",1,78,"budova","zděná","plochá ","střešní fólie","školní laboratoř","ne",2,"minimální množství HK, plynů","RHP, hydrant","okenní mříže","ano","skleněná s dřevěným rámem / dřevěné","vandalismus",811940,"Škol"]
[null,null,null,"Vrchlického 248","Vysoké Mýto",56619,237,4300,104,850,"Pardubický kraj",2,208,"budova","zděná","sedlová","střešní tašky","byt","ne",2,"ne","standartní (RHP)","minimální","ano","skleněná s plastovým rámem / dřevěné s prosklením","vandalismus",3834159,"Škol"]
[null,null,null,"Kpt. Poplera 272/III","Vysoké Mýto","566 01","4020/1",4300,1027,12420,"Pardubický kraj",3,3081,"budova","zděná","valbová","střešní tašky","škola","ne",2,"ne","RHP, hydrant","minimální (oplocení areálu)","ano","skleněná s dřevěným rámem / dřevěné s prosklením","vzrostlé stromy",56023830,"Škol"]
[null,null,null,"bez č.p.","Vysoké Mýto","566 01","4020/2, 4020/3",4300,{"$f":"312+167","v":479},1916,"Pardubický kraj",1,479,"garáž","zděná","pultová","eternit","garáže","ne",3,"ne","standartní (RHP)","minimální (oplocení areálu)","ano","ne / plechová vrata","minimální",8642646,"Škol"]
[null,null,null,"bez č.p.","Vysoké Mýto","566 01","4020/4",4300,641,3846,"Pardubický kraj",1,641,"budova","zděná","sedlová","střešní tašky","technické zázemí, sklad","ne",3,"ne","standartní (RHP)","minimální (oplocení areálu)","ano","skleněná s dřevěným rámem / plechová vrata","minimální",17348442,"Škol"]
[null,null,null,"bez č.p.","Vysoké Mýto","566 01","4020/5",4300,453,3448,"Pardubický kraj",1,453,"budova","zděná","sedlová","střešní tašky","škola, dílny","ne",2,"ne","RHP, hydrant","minimální (oplocení areálu)","ano","skleněná s dřevěným rámem / dřevěné","vzrostlé stromy",15553153,"Škol"]
[null,null,null,"bez č.p.","Vysoké Mýto","566 01","4020/6",null,45,72,"Pardubický kraj",1,45,"rampa","železná",null,"ne","nájezdová rampa","ne",3,"ne","ne","minimální (oplocení areálu)","ano","ne","minimální",324776,"Škol"]
[null,null,null,"bez č.p.","Vysoké Mýto","566 01","4025/5",null,1381,1572,"Pardubický kraj",1,1381,"garáž","železná","sedlová","vlnitý plech","garáže","strojírenská",3,"minimální množství PHM a olejů, svařovací soupravy, technické plyny","standartní (RHP)","oplocení areálu, zámky FAB","ano","skleněná v kovovém rámu / plechová vrata","minimální",25134040,"Škol"]
[65,"Vyšší odborná škola a Střední škola technická Česká Třebová",49314866,"Habrmanova 1540","Česká Třebová",56002,1585,4300,998,9265,"Pardubický kraj",4,3992,"budova","zděná","plochá","střešní fólie","škola","strojní vybavení kotelny",1,"ne","RHP, hydrant, EPS - kotelna","EZS","ano","skleněná s dřevěným rámem / dřevěné s prosklením","vandalismus",30172240,"Škol"]
[null,null,null,"Habrmanova 2096","Česká Třebová",56002,4105.3411999999998,4300,580,15330,"Pardubický kraj","2",1160,"budova","železobetonové panely","plochá","střešní fólie","škola","ne",2,"ne","RHP, hydrant","EZS","ano","skleněná s dřevěným, plastovým rámem / plastové s prosklením","vandalismus",73829280,"Škol"]
[null,null,null,"Habrmanova 2096","Česká Třebová",56002,3037,null,893,null,"Pardubický kraj","4",{"$f":"L341*I341","v":3572},"budova","železobetonové panely","plochá","střešní fólie","škola","ne",2,"ne","RHP, hydrant","EZS","ano","skleněná s dřevěným, plastovým rámem / plastové s prosklením","vandalismus"]
[null,null,null,"Habrmanova 1503","Česká Třebová",56002,"1584/1",4300,250,360,"Pardubický kraj",3,750,"budova","zděná","plochá","střešní fólie","škola","ne",2,"ne","standartní (RHP)","minimální","ano","skleněná s dřevěným rámem / kovové s prosklením","vandalismus",1733760,"Škol"]
[null,null,null,"Na Skále 566","Česká Třebová",56002,"647/11, 12, 14, 17",4300,{"$f":"344+153+447+4","v":948},5430,"Pardubický kraj","2",1896,"budova","zděná","plochá","střešní fólie","tělocvična","ne",3,"ne","standartní (RHP)","minimální (oplocení a osvětlení areálu)","ano","skleněná s dřevěným rámem / kovové s prosklením","vzrostlé stromy",26150880,"Škol"]
[null,null,null,"Skalka 1692","Česká Třebová",56018,1851,4300,1778,22392,"Pardubický kraj",5,8890,"budova","zděná","valbová, sedlová","střešní tašky","domov mládeže","gastro-technologie, vzduchotechnika",1,"ne","RHP, hydrant","CCTV","ano","skleněná s plastovým rámem / plastové s prosklením","vandalismus",107839872,"Škol"]
[null,null,null,"Skalka 1691","Česká Třebová",56018,1850,4300,680,12258,"Pardubický kraj",4,2720,"budova","zděná","valbová","střešní tašky","domov mládeže","ne",1,"ne","RHP, hydrant","CCTV","ano","skleněná s plastovým rámem / plastové s prosklením","vandalismus",59034528,"Škol"]
[null,null,null,"Skalka 1693","Česká Třebová",56018,1852,4300,683,12204,"Pardubický kraj",4,{"$f":"L346*I346","v":2732},"budova","zděná","valbová","střešní tašky","domov mládeže","ne",1,"ne","RHP, hydrant","CCTV","ano","skleněná s plastovým rámem / plastové s prosklením","vandalismus",58774464,"Škol"]
[null,null,null,"Skalka 1162","Česká Třebová",56018,3767,4300,888,7208,"Pardubický kraj",1,888,"hala","zděná","plochá","střešní fólie","dílny","strojírenská",2,"ne","RHP, hydrant","EZS, CCTV, oplocení a osvětlení objektu","ano","prosklení / dřevěné s prosklením, plechová vrata","minimální",34713728,"Škol"]
[null,null,null,"Skalka 1858","Česká Třebová",56018,4186,4300,1205,6174,"Pardubický kraj",1,1205,"hala","ocelová","sedlová","plech","dílny, sklad","strojírenská",3,"omezené množství HK","RHP, hydrant","EZS, CCTV, oplocení a osvětlení objektu","ano","skleněná s kovovým rámem / plechová vrata","minimální",20159776,"Škol"]
[null,null,null,"bez č.p.","Česká Třebová",56018,4187,4300,16,64,"Pardubický kraj",1,16,"přístřešek","zděná","pultová","plech","technické zázemí","ne",3,"ne","standartní (RHP)","minimální (oplocení areálu)","ano","ne / plechové","vzrostlé stromy",308224,"Škol"]
[null,null,null,"Skalka 1856","Česká Třebová",56018,"4188, 4193, 4194, 4195",4300,{"$f":"864+725+122+204","v":1915},12758,"Pardubický kraj",4,7660,"budova","zděná","plochá","střešní fólie","škola, technické zázemí, kotelna","strojní vybavení kotelny",1,"zemní plyn","RHP, hydrant, EPS - kotelna","CCTV, oplocení a osvětlení areálu","ano","skleněná s plastovým rámem / kovové s prosklením","minimální",104786528,"Škol"]
[66,"Odborné učiliště Chroustovice, Zámek 1",60103370,"Zámek 1","Chroustovice",53863,"33/1",4300,5224,21850,"Pardubický kraj",2,10448,"budova","zděná","valbová","eternit","škola, kuchyně, archiv, internát","vzduchotechnika",2,"ne","RHP, hydranty","EZS, oplocení areálu, audiotelefon","ano","skleněná s dřevěným rámem / dřevěné s prosklením","vodní toky",105277670,"Škol"]
[null,null,null,"Zámek 152","Chroustovice","538 63","33/3",4300,175,1080,"Pardubický kraj",2,350,"budova","zděná","valbová","eternit","kuchyňky","vzduchotechnika",2,"ne","RHP, hydranty","EZS, oplocení areálu, audiotelefon","ano","skleněná s dřevěným rámem / dřevěné s prosklením","vodní toky",5203656,"Škol"]
[null,null,null,"Zámek 151","Chroustovice","538 63","33/2",4300,175,1080,"Pardubický kraj",1,175,"budova","zděná","valbová","eternit","domov mládeže","ne",2,"ne","RHP, hydranty","EZS, oplocení areálu, audiotelefon","ano","skleněná s dřevěným rámem / dřevěné s prosklením","vzrostlé stromy, vodní toky",5203656,"Škol"]
[null,null,null,"Zámek 153","Chroustovice","538 63","34/2",4300,690,1630,"Pardubický kraj",1,690,"budova","zděná","valbová","eternit","truhlářské dílny","ne",2,"ne","RHP, hydranty","EZS, oplocení areálu, audiotelefon","ano","skleněná s dřevěným rámem / dřevěné s prosklením","vodní toky",7853666,"Škol"]
[null,null,null,"Zámek 154","Chroustovice","538 63","34/3",4300,690,1630,"Pardubický kraj",1,690,"budova","zděná","valbová","eternit","dílny zámečnické, sklenářské","ne",2,"ne","RHP, hydranty","EZS, oplocení areálu, audiotelefon","ano","skleněná s dřevěným rámem / dřevěné s prosklením","vodní toky",7853666,"Škol"]
[null,null,null,"bez č.p.","Chroustovice","538 63","34/9",4300,188,1380,"Pardubický kraj",1,188,"budova","zděná","sedlová","vlnitý plech","truhlárna","ne",3,"ne","standartní (RHP)","minimální (oplocení areálu)","ano","skleněná s kovovým rámem / plechové, plechová vrata s prosklením","vodní toky",6649116,"Škol"]
[null,null,null,"Zámek 2","Chroustovice","538 63",35,4300,709,750,"Pardubický kraj",1,709,"budova","zděná","valbová","střešní tašky","kuchaři - dílny školy","ne",2,"ne","standartní (RHP)","EZS, oplocení areálu","ano","skleněná s plastovým, dřevěným rámem / dřevěné s prosklením","vzrostlý strom, vodní toky",3613650,"Škol"]
[null,null,null,"bez č.p.","Chroustovice","538 63",36,4300,35,90,"Pardubický kraj",1,35,"skleník","kovová","pultová","sklo","skleník","ne",1,"ne","ne","minimální (oplocení areálu)","ano","skleněná v kovovém rámu / prosklené","vodní toky",433638,"Škol"]
[null,null,null,"bez č.p.","Chroustovice","538 63",38,4300,420,995,"Pardubický kraj","1",420,"budova, skleník","zděná, kovová","plochá, sedlová","střešní fólie, skleněná","květinárna","ne",2,"ne","standartní (RHP)","EZS, oplocení areálu","ano","skleněná s dřevěným, kovovým rámem / dřevěné s prosklením","vodní toky",4794109,"Škol"]
[null,null,null,"bez č.p.","Chroustovice","538 63",38,null,166,null,"Pardubický kraj","2",{"$f":"L360*I360","v":332},"budova","zděná","plochá","střešní fólie","květinárna","ne",2,"ne","standartní (RHP)","EZS, oplocení areálu","ano","skleněná s dřevěným, kovovým rámem / dřevěné s prosklením","vodní toky"]
[null,null,null,"bez č.p.","Chroustovice","538 63",262,4300,386,930,"Pardubický kraj",1,386,"budova","zděná","sedlová","vlnitý plech","autoservis, rychlírna, kotelna na TP","strojní vybavení kotelny",2,"ne","standartní (RHP)","minimální (oplocení areálu)","ano","skleněná s kovovým rámem / dřevěná a plechová vrata","vzrostlé stromy, vodní toky",4480926,"Škol"]
[null,null,null,"bez č.p.","Chroustovice","538 63",263,4300,25,75,"Pardubický kraj",1,25,"budova","zděná","sedlová","střešní tašky","vodárna","strojní vybavení vodárny",2,"ne","standartní (RHP)","minimální (RHP)","ano","skleněná s dřevěným rámem / plechové, plechová vrata","vzrostlé stromy, vodní toky",361365,"Škol"]
[null,null,null,"bez č.p.","Chroustovice","538 63",392.39299999999997,4300,{"$f":"109+40","v":149},280,"Pardubický kraj",1,149,"budova","zděná","sedlová","eternit","dílny školy","ne",2,"ne","standartní (RHP)","minimální (oplocení areálu)","ano","skleněná s dřevěným rámem / dřevěné s prosklením","vzrostlé stromy, vodní toky",1349096,"Škol"]
[null,null,null,"bez č.p.","Chroustovice","538 63",394,4300,188,564,"Pardubický kraj",1,188,"budova","zděná","sedlová","střešní tašky","dílny učňů, sklad","ne",1,"ne","standartní (RHP)","minimální (oplocení areálu)","ano","prosklení / plechové s prosklením","vzrostlé stromy, vodní toky",2717465,"Škol"]
[null,null,null,"bez č.p.","Chroustovice","538 63",395,4300,219,876,"Pardubický kraj",1,219,"budova","zděná","sedlová","střešní tašky","dílny učňů","ne",2,"ne","standartní (RHP)","minimální (oplocení areálu)","ano","skleněná s plastovým rámem / plastové s prosklením","vodní toky",4220743,"Škol"]
[null,null,null,"bez č.p.","Chroustovice","538 63","87/2",4300,563,2183,"Pardubický kraj",1,563,"hala","ocelová","sedlová","vlnitý plech","dílny, sklad - zedníci","ne",2,"ne","standartní (RHP)","minimální (oplocení areálu)","ano","ne / plechová vrata s prosklením","vzrostlé stromy, vodní toky",10518131,"Škol"]
[null,null,null,"bez č.p.","Chroustovice","538 63",414,null,16,301,"Pardubický kraj",1,16,"budova","zděná","plochá","plech","rozvodna elektřiny","strojní vybavení rozvodny",2,"olej v transformátoru","standartní (RHP)","minimální (oplocení areálu)","ano","prosklení / plechové","vodní toky",1450278,"Škol"]
[null,null,null,"bez č.p.","Chroustovice","538 63",415,null,64,241,"Pardubický kraj",1,64,"budova","zděná","sedlová","eternit","garáž, kolárna","ne",3,"ne","standartní (RHP)","minimální (oplocení areálu)","ano","prosklení / plechové","vodní toky",1161186,"Škol"]
[{"$f":"+A351+1","v":67},"Speciální střední škola a základní škola Žamberk, Tyršova 214",49314840,"Tyršova 214","Žamberk",56401,"222/1",4300,421,3623,"Pardubický kraj",2,842,"budova","zděná","sedlová","asfaltový šindel","škola","ne",2,"ne","RHP, hydranty","minimální","ano","skleněná s dřevěným rámem / dřevěné s prosklením","vandalismus",17445960,"Škol"]
[null,null,null,"bez č.p.","Žamberk",56401,"222/2",4300,698,6203,"Pardubický kraj",3,2094,"budova","zděná","valbová","asfaltový šindel","škola","ne",2,"ne","RHP, hydranty","minimální","ano","skleněná s dřevěným rámem / kovové s prosklením","vandalismus",29873648,"Škol"]
[null,null,null,"bez č.p.","Žamberk",56401,5034,4300,66,450,"Pardubický kraj",1,66,"garáž","zděná","polovalbová","asfaltový šindel","garáže, sklad","ne",2,"ne","standartní (RHP)","minimální (oplocení objektu)","ano","skleněná s dřevěným rámem / dřevěné s prosklením a dřevěná vrata","vzrostlé stromy",2167200,"Škol"]
[null,null,null,"Nádražní 468, 550","Žamberk",56401,795.79600000000005,4300,{"$f":"277+178","v":455},7020,"Pardubický kraj",3,1365,"budova","zděná","sedlová","asfaltový šindel","škola","gastro-technologie",3,"ne","RHP, hydranty","minimální (zadní část objektu oplocena)","ano","skleněná s plastovým rámem / plastové s prosklením","vandalismus, vzrostlé stromy",33808320,"Škol"]
[68,"Speciální mateřská škola,základní škola a praktická škola Pardubice",60158981,"Klášterní 52","Pardubice","530 02",97,4300,1002,null,"v majetku města",3,3006,"budova","zděná","valbová","střešní tašky","škola","ne",3,"ne","RHP, hydrant","minimální (zadní část objektu oplocena)","ano","skleněná s dřevěným rámem / dřevěné s prosklením","vzrostlý strom",null,"Škol"]
[null,null,null,"Kyjevská 500","Pardubice","532 03",414,4300,902,null,"Pardubický kraj",3,2706,"budova","zděná","plochá","střešní fólie","budova ředitelství, ústavní lékárna (2. patro - škola)","vzduchotechnika, klimatizace",1,"léky","kouřová čidla, RHP, hydranty","EZS, oplocení areálu","ano","skleněná s plastovým rámem / plastové s prosklením","minimální","budova pojištěna u Pardubické krajské nemocnice a. s. ","Škol"]
[null,null,null,"Václavská 570","Chrudim",53701,"2348/1",4300,5309,null,"Pardubický kraj",1,5309,"budova","zděná","plochá","střešní fólie","škola","ne",2,"ne","standartní (RHP), hydrant","EZS, oplocení","ano","skleněná s dřevěným rámem / kovové s prosklením","vandalismus","budova pojištěna u Chrudimské nemocnice a. s.","Škol"]
[69,"Speciální základní škola Bystré",70838267,"Zámecká 1","Bystré",56992,"1/1",4300,2216,null,"v majetku města",2,4432,"budova","zděná","sedlová","střešní tašky","k pronájmu","ne",2,"ne","standartní (RHP)","bezpečnostní vložka zámku, oplocení zadní části objektu","ano","skleněná s dřevěným rámem / dřevěné s prosklením","vandalismus, vzrostlé stromy","budova pojištěna - ÚSP Bystré","Škol"]
[null,null,null,"Nádražní 775","Polička","572 01",2466,4300,924,null,"v majetku města",2,1848,"budova","zděná","plochá","střešní fólie","škola","ne",3,"ne","standartní (RHP)","minimální","ano","skleněná s plastovým rámem / kovové s prosklením","vzrostlé stromy",null,"Škol"]
[null,null,null,"Na podkově 68","Bystré","572 01",205,4300,425,null,"v majetku města",2,850,"budova","zděná","polovalbová","eternit","škola","ne",1,"ne","standartní (RHP)","minimální (okenní mříže)","ano","skleněná s plastovým rámem / dřevěné s prosklením","vandalismus",null,"Škol"]
[null,null,null,"Jiráskova 825","Polička","572 01","3292/1 - 4",4300,{"$f":"305+461+217+238","v":1221},3978,"Pardubický kraj",1,1221,"budova","zděná","plochá","střešní fólie","speciální základní škola","ne",2,"ne","RHP, hydrant","minimální (oplocení objektu)","ano","skleněná s plastovým rámem / plastové s prosklením","minimální",15883000,"Škol"]
[70,"Speciální základní škola Chrudim",72085410,"Školní náměstí 228","Chrudim","537 01","955/2",null,1044,null,"v majetku města",2,2088,"budova","zděná","sedlová","kanadský šindel","škola","gastro-technologie",1,"ne","RHP, hydrant","EZS, oplocení areálu","ano","skleněná s plastovým rámem / plastové s prosklením","vzrostlé stromy",null,"Škol"]
[{"$f":"+A380+1","v":71},"Speciální základní škola a mateřská škola Litomyšl",70838275,"9. května 1181","Litomyšl",57001,"875/4",4300,41,1560,"Pardubický kraj",2,82,"budova","zděná","valbová","asfaltový šindel","škola","ne",3,"ne","RHP, hydrant","minimální (oplocení přední části areálu)","ano","skleněná s plastovým rámem / plastové s prosklením","vandalismus",28048384,"Škol"]
[null,null,null,"9. května 1181","Litomyšl","570 01","875/4",null,260,3120,"Pardubický kraj",3,780,"budova ","zděná","valbová","asfaltový šindel","škola","ne",3,"ne","RHP, hydrant","minimální (oplocení přední části areálu)","ano","skleněná s plastovým rámem / plastové s prosklením","vandalismus"]
[{"$f":"+A381+1","v":72},"Speciální základní škola, mateřská škola a praktická škola Moravská Třebová",62033034,"J. A. Komenského 287","Moravská Třebová",57101,664,4300,880,7500,"Pardubický kraj",2,1760,"budova","zděná","valbová","plechová","škola","gastro-technologie",2,"ne","RHP, hydranty","minimální (oplocená zadní část objektu)","ano","skleněná s plastovým rámem / plastové se skleněnou výplní","vandalismus",36120000,"Škol"]
[null,null,null,"9. května 553","Moravská Třebová",57101,"687/1-2",4300,{"$f":"220+187","v":407},4912,"Pardubický kraj",2,814,"budova","zděná","sedlová","plechová","škola","ne",3,"ne","RHP, hydranty","zadní část objektu oplocena ","ano","skleněná s dřevěným rámem / dřevěné se skleněnou výplní","vzrostlé stromy",23656192,"Škol"]
[null,null,null,"J.A.Komenského 287","Moravská Třebová",57101,"665/8",4300,456,5943,"Pardubický kraj",3,1368,"budova","zděná","sedlová, plochá","plech, střešní fólie","internát, spojovací část","strojovna výtahu",1,"ne","EPS, RHP, hydranty","ESZ, kamerový systém, vstupní audio systém","ano","skleněná s plastovým rámem / plastové se skleněnou výplní","vandalismus",28621488,"Škol"]
[73,"Speciální základní škola a mateřská škola Ústí nad Orlicí",70844755,"Lázeňská 206","Ústí nad Orlicí","562 01",471,null,1070,16900,"Pardubický kraj","3",3210,"budova","zděná","valbová","střešní tašky","škola, kuchyně, jídelna, tělocvična školy","gastro-technologie,2x strojovna výtahu, vzduchotechnika,klimatizace",3,"ne","RHP, hydrant","EZS v kancelářích a učebna PC","ano","skleněná s plastovým rámem / plastové s prosklením","vandalismus",77452952,"Škol"]
[null,null,null,"Lázeňská 206","Ústí nad Orlicí","562 01",471,null,714,null,"Pardubický kraj","2",{"$f":"L387*I387","v":1428},"budova","zděná","valbová","střešní tašky","škola, kuchyně, jídelna, tělocvična školy","gastro-technologie,2x strojovna výtahu, vzduchotechnika,klimatizace",3,"ne","RHP, hydrant","EZS v kancelářích a učebna PC","ano","skleněná s plastovým rámem / plastové s prosklením","vandalismus"]
[null,null,null,"Lázeňská 206","Ústí nad Orlicí","562 01",471,null,134,null,"Pardubický kraj","1",{"$f":"L388*I388","v":134},"budova","zděná","plochá","střešní fólie","škola,vestibul","ne",3,"ne","RHP, hydrant","EZS v kancelářích a učebna PC","ano","skleněná s plastovým rámem / plastové s prosklením","vandalismus"]
[null,null,null,"Lázeňská 206","Ústí nad Orlicí","562 01",471,null,20,null,"Pardubický kraj","4",{"$f":"L389*I389","v":80},"budova","zděná","plochá","střešní fólie","výtah","strojovna výtahu",1,"ne","RHP, hydrant","EZS v kancelářích a učebna PC","ano","skleněná s plastovým rámem / plastové s prosklením","vandalismus"]
[null,null,null,"bez č.p.","Ústí nad Orlicí","562 01",3666,null,7,13,"Pardubický kraj",1,7,"budova","zděná","plochá ","střešní fólie","transformátor","trafo",1,"olej v transformátoru","standartní (RHP)","minimální (oplocení areálu - zadní část)","ano","ne / plechové","minimální",205628,"Škol"]
[74,"Speciální základní škola Skuteč",72048905,"Rubešova 531","Skuteč","539 73",478,4300,597,2760,"Pardubický kraj",2,1194,"budova","zděná","sedlová","plech","škola","gastro-technologie",2,"ne","RHP,hydrant,hasičský sbor naproti škole","minimální (vstupní dveře mříž, oplocení zadní části objektu)","ano","skleněná s dřevěným rámem / dřevěné","vandalismus",13292160,"Škol"]
[75,"Speciální základní škola Svitavy",70838283,"Milady Horákové 488/44","Svitavy",56802,444.44499999999999,4300,{"$f":"340+545","v":885},10365,"Pardubický kraj",2,1770,"budova","zděná","sedlová","střešní tašky","škola","ne",3,"ne","RHP, hydranty","minimální","ano","skleněná s dřevěným rámem / dřevěné","vandalismus",49917840,"Škol"]
[null,null,null,"Milady Horákové 493/50","Svitavy",56802,453,4300,385,3400,"Pardubický kraj",2,770,"budova","zděná","sedlová","střešní tašky","škola","ne",3,"ne","standartní (RHP)","minimální","ano","skleněná s plastovým rámem / plastové s prosklením","vandalismus",16374400,"Škol"]
[76,"Speciální základní škola Vysoké Mýto",70851867,"Rokycanova 761/I","Vysoké Mýto",56601,"1813/2",4300,845,null,"v majetku města",2,1690,"budova","zděná","plochá","střešní fólie","škola","gastro-technologie",2,"ne","RHP, hydrant","minimální","ano","skleněná s dřevěným rámem / dřevěné s prosklením","vandalismus",null,"Škol"]
[null,null,null,"Stromovka 1339","Choceň",56501,1643,4300,350,null,"v majetku města",2,700,"budova","zděná","plochá","plech","škola","ne",2,"ne","RHP, hydrant","minimální","ano","skleněná s dřevěným rámem / dřevěné s prosklením","vzrostlé stromy",null,"Škol"]
[77,"Základní škola Lanškroun, nám. A. Jiráska 140",70846944,"nám. A. Jiráska 140","Lanškroun",56301,"43/4",4300,799,null,"v majetku města",3,2397,"budova","zděná","valbová","eternit","škola","gastro-technologie",2,"ne","RHP, hydrant","EZS, částečně okenní mříže 1 NP","ano","skleněná s dřevěným rámem / dřevěné s prosklením","vandalismus",null,"Škol"]
[null,null,null,"Dobrovského 63","Lanškroun",56301,"684/1",4300,291,2620,"Pardubický kraj",3,873,"budova","zděná","sedlová","eternit","škola","gastro-technologie",3,"ne","RHP, hydrant","minimální (oplocená zadní část objektu)","ano","skleněná s plastovým rámem / dřevěné","vandalismus",12617920,"Škol"]
[null,null,null,"bez č.p.","Lanškroun",56301,"684/2",4300,68,240,"Pardubický kraj",1,68,"budova","zděná","sedlová","střešní tašky","sklad, technické zázemí školy","ne",3,"ne","standartní (RHP)","minimální (objekt ve dvoře)","ano","skleněná s dřevěným rámem / dřevěné s prosklením","minimální",1155840,"Škol"]
[78,"Základní škola a Mateřská škola při Hamzově odborné léčebně pro děti a dospělé Luže, Košumberk 37",70843465,"Košumberk 37","Luže",53854,419,4300,494,null,"budova majetkem jiného vlastníka",2,988,"budova","zděná","valbová","střešní tašky","škola, klubovna","gastro-technologie, vzduchotechnika",1,"ne","RHP, hydranty","klubovna - EZS, oplocený areál","ano","skleněná s dřevěným rámem / dřevěné s prosklením","vzrostlé stromy",null,"Škol"]
[79,"Základní škola praktická Česká Třebová",70846936,"nám.17.listopadu 2060","Česká Třebová",56002,"1812/14",4300,750,8906,"Pardubický kraj",2,1500,"budova","zděná","valbová","plech","škola, tělocvična","gastro-technologie",3,"ne","RHP, hydrant","bezpečnostní vložka zámku","ano","skleněná s dřevěným rámem / kovové s prosklením","vandalismus",42891296,"Škol"]
[80,"Základní škola praktická a základní škola speciální Králíky",61235105,"Nábřežní 130","Králíky",56169,"398/1,2",4300,{"$f":"226+463","v":689},null,"v majetku města",3,2067,"budova","zděná","valbová, plochá","plech, střešní tašky","škola","strojírenská technologie-výtah",3,"ne","RHP, hydrant","EZS, oplocení","ano","skleněná s dřevěným rámem / kovové s prosklením","vzrostlé stromy",null,"Škol"]
[81,"Základní škola speciální Lanškroun, Olbrachtova 206",70845361,"Olbrachtova 206","Lanškroun",56301,1482,4300,647,2070,"Pardubický kraj",1,647,"budova","zděná","sedlová","plech","škola","gastro-technologie",2,"ne","RHP, hydrant","kamerový systém, oplocení objektu","ano","skleněná s plastovým rámem / plastové s prosklením","vzrostlé stromy",9969120,"Škol"]
[1,"Východočeské muzeum v Pardubicích","14450542","Zámek 2","Pardubice","530 02","2/1",5900,1380,8000,"Pardubický kraj",2,2760,"budova","zděná","sedlová","střešní tašky","muzeum","ne",1,"ne ","EPS, RHP, vnější a vnitřní hydranty","CCTV, EZS","ano","skleněná s dřevěným rámem / kovová vrata, dřevěné","vzrostlé stromy, vandalismus, terorismus",50760000,"Kult"]
[null,null,null,"Zámek 1","Pardubice","530 02","1",5900,4393,96000,"Pardubický kraj",3,13179,"budova","zděná","sedlová, kopule","střešní tašky, měď","muzeum, kulturní památka","ne",1,"ne","EPS, RHP, vnější hydranty","CCTV, EZS","ano","skleněná s dřevěným rámem / kovaná vrata","vzrostlé stromy, vandalismus, terorismus",609128313,"Kult"]
[null,null,null,"Zámek 3","Pardubice","530 02","2/2",5900,2345,11600,"Pardubický kraj",2,4690,"budova","zděná","sedlová","střešní tašky","muzeum","ne",2,"ne","EPS, RHP, vnější hydranty","CCTV, EZS","ano","skleněná s dřevěným rámem / dřevěné","vzrostlé stromy, vandalismus, terorismus",73602000,"Kult"]
[null,null,null,"Zámek 4","Pardubice","530 02","3",5900,689,5900,"Pardubický kraj",2,1378,"budova","zděná","sedlová","střešní tašky","vstupní brána","ne",2,"ne","EPS, RHP, vnější hydranty","CCTV, EZS","ano","skleněná s dřevěným rámem / dřevěné","vzrostlé stromy, vandalismus, terorismus",37435500,"Kult"]
[null,null,null,"Semtínská 157","Pardubice","533 53",450,4300,1500,26902,"Pardubický kraj","3",4500,"budova","zděná","plochá","střešní fólie","škola","ne",3,"ne","RHP, hydrant","minimální (oplocení areálu)","ano","skleněná s dřevěným rámem / dřevěné s prosklením","vzrostlé stromy ",129560032,"Kult"]
[null,null,null,"Semtínská 157","Pardubice","533 53",450,null,190,null,"Pardubický kraj","2",380,"budova","zděná","plochá, sedlová","střešní fólie, vlnitý plech","škola","ne",3,"ne","RHP, hydrant","minimální (oplocení areálu)","ano","skleněná s dřevěným rámem / dřevěné s prosklením","vzrostlé stromy "]
[null,null,null,"Semtínská 157","Pardubice","533 53",450,null,1228,null,"Pardubický kraj","1",1228,"budova","zděná","plochá, sedlová","střešní fólie, vlnitý plech"," kuchyně, jídelna, spojovací chodby","gastro-technologie",3,"ne","RHP, hydrant","minimální (oplocení areálu)","ano","skleněná s dřevěným rámem / dřevěné s prosklením","vzrostlé stromy "]
[{"$f":"+A403+1","v":2},"Východočeská galerie v Pardubicích","00085278","Pernštýnské náměstí 50","Pardubice","530 02","100",5900,508,6100,"Pardubický kraj",3,1524,"budova","zděná","sedlová","střešní tašky","galerie","ne",1,"ne","EPS, RHP","EZS, FAB","ano","skleněná s dřevěným rámem / dřevěné s prosklením","vandalismus",40308800,"Kult"]
[null,null,null,"Zámek 3","Pardubice","530 02","2/2",5900,2345,11600,"Pardubický kraj",2,4690,"budova","zděná","sedlová","střešní tašky","muzeum ( část Východoč. galerie)","ne",2,"ne","EPS, RHP, vnější hydranty","CCTV, EZS","ano","skleněná s dřevěným rámem / dřevěné","vzrostlé stromy, vandalismus, terorismus","v pojištění Východočeského muzea","Kult"]
[null,null,null,"Poděbradská 94","Pardubice",53002,450,null,2918,26902,"Pardubický kraj",3,8754,"budova","zděná","plochá ","střešní fólie ","učebny","ne",2,"ne","standartní (RHP)","minimální (oplocení areálu)","ano","skleněná s dřevěným rámem / dřevěné s prosklením","vzrostlé stromy ","budova v hospodaření Střední školy potravinářství a služeb,Pardubice,Poděbradská","Kult"]
[{"$f":"+A410+1","v":3},"Krajská knihovna v Pardubicích","00085219","Pernštýnské nám. 77","Pardubice","530 02","67",5900,517,9300,"Pardubický kraj",3,1551,"budova","zděná","sedlová","střešní tašky","knihovna","ne",1,"ne","EPS, RHP, hydrant vnější","EZS, magnetické brány","ano","skleněná s dřevěným rámem / dřevěné s prosklením","vandalismus",61454400,"Kult"]
[null,null,null,"Pernštýnské nám. 78","Pardubice","530 02","66",5900,204,3600,"Pardubický kraj",3,612,"budova","zděná","sedlová","střešní tašky","knihovna","ne",1,"ne","EPS, RHP, hydrant vnější","EZS, magnetické brány","ano","skleněná s dřevěným rámem / kovové s prosklením","vandalismus",23788800,"Kult"]
[null,null,null,"Pernštýnské nám. 79","Pardubice","530 02","63",5900,341,6700,"Pardubický kraj",4,1364,"budova","zděná","sedlová","střešní tašky","knihovna","ne",1,"ne","EPS, RHP, hydrant vnější","EZS, magnetické brány","ano","skleněná s dřevěným rámem / dřevěné s prosklením","vandalismus",44273600,"Kult"]
[{"$f":"+A413+1","v":4},"Regionální muzeum v Chrudimi","00370941","Široká 86 ","Chrudim","537 01","235",5900,571,null,"v majetku města",3,1713,"budova","zděná","sedlová","šindel","muzeum","ne",2,"ne","EPS, RHP","EZS ","ano","skleněná s dřevěným rámem / dřevěné s prosklením","vodní toky, vandalismus",null,"Kult"]
[null,null,null,"Široká 85","Chrudim","537 01","236",null,2173,null,"v majetku města",3,{"$f":"L417*I417","v":6519},"budova","zděná","sedlová","plechová","muzeum","ne",2,"ne","EPS, RHP","EZS","ano","skleněná s dřevěným rámem / dřevěné s prosklením","vodní toky, vandalismus",null,"Kult"]
[null,null,null,"Rybičkova 10","Chrudim","537 01","10",5900,229,3600,"Pardubický kraj",3,687,"budova","zděná","sedlová","pálená taška","muzeum","ne",3,"ne","standartní (RHP)","bezpečnostní vložka zámku","ano","skleněná s plastovým rámem / dřevěné bez prosklení","vandalismus",22122000,"Kult"]
[null,null,null,"K Ploché dráze 688","Chrudim",53701,2148,4300,589,5870,"Pardubický kraj",2,1178,"budova","zděná","valbová","betonová taška","škola ","ne",2,"ne","RHP, hydrant","minimální (oplocení zadní části objektu)","ano","skleněná s dřevěným nebo plastovým rámem / plastové s prosklením","vandalismus",26677506,"Kult"]
[{"$f":"+A416+1","v":5},"Regionální muzeum ve Vysokém Mýtě","00372331","Šemberova 125/1, 126, 127","Vysoké Mýto","566 01","35, 38, 40",6600,{"$f":"405+331+341","v":1077},9710,"Pardubický kraj",2,2154,"budova","zděná","valbová, sedlová","střešní tašky","muzeum","ne",2,"ne","RHP, vnější hydranty","minimální","ano","skleněná s dřevěným rámem / dřevěné s prosklením","vandalismus",71859200,"Kult"]
[6,"Regionální muzeum v Litomyšli",71191283,"Jiráskova 9","Litomyšl","570 01","246",4300,880,8640,"Pardubický kraj",2,1760,"budova","zděná","valbová","střešní tašky","muzeum","ne",1,"ne","EPS, RHP","EZS","ano","skleněná s dřevěným rámem / dřevěné","vzrostlé stromy, vandalismus ",41610240,"Kult"]
[null,null,null,"Jiráskova 133","Litomyšl","570 01","5/2",null,3684,null,"v majetku města",1,3684,"budova","zděná","sedlová","střešní tašky","muzeum","ne","v rekonstrukci","ne","EPS, RHP","EZS","ano","skleněná s dřevěným rámem / dřevěné","vandalismus",null,"Kult"]
[1,"Chrudimská nemocnice, a.s.","27520561","Václavská 570","Chrudim","537 01","2348/1",5400,5309,65000,"Pardubický kraj",5,26545,"budova","zděná","pultová","plechová","hlavní budova-křídla A,B,C;gastroprovoz","gastro-technologie, vzduchotechnika, klimatizace",2,"kapaliny I.-IV. třídy nebezpečnosti a hořlavé plyny v laboratořích","EPS, RHP, síť hydrantů","EZS, oplocení areálu","ano","skleněná s plastovým rámem / kovové s prosklením","minimální ",412880000,"Zdrav"]
[null,null,null,"bez č.p.","Chrudim","537 01","2347",5400,238,1550,"Pardubický kraj",2,476,"budova","zděná","plochá","asfaltové pásy","transfúzní stanice + patologie","ne",3,"ne ","RHP, síť hydrantů","minimální (oplocení areálu)","ano","skleněná s dřevěným rámem / plechové s prosklením","vandalismus",9845600,"Zdrav"]
[null,null,null,"bez č.p.","Chrudim","537 01","2348/2",5400,86,350,"Pardubický kraj",1,86,"přístřešek","ocel","pultová","plechová","skládka odpadu","ne",2,"ne","síť hydrantů","oplocení areálu + zamčená pletivová vrata","ano","ne / kovová vrata s pletivem","vzrostlé stromy",2223200,"Zdrav"]
[null,null,null,"bez č.p.","Chrudim","537 01",2349,5400,767,4500,"Pardubický kraj",2,1534,"budova","zděná","sedlová","plechová","kotelna","strojní vybavení kotelny",3,"zemní plyn","RHP, síť hydrantů","minimální (oplocení areálu)","ano","skleněná s kovovým rámem / plechové bez prosklení","minimální ",28584000,"Zdrav"]
[null,null,null,"bez č.p.","Chrudim","537 01",2351,5400,15,60,"Pardubický kraj",1,15,"budova","zděná","pultová","plechová","sklad plynu","ne",3,"TL-medicínské plyny,kyslík,svařovací souprava,dusík,korgon,acetylen","RHP, síť hydrantů","minimální (oplocení areálu)","ano","ventilace / plechová vrata","minimální ",381120,"Zdrav"]
[null,null,null,"bez č.p.","Chrudim","537 01",2353,5400,48,270,"Pardubický kraj",1,48,"budova","zděná","plochá","střešní fólie","sklad chlóru","ne",3,"chlór","standartní (RHP)","minimální (objekt uzamčen a oplocen)","ano","prosklení / plechové","vzrostlé stromy",1715040,"Zdrav"]
[null,null,null,"bez č.p.","Chrudim","537 01",4315,5400,237,1050,"Pardubický kraj",2,474,"budova","zděná","pultová","asfaltové pásy","trafostanice","2x vlastní trafo, 1x vlastní distribuční společnost",2,"olej v transformátorech","RHP, síť hydrantů","minimální (oplocení areálu)","ano","skleněná výplň / plechové bez skleněné výplně","minimální ",6669600,"Zdrav"]
[null,null,null,"bez č.p.","Chrudim","537 01",4316,5400,71,210,"Pardubický kraj",1,71,"budova","zděná","pultová","plechová","vodárna","strojní vybavení vodárny",2,"ne","RHP, síť hydrantů","minimální (oplocení areálu)","ano","skleněná s kovovým rámem / plechové bez skleněné výplně","minimální ",1333920,"Zdrav"]
[null,null,null,"bez č.p.","Chrudim","537 01",4317,5400,814,5650,"Pardubický kraj",2,1628,"budova","zděná","pultová","asfaltové pásy","dialýza, kardiologie","vzduchotechnika",3,"ne","RHP, síť hydrantů","minimální (oplocení areálu)","ano","skleněná s dřevěným rámem / dřevěné se skleněnou výplní","minimální ",35888800,"Zdrav"]
[null,null,null,"bez č.p.","Chrudim","537 01",4318,5400,600,2100,"Pardubický kraj",1,600,"budova","zděná","plochá","plechová","garáže","ne",3,"ne","RHP, síť hydrantů","minimální (oplocení areálu)","ano","prosklení / plechová vrata","minimální ",13339200,"Zdrav"]
[null,null,null,"bez č.p.","Chrudim","537 01",4319,5400,50,200,"Pardubický kraj",1,50,"budova","zděná","pultová","plechová","sklad kyslíku","ne",3,"kyslík (TL s obsahem 10 a 50 l)","RHP, síť hydrantů","minimální (oplocení areálu)","ano","skleněná výplň / plechové bez prosklení","minimální ",1270400,"Zdrav"]
[null,null,null,"bez č.p.","Chrudim","537 01",5219,5400,842,3050,"Pardubický kraj",1,842,"budova","dřevěná","pultová","plechová","dílny","ne",3,"oleje a PHM","RHP, síť hydrantů","minimální (oplocení areálu)","ano","skleněná s dřevěným rámem / plechová vrata","minimální ",19373600,"Zdrav"]
[null,null,null,"bez č.p.","Chrudim","537 01",5321,5400,282,820,"Pardubický kraj",1,282,"budova","dřevěná","sedlová","plechová","šatny","ne",3,"ne","RHP, síť hydrantů","minimální (oplocení areálu)","ano","skleněná s dřevěným rámem / dřevěné s prosklením","vzrostlé stromy",5208640,"Zdrav"]
[null,null,null,"bez č.p.","Chrudim","537 01",5943,5400,11,24,"Pardubický kraj",1,11,"přístavek","železobetonová","plochá","betonová","vzduchotechnika","strojní vybavení vzduchotechniky",2,"ne","RHP, síť hydrantů","minimální (oplocení areálu)","ano","ventilace / plechové bez prosklení ","minimální ",152448,"Zdrav"]
[null,null,null,"bez č.p.","Chrudim","537 01",5944,5400,2089,21600,"Pardubický kraj",6,12534,"budova","zděná","pultová","asfaltové pásy","operační sály","klimatizace, vzduchotechnika",2,"medicínské plyny,TL s kyslíkem,hořlaviny I. třídy nebezp. (max.5 l na oddělení) ","EPS, RHP, síť hydrantů","EZS, oplocení areálu","ano","skleněná s plastovým rámem / plastové s prosklením","minimální ",137203200,"Zdrav"]
[null,null,null,"bez č.p.","Chrudim",53701,"5946/1",5400,115,460,"Pardubický kraj",1,115,"budova","zděná","pultová","asfaltové pásy","vrátnice","ne",2,"ne","RHP, síť hydrantů","trvalá obsluha zaměstnanci","ano","skleněná s kovovým rámem / plechové s prosklením","vandalismus",2921920,"Zdrav"]
[null,null,null,"bez č.p.","Chrudim","537 01",6473,5400,235,2350,"Pardubický kraj",3,705,"budova","zděná","pultová","asfaltové pásy","sklady materiálně-technického zázemí","klimatizace ",2,"ne","EPS, RHP, síť hydrantů","EZS ","ano","skleněná s plastovým rámem / dřevěné","minimální ",14927200,"Zdrav"]
[null,null,null,"bez č.p.","Chrudim","537 01",6474,5400,580,5240,"Pardubický kraj",3,1740,"budova","zděná","pultová","asfaltové pásy","ředitelství","ne",2,"ne","RHP, síť hydrantů","EZS, oplocení areálu","ano","skleněná s dřevěným rámem / kovové s prosklením","minimální ",33284480,"Zdrav"]
[null,null,null,"bez č.p.","Chrudim","537 01",6483,5400,24,48,"Pardubický kraj",1,24,"budova","zděná","pultová","asfaltové pásy","provozní vrátnice","ne",2,"ne","standartní (RHP)","minimální","ano","skleněná s dřevěným rámem / dřevěné s prosklením","vandalismus",304896,"Zdrav"]
[null,null,null,"bez č.p.","Chrudim","537 01",6620,5400,466,1780,"Pardubický kraj",1,466,"budova","dřevěná","pultová","plechová","archiv","ne",3,"ne","EPS, RHP, síť hydrantů","EZS, mříže-okna,dveře; oplocení areálu","ano","sklěněná s dřevěným rámem / dřevěné s prosklením","vzrostlé stromy",11306560,"Zdrav"]
[null,null,null,"bez č.p.","Chrudim","537 01",5950,5400,64,110,"Pardubický kraj",1,64,"budova","zděná","plochá","střešní fólie","trafostanice","trafo",2,"olej v transtormátoru","standartní (RHP)","minimální (oplocení areálu)","ano","ventilace / plechové  ","vzrostlé stromy",698720,"Zdrav"]
[null,null,null,"bez č.p.","Chrudim",53701,"6949",5400,261,2316,"Pardubický kraj",2,522,"budova","zděná","sedlová","plechová","lékárna","klimatizace",1,"minimální množství hořlavin - léky","EPS, RHP, síť hydrantů","EZS, oplocení zadní části objektu","ano","skleněná s plastovým rámem / plechové s prosklením","vandalismus",14711232,"Zdrav"]
[null,null,null,"Václavská 567","Chrudim","537 01",2344,5400,315,3200,"majetek a. s.",3,945,"budova","zděná","sedlová","plechová","ubytovna","ne",3,"ne","standartní (RHP)","minimální","ano","sklěněná s dřevěným rámem / dřevěné  ","vandalismus",20326400,"Zdrav"]
[null,null,null,"Václavská 567, 568","Chrudim","537 01",2345,5400,91,273,"majetek a. s.",1,91,"budova","zděná","pultová","asfaltové pásy","spojovací úsek ubytovny","ne",3,"ne","standartní (RHP)","minimální","ano","skleněná s dřevěným rámem / kovové s prosklením","vandalismus",1734096,"Zdrav"]
[null,null,null,"Václavská 568","Chrudim","537 01",2346,5400,318,3200,"majetek a. s.",3,954,"budova","zděná","sedlová","plechová","ubytovna","ne",3,"ne","standartní (RHP)","minimální","ano","skleněná s dřevěným rámem / dřevěné","vandalismus",20326400,"Zdrav"]
[null,null,null,"č.p. 12","Seč",53807,977,5400,128,1020,"Pardubický kraj",2,256,"budova","zděná","sedlová","střešní tašky","rekreační chatka, majetek a. s.","ne",1,"ne","standartní (RHP)","kamerový systém, oplocení objektu","ano","dřevěné s prosklením / skleněná s dřevěným rámem","vodní nádrž, vzrostlé stromy, vandalismus",6479040,"Zdrav"]
[2,"Pardubice krajská nemocnice, a.s.","27520536","Kyjevská 44","Pardubice","530 03","416",5400,195,3800,"Pardubický kraj",2,390,"budova","zděná","plochá","živičná","ambulance onkologie","vzduchotechnika",1,"ne","RHP, hydranty","osvětlení a oplocení celého areálu, v suterénu okenní mříže","ano","skleněná s dřevěným rámem / dřevěbí","minimální ",23085000,"Zdrav"]
[2,"Pardubice krajská nemocnice, a.s.",null,"bez č.p.","Pardubice","530 03","404",5400,600,4800,"Pardubický kraj",3,1800,"budova","zděná","plochá","živičná/plechová","patologie","vzduchotechnika",2,"ne","RHP, hydranty","osvětlení a oplocení celého areálu ","ano","skleněná s dřevěným rámem / dřevěné s prosklením","minimální ",29160000,"Zdrav"]
[null,null,null,"bez č.p.","Pardubice","530 03","405",5400,807,11700,"Pardubický kraj",3,2421,"budova","zděná","plochá","živičná","TRN, psychiatrie","vzduchotechnika",2,"ne","RHP, hydranty","osvětlení a oplocení celého areálu","ano","skleněná s dřevěným rámem / dřevěné s prosklením","minimální ",71077500,"Zdrav"]
[null,null,null,"bez č.p.","Pardubice","530 03","406",5400,1904,27500,"Pardubický kraj",3,5712,"budova","zděná","plochá","živičná","trojpavilon (oční,ORL,dětské odd.,hematologie,psychiatrie)","vzduchotechnika",1,"tlakové láhve ve skladu pavilonu (kapacita max. 14 TL, tj. 700 l)","RHP, hydranty","osvětlení a oplocení celého areálu","ano","skleněná s dřevěným, plastovým rámem / dřevěné","minimální ",167062500,"Zdrav"]
[null,null,null,"bez č.p.","Pardubice","530 03","407",5400,1141,16280,"Pardubický kraj",3,3423,"budova","zděná","plochá","živičná","kardiologie","vzduchotechnika",1,"tlakové láhve (kapacita max. 14 TL - 700 l)","RHP, hydranty","osvětlení a oplocení celého areálu","ano","skleněná s plastovým rámem / plastové s prosklením","minimální ",106312500,"Zdrav"]
[null,null,null,"bez č.p.","Pardubice","530 03","1301",null,244,1220,"Pardubický kraj",2,488,"budova","zděná","plochá","živičná","kardiologie","vzduchotechnika",1,"tlakové láhve (kapacita max. 14 TL - 700 l)","RHP, hydranty","osvětlení a oplocení celého areálu","ano","skleněná s plastovým rámem / plastové s prosklením","minimální "]
[null,null,null,"bez č.p.","Pardubice","530 03","408",5400,1900,54630,"Pardubický kraj",4,7600,"budova","zděná","plochá","střešní fólie","porodnicko-gynekologický pavilon, urologie","vzduchotechnika",1,"ne","EPS, hydranty","osvětlení a oplocení celého areálu","ano","skleněná s plastovým rámem / plastové s prosklením","minimální ",331877250,"Zdrav"]
[null,null,null,"bez č.p.","Pardubice","530 03","409",5400,1727,24500,"Pardubický kraj",5,8635,"budova","zděná, železobeton","plochá","živičná","chirurgie","vzduchotechnika",1,"ne","RHP, hydranty","osvětlení a oplocení celého areálu","ano","skleněná s dřevěným rámem / dřevěné s prosklením","minimální ",148837500,"Zdrav"]
[null,null,null,"bez č.p.","Pardubice","530 03","410",5400,1218,18300,"Pardubický kraj",3,3654,"budova","žděná/železobeton","plochá","živičná","neurologie","vzduchotechnika",2,"tlakové láhve (max. kapacita 14 TL - 700 l)","RHP, hydranty","osvětlení a oplocení celého areálu","ano","skleněná s dřevěným rámem / dřevěné s prosklením","minimální ",111172500,"Zdrav"]
[null,null,null,"bez č.p.","Pardubice","530 03","411",5400,445,4500,"Pardubický kraj",3,1335,"budova","zděná","plochá","živičná","krajská hygienická stanice, lékarna","ne",3,"kapaliny I. - IV. třídy nebezpečnosti, léky","RHP, hydranty","osvětlení a oplocení celého areálu","ano","skleněná s dřevěným rámem / dřevěné s prosklením","minimální ",27337500,"Zdrav"]
[null,null,null,"bez č.p.","Pardubice","530 03","412",5400,735,9050,"Pardubický kraj",3,2205,"budova","zděná","plochá","živičná","onkologie, dětská chirurgie, stomatologie","vzduchotechnika, klimatizace",3,"ne","EPS, hydranty","osvětlení a oplocení celého areálu","ano","skleněná s dřevěným rámem / dřevěné s prosklením","minimální ",54978750,"Zdrav"]
[null,null,null,"bez č.p.","Pardubice","530 03","414",5400,902,14900,"Pardubický kraj",3,2706,"budova","zděná","plochá","živičná","ředitelství, ústavní lékárna","vzduchotechnika, klimatizace",1,"léky","kouřová čidla, RHP, hydranty","EZS, oplocení areálu","ano","skleněná s plastovým rámem / plastové s prosklením","minimální ",90517500,"Zdrav"]
[null,null,null,"bez č.p.","Pardubice","530 03","415",5400,993,16100,"Pardubický kraj",3,2979,"budova","zděná","plochá","živičná","vstupní budova, lékárna, budova hlavní vrátnice","klimatizace",1,"minimální množství hořlavin, léky","RHP, hydranty","EZS","ano","sklěněná s dřevěným rámem / dřevěné s prosklením","vzrostlé stromy, vandalismus",97807500,"Zdrav"]
[null,null,null,"bez č.p.","Pardubice","530 03","417",5400,42,130,"Pardubický kraj",1,42,"budova","kovová","pultová","vlnitý plech","garáž ","ne",2,"ne","standartní, RHP, hydranty","osvětlení a oplocení celého areálu","ano","ne / plechová vrata","vzrostlé stromy",789750,"Zdrav"]
[null,null,null,"bez č.p.","Pardubice","530 03","418",5400,860,5400,"Pardubický kraj",2,1720,"budova","zděná","plochá","živičná","infekční oddělení","vzduchotechnika",2,"výskyt hořlavých látek v omezeném množství","RHP, hydranty","osvětlení a oplocení celého areálu","ano","skleněná s dřevěným rámem / dřevěné s prosklením","minimální ",32805000,"Zdrav"]
[null,null,null,"bez č.p.","Pardubice","530 03","426",5400,794,7200,"Pardubický kraj",2,1588,"budova","zděná, železobeton","plochá,valbová","živičná, plech","pavilon RDG + budova č. 45-CT","vzduchotechnika",1,"sklad chemikálií, snímků RTG","RHP, hydranty","osvětlení a oplocení celého areálu","ano","skleněná s plastovým rámem / plastové s prosklením","vzrostlé stromy",43740000,"Zdrav"]
[null,null,null,"bez č.p.","Pardubice","530 03","427, 1003",5400,{"$f":"225+200","v":425},3100,"Pardubický kraj",2,850,"budova","zděná","plochá","živičná","dílny, náhradní zdroj elektrické energie","vzduchotechnika",2,"oleje, PHM","RHP, hydranty","osvětlení a oplocení celého areálu","ano","sklěněná s dřevěným rámem / dřevěné s prosklením","minimální ",18832500,"Zdrav"]
[null,null,null,"bez č.p.","Pardubice","530 03","976",5400,255,960,"Pardubický kraj",1,255,"budova","zděná","plochá","střešní fólie","trafostanice","trafo",3,"oleje v transtormátorech (2x 750 kg vstupní trafostanice)","standartní, RHP, hydranty","osvětlení a oplocení celého areálu","ano","ne / plechová vrata","vzrostlé stromy",5832000,"Zdrav"]
[null,null,null,"bez č.p.","Pardubice","530 03","997, 1320",5400,668,5200,"Pardubický kraj","1",668,"budova","zděná","plochá","živičná","plynová kotelna","strojní vybavení kotelny",2,"hořlavý plyn, svařovací souprava","RHP, hydranty","osvětlení a oplocení celého areálu","ano","skleněná s kovovým rámem, prosklení / plechové","minimální ",31590000,"Zdrav"]
[null,null,null,"bez č.p.","Pardubice","530 03","1320",null,200,5200,"Pardubický kraj","2",{"$f":"L468*I468","v":400},"budova","zděná","plochá","živičná","plynová kotelna","strojní vybavení kotelny",2,"hořlavý plyn, svařovací souprava","RHP, hydranty","osvětlení a oplocení celého areálu","ano","skleněná s kovovým rámem, prosklení / plechové","minimální "]
[null,null,null,"bez č.p.","Pardubice","530 03","998",5400,23,40,"Pardubický kraj",1,23,"budova","kovová","pultová","vlnitý plech","sklad hořlavin","ne",3,"hořlaviny I. - IV. třídy nebezpečnosti max. do 1.000 l (200 l / sud)","standartní RHP, hydranty","osvětlení a oplocení celého areálu","ano","ne / plechová vrata","vzrostlé stromy, vandalismus",243000,"Zdrav"]
[null,null,null,"bez č.p.","Pardubice","530 03","999",5400,50,125,"Pardubický kraj",1,50,"budova","zděná","pultová","vlnitý plech","sklad","ne",3,"hořlavé zkapalněné plyny (TL - kapacita do 2.050 l)","standartní RHP, hydranty","osvětlení a oplocení celého areálu","ano","ne / kovové s prosklením","vzrostlé stromy, vandalismus",759375,"Zdrav"]
[null,null,null,"bez č.p.","Pardubice","530 03","1000/1",5400,885,5450,"Pardubický kraj",2,1770,"budova","zděná","plochá","živičná","mikrologie, laboratoře OKBD","vzduchotechnika",1,"kapaliny I. - IV. třídy nebezpečnosti, hořlavé plyny","standartní, RHP, hydranty","osvětlení a oplocení celého areálu","ano","skleněná s dřevěným rámem / kovové s prosklením","vzrostlé stromy",33108750,"Zdrav"]
[null,null,null,"bez č.p.","Pardubice","530 03","1001",5400,374,1500,"Pardubický kraj",2,748,"budova","zděná","plochá","střešní fólie","laboratoře (plánovaný účel)","ne",2,"hořlavé plyny, kapaliny I. - IV. třídy nebezpečnosti","standartní, RHP, hydranty","osvětlení a oplocení celého areálu","ano","skleněná s plastovým rámem / dřevěné s prosklením","vzrostlé stromy",9112500,"Zdrav"]
[null,null,null,"bez č.p.","Pardubice","530 03","1002",5400,298,1100,"Pardubický kraj",1,298,"budova","zděná","plochá","živičná","magnetická rezonance","ne",1,"ne","kouřová čidla, RHP, hydranty","osvětlení a oplocení celého areálu","ano","skleněná s plastovým rámem / plastové s prosklením","vzrostlé stromy",6682500,"Zdrav"]
[null,null,null,"bez č.p.","Pardubice","530 03","1180/1-3",5400,1243,9400,"Pardubický kraj",1,1243,"hala","železobeton ","sedlová","vlnitý plech","prádelna, sklad","prádelna",2,"výskyt hořlavých látek v omezeném množství","standartní RHP, hydranty","osvětlení a oplocení celého areálu, částečně okenní mříže","ano","skleněná s dřevěným rámem, prosklení / plechová vrata","vandalismus",57105000,"Zdrav"]
[null,null,null,"bez č.p.","Pardubice","530 03","1295",5400,1144,30800,"Pardubický kraj",8,9152,"budova","železobeton,prefabrikované ze systému T06B","plochá","živičná","LDN, interna, rehabilitace","vzduchotechnika",2,"výskyt hořlavých látek v omezeném množství","standartní, RHP, hydranty","osvětlení a oplocení celého areálu","ano","skleněná s dřevěným rámem / dřevěné","minimální ",187110000,"Zdrav"]
[null,null,null,"bez č.p.","Pardubice","530 03","1321",5400,333,1600,"Pardubický kraj",1,333,"budova","zděná","pultová","živičná","čističky odpadních vod","strojní vybavení čističky",2,"zásobník chlóru","standartní (RHP), hydranty","osvětlení a oplocení celého areálu","ano","skleněná v kovovém rámu / plechová vrata","minimální ",9720000,"Zdrav"]
[null,null,null,"bez č.p.","Pardubice","530 03","1330,1331",5400,618,4400,"Pardubický kraj",2,1236,"budova","zděná","plochá","střešní fólie","dialýza ","vzduchotechnika",1,"ne","kouřová čidla, RHP, hydranty","osvětlení a oplocení celého areálu","ano","skleněná s plastovým rámem / plastové s prosklením","minimální (vzrostlé stromy)",26730000,"Zdrav"]
[null,null,null,"bez č.p.","Pardubice","530 03","1332",5400,370,1800,"Pardubický kraj",2,740,"budova","válcované profily","sedlová","plechová","spalovna nemocničního odpadu","strojní vybavení spalovny",2,"výskyt hořlavých látek v omezeném množství","RHP, hydranty","osvětlení a oplocení celého areálu","ano","skleněná s kovovým rámem / plechová vrata","minimální",10935000,"Zdrav"]
[null,null,null,"bez č.p.","Pardubice","530 03","1363",5400,133,340,"Pardubický kraj",1,133,"budova","zděná","plochá","šindel","trafostanice","trafo",1,"ne","RHP, hydranty","osvětlení a oplocení celého areálu","ano","ventilace / ocelové","vzrostlé stromy",2065500,"Zdrav"]
[null,null,null,"bez č.p.","Pardubice","530 03","1369, 1370",5400,{"$f":"1746+1738","v":3484},50000,"Pardubický kraj",6,20904,"budova","železobeton","plochá,valbová","střešní fólie","nová chirurgie, transfúzní stanice","vzduchotechnika",1,"výskyt hořlavých látek v omezeném množství","kouřová čidla, EPS, hydranty","EZS, oplocení areálu","ano","skleněná s plastovým rámem / plastové s prosklením","vzrostlé stromy",303750000,"Zdrav"]
[null,null,null,"bez č.p.","Pardubice","530 03","1449",5400,861,8000,"Pardubický kraj",4,3444,"budova","zděná","plochá","živičná","multican, onkologie, KHS","ne",1,"ne","kouřová čidla, EPS, hydranty","ESZ","ano","skleněná s plastovým rámem / plastové s prosklením","minimální",48600000,"Zdrav"]
[null,null,null,"bez č.p.","Pardubice","530 03","1456",5400,1726,20800,"Pardubický kraj",6,10356,"budova","železobeton","plochá,valbová","střešní fólie, plech","kuchyňský blok, ubytování","gastro-technologie, klimatizace",1,"ne","RHP, hydranty","osvětlení a oplocení celého areálu","ano","skleněná s plastovým rámem / plastové s prosklením","minimální",126360000,"Zdrav"]
[null,null,null,"bez č.p.","Pardubice","530 03","1519",5400,280,700,"Pardubický kraj",1,{"$f":"L483*I483","v":280},"budova","zděná","plochá","střešní fólie","trafostanice + náhradní zdroj","trafo",2,"výskyt hořlavých látek v omezeném množství","standartní (RHP)","osvětlení a oplocení celého areálu","ano","ventilace / plechové","vzrostlé stromy",4252500,"Zdrav"]
[null,null,null,"bez č.p.","Pardubice","530 03","1520",5400,820,4600,"Pardubický kraj",3,2460,"budova","zděná","plochá","živičná","jídelna zaměstnanců","klimatizace",3,"ne","standartní (RHP), hydranty","osvětlení a oplocení celého areálu","ano","skleněná s plastovým rámem / dřevěné s prosklením","minimální",27945000,"Zdrav"]
[null,null,null,"bez č.p.","Pardubice","530 03","1691",null,354,1856,"Pardubický kraj",1,354,"budova","zděná","plochá","střešní fólie","magnetická rezonance","vzduchotechnika",1,"ne","hlásiče požáru, RHP, hydrant","osvětlení a oplocení celého areálu","ano","skleněná s plastovým rámem / dřevěné s prosklením","minimální",11275200,"Zdrav"]
[null,null,null,"U Svaté trojice","Pardubice","530 03","789",5400,309,1852,"Pardubický kraj",2,618,"budova","zděná","sedlová","plech ","záchytná stanice","ne",3,"ne","standartní (RHP)","mříže na oknech a dveřích","ano","skleněná s dřevěným rámem / kovové s prosklením","vzrostlé stromy, vandalismus",11250900,"Zdrav"]
[null,null,null,"E 250","Seč -Proseč u Seče",null,"342",5400,54,160,"majetek a. s.",1,54,"budova","zděná","sedlová","plech","rekreační chata","ne",3,"ne","standartní (RHP)","částečně okenní mříže","ne","skleněná s dřevěným rámem / dřevěné","vzrostlé stromy, vandalismus",null,"Zdrav"]
[null,null,null,"E 251","Seč",null,"347",5400,56,130,"majetek a. s.",1,56,"budova","zděná","sedlová","plech","rekreační chata","ne",3,"ne","standartní (RHP)","částečně okenní mříže","ne","skleněná s dřevěným rámem / dřevěné","vzrostlé stromy, vandalismus",null,"Zdrav"]
[null,null,null,"E 252","Seč",null,"343",5400,54,170,"majetek a. s.",1,54,"budova","zděná","sedlová","plech","rekreační chata","ne",3,"ne","standartní (RHP)","částečně okenní mříže","ne","skleněná s dřevěným rámem / dřevěné","vzrostlé stromy, vandalismus",null,"Zdrav"]
[null,null,null,"E 253","Seč",null,"346, 348, 349, 350, 344",5400,{"$f":"30+30+30+30+30","v":150},"70 / chata","majetek a. s.",1,150,"budova","zděná","sedlová","plech","rekreační chata","ne",3,"ne","standartní (RHP)","minimální","ne","skleněná s dřevěným rámem / dřevěné","vzrostlé stromy, vandalismus",null,"Zdrav"]
[3,"Svitavská nemocnice, a.s.","27520552","Kollárova 643/7","Svitavy",56802,"548",5400,3250,40200,"Pardubický kraj",4,13000,"budova","zděná","pultová","střešní fólie","monoblok","vzduchotechnika",1,"tlakové láhve (kapacita max. 5 TL, tj. 100 l)","EPS,tlačítkové hlásiče,hydranty","EZS, CCTV","ano","skleněná s plastovým rámem / plechové se skleněnou výplní","vandalismus",243214020,"Zdrav"]
[null,null,null,"bez č.p.","Svitavy",56802,"603",5400,399,4500,"Pardubický kraj",1,399,"hala","zděná","sedlová","plech","údržba","ne",4,"hořlaviny I. - IV. třídy nebezpečnosti (max. 200 l)","standartní (RHP), hydranty","CCTV, oplocení","ano","skleněná v kovovém rámu / plechové","vzrostlé stromy",27225450,"Zdrav"]
[null,null,null,"bez č.p.","Svitavy",56802,"740",5400,697,6500,"Pardubický kraj",2,1394,"budova","zděná","sedlová","střešní tašky","ORL + LDN","vzduchotechnika",3,"ne","RHP, hydranty","CCTV, oplocení areálu","ano","skleněná s dřevěným rámem / dřevěné s prosklením","vzrostlé stromy",39325650,"Zdrav"]
[null,null,null,"bez č.p.","Svitavy",56802,"1598/1,1598/2",5400,511,1250,"Pardubický kraj",1,511,"budova","zděná","plochá","střešní fólie","HTO","vzduchotechnika",3,"ne","RHP, hydranty","CCTV, oplocení areálu","ano","skleněná s dřevěným rámem / kovové s prosklením","vandalismus",7562625,"Zdrav"]
[null,null,null,"bez č.p.","Svitavy",56802,"2405",5400,86,140,"Pardubický kraj",1,86,"budova","zděná","pultová","plechová","trafostanice","trafo",1,"olej v transformátoru ","standartní (RHP)","CCTV, oplocení areálu","ano","ventilace / plechová vrata","vzrostlé stromy",847014,"Zdrav"]
[null,null,null,"bez č.p.","Svitavy",56802,"3701",5400,71,120,"Pardubický kraj",1,71,"budova","zděná","pultová","plechová","kyslíkárna","ne",1,"tlakové láhve (s obsahem 10 a 50 l)","RHP, hydranty","CCTV, oplocení areálu","ano","plechové","minimální",726012,"Zdrav"]
[null,null,null,"bez č.p.","Svitavy",56802,"2950",5400,985,12100,"Pardubický kraj",1,985,"budova","zděná","pultová",null,"poliklinika",null,2,"minimální množství hořlavin, léky","RHP, hydranty","CCTV","ano","skleněná s plastovým rámem / kovové s prosklením","vandalismus",73206210,"Zdrav"]
[null,null,null,"bez č.p.","Svitavy",56802,"2977",5400,238,2850,"Pardubický kraj",3,714,"budova","zděná","sedlová","střešní fólie","patologie","vzduchotechnika",2,"ne","RHP, hydranty","CCTV, oplocení areálu","ano","skleněná s dřevěným rámem / dřevěné","vzrostlé stromy",17242785,"Zdrav"]
[null,null,null,"bez č.p.","Svitavy",56802,"2978",5400,410,1650,"Pardubický kraj",1,410,"budova","zděná","pultová","plechová","RDG","ne",3,"ne","RHP, hydranty","CCTV, oplocení areálu","ano","skleněná s dřevěným rámem / dřevěné s prosklením","minimální",9982665,"Zdrav"]
[null,null,null,"bez č.p.","Svitavy",56802,"2979",5400,466,2800,"Pardubický kraj",1,466,"budova","zděná","plochá","střešní fólie","přístavba prádelny","prádelna",2,"ne","RHP, hydranty","CCTV, částečně okenní mříže, oplocení areálu","ano","skleněná s dřevěným rámem / dřevěné","minimální",16940280,"Zdrav"]
[null,null,null,"Lány 240","Svitavy",56802,"228/2",5400,205,9300,"Pardubický kraj",3,615,"budova","zděná","valbová","střešní tašky","dětská ambulance, psychiatrie - klášter","ne",3,"ne","RHP, hydranty","CCTV, oplocení areálu","ano","skleněná s dřevěným rámem / dřevěné s prosklením","minimální",56265930,"Zdrav"]
[null,null,null,"bez č.p.","Svitavy",56802,"651",5400,null,5100,"Pardubický kraj",1,0,"budova","zděná","pultová","plechová","DZS","ne",2,null,"RHP, hydranty","CCTV, oplocení areálu","ano","skleněná s plastovým rámem / plastové se skleněnou výplní","vandalismus",30855510,"Zdrav"]
[null,null,null,"bez č.p.","Svitavy",56802,"676",5400,124,6800,"Pardubický kraj",4,496,"budova","zděná","plochá","střešní fólie","rehabilitace","ne",2,"ne","RHP, hydranty","CCTV, oplocení areálu","ano","skleněná s kovovým rámem / plastové se skleněnou výplní","minimální",41140680,"Zdrav"]
[null,null,null,"bez č.p.","Svitavy",56802,"1343",5400,203,470,"Pardubický kraj",1,203,"budova","zděná","plochá","střešní fólie","garáže","ne",3,"PHM, oleje","RHP, hydranty","CCTV, oplocení areálu","ano","prosklení / plechová vrata","minimální",2843547,"Zdrav"]
[null,null,null,"bez č.p.","Svitavy",56802,"1344",5400,243,2540,"Pardubický kraj",1,243,"hala","kovová","pultová","vlnitý plech","hala plynové kotelny","strojní vybavení kotelny",3,"zemní plyn","RHP, hydranty","CCTV, oplocení areálu","ano","plastové světlíky / plechové","minimální",15367254,"Zdrav"]
[null,null,null,"bez čp. ","Svitavy","568 02","1107",5400,87,487,"Pardubický kraj",1,87,"budova","zděná","valbová","eternit","stará márnice","ne",4,"ne","standartní (RHP), hydranty","CCTV, oplocení areálu","ne","prosklení / plechové","vzrostlé stromy, vandalismus",2946399,"Zdrav"]
[null,null,null,"bez čp.","Svitavy","568 02","2980/2",5400,64,300,"Pardubický kraj",1,64,"budova vč. plechového přístavku","zděná, kovová","pultová","vlnitý plech","sklad u ORL","ne",3,"ne","RHP, hydranty","CCTV, oplocení areálu","ano","skleněná v kovovém rámu / dřevěné","vzrostlé stromy",1815030,"Zdrav"]
[null,null,null,"byt č. 1780/2","Svitavy","568 02","2264 - 2466",6000,{"$f":"217+191+221","v":629},350,"Pardubický kraj",4,2516,"budova","zděná","plochá","střešní fólie","byt Svitavy - předměstí č.p. 1780, 1781, 1782","ne",1,"ne","standartní (RHP)","minimální","ano","skleněná s plastovým rámem / plastové s prosklením","vandalismus",2117535,"Zdrav"]
[4,"Litomyšlská nemocnice, a.s.","27520579","J. E. Purkyně 652","Litomyšl",57001,926,5400,345,2800,"Pardubický kraj",2,690,"budova","zděná","plochá,valbová","střešní fólie, střešní tašky","ředitelství, vrátnice","ne",2,"ne","standartní (RHP), hydranty","CCTV, osvětlení a oplocení areálu (EZS-pokladna)","ano","skleněná s dřevěným rámem / dřevěné prosklené","vandalismus, vodní toky",20087200,"Zdrav"]
[null,null,null,"J. E. Purkyně 497","Litomyšl",57001,"755/1",5400,1210,9900,"Pardubický kraj",1,1210,"budova","zděná","valbová","střešní tašky","kožní ambulance","ne",3,"ne","standartní (RHP), hydranty","CCTV, osvětlení a oplocení areálu  ","ano","skleněná s dřevěným rámem / dřevěné prosklené","vodní toky",71022600,"Zdrav"]
[null,null,null,"J. E. Purkyně 510","Litomyšl",57001,"755/2",5400,380,3100,"Pardubický kraj",2,760,"budova","zděná","rovná","střešní fólie","IDG","vzduchotechnika, klimatizace",2,"záložní zdroj mediplynů a technických plynů (max. kapacita 30 TL),nafta při DA (cca 300 l)","standartní (RHP), hydranty","CCTV, osvětlení a oplocení areálu","ano","skleněná s dřevěným rámem / dřevěné prosklené","vzrostlé stromy, vodní toky",22239400,"Zdrav"]
[null,null,null,"J. E. Purkyně 768","Litomyšl",57001,1088,5400,712,8550,"Pardubický kraj",3,2136,"budova","zděná","sedlová","plech","interní oddělení, interní JIP a ambulance","klimatizace",3,"záložní zdroj mediplynů a technických plynů (max. kapacita 30 TL) ","standartní (RHP), hydranty","CCTV, osvětlení a oplocení areálu","ano","skleněná s dřevěným rámem / dřevěné prosklené","vodní toky",61337700,"Zdrav"]
[null,null,null,"J. E. Purkyně 784","Litomyšl",57001,1089,5400,1259,9300,"Pardubický kraj",2,2518,"budova","zděná","rovná","střešní fólie","kuchyně, jídelna, kotelna","gastro-technologie, strojní vybavení kotelny",3,"zemní plyn","standartní (RHP), hydranty","CCTV, osvětlení a oplocení areálu","ano","skleněná s dřevěným rámem / dřevěné","vzrostlé stromy, vodní toky",66718200,"Zdrav"]
[null,null,null,"bez č.p.","Litomyšl",57001,1126,5400,322,1280,"Pardubický kraj",1,322,"budova","zděná","rovná","střešní fólie","patologie","ne",1,"ne","standartní (RHP), hydranty","CCTV, osvětlení a oplocení areálu","ano","skleněná s dřevěným rámem / dřevěné prosklené","vzrostlý strom, vodní toky",9182720,"Zdrav"]
[null,null,null,"bez č.p.","Litomyšl",57001,1127,5400,376,1170,"Pardubický kraj",1,376,"garáž","zděná","plochá, sedlová","střešní fólie, plech","garáže","ne",3,"ne","standartní (RHP), hydranty","CCTV, osvětlení a oplocení areálu","ano","prosklení / plechová vrata","vzrostlé stromy, vodní toky",8393580,"Zdrav"]
[null,null,null,"bez č.p.","Litomyšl",57001,1128,5400,158,450,"Pardubický kraj",1,158,"budova","zděná","sedlová","plech","spisovna","ne",3,"ne","standartní (RHP), hydranty","CCTV, osvětlení a oplocení areálu, okenní mříže","ano","skleněná s dřevěným rámem / kovové s prosklením a mřížemi","vzrostlé stromy, vodní toky",3228300,"Zdrav"]
[null,null,null,"bez č.p.","Litomyšl",57001,1130,5400,74,250,"Pardubický kraj",1,74,"budova","zděná","rovná","střešní fólie","trafostanice","trafo",1,"olej v transformátorech, nafta pro záložní zdroj DA (cca 300 l)","standartní (RHP)","CCTV, osvětlení a oplocení areálu","ano","prosklení / plechové","vodní toky",1793500,"Zdrav"]
[null,null,null,"bez č.p.","Litomyšl",57001,1131,5400,66,310,"Pardubický kraj",1,66,"budova","zděná","sedlová","plech","sklad - údržba","ne",2,"oleje a PHM","standartní (RHP), hydranty","CCTV, osvětlení a oplocení areálu","ano","skleněná s dřevěným rámem / plechová vrata","vodní toky",2223940,"Zdrav"]
[null,null,null,"bez č.p.","Litomyšl",57001,1132,5400,126,580,"Pardubický kraj",1,126,"budova","zděná","rovná","střešní fólie, plech","údržba","ne",3,"svařovací soupravy","standartní (RHP), hydranty","CCTV, osvětlení a oplocení areálu","ano","skleněná s dřevěným rámem / dřevěné prosklené, plechové","vodní toky",4160920,"Zdrav"]
[null,null,null,"J. E. Purkyně 308","Litomyšl",57001,"1133/1",5400,4200,55646,"Pardubický kraj",3,12600,"budova","zděná","sedlová","střešní tašky","monoblok","ano",1,"ne","EPS, hydranty, RHP","EZS, CCTV, osvětlení a oplocení areálu","ano","skleněná s dřevěným rámem / dřevěné prosklené","vodní toky",399204404,"Zdrav"]
[null,null,null,"J. E. Purkyně 919","Litomyšl",57001,"1752/6",5400,491,6020,"majetek a. s.",3,1473,"budova","zděná","rovná","střešní fólie","internát","ne",1,"ne","standartní (RHP)","minimální","ano","skleněná s dřevěným rámem / dřevěné prosklené","vandalismus",null,"Zdrav"]
[null,null,null,"Zámecká 508","Litomyšl",57001,"772",5400,419,7000,"Pardubický kraj",2,838,"budova","zděná","valbová","plech","léčebna dlouhodobě nemocných","ano",1,"ano","standartní (RHP)","minimální","ano","skleněná s dřevěným rámem / dřevěné prosklené","vandalismus",50218000,"Zdrav"]
[null,null,null,"J.E. Purkyně 1096","Litomyšl",57001,"3459",5400,322,1509,"majetek a. s.",1,322,"budova","zděná","pultová","plech","lékárna","klimatizace",1,"minimální množství hořlavin - léky","EPS, hydranty, RHP","EZS, CCTV, osvětlení a oplocení areálu","ano","prosklené výlohy v kovovém rámu / skleněné","vzrostlé stromy",null,"Zdrav"]
[null,null,null,"bez č.p.","Litomyšl",57001,"3375",5400,23,70,"Pardubický kraj",1,23,"budova","zděná","rovná","střešní fólie","redukční stanice","ne",2,"TL (max. do 35 ks)","standartní (RHP), hydranty","CCTV, osvětlení a oplocení areálu","ano","ne / plechové","vzrostlé stromy, vodní toky",502180,"Zdrav"]
[null,null,null,"bez č.p.","Záhraď-Litomyšl",57001,"346",5400,88,170,"Pardubický kraj",2,176,null,"zděná",null,null,"LDN sklad (3NP)","ne",2,"ne","standartní (RHP)","minimální","ano","skleněná s dřevěným rámem / dřevěné prosklené","vandalismus",1219580,"Zdrav"]
[5,"Nemocnice následné péče Moravská Třebová","00193895","Svitavská 25","Moravská Třebová",57116,"2821/49, 2821/69",5400,{"$f":"991+14","v":1005},6900,"Pardubický kraj",1,1005,"hala","zděná","plochá","střešní fólie","kotelna, dílny, sklad","strojní vybavení kotelny",3,"ne","standartní (RHP)","minimální","ano","skleněná s dřevěným rámem, prosklení / plechová a dřevěná vrata","vandalismus",41731200,"Zdrav"]
[null,null,null,"bez č.p.","Moravská Třebová",57101,"2820/21",5400,389,1350,"Pardubický kraj",1,389,"budova","zděná","sedlová","plech","garáže, sklad, dílny","ne",2,"ne","standartní (RHP)","minimální (oplocený areál)","ano","skleněná s plastovým rámem / plastové, plechová vrata","vandalismus",8164800,"Zdrav"]
[null,null,null,"bez č.p.","Moravská Třebová",57101,"2811, 2820/22",5400,625,7850,"Pardubický kraj",2,1250,"budova","zděná","sedlová","plech","nemocnice následné péče","gastro-technologie",1,"ne","standartní (RHP)","minimální","ano","skleněná s plastovým rámem / plastové s prosklením","vandalismus",47476800,"Zdrav"]
[null,null,null,"bez č.p.","Moravská Třebová",57101,"2812",5400,109,432,"Pardubický kraj",1,109,"budova","zděná","plochá","plech","trafostanice","trafo",1,"olej v transformátoru ","standartní (RHP)","minimální (oplocený areál)","ano","ne / plechová vrata","vzrostlé stromy, vandalismus",2612736,"Zdrav"]
[null,null,null,"bez č.p.","Moravská Třebová","571 01","1417/2",null,150,380,"Pardubický kraj",1,150,"budova","zděná","valbová","střešní tašky","garáže","ne",3,"ne","standartní (RHP)","minimální, osvětlení objektu","ano","prosklení / kovová vrata","vandalismus, vzrostlé stromy",2298240,"Zdrav"]
[null,null,null,"Svitavská 325","Moravská Třebová",57101,"1417/1",5400,436,7920,"Pardubický kraj",3,1308,"budova","zděná","valbová","eternit","nemocnice následné péče","ne",1,"ne","standartní (RHP)","minimální","ano","skleněná s plastovým rámem / plastové s prosklením","vandalismus",47900160,"Zdrav"]
[6,"Orlickoústecká nemocnice, a.s.",27520528,"Čsl. Armády 1076","Ústí nad Orlicí",56218,"1167",5400,481,4350,"Pardubický kraj",2,962,"budova","zděná","plochá","plechová,asfaltové pásy","ředitelství, vrátnice","ne",3,"ne","RHP, vnitřní + venkovní hydrant","oplocení areálu, ostraha","ano","skleněná s dřevěným rámem ","vzrostlé stromy",32993445,"Zdrav"]
[null,null,null,"bez č.p.","Ústí nad Orlicí",56218,"3040",5400,54,220,"Pardubický kraj",1,54,"budova","zděná","plochá","asfaltové pásy","sklad","ne",3,"ne","standartní (RHP)","oplocení areálu, ostraha","ne","skleněná s dřevěným rámem / plechová vrata","minimální",1668634,"Zdrav"]
[null,null,null,"bez č.p.","Ústí nad Orlicí",56218,"3231",5400,658,5040,"Pardubický kraj",4,2632,"budova","zděná","plochá","asfaltová lepenka","porodnice","klimatizace",2,"minimální množství","EPS, RHP + venkovní a vnitřní hydranty","oplocení areálu, ostraha","ano","skleněná s dřevěným rámem / kovové s prosklením","vzrostlé stromy",38226888,"Zdrav"]
[null,null,null,"bez č.p.","Ústí nad Orlicí",56218,"3232",5400,169,423,"Pardubický kraj",1,169,"budova","dřevěná","plochá","plechová","šatny střední zdravotnické školy","ne",3,"ne","RHP, venkovní hydrant","oplocení areálu, ostraha","ano","skleněná s dřevěným rámem / dřevěné","vzrostlé stromy",3208328,"Zdrav"]
[null,null,null,"bez č.p.","Ústí nad Orlicí",56218,"3294",5400,1543,15500,"Pardubický kraj",3,4629,"budova","zděná","plochá","asfaltová lepenka","biochemie, dialýza, onkologie","vzduchotechnika",2,"minimální množství","RHP, vnitřní a venkovní hydranty","oplocení areálu, ostraha","ano","skleněná s plastovým rámem / plastové s prosklením","minimální",117562850,"Zdrav"]
[null,null,null,"bez č.p.","Ústí nad Orlicí",56218,"3461",5400,605,3000,"Pardubický kraj",1,605,"budova","zděná","plochá","plechová","lékárna","ne",2,"minimální množství - léky","RHP, venkovní a vnitřní hydranty","EZS prostorová + oplocení areálu + ostraha","ano","skleněná s dřevěným rámem / dřevěné s prosklením","minimální",22754100,"Zdrav"]
[null,null,null,"bez č.p.","Ústí nad Orlicí",56218,"3475/1",5400,27,100,"Pardubický kraj",1,27,"hala","kovová","sedlová","plechová","kogenerace, sběrný dvůr","ne",3,"hořlaviny v omezeném množství","RHP, venkovní hydrant","oplocení areálu, ostraha","ano","plechová vrata","vzrostlé stromy",758470,"Zdrav"]
[null,null,null,"bez č.p.","Ústí nad Orlicí",56218,"3476",5400,87,350,"Pardubický kraj",1,87,"sklad","zděná","sedlová","plechová","sklad údržby","ne",3,"svařovací souprava, PHM, oleje","RHP, venkovní hydrant","oplocení areálu, ostraha","ano","plechová vrata","vzrostlé stromy",2654645,"Zdrav"]
[null,null,null,"bez č.p.","Ústí nad Orlicí",56218,"3550",5400,27,80,"Pardubický kraj",1,27,"garáž","zděná","plochá","střešní fólie","garáž","ne",4,"ne","RHP, venkovní hydranty","oplocení areálu, ostraha","ano","prosklení / plechová vrata","vzrostlé stromy",606776,"Zdrav"]
[null,null,null,"bez č.p.","Ústí nad Orlicí",56218,"3571",5400,1026,12300,"Pardubický kraj",2,2052,"budova","železobetonový skelet, zděná","plochá","asfaltové pásy","dětské oddělení","plynová kotelna, rozvody kyslíku, vakua, stlačeného vzduchu",1,"kyslík, plyn","EPS, RHP, venkovní hydrant","oplocení areálu, ostraha","ano","skleněná s plastovým rámem / plastové s prosklením","minimální",93291810,"Zdrav"]
[null,null,null,"Čsl. Armády 1077","Ústí nad Orlicí",56218,"1168",5400,878,15900,"Pardubický kraj",2,1756,"budova","zděná","valbová","plechová","jídelna  ","gastro-technologie",2,"ne","RHP, vnitřní + venkovní hydrant","oplocení areálu, ostraha","ano","skleněná s plastovým rámem / plastové s prosklením","minimální",120596730,"Zdrav"]
[null,null,null,"Čsl. Armády 1078","Ústí nad Orlicí",56218,"1169",5400,1725,16240,"Pardubický kraj",4,6900,"budova","zděná, stropy železobeton","plochá","asfaltová lepenka","chirurgie, operační sály","klimatizace",2,"medicinální plyna (kyslík, oxid dusíku), zemní plyn","EPS + venkovní a vnitřní hydranty","oplocení areálu, ostraha","ano","skleněná s plastovým rámem / kovové s prosklením","vzrostlé stromy",123175528,"Zdrav"]
[null,null,null,"Čsl. Armády 1079","Ústí nad Orlicí",56218,"1170",5400,413,5800,"Pardubický kraj",2,826,"budova","zděná","plochá","plechová, asfaltové pásy","magnetická rezonance","ano",3,"ne","RHP, vnitřní + venkovní hydrant","oplocení areálu, ostraha","ano","skleněná s dřevěným rámem / dřevěné s prosklením","vzrostlé stromy",43991260,"Zdrav"]
[null,null,null,"bez č.p.","Ústí nad Orlicí",56218,"1171",5400,153,506,"Pardubický kraj",2,306,"budova","zděná","plochá","plechová","patologie","ne",3,"ne","RHP, vnitřní + venkovní hydrant","oplocení areálu, ostraha","ano","skleněná s dřevěným rámem / dřevěné s prosklením","vzrostlé stromy",3837858,"Zdrav"]
[null,null,null,"Čsl. Armády 424","Ústí nad Orlicí",56218,"1324",5400,858,7320,"Pardubický kraj",4,3432,"budova","zděná","pultová","plechová, asfaltové pásy","budova D - interna, budova H - severovna","ne",3,"minimální množství","EPS (budova D pouze JIP) + vnitřní a venkovní hydranty","oplocení areálu, ostraha","ano","skleněná s dřevěným rámem / kovové s prosklením","minimální",55520004,"Zdrav"]
[null,null,null,"bez č.p.","Ústí nad Orlicí",56218,"1562",5400,244,660,"Pardubický kraj",1,{"$f":"L547*I547","v":244},"garáže","zděná","plochá","plechová","garáže záchranné služby","ne",2,"PHM, oleje","RHP, vnitřní + venkovní hydrant","oplocení areálu, ostraha","ano","prosklení / plechová vrata","minimální",5005902,"Zdrav"]
[null,null,null,"bez č.p.","Ústí nad Orlicí",56218,"1563",5400,63,180,"Pardubický kraj",1,63,"sklad","zděná","plochá","plechová","sklad plynů","ne",3,"kyslík(1.230l),acetylen(80l),oxid dusny(600l),oxid uhličitý(20l),corgon technický(18l)","RHP, vnitřní + venkovní hydrant","oplocení areálu, ostraha","ano","skleněná s dřevěným rámem / dřevěné s prosklením","vzrostlé stromy",1365246,"Zdrav"]
[null,null,null,"bez č.p.","Ústí nad Orlicí",56218,"1564",5400,191,580,"Pardubický kraj",1,191,"budova","zděná","plochá","plechová","údržba","ne",3,"omezené množství","RHP, vnitřní + venkovní hydrant","oplocení areálu, ostraha","ano","skleněná s dřevěným rámem / dřevěné","minimální",4399126,"Zdrav"]
[null,null,null,"bez č.p.","Ústí nad Orlicí",56218,"1565",5400,429,2800,"Pardubický kraj",2,858,"budova","zděná","plochá","plechová","prodejna, občerstvení, zdrav. sklad","ne",3,"ne","RHP, vnitřní a venkovní hydranty","oplocení areálu, ostraha","ano","skleněná s dřevěným rámem / kovové s prosklením","minimální",21237160,"Zdrav"]
[null,null,null,"bez č.p.","Ústí nad Orlicí",56218,"1657",5400,8,20,"Pardubický kraj",1,8,"stanice","zděná","plochá","plechová","chlorovací stanice","ne",3,"zásobník chlóru","RHP, vnitřní + venkovní hydrant","oplocení areálu, ostraha","ano","ne / plechové","vzrostlé stromy",151694,"Zdrav"]
[null,null,null,"bez č.p.","Ústí nad Orlicí",56218,"1658",5400,28,75,"Pardubický kraj",1,28,"garáž","zděná","pultová","plechová","garáž","ne",3,"ne","RHP, venkovní hydranty","oplocení areálu, ostraha","ano","prosklení / plechová vrata","vzrostlé stromy",568853,"Zdrav"]
[null,null,null,"bez č.p.","Ústí nad Orlicí",56218,"1701/2",5400,1017,9500,"Pardubický kraj",2,2034,"budova","zděná","plochá","asfaltová lepenka","neurologie","plynová kotelna, strojovna výtahu",2,"minimální množství","RHP, venkovní hydrant","oplocení areálu, ostraha","ano","skleněná s dřevěným rámem / dřevěné s prosklením","vzrostlé stromy",72054650,"Zdrav"]
[null,null,null,"bez č.p.","Ústí nad Orlicí",56218,"2175",5400,378,1155,"Pardubický kraj",1,378,"garáže","zděná","plochá","asfaltová lepenka","garáže záchranné služby","ne",2,"PHM, oleje","RHP, venkovní hydrant","oplocení areálu, ostraha","ano","prosklení / plechová vrata","minimální",8760329,"Zdrav"]
[null,null,null,"bez č.p.","Ústí nad Orlicí",56218,"2708",5400,195,580,"Pardubický kraj",1,195,"budova","zděná","plochá","asfaltová lepenka","dopravní záchranná služba","ne",3,"ne","RHP, venkovní hydrant","oplocení areálu, ostraha","ano","skleněná s dřevěným rámem / dřevěné s prosklením","vzrostlé stromy",4399126,"Zdrav"]
[null,null,null,"bez č.p.","Ústí nad Orlicí",56218,"3035, 3598",5400,{"$f":"199+36","v":235},736,"Pardubický kraj",1,235,"trafostanice","zděná","plochá","asfaltová lepenka","trafostanice","trafostanice",3,"transformátorový olej ( 1.194 l)","RHP, venkovní hydranty","oplocení areálu, ostraha","ano","plechová vrata","vzrostlé stromy",5582339,"Zdrav"]
[null,null,null,"bez č.p.","Ústí nad Orlicí",56218,"3036",5400,28,80,"Pardubický kraj",null,0,"nádrž","kovová",null,null,"zkapalněný plyn","ne",1,"plyn","hydranty","oplocení areálu, ostraha","ano",null,"vzrostlé stromy",606776,"Zdrav"]
[null,null,null,"bez č.p.","Ústí nad Orlicí",56218,"3037",5400,425,14050,"Pardubický kraj",4,1700,"budova","zděná","plochá","asfaltová lepenka","ORL, hematologie, anesteziologie","klimatizace",2,"kyslík, zemní plyn","EPS, RHP + venkovní a vnitřní hydranty","oplocení areálu, ostraha","ano","skleněná s dřevěným rámem / kovové s prosklením","vzrostlé stromy",106565035,"Zdrav"]
[null,null,null,"bez č.p.","Ústí nad Orlicí",56218,"3716",null,89,5602,"Pardubický kraj","4",{"$f":"L559*I559","v":356},"budova","zděná","plochá","střešní fólie","interna","ne",1,"minimální množství","EPS, RHP, venkovní hydrant","oplocení areálu, ostraha","ano","skleněná s plastovým rámem / kovové s prosklením","minimální",42489489,"Zdrav"]
[null,null,null,"bez č.p.","Ústí nad Orlicí",56218,"3716",null,480,null,"Pardubický kraj","2",{"$f":"L560*I560","v":960},"budova","zděná","plochá","střešní fólie","interna","ne",1,"minimální množství","EPS, RHP, venkovní hydrant","oplocení areálu, ostraha","ano","skleněná s plastovým rámem / kovové s prosklením","minimální"]
[null,null,null,"bez č.p.","Ústí nad Orlicí",56218,"3716",null,103,null,"Pardubický kraj","1",103,"budova","zděná","plochá, pultová","střešní fólie, plech","interna","ne",1,"minimální množství","EPS, RHP, venkovní hydrant","oplocení areálu, ostraha","ano","skleněná s plastovým rámem / kovové s prosklením","minimální"]
[7,"Zdravotnická záchranná služba Pardubického kraje",69172196,"Průmyslová 450","Pardubice ","532 03","1234",5400,144,4950,"Pardubický kraj",3,432,"budova","zděná","plochá","střešní fólie","zdravotnická záchranná služba","ne",1,"ne","RHP, hydranty","24hodinová služba zaměstnanců","ano","skleněná s plastovým rámem / plastové s prosklením","vzrostlý strom, vandalismus",34045394,"Zdrav"]
[null,null,null,"bez č.p.","Pardubice","530 03","1360",5400,173,19000,"Pardubický kraj",3,519,"budova","zděná","plochá","střešní fólie","zdravotnická záchranná služba, garáže","ne",1,"oleje a PHM","standartní ( RHP )","24hodinová služba zaměstnanců","ano","skleněná s plastovým rámem / plechová vrata s prosklením","vandalismus, vzrostlý strom",130679291,"Zdrav"]
[null,null,null,"Palackého 1173","Holice","534 01","136/4",null,277,null,"v majetku města",1,277,"budova","zděná","sedlová","plechová","zdravotnická záchranná služba","ne",3,"ne","standartní ( RHP )","24hodinová služba zaměstnanců","ano","skleněná s dřevěným rámem / dřevěné s prosklením","vandalismus",null,"Zdrav"]
[null,null,null,"Studentská 1591","Přelouč","535 01","2751",null,200,1542,"Pardubický kraj",2,400,"budova","zděná","pultová","plechová","zdravotnická záchranná služba","ne",1,"ne","standartní ( RHP )","24hodinová služba zaměstnanců","ano","skleněná s plastovým rámem / plastové s prosklením","vandalismus",10605656,"Zdrav"]
[null,null,null,"Václavská 1080","Chrudim","537 27",5945,5400,372,1480,"Pardubický kraj",1,372,"budova","zděná","pultová","střešní fólie","zdravotnická záchranná služba","ne",2,"ne","standartní ( RHP )","24hodinová služba zaměstnanců","ano","skleněná s plastovým rámem / plastové s prosklením","vandalismus",10179229,"Zdrav"]
[null,null,null,"bez č.p.","Chrudim","537 27","5946/2",5400,70,280,"Pardubický kraj",1,70,"budova","zděná","pultová","střešní fólie","ZZS, lékárna","ne",2,"minimální množství hořlavin, léky","standartní ( RHP )","24hodinová služba zaměstnanců","ano","skleněná s plastovým rámem / plastové s prosklením","minimální ",1925800,"Zdrav"]
[null,null,null,"bez čp.","Chrudim","537 27",7104,5400,138,710,"Pardubický kraj",2,276,"budova","zděná","pultová","střešní fólie","zdravotnická záchranná služba","ne",1,"ne","standartní ( RHP )","24hodinová služba zaměstnanců","ano","skleněná s plastovým rámem / kovové s prosklením","vandalismus, vzrostlé stromy",4883279,"Zdrav"]
[null,null,null,"Hylváty 474","Ústí nad Orlicí","562 03","949",5400,230,1800,"Pardubický kraj",3,690,"budova","zděná","valbová","šindel","zdravotnická záchranná služba","ne",1,"ne","standartní ( RHP )","24hodinová služba zaměstnanců","ano","skleněná s plastovým rámem / kovová vrata","vandalismus",12380143,"Zdrav"]
[null,null,null,"Vraclavská 120","Vysoké Mýto",56601,"1981/1",5400,211,840,"Pardubický kraj",1,211,"budova","zděná","plochá","střešní fólie","zdravotnická záchranná služba, lékárna","ne",1,"minimální množství hořlavin, léky","standartní ( RHP )","24hodinová služba zaměstnanců","ano","skleněná s dřevěným rámem / plastové s prosklením","vandalismus, vzrostlé stromy",5777400,"Zdrav"]
[null,null,null,"Červená Voda 333","Ústí nad Orlicí",56203,"485/1",5400,390,null,"v majetku právnické osoby","2",780,"budova","zděná","valbová, plochá","plech","technické zázemí, ZZS, léčebný ústav","ne",2,"ne","standartní ( RHP )","24hodinová služba zaměstnanců","ano","skleněná s dřevěným rámem / kovové s prosklením","vandalismus, vzrostlé stromy",null,"Zdrav"]
[null,null,null,"Dobrovského 34","Lanškroun","563 01","704/2, 3767",null,{"$f":"389+389","v":778},3366,"Pardubický kraj",2,1556,"budova","zděná","valbová","šindel","zdravotnická záchranná služba","ne",1,"ne","standartní ( RHP )","24hodinová služba zaměstnanců","ano","skleněná s plastovým rámem / plastové s prosklením, zásuvná vrata","vandalismus",23150868,"Zdrav"]
[null,null,null,"U Polikliniky 1514","Žamberk",56401,"3946/4",5400,221,1389,"Pardubický kraj",2,442,"budova","zděná","valbová","asfaltový šindel","zdravotnická záchranná služba","ne",1,"ne","standartní ( RHP )","24hodinová služba zaměstnanců","ano","skleněná s plastovým rámem / plastové s prosklením","vandalismus, vzrostlé stromy",9553344,"Zdrav"]
[null,null,null,"Kollárova 2201/9","Svitavy",56802,"3706",null,400,579,"Pardubický kraj",2,800,"budova","zděná","plochá","střešní fólie","zdravotnická záchranná služba - garáže","ne",1,"ne","standartní ( RHP )","24hodinová služba zaměstnanců","ano","skleněná s plastovým rámem / plastové s prosklením","vandalismus",3982279,"Zdrav"]
[null,null,null,"Svitavská 36","Moravská Třebová",57101,"1417/2",null,150,380,"Pardubický kraj",1,150,"budova","zděná","valbová","střešní tašky","budova v hospodaření nemocnice M. Třebová","ne",3,"ne","standartní ( RHP )","osvětlení objektu, zámek FAB","ano","prosklení / kovová vrata","vandalismus, vzrostlé stromy",2613586,"Zdrav"]
[null,null,null,"Teplého 1526","Pardubice",53002,"4066/1",null,2380,null,"v majetku HZS",3,7140,"budova","zděná, železobeton","sedlová","plech","zdravotnická záchranná služba","klimatizace",1,"ne","standartní  RHP, hydranty","služba HZS nonstop, oplocena zadní část objektu","ano","skleněná s plastovým rámem / plastové s prosklením","vandalismus",null,"Zdrav"]
[null,null,null,"Poličská 399","Hlinsko","539 01","784/3",null,440,2308,"Pardubický kraj",2,880,"budova","zděná","sedlová","plech","zdravotnická záchranná služba","ne",3,"ne","standartní ( RHP )","oplocení objektu, zámek FAB","ne","skleněná s dřevěným / kovové s prosklením","vandalismus",15874095,"Zdrav"]
[null,null,null,"Zvěřinova 1002","Skuteč","538 73","2286",null,221,1215,"Pardubický kraj",1,221,"budova","zděná","plochá","střešní fólie","zdravotnická záchranná služba","ne",1,"ne","standartní ( RHP )","EZS","ano","skleněná s plastovým rámem / plastové s prosklením","vandalismus",8356597,"Zdrav"]
[null,null,null,"Nádražní 548","Hlinsko",53901,"600/1",null,851,null,"v majetku města",3,2553,"budova","zděná","sedlová","plech","zdravotnická záchranná služba","ne",3,"minimální množství (léčiva)","standartní ( RHP )","24hodinová služba zaměstnanců","ano","skleněná s plastovým rámem / dřevěné s prosklením","vandalismus",null,"Zdrav"]
[null,null,null,"Eimova 294","Polička",57219,"1034",null,334,null,"v majetku svazku obcí",2,668,"budova","zděná","valbová","plech","zdravotnická záchranná služba","klimatizace",3,"minimální množství (léčiva)","standartní ( RHP )","24hodinová služba zaměstnanců","ano","skleněná s plastovým rámem / plastové s prosklením","vzrostlé stromy, vandalismus",null,"Zdrav"]
[null,null,null,"Partyzánská 1074","Litomyšl",57001,"3257/1",null,69,null,"v majetku HZS",1,69,"budova","zděná","sedlová","střešní tašky","zdravotnická záchranná služba","ne",1,"oleje a PHM","standartní ( RHP )","24hodinová služba zaměstnanců","ano","skleněná s dřevěným rámem / kovová vrata","vandalismus",null,"Zdrav"]
[8,"Dětské centrum Veská","00190543","Veská 21","Sezemice ","533 04","35",5400,393,1800,"Pardubický kraj",1,393,"budova","zděná","sedlová","střešní tašky","ordinace, rehabilitace, domov pro matky a školka","ne",1,"ne","standartní (RHP)","minimální (oplocení areálu), domovní audiotelefon","ano","skleněná s plastovým rámem / dřevěné","vandalismus",10886400,"Zdrav"]
[8,"Dětské centrum Veská",null,"bez č.p.","Sezemice ",53304,"38",5400,665,5150,"Pardubický kraj","2",1330,"budova","zděná","valbová, plochá","střešní tašky","dětské centrum","gastro-technologie",3,"ne","standartní (RHP)","minimální (oplocení areálu), domovní audiotelefon","ano","skleněná s dřevěným rámem / dřevěné s prosklením, plechová vrata","vzrostlé stromy",31147200,"Zdrav"]
[null,null,null,"bez č.p.","Sezemice ",53304,"38",null,214,null,"Pardubický kraj","1",{"$f":"L584*I584","v":214},"budova","zděná","valbová, plochá","střešní tašky","prádelna, dílny","prádelna",3,"ne","standartní (RHP)","minimální (oplocení areálu), domovní audiotelefon","ano","skleněná s dřevěným rámem / dřevěné s prosklením, plechová vrata","vzrostlé stromy"]
[null,null,null,"bez č.p.","Sezemice ",53304,"67",5400,30,90,"Pardubický kraj",1,30,"budova","zděná","pultová","plech","sklad","ne",2,"ne","standartní (RHP)","minimální (oplocení areálu), domovní audiotelefon","ano","prosklení / dřevěné","vzrostlé stromy",544320,"Zdrav"]
[9,"Dětský domov pro děti od 1 do 3 let Holice","00191124","Staroholická 354","Holice",53401,"6400",5400,922,6900,"Pardubický kraj",2,1844,"budova","zděná","sedlová","pálená taška","dětský domov","gastro-technologie",3,"ne","standartní (RHP)","minimální (oplocení areálu)","ano","skleněná s plastovým rámem / plastová s prosklením","vzrostlé stromy",41731200,"Zdrav"]
[null,null,null,"bez č.p.","Holice",53401,"2527/3",5400,82,205,"Pardubický kraj",1,82,"budova","zděná","pultová","plech / lepenka","sklad","ne",2,"ne","standartní (RHP)","minimální (oplocení areálu)","ano","skleněná s dřevěným rámem / plechová vrata a dveře","vzrostlé stromy",1239840,"Zdrav"]
[10,"Léčebna dlouhodobě nemocných Rybitví","00190560","Činžovních domů 140","Rybitví",53354,"383/1",5400,1226,14900,"Pardubický kraj",3,3678,"budova","zděná","sedlová, plochá","střešní tašky","LDN, administrativní budova, jídelna, garáže","gastro-technologie",1,"ne","standartní (RHP)","minimální (oplocení areálu)","ano","skleněná s dřevěným rámem / kovové s prosklením","vzrostlé stromy",90115200,"Zdrav"]
[null,null,null,"Činžovních domů 139","Rybitví",53354,"383/2",5400,589,6350,"Pardubický kraj",3,1767,"budova","zděná","sedlová","střešní tašky","LDN - ubytování","ne",3,"ne","standartní (RHP)","minimální (oplocení areálu)","ano","skleněná s dřevěným rámem / dřevěné s prosklením","minimální",38404800,"Zdrav"]
[11,"Odborný léčebný ústav Jevíčko","00193976","č.p. 508","Jevíčko","569 43","366",5400,640,8500,"Pardubický kraj",4,2560,"budova","zděná","valbová","bobrovka","administrativní budova, sklady, kuchyň","vzduchotechnika",2,"ne","standartní (RHP)","EZS - místnost pokladna, oplocení areálu","ano","skleněná s dřevěným rámem / dřevěné se skleněnou výplní","vzrostlé stromy",51408000,"Zdrav"]
[null,null,null,"č.p. 502","Jevíčko",56943,"365",5400,585,5100,"Pardubický kraj",2,1170,"budova","zděná","valbová","bobrovka","garáže sanitek, sklady, služební byty","ne",2,"ne","standartní (RHP)","minimální (oplocení areálu)","ano","skleněná s dřevěným rámem / dřevěné se skleněnou výplní","vzrostlé stromy",30844800,"Zdrav"]
[null,null,null,"č.p. 503","Jevíčko",56943,"388",5400,258,2100,"Pardubický kraj",2,516,"budova","zděná","polovalbová","bobrovka","léčba plicních chorob a TBC","ano",2,"ne","standartní (RHP)","minimální (oplocení areálu)","ano","sleněná s dřevěným rámem / dřevěné s prosklením","vzrostlé stromy",12700800,"Zdrav"]
[null,null,null,"č.p. 504","Jevíčko",56943,"741",5400,110,680,"Pardubický kraj",1,110,"budova","zděná","valbová","bobrovka","ubytovací zařízení","ne",2,"ne","standartní (RHP)","minimální (oplocení areálu)","ano","skleněná s dřevěným rámem / dřevěné","vzrostlé stromy",4112640,"Zdrav"]
[null,null,null,"č.p. 505","Jevíčko",56943,"547",5400,304,4000,"Pardubický kraj",3,912,"budova","zděná","valbová","pálená taška","ubytovací zařízení","ne",3,"ne","standartní, RHP ","minimální, FAB, oplocení areálu","ano","skleněná s plastovým rámem / dřevěné s prosklením","minimální",24192000,"Zdrav"]
[null,null,null,"č.p. 506","Jevíčko",56943,"546",5400,336,2900,"Pardubický kraj",2,672,"budova","zděná","valbová","bobrovka","služební byty, sklady","ne",3,"ne","standartní (RHP)","minimální (oplocení areálu)","ano","skleněná s dřevěným rámem / dřevěné s prosklením","vzrostlé stromy",17539200,"Zdrav"]
[null,null,null,"č.p. 507","Jevíčko",56943,"544",5400,1286,4500,"Pardubický kraj",1,1286,"budova","zděná","valbová","plechová","ubytovna, služební byty","ne",3,"ne","standartní (RHP)","minimální (oplocení areálu)","ano","skleněná s dřevěným rámem / dřevěné","vzrostlé stromy",27216000,"Zdrav"]
[null,null,null,"č.p. 509","Jevíčko",56943,"364",5400,1049,19200,"Pardubický kraj",3,3147,"budova","zděná","valbová","bobrovka","léčebný pavilon","ano",3,"ne","standartní (RHP)","minimální (oplocení areálu)","ne","skleněná s dřevěným rámem / dřevěné se skleněnou výplní","vzrostlé stromy",116121600,"Zdrav"]
[null,null,null,"č.p. 510","Jevíčko",56943,"362",5400,380,5200,"Pardubický kraj",3,1140,"budova","zděná","valbová","plechová","bytový dům - služební byty","ne",2,"ne","standartní (RHP)","minimální (oplocení areálu)","ano","skleněná s dřevěným rámem / dřevěné se skleněnou výplní","vzrostlé stromy",31449600,"Zdrav"]
[null,null,null,"bez č.p.","Jevíčko",56943,"372",5400,304,2400,"Pardubický kraj",1,304,"budova","zděná","sedlová","střešní tašky","budova údržby, dílny, stolárna","ne",3,"nafta (20 l), svařovací souprava","standartní (RHP)","okenní mříže, oplocení areálu","ano","skleněná s dřevěným rámem / dřevěné, plechová vrata","vzrostlé stromy",14515200,"Zdrav"]
[null,null,null,"bez č.p.","Jevíčko",56943,"373",5400,162,1000,"Pardubický kraj",1,162,"budova","zděná","polovalbová","střešní tašky","stodola - sklad (údržba)","ne",3,"ne","standartní (RHP)","minimální (oplocení areálu)","ano","prosklení / dřevěná vrata","vzrostlé stromy",6048000,"Zdrav"]
[null,null,null,"bez č.p.","Jevíčko",56943,"374",5400,227,1400,"Pardubický kraj",1,227,"budova","zděná","sedlová, pultová","eternit, střešní tašky","sklad, údržba","ne",3,"ne","standartní (RHP)","uzamčena pletivová vrata, oplocení areálu","ano","skleněná s dřevěným rámem / dřevěná vrata","vzrostlé stromy",8467200,"Zdrav"]
[null,null,null,"bez č.p.","Jevíčko",56943,"390",5400,1403,26000,"Pardubický kraj",4,5612,"budova","zděná","valbová","bobrovka","léčebný pavilon, MKB laboratoř","ne",2,"ne","standartní (RHP)","minimální (oplocení areálu)","ano","skleněná s dřevěným rámem / dřevěné","vzrostlé stromy",157248000,"Zdrav"]
[null,null,null,"bez č.p.","Jevíčko",56943,"391",5400,72,280,"Pardubický kraj",1,72,"budova","zděná","valbová","střešní tašky","vrátnice","ne",3,"ne","standartní (RHP)","minimální (oplocení areálu)","ano","skleněná s dřevěným rámem / dřevěné s prosklením","vzrostlé stromy",1693440,"Zdrav"]
[null,null,null,"bez č.p.","Jevíčko",56943,"545",5400,1439,29000,"Pardubický kraj",4,5756,"budova","zděná","valbová","bobrovka","léčebný pavilon, OKB laboratoř, RTG","ne",2,"rozvod medicinských plynů","standartní (RHP)","minimální (oplocení areálu)","ano","skleněná s dřevěným rámem / dřevěné s prosklením","vzrostlé stromy",175392000,"Zdrav"]
[null,null,null,"bez č.p.","Jevíčko",56943,"742",5400,240,1200,"Pardubický kraj",1,240,"budova","zděná","plochá","střešní fólie","spojovací chodba","ne",3,"ne","standartní (RHP)","minimální (oplocení areálu)","ano","skleněná s dřevěným rámem / dřevěné s prosklením","minimální",7257600,"Zdrav"]
[null,null,null,"bez č.p.","Jevíčko",56943,"743",5400,149,1100,"Pardubický kraj",2,298,"budova","zděná","pultová","střešní fólie","archiv, sklady","ne",3,"ne","standartní (RHP)","minimální (oplocení areálu)","ano","ne / dřevěné","vzrostlé stromy",6652800,"Zdrav"]
[null,null,null,"bez č.p.","Jevíčko",56943,"744,363,746,747,749,759,112,195/1",5400,575,3250,"Pardubický kraj","1",575,"budova","zděná","valbová, pultová","střešní tašky, střešní fólie","technické zázemí OLÚ","ne",3,"ne","standartní (RHP)","minimální (oplocení areálu)","ano","skleněná s dřevěným rámem / dřevěné, dřevěná a plechová vrata","vzrostlé stromy",19656000,"Zdrav"]
[null,null,null,"bez č.p.","Jevíčko",56943,"764",5400,392,3900,"Pardubický kraj",1,392,"budova","zděná","pultová","střešní fólie","bývalá centrální kotelna, rozvodna elektrické energie, hlavní plynoměrna","trafo",3,"oleje v transformátorech, zemní plyn","standartní (RHP)","minimální (oplocení objektu)","ano","skleněná s kovovým rámem / plechové","vandalismus",23587200,"Zdrav"]
[12,"Kojenecký ústav a dětský domov Svitavy",60125501,"U kojeneckého ústavu 2","Svitavy",56802,"495,1610",5400,{"$f":"460+146","v":606},4600,"Pardubický kraj",1,606,"budova","zděná","valbová","šindel","dětský domov (par. č. 1610 - resocializační centrum)","gastro-technologie",1,"ne","standartní (RHP)","minimální (mříže na dveřích)","ano","skleněná s plastovým rámem / plastové s prosklením","vandalismus, vzrostlé stromy",28487200,"Zdrav"]
[null,null,null,"U kojeneckého ústavu 2","Svitavy",56802,"1610",null,98,546,"Pardubický kraj",1,98,"budova","zděná","valbová","šindel","resocializační centrum","ne",1,"ne","standartní (RHP)","kamerový systém, oplocení objektu","ano","skleněná s plastovým rámem / plastové s prosklením","vzrostlé stromy",3381307,"Zdrav"]
[13,"Albertinum, odborný léčebný ústav, Žamberk","00196096","Za kopečkem 353","Žamberk",56401,"1324",5400,237,2400,"Pardubický kraj",2,474,"budova","zděná","polovalbová","šindel","administrativní budova ","ne",2,"ne","standartní (RHP)","minimální (oplocení areálu)","ano","skleněná s dřevěným rámem / dřevěné s prosklením","vzrostlé stromy",14515200,"Zdrav"]
[13,"Albertinum, odborný léčebný ústav, Žamberk",null,"Za kopečkem 223","Žamberk","564 01","1337/2",5400,370,2900,"Pardubický kraj",2,740,"budova","zděná","sedlová","střešní taška","ubytovna","ne",3,"ne","standartní (RHP)","minimální (oplocení areálu)","ano","skleněná s dřevěným rámem / kovové s prosklením","vzrostlé stromy",17539200,"Zdrav"]
[null,null,null,"Za kopečkem 528","Žamberk","564 01",1326,5400,602,4900,"Pardubický kraj",2,1204,"budova","zděná","valbová","šindel","truhlárna","ne",3,"těkavé látky (omezené množství)","standartní (RHP)","minimální (oplocení areálu)","ano","skleněná s dřevěným rámem / dřevěné s prosklením","vzrostlé stromy",29635200,"Zdrav"]
[null,null,null,"Za kopečkem 570","Žamberk","564 01",1345,5400,219,1800,"Pardubický kraj",1,{"$f":"L614*I614","v":219},"budova","zděná","sedlová","kanadský šindel","truhlárna","ne",3,"ne","standartní (RHP)","minimální (oplocení areálu)","ano","skleněná s dřevěným rámem / dřevěné s prosklením","vzrostlé stromy",10886400,"Zdrav"]
[null,null,null,"Za kopečkem 670","Žamberk","564 01",1327,5400,450,6500,"Pardubický kraj",3,1350,"budova","zděná","polovalbová","lepenka","stravovací provoz","gastro-technologie",3,"ne","standartní (RHP)","minimální (oplocení areálu)","ano","skleněná s dřevěným rámem / kovové s prosklením","vzrostlé stromy",39312000,"Zdrav"]
[null,null,null,"Za kopečkem 674","Žamberk","564 01",1341,5400,244,2500,"Pardubický kraj",1,244,"budova","zděná","polovalbová","eternit","plicní oddělení","ne",3,"ne","standartní (RHP)","minimální (oplocení areálu)","ano","skleněná s dřevěným rámem / dřevěné s prosklením","minimální",15120000,"Zdrav"]
[null,null,null,"Za kopečkem 675","Žamberk","564 01",1339,5400,420,2700,"Pardubický kraj",1,420,"budova","zděná","sedlová, pultová","střešní tašky, plech","prádelna ","strojní vybavení prádelny",3,"ne","standartní (RHP)","minimální (oplocení areálu)","ano","skleněná s dřevěným rámem / dřevěné s prosklením","vzrostlé stromy",16329600,"Zdrav"]
[null,null,null,"Za kopečkem 677","Žamberk","564 01",1338,5400,453,3200,"Pardubický kraj",1,453,"budova","zděná","sedlová, pultová","plech, fólie","kotelna, prodejna potravin","strojní vybavení kotelny",2,"zemní plyn","standartní (RHP)","minimální (oplocení areálu)","ano","skleněná s dřevěným rámem / dřevěné, vrata plechová","vzrostlé stromy",19353600,"Zdrav"]
[null,null,null,"Za kopečkem 726","Žamberk","564 01",1344,5400,956,15360,"Pardubický kraj",3,2868,"budova","zděná","sedlová, pultová","plech, střešní fólie","léčebna dlouhodobě nemocných","gastro-technologie",1,"ne","standartní (RHP)","minimální (oplocení areálu)","ano","skleněná s plastovým rámem / plastové s prosklením","minimální",92897280,"Zdrav"]
[null,null,null,"Za kopečkem 782","Žamberk","564 01",1325,5400,1023,15150,"Pardubický kraj",3,3069,"budova","zděná","valbová","střešní tašky","plicní oddělení","ne",3,"ne","standartní (RHP)","minimální (oplocení areálu)","ano","skleněná s dřevěným rámem / dřevěné s prosklením","vzrostlé stromy",91627200,"Zdrav"]
[null,null,null,"Za kopečkem 782","Žamberk","564 01",1325,null,100,null,"Pardubický kraj",2,{"$f":"L621*I621","v":200},"budova","zděná","pultová","plech","plicní oddělení","ne",3,"ne","standartní (RHP)","minimální (oplocení areálu)","ano","skleněná s dřevěným rámem / dřevěné s prosklením","vzrostlé stromy"]
[null,null,null,"Za kopečkem 627","Žamberk","564 01",1330,5400,300,3520,"Pardubický kraj",2,600,"budova","zděná","valbová","pálená taška","bytový dům  ","ne",3,"ne","standartní (RHP)","minimální (oplocení areálu)","ano","skleněná s dřevěným rámem / dřevěné s prosklením","vzrostlé stromy",21288960,"Zdrav"]
[null,null,null,"bez č.p.","Žamberk","564 01","1331/2, 1332",5400,{"$f":"79+82","v":161},960,"Pardubický kraj",1,161,"budova, skleníky","zděná, kov ","pultová","šindel","kotelna, skleníky","ne",3,"ne","standartní (RHP)","zámek visací, oplocení areálu","ne","skleněná s dřevěným a kovovým rámem / dřevěné s prosklením","vzrostlé stromy",5806080,"Zdrav"]
[null,null,null,"bez č.p.","Žamberk","564 01","1337/3",5400,290,2400,"Pardubický kraj",2,580,"budova","zděná","polovalbová","střešní tašky","sklad, truhlárna","ne",3,"těkavé látky  ","standartní (RHP)","minimální (oplocení areálu)","ano","skleněná s dřevěným rámem / dřevěné, plechová vrata","vzrostlé stromy",14515200,"Zdrav"]
[null,null,null,"bez č.p.","Žamberk","564 01","3182/3",5400,426,1600,"Pardubický kraj",1,426,"hala","ocelová","sedlová","plech","hala  ","ne",3,"ne","standartní (RHP)","zámek visací, oplocení areálu","ano","ne / plechová vrata","vzrostlé stromy",9676800,"Zdrav"]
[null,null,null,"bez č.p.","Žamberk","564 01","3182/6",5400,58,170,"Pardubický kraj",1,58,"přístavek","dřevěná","pultová, sedlová","historické tašky","dřevník","ne",4,"ne","standartní (RHP)","zámek visací, oplocení areálu","ano","ne / vrata dřevěná","vzrostlé stromy",1028160,"Zdrav"]
[null,null,null,"bez č.p.","Žamberk","564 01","3182/7",5400,79,240,"Pardubický kraj",1,79,"přístřešek","dřevěná","pultová","historické tašky","dřevník","ne",4,"ne","standartní (RHP)","zámek visací, oplocení areálu","ano","ne / dřevěné","vzrostlé stromy",1451520,"Zdrav"]
[null,null,null,"bez č.p.","Žamberk","564 01",3917,5400,63,280,"Pardubický kraj",1,63,"budova","zděná","pultová","plech","vrátnice","ne",3,"ne","standartní (RHP)","minimální","ano","skleněná s dřevěným rámem / dřevěné s prosklením","vandalismus, vzrostlé stromy",1693440,"Zdrav"]
[null,null,null,"bez č.p.","Žamberk","564 01","4442 - 63",5400,450,1416,"Pardubický kraj",1,450,"garáž","zděná","plochá","střešní fólie","garáže","ne",3,"ne","standartní (RHP)","FAB, oplocení areálu","ano","prosklení / plechová vrata","minimální",7874496,"Zdrav"]
[null,null,null,"bez č.p.","Žamberk","564 01",4491,5400,67,200,"Pardubický kraj",1,67,"budova","zděná","pultová","plech","márnice","ne",3,"ne","standartní (RHP)","minimální (oplocení areálu)","ano","skleněná s dřevěným rámem / dřevěné","vzrostlé stromy",1209600,"Zdrav"]
[null,null,null,"bez č.p.","Žamberk","564 01",4500,5400,29,120,"Pardubický kraj",1,29,"přístřešek","zděná","pultová","střešní fólie","kyslíková stanice","ne",3,"zkapalněný kyslík, TL","standartní (RHP)","minimální (oplocení areálu)","ano","prosklení / kovové dveře","vzrostlé stromy",725760,"Zdrav"]
[null,null,null,"bez č.p.","Žamberk","564 01",5054,5400,95,280,"Pardubický kraj",1,95,"budova","zděná","pultová","šindel","vodárna","strojní vybavení vodárny",2,"ne","standartní (RHP)","minimální (oplocení areálu)","ano","skleněná s kovovým rámem / plechové","vzrostlé stromy",1693440,"Zdrav"]
[null,null,null,"bez č.p.","Žamberk","564 01",5055,5400,469,4300,"Pardubický kraj",2,938,"budova","zděná","pultová, oblouková","fólie, plech","údržba","strojírenská technologie",2,"ne","standartní (RHP)","minimální (oplocení areálu)","ano","skleněná s dřevěným rámem / dřevěné s prosklením","minimální",26006400,"Zdrav"]
[null,null,null,"bez čp.","Žamberk","564 01","1320/21",null,32,136,"Pardubický kraj",1,32,"garáž","zděná","sedlová","plech","garáž","ne",3,"ne","standartní (RHP)","minimální (oplocený areál)","ano","prosklení / plechová vrata","vzrostlé stromy",822528,"Zdrav"]
[null,null,null,"bez čp.","Žamberk","564 01","1320/20",null,112,670,"Pardubický kraj",1,112,"budova","zděná","sedlová","vlnitý plech","čistička odpadních vod","strojní vybavení čističky",3,"zásobník chlóru","standartní (RHP)","minimální (oplocení objektu)","ano","ne / plechové","vzrostlé stromy",4052160,"Zdrav"]
[14,"Rehabilitační ústav Brandýs nad Orlicí","00853879","Lázeňská 58","Brandýs nad Orlicí",56112,"64",5400,3192,36500,"Pardubický kraj",3,9576,"budova","zděná","sedlová","střešní tašky","léčebný ústav","ne",2,"ne","standartní (RHP)","minimální (oplocení areálu)","ano","skleněná s dřevěným rámem / dřevěné s prosklením","vzrostlé stromy",220752000,"Zdrav"]
[null,null,null,"bez č.p.","Brandýs nad Orlicí",56112,"452",5400,90,270,"Pardubický kraj",1,90,"přístřešek","zděná","valbová","plech","vodárna","strojní vybavení vodárny",1,"ne","standartní (RHP)","minimální (oplocení areálu)","ano","ne / plechové","vzrostlé stromy",1632960,"Zdrav"]
[null,null,null,"Žerotínova 98","Brandýs nad Orlicí",56112,"100",5400,529,4000,"Pardubický kraj",2,1058,"budova","zděná","valbová","plech","restaurace","gastro-technologie",2,"ne","standartní (RHP)","minimální","ano","skleněná s dřevěným rámem / dřevěné s prosklením","vandalismus",21192000,"Zdrav"]
[null,null,null,"bez č.p.","Brandýs nad Orlicí",56112,"100/2",null,100,192,"Pardubický kraj",1,100,"budova","zděná","pultová","střešní fólie","garáž","ne",2,"ne","standartní (RHP)","kamerový systém, oplocení a osvětlení objektu","ano","prosklení / plechová vrata","minimální",1161216,"Zdrav"]
[null,null,null,"bez č.p.","Brandýs nad Orlicí",56112,"752",5400,238,315,"Pardubický kraj",1,238,"budova","zděná","valbová","plech","čistička odpadních vod","strojní vybavení",3,"ne","ne","minimální (oplocení objektu)","ano","prosklení / plechové","vzrostlé stromy",1905120,"Zdrav"]
[15,"Vysokomýtská nemocnice",71207856,"Hradecká 167","Vysoké Mýto","566 23","1985/3",5400,2165,25210,"v majetku města",4,8660,"budova","zděná","valbová, plochá","střešní tašky, plech","vrátnice, ředitelství","ano",3,"ne","EZP, hydranty","EZS, osvětlení areálu","ano","skleněná s dřevěným rámem / plastové s prosklením","vzrostlé stromy, vandalismus",152470080,"Zdrav"]
[null,null,null,"bez č.p.","Vysoké Mýto","566 23",1986,5400,272,2300,"v majetku města",1,272,"budova","zděná","sedlová","plech","jídelna, údržba","ne",3,"ne","standartní (RHP), hydranty","minimální, osvětlení areálu","ano","skleněná s dřevěným rámem / dřevěné s prosklením","vandalismus, vzrostlé stromy",13910400,"Zdrav"]
[null,null,null,"bez č.p.","Vysoké Mýto","566 23","1981/3",5400,825,5700,"v majetku města",2,1650,"budova","zděná","plochá","plech","strojovna","strojírenská technologie",3,"ne","standartní (RHP), hydranty","minimální, osvětlení areálu","ano","skleněná s dřevěným rámem / kovové s prosklením","vandalismus",34473600,"Zdrav"]
[null,null,null,"bez č.p.","Vysoké Mýto","566 23","1988/3",5400,42,160,"v majetku města",1,42,"budova","zděná","plochá","plech","strojovna","strojírenská technologie",3,"ne","RHP, hydranty","minimální, osvětlení areálu","ano","skleněná s dřevěným rámem / plechová vrata","vzrostlé stromy, vandalismus",967680,"Zdrav"]
[null,null,null,"bez č.p.","Vysoké Mýto","566 23","1988/2",5400,74,230,"v majetku města",1,74,"budova","zděná","pultová","plech","strojovna","strojírenská technologie",3,"ne","RHP, hydranty","minimální, osvětlení areálu","ano","prosklení / plechová vrata","vandalismus",1391040,"Zdrav"]
[null,null,null,"bez č.p.","Vysoké Mýto","566 23","1985/2",5400,125,590,"Pardubický kraj",1,125,"budova","zděná","sedlová","eternit","sklady  ","ne",4,"omezené množství HK","standartní (RHP), hydranty","minimální, osvětlení areálu","ano","skleněná s dřevěným rámem / dřevěné","vandalismus",3568320,"Zdrav"]
[null,null,null,"bez č.p.","Vysoké Mýto","566 23","1981/4",5400,54,160,"Pardubický kraj",1,54,"budova","zděná","plochá","plech","sklad","ne",4,"ne","standartní (RHP), hydranty","okenní mříže, osvětlení areálu","ano","skleněná s dřevěným rámem / plechové  ","vandalismus",967680,"Zdrav"]
[null,null,null,"Žižkova 271","Vysoké Mýto","566 01","1700, 1699/3",5400,1160,18380,"v majetku města",3,3480,"budova","zděná","sedlová","střešní tašky","nemocnice, léčebna dlouhodobě nemocných","vzduchotechnika, klimatizace",2,"omezené množství","EPS, hydranty","EZS, osvětlení areálu","ano","skleněná s plastovým rámem / plastové s prosklením","vandalismus",111162240,"Zdrav"]
[1,"Domov u fontány",71176225,"Libušina 1060","Přelouč",53516,"1073/1",4700,1863,29900,"Pardubický kraj",4,7452,"budova","zděná","plochá","střešní fólie","domov pro seniory","gastro-technologie, prádelna",1,"ne ","RHP, EPS, hydrant vnitřní","systém gen.klíče, oplocení areálu","ano","skleněná s plastovým rámem / plastové s prosklením","minimální",157393600,"Soc"]
[null,null,null,"bez č.p.","Přelouč",53516,1122,4700,176,700,"Pardubický kraj",1,176,"budova","zděná","plochá","střešní fólie","vrátnice, garáže","ne",1,"pohonné hmoty","standartní (RHP)","oplocení areálu","ano","skleněná s dřevěným rámem / dřevěné s prosklením, plechová vrata","vandalismus",3684800,"Soc"]
[null,null,null,"bez č.p.","Přelouč",53516,1123,4700,17,50,"Pardubický kraj",1,17,"budova","zděná","plochá","plech","rozvodna","ne",2,"ne","standartní (RHP)","oplocení areálu","ano","prosklení / plechové","vzrostlé stromy",263200,"Soc"]
[null,null,null,"bez č.p.","Přelouč",53516,2595,4700,169,500,"Pardubický kraj",1,169,"garáž","zděná","plochá","střešní fólie","garáže","ne",1,"pohonné hmoty","standartní (RHP)","oplocení areálu","ano","prosklení / plechová vrata","vandalismus",2632000,"Soc"]
[2,"Domov pod Kuňkou",71176217,"Ráby 162","Staré Hradiště",53352,280,4700,2396,33500,"Pardubický kraj",2,4792,"budova","zděná","sedlová","střešní tašky","domov pro osoby se zdravotním postižením","vzduchotechnika, klimatizace, gastro-technologie",1,"ne","EPS, RHP, vnitřní a 2x vnější hydrant","24hodinová služba zaměstnanců","ano","skleněná s plastovým rámem / plastové s prosklením","vandalismus",177059560,"Soc"]
[null,null,null,"bez č.p.","Staré Hradiště",53352,281,4700,79,237,"Pardubický kraj",1,79,"přístavek","zděná","sedlová","střešní tašky","sklad, garáž","ne",1,"minimální množství PHM, tlaková plynová láhev","EPS, RHP, vnitřní a 2x vnější hydrant","24hodinová služba zaměstnanců","ano","skleněná s plastovým rámem / dřevěné","minimální",475683,"Soc"]
[null,null,null,"Nám. 17. listopadu 1256","Přelouč",53501,"1758,1759,1760",6000,null,153,"Pardubický kraj",4,0,"budova","zděná","plochá","střešní fólie","byt","ne",2,"ne","RHP, EPS ","bezpečnostní vložka zámku","ano","skleněná s plastovým rámem / kovové s prosklením","minimální",808660,"Soc"]
[null,null,null,"Studentská 1357","Přřelouč",53501,"1980,1981,1982",null,null,140,"Pardubický kraj",6,0,"budova","zděná","plochá","střešní fólie","byt","ne",2,"ne","RHP, EPS ","bezpečnostní vložka zámku","ano","skleněná s plastovým rámem / kovové s prosklením","minimální",739951,"Soc"]
[null,null,null,"Jižní 1368","Přelouč",53501,"1994,1995,1996",null,null,207,"Pardubický kraj",6,0,"budova","zděná","plochá","střešní fólie","byt","ne",2,"ne","RHP, EPS ","bezpečnostní vložka zámku","ano","skleněná s plastovým rámem / kovové s prosklením","minimální",1093906,"Soc"]
[3,"Domov na hradě Rychmburk","15053822","Předhradí 17","Rychmburk",53974,114,4700,1662,29900,"Pardubický kraj",3,4986,"budova","zděná","valbová","eternit","domov pro dlouhodobě duševně nemocné","gastro-technologie",1,"ne","standartní (RHP)","minimální","ano","skleněná s dřevěným rámem / dřevěné s prosklením ","vandalismus",157393600,"Soc"]
[null,null,null,"Předhradí 72","Rychmburk",53974,104,4700,577,3400,"Pardubický kraj",2,1154,"budova","zděná","sedlová","eternit","integrační centrum, kanceláře","ne",1,"ne","standartní (RHP)","v kancelářích EZS, oplocení zadní části objektu","ano","skleněná s dřevěným rámem / dřevěné","vandalismus",17897600,"Soc"]
[null,null,null,"bez č.p.","Rychmburk",53974,103,4700,194,1900,"Pardubický kraj",1,194,"budova","zděná","valbová","střešní tašky, eternit","sklad","ne",3,"ne","standartní (RHP)","oplocení objektu","ne","skleněná s dřevěným rámem / dřevěné","minimální",10001600,"Soc"]
[4,"Domov sociálních služeb Slatiňany",15053814,"Klášterní 795","Slatiňany",53821,950,4700,5431,27800,"Pardubický kraj",4,21724,"budova","zděná","plochá, pultová","střešní fólie, vlnitý plech","kanceláře, ubytovna, sklad","klimatizace",1,"ne","RHP, vnitřní hydrant","oplocení areálu, 24hodinová služba na recepci","ano","skleněná s plastovým rámem / kovové s prosklením","vandalismus",178281400,"Soc"]
[null,null,null,"bez č.p.","Slatiňany",53821,897,4700,281,450,"Pardubický kraj",1,281,"budova","zděná","plochá","plechová","sklad","ne",3,"ne","standartní (RHP)","oplocení areálu","ano","skleněná s dřevěným rámem / plechové","vzrostlé stromy",2885850,"Soc"]
[null,null,null,"bez č.p.","Slatiňany",53821,1236,4700,750,5300,"Pardubický kraj",1,750,"budova","zděná","plochá","střešní fólie","kotelna","strojní vybavení kotelny",3,"ne","standartní (RHP)","minimální (oplocení areálu)","ano","skleněná v kovovém rámu / dřevěné","minimální",33988900,"Soc"]
[null,null,null,"bez č.p.","Slatiňany",53821,1414,null,202,810,"Pardubický kraj",1,202,"budova","zděná","pultová","střešní fólie","bazén","strojírenská",2,"ne","RHP, vnitřní hydranty","oplocení objektu, 24hodinová služba na recepci","ano","skleněná s kovovým rámem / plastové s prosklením","vzrostlé stromy",null,"Soc"]
[null,null,null,"bez č.p.","Slatiňany",53821,1415,null,56,200,"Pardubický kraj",1,56,"budova","zděná","pultová","střešní fólie","technické zázemí, strojovna bazénu","strojírenská",2,"ne","RHP, vnitřní hydranty","oplocení objektu, 24hodinová služba na recepci","ano","skleněná s kovovým rámem / plastové s prosklením","vzrostlé stromy"]
[null,null,null,"Nádražní 153","Slatiňany",53821,165,null,1910,null,"v majetku jiného vlastníka",4,7640,"budova","zděná","valbová","plech","domov sociálních služeb","klimatizace",2,"ne","standartní RHP","oplocení objektu, 24hodinová služba na recepci","ano","skleněná s dřevěným rámem / dřevěné","vandalismus",null,"Soc"]
[null,null,null,"Klášterní 841","Slatiňany",53821,1396,null,177,1590,"Pardubický kraj",2,354,"budova","zděná","valbová","střešní tašky","ubytování","ne",1,"ne","standartní (RHP)","zámek bezp. vložka, oplocený areál","ano","skleněná s plastovým rámem / plastové s prosklením","ne ",null,"Soc"]
[null,null,null,"Klášterní 842","Slatiňany",53821,1406,null,176,1580,"Pardubický kraj",2,352,"budova","zděná","valbová","střešní tašky","ubytování","ne",1,"ne","standartní (RHP)","zámek bezp. vložka, oplocený areál","ano","skleněná s plastovým rámem / plastové s prosklením","ne "]
[null,null,null,"Klášterní 843","Slatiňany",53821,1405,null,176,1580,"Pardubický kraj",2,352,"budova","zděná","valbová","střešní tašky","ubytování","ne",1,"ne","standartní (RHP)","zámek bezp. vložka, oplocený areál","ano","skleněná s plastovým rámem / plastové s prosklením","ne "]
[null,null,null,"Švermova 844","Slatiňany",53821,1397,null,177,1590,"Pardubický kraj",2,354,"budova","zděná","valbová","střešní tašky","ubytování","ne",1,"ne","standartní (RHP)","zámek bezp. vložka, oplocený areál","ano","skleněná s plastovým rámem / plastové s prosklením","ne "]
[null,null,null,"Vítězství 115","Slatiňany",53821,132,4700,2426,7200,"Pardubický kraj",2,4852,"budova","zděná","valbová","šindel","chráněné dílny, ubytování","gastro-technologie",1,"ne","RHP, vnitřní hydrant","zámek bezp. vložka, oplocený areál","ano","skleněná s dřevěným rámem / dřevěné s prosklením","vzrostlé stromy",null,"Soc"]
[null,null,null,"Na Špici 1087","Chrudim ",53701,7329,null,null,332,"Pardubický kraj",5,0,"budova","zděná","plochá","střešní fólie","bytová jednotka, garážové stání a kolárna","ne",1,"ne","RHP, vnitřní hydrant, protipožární dveře","bezpečnostní kování vchodových dveří","ano","skleněná s plastovým rámem / plastové s prosklením","vandalismus",3027811,"Soc"]
[null,null,null,"Na Špici 1085","Chrudim",53701,7327,null,null,332,"Pardubický kraj",5,0,"budova","zděná","plochá","střešní fólie","bytová jednotka, částečně nebytové prostory","ne",1,"ne","RHP, vnitřní hydrant, protipožární dveře","bezpečnostní kování vchodových dveří","ano","skleněná s plastovým rámem / plastové s prosklením","vandalismus",3027811,"Soc"]
[null,null,null,"Nádražní 364","Slatiňany",53821,357,4700,149,null,"v majetku jiného vlastníka",2,298,"budova","zděná","sedlová","střešní tašky","ubytování","gastro-technologie",2,"ne","standartní (RHP)","zámek bezp. vložka, zadní část objektu oplocena","ano","skleněná s dřevěným rámem / dřevěné s prosklením","vandalismus",null,"Soc"]
[5,"Domov pod hradem Žampach","00854271","č.p. 1","Žampach",56401,2,5400,1447,15100,"Pardubický kraj",2,2894,"budova","zděná","sedlová","eternit","zařízení sociálních služeb","ne",1,"ne","EPS","EZS, oplocení areálu","ano","skleněná s dřevěným rámem / dřevěné","vzrostlé stromy",81540000,"Soc"]
[null,null,null,"č.p. 2","Žampach",56401,23,4700,332,1900,"Pardubický kraj",2,664,"budova","zděná","sedlová","eternit","zařízení sociálních služeb","ne",2,"ne","standartní (RHP)","minimální (oplocení areálu)","ano","skleněná s dřevěným rámem / dřevěné","minimální",8930000,"Soc"]
[null,null,null,"č.p. 4","Žampach",56401,20,4700,2843,10600,"Pardubický kraj",1,2843,"budova","zděná","sedlová","eternit","zemědělské stavení","ne",3,"ne","standartní (RHP)","minimální (oplocení areálu)","ano","skleněná s dřevěným rámem / dřevěné s prosklením, dřevěná vrata","minimální",49820000,"Soc"]
[null,null,null,"č.p. 9","Žampach",56401,190,4700,363,2600,"Pardubický kraj",2,726,"budova","zděná","plochá","střešní fólie","zařízení sociálních služeb","ne",1,"ne","standartní (RHP)","minimální (oplocení areálu)","ano","skleněná s dřevěným rámem / dřevěné s prosklením","minimální",12220000,"Soc"]
[null,null,null,"bez č.p.","Žampach",56401,1,4700,null,1950,"Pardubický kraj",1,0,"budova","zděná","sedlová","eternit","zařízení sociálních služeb","ne",1,"ne","standartní (RHP)","EZS ","ano","skleněná s dřevěným rámem / dřevěné s prosklením","vzrostlé stromy, vandalismus",9165000,"Soc"]
[null,null,null,"bez č.p.","Žampach",56401,5,4700,143,900,"Pardubický kraj",1,143,"budova","zděná","sedlová, pultová","plech, sklo","skleník","ne",2,"ne","standartní (RHP)","minimální (oplocení areálu)","ano","prosklení / dřevěné","minimální",4230000,"Soc"]
[null,null,null,"bez č.p.","Žampach",56401,23,4700,75,300,"Pardubický kraj",1,75,"altán","zděná","valbová","eternit","altán","ne",1,"ne","ne","kamerový systém v areálu, oplocení objektu","ano","ne","vzrostlé stromy",1444800,"Soc"]
[null,null,null,"bez č.p.","Žampach",56401,"20,23,25",null,null,null,"Pardubický kraj",1,0,"oplocení","betonová, kov",null,null,"oplocení objektu","ne",1,"ne","ne","kamerový systém v areálu ","ano","ne","vzrostlé stromy, vandalismus",null,"Soc"]
[null,null,null,"bez č.p.","Žampach",56401,176,4700,241,1200,"Pardubický kraj",1,{"$f":"L683*I683","v":241},"budova","zděná","sedlová","eternit","kotelna","strojní vybavení kotelny",3,"ne","standartní (RHP)","EZS","ano","skleněná s dřevěným rámem / dřevěné","vzrostlé stromy, vandalismus",5640000,"Soc"]
[null,null,null,"č.p. 71","Žampach",56401,222,5400,121,1170,"Pardubický kraj",1,121,"budova","zděná","polovalbová","šindel","zařízení sociálních služeb - domek Adam","ne",1,"ne","standartní (RHP)","EZS","ano","skleněná s plastovým rámem / plastové s prosklením","vandalismus",6318000,"Soc"]
[null,null,null,"č.p. 72","Žampach",56401,219,null,94,1000,"Pardubický kraj",2,188,"budova","zděná","polovalbová","šindel","zařízení sociálních služeb - domek Kolda","ne",1,"ne","standartní (RHP)","EZS","ano","skleněná s plastovým rámem / plastové s prosklením","vandalismus",5400000]
[null,null,null,"č.p. 73","Žampach",56401,220,null,94,1000,"Pardubický kraj",2,188,"budova","zděná","polovalbová","šindel","zařízení sociálních služeb - domek Johana","ne",1,"ne","standartní (RHP)","EZS","ano","skleněná s plastovým rámem / plastové s prosklením","vandalismus",5400000]
[null,null,null,"č.p. 74","Žampach",56401,221,5400,94,1000,"Pardubický kraj",2,188,"budova","zděná","polovalbová","šindel","zařízení sociálních služeb - domek Vítek","ne",1,"ne","standartní (RHP)","EZS","ano","skleněná s plastovým rámem / plastové s prosklením","vandalismus",5400000,"Soc"]
[6,"Domov na rozcestí Svitavy",70157286,"T. G. Masaryka 9/33","Svitavy ",56802,3,4700,143,3100,"Pardubický kraj",2,286,"budova","zděná","sedlová","plech","domov pro mentálně postižené","ne",2,"ne","standartní (RHP)","minimální","ano","skleněná s dřevěným rámem / dřevěné","vandalismus",14929600,"Soc"]
[null,null,null,"T. G. Masaryka 33/7","Svitavy ",56802,2,4700,null,null,"Pardubický kraj",3,0,"budova","zděná","sedlová","plech","domov pro mentálně postižené","klimatizace","v rekonstrukci","ne","standartní (RHP)","minimální","ano","skleněná s plastovým rámem / dřevěné","vandalismus",null,"Soc"]
[null,null,null,"bez č.p.","Svitavy ",56802,4,4700,216,3900,"Pardubický kraj",1,216,"budova","zděná","sedlová","plech","domov pro mentálně postižené","ne",2,"ne","standartní (RHP)","minimální","ano","skleněná s dřevěným rámem / dřevěné","vandalismus",18782400,"Soc"]
[6,"Domov na rozcestí Svitavy",null,"T.G. Masaryka 33/11","Svitavy ",56802,"8/2",4700,345,7500,"Pardubický kraj",3,1035,"budova","zděná","valbová","střešní tašky","domov pro mentálně postižené","ne",1,"ne","standartní (RHP)","minimální","ano","skleněná s plastovým rámem / dřevěné","vandalismus",36120000,"Soc"]
[null,null,null,"bez č.p.","Svitavy ",56802,"8/3",4700,71,210,"Pardubický kraj",1,71,"garáž","zděná","sedlová","plech","sklad","ne",1,"ne","standartní (RHP)","minimální (oplocený areál)","ano","skleněná s dřevěným rámem / kovová vrata","minimální",1011360,"Soc"]
[null,null,null,"bez č.p.","Svitavy ",56802,"3466",4700,187,750,"Pardubický kraj",1,187,"hala","zděná, kovová","sedlová","vlnitý plech","dílny","ne",3,"ne","standartní (RHP)","minimální (oplocený areál)","ano","skleněná s dřevěným rámem / plechová vrata","vzrostlé stromy",3612000,"Soc"]
[null,null,null,"Nádražní 1067","Svitavy ",56802,"994",4700,236,null,"Pardubický kraj",2,472,"budova","zděná","valbová","střešní tašky","domov pro mentálně postižené","ne",2,"ne","standartní (RHP)","minimální (částečně okenní mříže)","ano","skleněná s dřevěným rámem / dřevěné s prosklením","vzrostlé stromy, vandalismus",null,"Soc"]
[null,null,null,"bez č.p.","Svitavy ",56802,"1589",4700,33,80,"Pardubický kraj",1,33,"garáž","zděná","plochá","střešní fólie","garáž ","ne",2,"ne","standartní (RHP)","minimální","ano","prosklení / plechová vrata","vzrostlé stromy, vandalismus",385280,"Soc"]
[null,null,null,"Purkyňova 14/252","Svitavy ",56802,"182",4700,249,1300,"Pardubický kraj",1,249,"budova","zděná","sedlová","plech","domov pro mentálně postižené","ne","v rekonstrukci","ne","standartní (RHP)","minimální","ano","skleněná s plastovým rámem / dřevěné","vzrostlé stromy, vandalismus",6260800,"Soc"]
[7,"Domov u studánky","00854310","Anenská Studánka 41","Lanškroun",56301,"58",4700,1100,13200,"Pardubický kraj",2,2200,"budova","zděná","valbová","eternit","kancelář, domov pro tělesně postižené","klimatizace",2,"ne","protipožární dveře, RHP, vnitřní a 2x vnější hydrant, požární nádrž","audiotelefon a CCTV u vchodu areálu, centrální klíče se vstupním právněním, oplocení","ano","skleněná s plastovým rámem / plastové s prosklením","vzrostlé stromy",68999172,"Soc"]
[null,null,null,"bez č.p.","Lanškroun",56301,"60",4700,361,2700,"Pardubický kraj",1,361,"budova","zděná","sedlová","plech","dílny","ne",1,"ne","RHP, vnější hydranty, požární nádrž","audiotelefon a CCTV u vchodu areálu, centrální klíče se vstupním právněním, oplocení","ano","skleněná s plastovým rámem / dřevěné s prosklením","vzrostlé stromy",14113467,"Soc"]
[null,null,null,"bez č.p.","Lanškroun",56301,"61",4700,61,280,"Pardubický kraj",1,61,"altán","zděná","valbová","eternit","studánka - pramen","ne",1,"ne","vnější hydranty, požární nádrž","audiotelefon a CCTV u vchodu areálu, oplocení","ano","ne","vzrostlé stromy",1463619,"Soc"]
[null,null,null,"bez č.p.","Lanškroun",56301,"74",4700,174,1054,"Pardubický kraj",2,348,"budova","zděná","valbová","eternit","kuchyně, jídelna","gastro-technologie, klimatizace",2,"ne","protipožární dveře, RHP, vnitřní a 2x vnější hydrant, požární nádrž","audiotelefon a CCTV u vchodu areálu, centrální klíče se vstupním právněním, oplocení","ano","skleněná s dřevěným rámem / dřevěné","minimální",16204351,"Soc"]
[null,null,null,"bez č.p.","Lanškroun",56301,"104",4700,115,700,"Pardubický kraj",1,115,"budova","zděná","pultová","plech","sušárna","vzduchotechnika",2,"ne","RHP, vnější hydranty, požární nádrž","audiotelefon a CCTV u vchodu areálu, centrální klíče se vstupním právněním, okenní mříže, oplocení","ano","skleněná s dřevěným rámem / dřevěné s prosklením, plechová vrata","vandalismus, vzrostlé stromy",3659047,"Soc"]
[null,null,null,"bez č.p.","Lanškroun",56301,"105",4700,365,3400,"Pardubický kraj",2,730,"budova","zděná","sedlová","plech","ubytovna, okál","ne",1,"ne","protipožární dveře, RHP, vnitřní a 2x vnější hydrant, požární nádrž","audiotelefon a CCTV u vchodu areálu, centrální klíče se vstupním oprávněním, oplocení","ano","skleněná s plastovým rámem / plastové  ","vzrostlé stromy",17772514,"Soc"]
[null,null,null,"bez č.p.","Lanškroun",56301,"110, 112",4700,{"$f":"676+46","v":722},4900,"Pardubický kraj",2,1444,"budova","zděná","valbová","šindel","ubytovna pro zaměstnance, garáže","ne",1,"minimální množství PHM v garáži","protipožární dveře, RHP, vnitřní a 2x vnější hydrant, požární nádrž","audiotelefon a CCTV u vchodu areálu, centrální klíče se vstupním oprávněním, oplocení","ano","skleněná s plastovým rámem / plastové s prosklením","vzrostlé stromy",25613329,"Soc"]
[null,null,null,"bez č.p.","Lanškroun",56301,"111",null,18,null,"Pardubický kraj",0,0,null,null,null,null,"ČOV","strojní vybavení čističky vod",null,null,null,"oplocení objektu","ano","ne","minimální"]
[null,null,null,"bez č.p.","Lanškroun",56301,"115",4700,34,250,"Pardubický kraj",1,34,"budova","dřevěná","sedlová","plech","čistička","potrubí p.p.850,364,351/1,354,353/2",2,"ne","RHP, 2x vnější hydrant, požární nádrž","audiotelefon a CCTV u vchodu areálu, centrální klíče se vstupním oprávněním, oplocení","ano","světlíky / dřevěné","vzrostlé stromy",1306803,"Soc"]
[null,null,null,"bez č.p.","Lanškroun",56301,"919",4700,null,800,"Pardubický kraj",null,0,"bazén","beton, plast","bazénové zastřešení","plast v kovovém rámu","krytý bazén","filtrační zařízení vody",1,"zásobník chlóru (minimální množství)","2x vnější hydrant, požární nádrž","audiotelefon a CCTV u vchodu areálu, centrální klíče se vstupním oprávněním, oplocení","sezónní využití","ne / plastové v kovovém rámu","vzrostlé stromy",4181758,"Soc"]
[null,null,null,"bez č.p.","Lanškroun",56301,"117",4700,71,240,"Pardubický kraj",1,71,"garáž","zděná","sedlová","plech","garáže","ne",1,"minimální množství PHM","RHP, 2x vnější hydrant, požární nádrž","audiotelefon a CCTV u vchodu areálu, centrální klíče se vstupním oprávněním, oplocení","ano","skleněná s plastovým rámem / zásuvná vrata","minimální",1254530,"Soc"]
[null,null,null,"bez č.p.","Lanškroun",56301,"66",4700,null,250,"Pardubický kraj",1,0,"budova","zděná","plochá","střešní fólie","přečerpací stanice","strojní vybavení - čepradlo",2,"ne","RHP, 2x vnější hydrant, požární nádrž","audiotelefon a CCTV u vchodu areálu, centrální klíče se vstupním oprávněním, oplocení","ano","prosklení / plechové","minimální",1306803,"Soc"]
[null,null,null,"bez č.p.","Lanškroun",56301,"118",4700,605,8383,"Pardubický kraj","2",1210,"budova","zděná","sedlová","plech","ubytovna, kuchyně, jídelna","gastro-technologie",1,"ne","protipožární dveře, RHP, vnitřní a 2x vnější hydrant, požární nádrž","audiotelefon a CCTV u vchodu areálu, centrální klíče se vstupním oprávněním, oplocení","ano","skleněná s plastovým rámem / dřevěné s prosklením","minimální",43819701,"Soc"]
[null,null,null,"bez čp.","Lanškroun",56301,"119",4700,null,300,"Pardubický kraj",1,0,"přístřešek","zděná","valbová","plech","altán k terapeutické zahradě","ne",1,"ne","2x vnější hydrant, požární nádrž","audiotelefon a CCTV u vchodu areálu, centrální klíče se vstupním oprávněním, oplocení","ano","ne","vzrostlé stromy",1568163,"Soc"]
[8,"Domov na zámku Bystré",75007932,"Zámecká 1","Bystré",56992,"1",5400,2100,35128,"Pardubický kraj",2,4200,"budova","zděná","sedlová","eternit","administrativa, ubytování, speciální ZŠ","ne",1,"ne","pasivní hlásič, RHP","pasivní hlásič","ano","skleněná s dřevěným rámem / dřevěné","vzrostlé stromy, vandalismus",206875818,"Soc"]
[null,null,null,"Zámecká 196","Bystré",56992,"3/1",4700,444,4900,"Pardubický kraj",2,888,"budova","zděná","sedlová","střešní tašky","ubytování","solární panely",1,"ne","pasivní hlásič, RHP","pasivní hlásič","ano","skleněná s dřevěným rámem / dřevěné s prosklením","vzrostlé stromy, vandalismus",28857080,"Soc"]
[null,null,null,"bez č.p.","Bystré",56992,"4/1",4700,562,4800,"Pardubický kraj",1,562,"budova","zděná","sedlová","eternit","hospodářská budova,dílny,prádelny,stání pro auta","prádelna",3,"ne","pasivní hlásič, RHP","pasivní hlásič","ano","skleněná s dřevěným rámem / dřevěné","vzrostlý strom, vandalismus",28268160,"Soc"]
[null,null,null,"Zámecká 192","Bystré",56992,"5",4700,88,980,"Pardubický kraj",1,88,"budova","zděná","sedlová","eternit","administrativní budova","ne",2,"ne","pasivní hlásič, RHP","pasivní hlásič, částečně okenní mříže","ano","skleněná s dřevěným rámem / dřevěné","vzrostlé stromy, vandalismus",5771416,"Soc"]
[null,null,null,"Na Podkově 7","Bystré",56992,"234",5400,243,2900,"Pardubický kraj",2,486,"budova","zděná","sedlová","střešní tašky","ubytování, garáž","ne",1,"ne","pasivní hlásič, RHP","pasivní hlásič","ano","skleněná s dřevěným rámem / dřevěné s prosklením","vandalismus",17078680,"Soc"]
[null,null,null,"Vrchlického 188","Bystré",56992,"376",5400,194,1500,"Pardubický kraj",2,388,"budova","zděná","valbová","střešní tašky","ubytování","žádná",1,"žádné","pasivní hlásič, RHP","pasivní hlásič, zadní část objektu oplocena","ano","skleněná s plastovým rámem / plastové","vodní toky, vandalismus",8833800,"Soc"]
[null,null,null,"č.p. 198","Bystré",56992,"7",5400,420,2520,"Pardubický kraj",2,840,"budova","zděná","sedlová","střešní tašky","kavárna, administrativa, ubytovna, dílny","ne",1,"ne","pasivní hlásič, RHP","pasivní hlásič, oplocení objektu","ano","skleněná s plastovým rámem / plastové s prosklením","minimální",14840784,"Soc"]
[9,"Poradna pro rodinu Pardubického kraje",75064006,"Mozartova 449","Pardubice","530 09","6872",4700,5207,null,"budova ve výpůjčce od Gymnázia Mozartova 449","3",15621,"budova","zděná","plochá","střešní fólie","poradna","ne",2,"ne","hydrant, RHP","EZS","ano","skleněná s dřevěným rámem / kovové s prosklením","vandalismus, vzrostlé stromy",null,"Soc"]
[null,null,null,"Školní nám. 11","Chrudim","537 01","666/1",null,1007,null,"v majetku města",2,2014,"budova","zděná","valbová","plechová","rodinná a manželská poradna","ne",3,"ne","standartní (RHP)","minimální","ano","skleněná s dřevěným rámem / dřevěné s prosklením","vandalismus",null,"Soc"]
[null,null,null,"Na Pláni 1343","Ústí nad Orlicí",56206,2844,null,1240,null,"v majetku ČR - ÚZSVM",8,9920,"budova","zděná","pultová","střešní fólie","rodinná a manželská poradna","ne",2,"ne","standartní (RHP)","minimální","ano","skleněná s plastovým rámem / kovové s prosklením","vandalismus",null,"Soc"]
[null,null,null,"Riegrova 2063/11","Svitavy ",56802,null,null,null,null,null,null,0,null,null,null,null,"rodinná a manželská poradna",null,null,null,null,null,null,null,null,"budova ve výpujčce Pardubického kraje","Soc"]
[null,null,null,"Slezská 514","Chrudim",53705,1962,null,138,null,"v majetku fyzické osoby",2,276,"budova","zděná","valbová","pálená taška","rodinná a manželská poradna","ne",3,"ne","standartní (RHP)","minimální (oplocení objektu)","ano","skleněná s dřevěným rámem / dřevěné s prosklením","vzrostlé stromy",null,"Soc"]
[null,null,null,"Řestoky 90","Chrast",53851,94,null,198,null,"v majetku fyzické osoby",1,198,"budova","zděná","sedlová","šindel","rodinný dům","ne","v rekonstrukci","ne","standartní","minimální (oplocení objektu)","ano","skleněná s plastovým rámem / dřevěné","minimální",null,"Soc"]
[{"$f":"+A723+1","v":1},"Krajský úřad Pardubického kraje","70892822","Komenského nám. 125","Pardubice",53211,"902",4900,1204,22800,"Pardubický kraj",3,3612,"budova","zděná","sedlová","střešní tašky","kanceláře krajského úřadu","ne",1,"ne ","EPS, RHP","EZS, kamerový systém","ano","skleněná s dřevěným rámem / dřevěné s prosklením","vandalismus",109804800,"KÚ"]
[null,null,null,"Nám. Republiky 12","Pardubice",53211,"2207",4900,175,61500,"Pardubický kraj","5",875,"budova","zděná","valbová","plech","kanceláře magistrátu města Pardubic","ne",1,"ne","standartní (RHP)","EZS (1.PP,1.NP,2.NP, a 4.NP doplňkově),kamerový systém","ano","skleněná s dřevěným rámem / dřevěné s prosklením","vandalismus",296284000,"KÚ"]
[null,null,null,"Nám. Republiky 12","Pardubice",53211,"2207",null,1358,null,"Pardubický kraj","4",{"$f":"L726*I726","v":5432},"budova","zděná","valbová","plech","kanceláře magistrátu města Pardubic","ne",1,"ne","standartní (RHP)","EZS (1.PP,1.NP,2.NP, a 4.NP doplňkově),kamerový systém","ano","skleněná s dřevěným rámem / dřevěné s prosklením","vandalismus"]
[null,null,null,"Nám. Republiky 12","Pardubice",53211,"2207",null,563,null,"Pardubický kraj","2",{"$f":"L727*I727","v":1126},"budova","zděná","valbová","plech","kanceláře magistrátu města Pardubic","ne",1,"ne","standartní (RHP)","EZS (1.PP,1.NP,2.NP, a 4.NP doplňkově),kamerový systém","ano","skleněná s dřevěným rámem / dřevěné s prosklením","vandalismus"]
[null,null,null,"Jahnova 127","Pardubice",53211,"1473",4900,848,17000,"Pardubický kraj",3,2544,"budova","zděná","sedlová","střešní tašky","kanceláře krajského úřadu","ne",1,"ne","EPS, RHP","EZS, kamerový systém","ano","skleněná s dřevěným rámem / dřevěné s prosklením","vandalismus",81972000,"KÚ"]
[null,null,null,"Klášterní 124","Pardubice",53211,"94/2",4900,261,7200,"Pardubický kraj",3,783,"budova","zděná","sedlová","střešní tašky","kanceláře krajského úřadu","ne",1,"ne","EPS, RHP","EZS, kamerový systém","ano","skleněná s dřevěným rámem / dřevěné s prosklením","vandalismus",34675200,"KÚ"]
[null,null,null,"Karla IV. 2749","Pardubice",53211,"10266",4900,2097,24500,"Pardubický kraj",6,12582,"budova","železobeton","plochá","střešní fólie","parkovací dům","ne",1,"ne","standartní (RHP)","kamerový systém","ano","skleněná s kovovým rámem / kovové s prosklením","vandalismus",117992000,"KÚ"]
[null,null,null,"Komenského nám. 120","Pardubice",53211,"95",11000,1374,18700,"Pardubický kraj",3,4122,"budova","zděná","valbová","střešní tašky","kanceláře krajského úřadu","klimatizace",1,"ne","EPS, RHP","EZS, kamerový systém","ano","skleněná s dřevěným rámem / dřevěné s prosklením","vandalismus",90159200,"KÚ"]